Workbook

Sheet Inputs
A1: Instructions: | B1: Values in Blue are Unprotected. ALL worksheets are protected (No Password) and MUST NOT have a password when running model. | T1: Paid | U1: Chain Ladder | V1: Poisson | W1: 0 | X1: Average | AA1: 0 | AB1: =10^AA1 -> 1 | AF1: 0 | AH1: StdDev | AJ1: 1 | AL1: Lognormal
B2: Set Macro Security level low enough to enable macros when the program is opened. | T2: Incurred | U2: Bornhuetter-Ferguson | V2: Gamma | W2: 1 | X2: Volume Weighted Average | AA2: 3 | AB2: =10^AA2 -> 1000 | AC2: (in 000's) | AF2: 1 | AH2: ScalParm | AJ2: 2 | AL2: Normal
B3: There is a hidden worksheet that contains the random numbers used in the simulation process. | U3: Cape Cod | V3: Normal | W3: 2 | X3: Volume Squared Weighted Average | AA3: 6 | AB3: =10^AA3 -> 1000000 | AC3: (in Million's) | AF3: 2 | AJ3: 3
B4: Enter basic data and assumptions on this sheet. Enter hetero groups and outliers on Bootstrap sheet. | U4: GLM Bootstrap | V4: Inverse Gaussian | AA4: 9 | AB4: =10^AA4 -> 1000000000 | AC4: (in Billion's) | AJ4: 4
B5: The model is set up to run a 10 x 10 triangle or less, but NO larger size. All data must be annual and no cells can be missing. | AA5: 12 | AB5: =10^AA5 -> 1000000000000 | AC5: (in Trillion's) | AJ5: 5
B6: After running simulations by model, use the "Best Estimate" file to weight those results for each LOB prior to using the "Aggregate Estimate" file to aggregate results for all LOBs.
B7: You MUST "Generate Random Values" prior to clicking on "Run Simulations".
B8: You SHOULD generate different random numbers for each model and data type (you don't need to change the Seed Value to do this). Otherwise, the weighted results will be correlated.
B9: You MUST save this file in a separately named workbook for each model you wish to combine into your best estimate (since you can only run one model at a time). All "Bootstrap Models" files MUST have a different name and be saved in the same directory.
B10: By entering an iteration number in the "Iteration" cell (two cells to the right of "Iterations"), you can see the calculations on the Bootstrap sheet for any specific iteration on the Results sheet.
B11: You can "Clear Random Values" and/or "Clear Results" to delete the random numbers and simulated results, respectively, to save file size space (but don't delete results if you intend to store them for your best estimate).
B13: Random Values | C13: Simulations | D13: Total
A14: Start Time: | B14: 42327.39409 | C14: 42327.39412
A15: End Time: | B15: 42327.39411 | C15: 42327.39434
A16: Elapsed Time: | B16: =end_time_RV-start_time_RV -> 00:00:02 | C16: =end_time_Sims-start_time_Sims -> 00:00:19 | D16: =B16+C16 -> 00:00:21
A18: Company: | B18: Sample Insurance Company
A19: LOB / Segment: | B19: Taylor & Ashe Data
A20: Data Type: | B20: Paid
A21: Model Type: | B21: Chain Ladder
A22: Iterations: | B22: 100 | D22: 1
A23: Seed Value: | B23: 0
A24: Percentiles: | B24: 0.5 | C24: 0.75 | D24: 0.95 | E24: 0.99
M25: Average Cumulative Tail Factors: | R25: Average Incremental Tail Factors:
A26: Tail Factors: | B26: Mean | C26: Std. Dev. | D26: 0.025 | E26: =1-D26 -> 0.975 | F26: Distribution | G26: Limit Factors? | H26: Minimum | I26: Maximum | J26: Extrapolate? | K26: Years? | L26: Decay Ratio | M26: 1 | N26: 2 | O26: 3 | P26: 4 | Q26: 5 | R26: 1 | S26: 2 | T26: 3 | U26: 4 | V26: 5
A27: Paid | B27: 1 | C27: 0 | D27: =IF(PaidTF_SD=0,PaidTF,IF(PaidTF_Dist="Normal",_xlfn.NORM.INV(D26,PaidTF,PaidTF_SD),_xlfn.LOGNORM.INV(D26,LN(PaidTF)-0.5*LN((PaidTF_SD/PaidTF)^2+1),LN((PaidTF_SD/PaidTF)^2+1)^0.5))) -> 1 | E27: =IF(PaidTF_SD=0,PaidTF,IF(PaidTF_Dist="Normal",_xlfn.NORM.INV(E26,PaidTF,PaidTF_SD),_xlfn.LOGNORM.INV(E26,LN(PaidTF)-0.5*LN((PaidTF_SD/PaidTF)^2+1),LN((PaidTF_SD/PaidTF)^2+1)^0.5))) -> 1 | F27: Normal | G27: Yes | H27: 1 | J27: No | K27: 3 | L27: 0.5 | M27: =PaidTF -> 1 | N27: =IF(PaidTF_Extrap="Yes",IF(N26<=PaidTF_Yrs,(M27-1)*(1-PaidTF_Decay)+1,""),"") ->  | O27: =IF(PaidTF_Extrap="Yes",IF(O26<=PaidTF_Yrs,(N27-1)*(1-PaidTF_Decay)+1,""),"") ->  | P27: =IF(PaidTF_Extrap="Yes",IF(P26<=PaidTF_Yrs,(O27-1)*(1-PaidTF_Decay)+1,""),"") ->  | Q27: =IF(PaidTF_Extrap="Yes",IF(Q26<=PaidTF_Yrs,(P27-1)*(1-PaidTF_Decay)+1,""),"") ->  | R27: =IF(PaidTF_Extrap="Yes",IF(R26<=PaidTF_Yrs,IF(R26=PaidTF_Yrs,M27,M27/N27),""),"") ->  | S27: =IF(PaidTF_Extrap="Yes",IF(S26<=PaidTF_Yrs,IF(S26=PaidTF_Yrs,N27,N27/O27),""),"") ->  | T27: =IF(PaidTF_Extrap="Yes",IF(T26<=PaidTF_Yrs,IF(T26=PaidTF_Yrs,O27,O27/P27),""),"") ->  | U27: =IF(PaidTF_Extrap="Yes",IF(U26<=PaidTF_Yrs,IF(U26=PaidTF_Yrs,P27,P27/Q27),""),"") ->  | V27: =IF(PaidTF_Extrap="Yes",IF(V26<=PaidTF_Yrs,IF(V26=PaidTF_Yrs,Q27,Q27/R27),""),"") -> 
A28: Incurred | B28: 1 | C28: 0 | D28: =IF(IncTF_SD=0,IncTF,IF(IncTF_Dist="Normal",_xlfn.NORM.INV(D26,IncTF,IncTF_SD),LOGINV(D26,LN(IncTF)-0.5*LN((IncTF_SD/IncTF)^2+1),LN((IncTF_SD/IncTF)^2+1)^0.5))) -> 1 | E28: =IF(IncTF_SD=0,IncTF,IF(IncTF_Dist="Normal",_xlfn.NORM.INV(E26,IncTF,IncTF_SD),LOGINV(E26,LN(IncTF)-0.5*LN((IncTF_SD/IncTF)^2+1),LN((IncTF_SD/IncTF)^2+1)^0.5))) -> 1 | F28: Lognormal | G28: Yes | H28: 1 | J28: No | K28: 2 | L28: 0.5 | M28: =IncTF -> 1 | N28: =IF(IncTF_Extrap="Yes",IF(N26<=IncTF_Yrs,(M28-1)*(1-IncTF_Decay)+1,""),"") ->  | O28: =IF(IncTF_Extrap="Yes",IF(O26<=IncTF_Yrs,(N28-1)*(1-IncTF_Decay)+1,""),"") ->  | P28: =IF(IncTF_Extrap="Yes",IF(P26<=IncTF_Yrs,(O28-1)*(1-IncTF_Decay)+1,""),"") ->  | Q28: =IF(IncTF_Extrap="Yes",IF(Q26<=IncTF_Yrs,(P28-1)*(1-IncTF_Decay)+1,""),"") ->  | R28: =IF(IncTF_Extrap="Yes",IF(R26<=IncTF_Yrs,IF(R26=IncTF_Yrs,M28,M28/N28),""),"") ->  | S28: =IF(IncTF_Extrap="Yes",IF(S26<=IncTF_Yrs,IF(S26=IncTF_Yrs,N28,N28/O28),""),"") ->  | T28: =IF(IncTF_Extrap="Yes",IF(T26<=IncTF_Yrs,IF(T26=IncTF_Yrs,O28,O28/P28),""),"") ->  | U28: =IF(IncTF_Extrap="Yes",IF(U26<=IncTF_Yrs,IF(U26=IncTF_Yrs,P28,P28/Q28),""),"") ->  | V28: =IF(IncTF_Extrap="Yes",IF(V26<=IncTF_Yrs,IF(V26=IncTF_Yrs,Q28,Q28/R28),""),"") -> 
A29: Model Options:
A30: GLM Error Distribution: | C30: Poisson | E30: =IF(ModelUsed="Flexible",IF(GLMDist="Poisson",1,IF(GLMDist="Gamma",2,IF(GLMDist="Normal",0,3))),1) -> 1
A31: Use Exposure Adjustment? | C31: No
A32: Round Raw Data By Power of 10? | C32: 0 | D32: =VLOOKUP(RoundOption,RoundTable,3) ->  | F32: =VLOOKUP(RoundOption,RoundTable,2) -> 1
A33: Don't Sample Zero Residuals? | C33: Yes
A34: Include Zero Residuals in Stats? | C34: Yes
A35: Include Hat Matrix Factors? | C35: Yes
A36: Include DoF Adjustment? | C36: No
A37: Include Process Variance? | C37: Yes
A38: Include Scale Parameter? | C38: Yes
A39: Calc Hetero-Adj Factors Using? | C39: ScalParm
A40: Set Negative Incrementals (by development period) to Zero?
B41: 12 | C41: =IF(B44>TriangleSize,"",IF(B44=TriangleSize,TEXT(B41+12,"0")&" +",B41+12)) -> 24 | D41: 36 | E41: 48 | F41: 60 | G41: 72 | H41: 84 | I41: 96 | J41: 108 | K41: 120 | L41: 132 +
A42: Paid | B42: No | C42: No | D42: No | E42: No | F42: No | G42: No | H42: No | I42: No | J42: No | K42: No | L42: No
A43: Incurred | B43: No | C43: No | D43: No | E43: No | F43: No | G43: No | H43: No | I43: No | J43: No | K43: No | L43: No
B44: 1 | C44: 2 | D44: 3 | E44: 4 | F44: 5 | G44: 6 | H44: 7 | I44: 8 | J44: 9 | K44: 10 | L44: 11
A45: Triangle Size: | B45: 10
B47: Cumulative Paid Raw Data (Input)
A48: Year | B48: 12 | C48: =IF(C44>TriangleSize,"",B48+12) -> 24 | D48: 36 | E48: 48 | F48: 60 | G48: 72 | H48: 84 | I48: 96 | J48: 108 | K48: 120
A49: 2006 | B49: 357848 | C49: 1124788 | D49: 1735330 | E49: 2218270 | F49: 2745596 | G49: 3319994 | H49: 3466336 | I49: 3606286 | J49: 3833515 | K49: 3901463
A50: =IF(A49="","",IF(A49+1>FirstYear+TriangleSize-1,"",A49+1)) -> 2007 | B50: 352118 | C50: 1236139 | D50: 2170033 | E50: 3353322 | F50: 3799067 | G50: 4120063 | H50: 4647867 | I50: 4914039 | J50: 5339085
A51: 2008 | B51: 290507 | C51: 1292306 | D51: 2218525 | E51: 3235179 | F51: 3985995 | G51: 4132918 | H51: 4628910 | I51: 4909315
A52: 2009 | B52: 310608 | C52: 1418858 | D52: 2195047 | E52: 3757447 | F52: 4029929 | G52: 4381982 | H52: 4588268
A53: 2010 | B53: 443160 | C53: 1136350 | D53: 2128333 | E53: 2897821 | F53: 3402672 | G53: 3873311
A54: 2011 | B54: 396132 | C54: 1333217 | D54: 2180715 | E54: 2985752 | F54: 3691712
A55: 2012 | B55: 440832 | C55: 1288463 | D55: 2419861 | E55: 3483130
A56: 2013 | B56: 359480 | C56: 1421128 | D56: 2864498
A57: 2014 | B57: 376686 | C57: 1363294
A58: 2015 | B58: 344014
A59: =TriangleSize -> 10
B61: Cumulative Incurred Raw Data (Input)
A62: Year | B62: =B48 -> 12 | C62: =C48 -> 24 | D62: 36 | E62: 48 | F62: 60 | G62: 72 | H62: 84 | I62: 96 | J62: 108 | K62: 120
A63: =A49 -> 2006 | B63: 357848 | C63: 1124788 | D63: 1735330 | E63: 2218270 | F63: 2745596 | G63: 3319994 | H63: 3466336 | I63: 3606286 | J63: 3833515 | K63: 3901463
A64: =A50 -> 2007 | B64: 352118 | C64: 1236139 | D64: 2170033 | E64: 3353322 | F64: 3799067 | G64: 4120063 | H64: 4647867 | I64: 4914039 | J64: 5339085
A65: 2008 | B65: 290507 | C65: 1292306 | D65: 2218525 | E65: 3235179 | F65: 3985995 | G65: 4132918 | H65: 4628910 | I65: 4909315
A66: 2009 | B66: 310608 | C66: 1418858 | D66: 2195047 | E66: 3757447 | F66: 4029929 | G66: 4381982 | H66: 4588268
A67: 2010 | B67: 443160 | C67: 1136350 | D67: 2128333 | E67: 2897821 | F67: 3402672 | G67: 3873311
A68: 2011 | B68: 396132 | C68: 1333217 | D68: 2180715 | E68: 2985752 | F68: 3691712
A69: 2012 | B69: 440832 | C69: 1288463 | D69: 2419861 | E69: 3483130
A70: 2013 | B70: 359480 | C70: 1421128 | D70: 2864498
A71: 2014 | B71: 376686 | C71: 1363294
A72: 2015 | B72: 344014
B74: 1 | C74: 2 | D74: 3 | E74: 4 | F74: 5 | G74: 6 | H74: 7 | I74: 8 | J74: 9 | K74: 10
B75: Cumulative Case Reserves
A76: Year | B76: =B48 -> 12 | C76: =C48 -> 24 | D76: 36 | E76: 48 | F76: 60 | G76: 72 | H76: 84 | I76: 96 | J76: 108 | K76: 120
A77: =A49 -> 2006 | B77: =IF(B$74+$M77-1>TriangleSize,"",IF(OR(B49="",B63=""),"",B63-B49)) -> 0 | C77: 0 | D77: 0 | E77: 0 | F77: 0 | G77: 0 | H77: 0 | I77: 0 | J77: 0 | K77: 0 | M77: 1
A78: =A50 -> 2007 | B78: =IF(B$74+$M78-1>TriangleSize,"",IF(OR(B50="",B64=""),"",B64-B50)) -> 0 | C78: 0 | D78: 0 | E78: 0 | F78: 0 | G78: 0 | H78: 0 | I78: 0 | J78: 0 | M78: 2
A79: 2008 | B79: =IF(B$74+$M79-1>TriangleSize,"",IF(OR(B51="",B65=""),"",B65-B51)) -> 0 | C79: 0 | D79: 0 | E79: 0 | F79: 0 | G79: 0 | H79: 0 | I79: 0 | M79: 3
A80: 2009 | B80: =IF(B$74+$M80-1>TriangleSize,"",IF(OR(B52="",B66=""),"",B66-B52)) -> 0 | C80: 0 | D80: 0 | E80: 0 | F80: 0 | G80: 0 | H80: 0 | M80: 4
A81: 2010 | B81: =IF(B$74+$M81-1>TriangleSize,"",IF(OR(B53="",B67=""),"",B67-B53)) -> 0 | C81: 0 | D81: 0 | E81: 0 | F81: 0 | G81: 0 | M81: 5
A82: 2011 | B82: =IF(B$74+$M82-1>TriangleSize,"",IF(OR(B54="",B68=""),"",B68-B54)) -> 0 | C82: 0 | D82: 0 | E82: 0 | F82: 0 | M82: 6
A83: 2012 | B83: =IF(B$74+$M83-1>TriangleSize,"",IF(OR(B55="",B69=""),"",B69-B55)) -> 0 | C83: 0 | D83: 0 | E83: 0 | M83: 7
A84: 2013 | B84: =IF(B$74+$M84-1>TriangleSize,"",IF(OR(B56="",B70=""),"",B70-B56)) -> 0 | C84: 0 | D84: 0 | M84: 8
A85: 2014 | B85: =IF(B$74+$M85-1>TriangleSize,"",IF(OR(B57="",B71=""),"",B71-B57)) -> 0 | C85: 0 | M85: 9
A86: 2015 | B86: =IF(B$74+$M86-1>TriangleSize,"",IF(OR(B58="",B72=""),"",B72-B58)) -> 0 | M86: 10
E89: Bornhuetter-Ferguson Assumptions | J89: Cape Cod Assumptions
E90: a priori | K90: Paid Data | M90: Incurred Data
B91: Earned | C91: Earned | E91: Loss | F91: Coefficient | G91: Percentile Range | J91: Premium | K91: Loss | M91: Loss
A92: Year | B92: Premium | C92: Exposure | E92: Ratio | F92: of Variation | G92: 0.025 | H92: =1-G92 -> 0.975 | J92: Index | K92: Trend | L92: Weight | M92: Trend | N92: Weight
A93: =A49 -> 2006 | B93: 7000000 | C93: 7000 | E93: 0.6 | F93: 0.12 | G93: =IF(OR($F93<0,G$92=0,ISBLANK(G$92),G$92<0,G$92>=1,$E93<0,ISBLANK($E93)),"",IF(OR(ISBLANK($F93),$F93=0),$E93,LOGINV(G$92,LN($E93)-0.5*LN($F93^2+1),LN($F93^2+1)^0.5))) -> 0.4712673185 | H93: 0.7530536831 | J93: 1 | K93: 0.025 | L93: 1 | M93: 0.025 | N93: 1 | Q93: 1
A94: =A50 -> 2007 | B94: 8250000 | C94: 8250 | E94: 0.6 | F94: 0.12 | G94: 0.4712673185 | H94: 0.7530536831 | J94: 1 | K94: 0.025 | L94: 1 | M94: 0.025 | N94: 1 | Q94: 2
A95: 2008 | B95: 8500000 | C95: 8500 | E95: 0.6 | F95: 0.12 | G95: 0.4712673185 | H95: 0.7530536831 | J95: 1 | K95: 0.025 | L95: 1 | M95: 0.025 | N95: 1 | Q95: 3
A96: 2009 | B96: 9000000 | C96: 9000 | E96: 0.6 | F96: 0.12 | G96: 0.4712673185 | H96: 0.7530536831 | J96: 1 | K96: 0.025 | L96: 1 | M96: 0.025 | N96: 1 | Q96: 4
A97: 2010 | B97: 9500000 | C97: 9500 | E97: 0.6 | F97: 0.12 | G97: 0.4712673185 | H97: 0.7530536831 | J97: 1 | K97: 0.025 | L97: 1 | M97: 0.025 | N97: 1 | Q97: 5
A98: 2011 | B98: 10000000 | C98: 10000 | E98: 0.6 | F98: 0.12 | G98: 0.4712673185 | H98: 0.7530536831 | J98: 1 | K98: 0.025 | L98: 1 | M98: 0.025 | N98: 1 | Q98: 6
A99: 2012 | B99: 10500000 | C99: 10500 | E99: 0.6 | F99: 0.12 | G99: 0.4712673185 | H99: 0.7530536831 | J99: 1 | K99: 0.025 | L99: 1 | M99: 0.025 | N99: 1 | Q99: 7
A100: 2013 | B100: 11000000 | C100: 11000 | E100: 0.6 | F100: 0.12 | G100: 0.4712673185 | H100: 0.7530536831 | J100: 1 | K100: 0.025 | L100: 1 | M100: 0.025 | N100: 1 | Q100: 8
A101: 2014 | B101: 11500000 | C101: 11500 | E101: 0.6 | F101: 0.12 | G101: 0.4712673185 | H101: 0.7530536831 | J101: 1 | K101: 0.025 | L101: 1 | M101: 0.025 | N101: 1 | Q101: 9
A102: 2015 | B102: 12000000 | C102: 12000 | E102: 0.6 | F102: 0.12 | G102: 0.4712673185 | H102: 0.7530536831 | J102: 1 | K102: 0.025 | L102: 1 | M102: 0.025 | N102: 1 | Q102: 10
A103: Total / Average | B103: =SUM(PremValues) -> 97250000 | C103: =SUM(ExpValues) -> 97250 | E103: =SUMPRODUCT(B93:B102,E93:E102)/SUM(B93:B102) -> 0.6
J104: Decay Rate: | K104: 0.75 | M104: 0.75

Sheet Bootstrap
A1: -1 | B1: ="Cumulative Data (Paid"&IF(UseExpAdj="Yes",", Exposure Adjusted)",")") -> Cumulative Data (Paid) | AA1: -1 | AB1: ="Cumulative Data (Incurred"&IF(UseExpAdj="Yes",", Exposure Adjusted)",")") -> Cumulative Data (Incurred)
C2: 1 | D2: 2 | E2: 3 | F2: 4 | G2: 5 | H2: 6 | I2: 7 | J2: 8 | K2: 9 | L2: 10 | AC2: 1 | AD2: 2 | AE2: 3 | AF2: 4 | AG2: 5 | AH2: 6 | AI2: 7 | AJ2: 8 | AK2: 9 | AL2: 10
B3: Year | C3: =Inputs!B48 -> 12 | D3: =Inputs!C48 -> 24 | E3: =Inputs!D48 -> 36 | F3: =Inputs!E48 -> 48 | G3: =Inputs!F48 -> 60 | H3: =Inputs!G48 -> 72 | I3: =Inputs!H48 -> 84 | J3: =Inputs!I48 -> 96 | K3: =Inputs!J48 -> 108 | L3: =Inputs!K48 -> 120 | AB3: Year | AC3: =Inputs!B48 -> 12 | AD3: =Inputs!C48 -> 24 | AE3: =Inputs!D48 -> 36 | AF3: =Inputs!E48 -> 48 | AG3: =Inputs!F48 -> 60 | AH3: =Inputs!G48 -> 72 | AI3: =Inputs!H48 -> 84 | AJ3: =Inputs!I48 -> 96 | AK3: =Inputs!J48 -> 108 | AL3: =Inputs!K48 -> 120
A4: 1 | B4: =Inputs!A49 -> 2006 | C4: =IF($A4+C$2-1>TriangleSize,"",(Inputs!B49/RoundingValue)/IF(UseExpAdj="Yes",(Inputs!$C93/RoundingValue),1)) -> 357848 | D4: =IF($A4+D$2-1>TriangleSize,"",(Inputs!C49/RoundingValue)/IF(UseExpAdj="Yes",(Inputs!$C93/RoundingValue),1)) -> 1124788 | E4: =IF($A4+E$2-1>TriangleSize,"",(Inputs!D49/RoundingValue)/IF(UseExpAdj="Yes",(Inputs!$C93/RoundingValue),1)) -> 1735330 | F4: =IF($A4+F$2-1>TriangleSize,"",(Inputs!E49/RoundingValue)/IF(UseExpAdj="Yes",(Inputs!$C93/RoundingValue),1)) -> 2218270 | G4: =IF($A4+G$2-1>TriangleSize,"",(Inputs!F49/RoundingValue)/IF(UseExpAdj="Yes",(Inputs!$C93/RoundingValue),1)) -> 2745596 | H4: =IF($A4+H$2-1>TriangleSize,"",(Inputs!G49/RoundingValue)/IF(UseExpAdj="Yes",(Inputs!$C93/RoundingValue),1)) -> 3319994 | I4: =IF($A4+I$2-1>TriangleSize,"",(Inputs!H49/RoundingValue)/IF(UseExpAdj="Yes",(Inputs!$C93/RoundingValue),1)) -> 3466336 | J4: =IF($A4+J$2-1>TriangleSize,"",(Inputs!I49/RoundingValue)/IF(UseExpAdj="Yes",(Inputs!$C93/RoundingValue),1)) -> 3606286 | K4: =IF($A4+K$2-1>TriangleSize,"",(Inputs!J49/RoundingValue)/IF(UseExpAdj="Yes",(Inputs!$C93/RoundingValue),1)) -> 3833515 | L4: =IF($A4+L$2-1>TriangleSize,"",(Inputs!K49/RoundingValue)/IF(UseExpAdj="Yes",(Inputs!$C93/RoundingValue),1)) -> 3901463 | AA4: 1 | AB4: =Inputs!A49 -> 2006 | AC4: =IF($AA4+AC$2-1>TriangleSize,"",(Inputs!B63/RoundingValue)/IF(UseExpAdj="Yes",(Inputs!$C93/RoundingValue),1)) -> 357848 | AD4: =IF($AA4+AD$2-1>TriangleSize,"",(Inputs!C63/RoundingValue)/IF(UseExpAdj="Yes",(Inputs!$C93/RoundingValue),1)) -> 1124788 | AE4: =IF($AA4+AE$2-1>TriangleSize,"",(Inputs!D63/RoundingValue)/IF(UseExpAdj="Yes",(Inputs!$C93/RoundingValue),1)) -> 1735330 | AF4: =IF($AA4+AF$2-1>TriangleSize,"",(Inputs!E63/RoundingValue)/IF(UseExpAdj="Yes",(Inputs!$C93/RoundingValue),1)) -> 2218270 | AG4: =IF($AA4+AG$2-1>TriangleSize,"",(Inputs!F63/RoundingValue)/IF(UseExpAdj="Yes",(Inputs!$C93/RoundingValue),1)) -> 2745596 | AH4: =IF($AA4+AH$2-1>TriangleSize,"",(Inputs!G63/RoundingValue)/IF(UseExpAdj="Yes",(Inputs!$C93/RoundingValue),1)) -> 3319994 | AI4: =IF($AA4+AI$2-1>TriangleSize,"",(Inputs!H63/RoundingValue)/IF(UseExpAdj="Yes",(Inputs!$C93/RoundingValue),1)) -> 3466336 | AJ4: =IF($AA4+AJ$2-1>TriangleSize,"",(Inputs!I63/RoundingValue)/IF(UseExpAdj="Yes",(Inputs!$C93/RoundingValue),1)) -> 3606286 | AK4: =IF($AA4+AK$2-1>TriangleSize,"",(Inputs!J63/RoundingValue)/IF(UseExpAdj="Yes",(Inputs!$C93/RoundingValue),1)) -> 3833515 | AL4: =IF($AA4+AL$2-1>TriangleSize,"",(Inputs!K63/RoundingValue)/IF(UseExpAdj="Yes",(Inputs!$C93/RoundingValue),1)) -> 3901463
A5: 2 | B5: =Inputs!A50 -> 2007 | C5: =IF($A5+C$2-1>TriangleSize,"",(Inputs!B50/RoundingValue)/IF(UseExpAdj="Yes",(Inputs!$C94/RoundingValue),1)) -> 352118 | D5: =IF($A5+D$2-1>TriangleSize,"",(Inputs!C50/RoundingValue)/IF(UseExpAdj="Yes",(Inputs!$C94/RoundingValue),1)) -> 1236139 | E5: =IF($A5+E$2-1>TriangleSize,"",(Inputs!D50/RoundingValue)/IF(UseExpAdj="Yes",(Inputs!$C94/RoundingValue),1)) -> 2170033 | F5: =IF($A5+F$2-1>TriangleSize,"",(Inputs!E50/RoundingValue)/IF(UseExpAdj="Yes",(Inputs!$C94/RoundingValue),1)) -> 3353322 | G5: =IF($A5+G$2-1>TriangleSize,"",(Inputs!F50/RoundingValue)/IF(UseExpAdj="Yes",(Inputs!$C94/RoundingValue),1)) -> 3799067 | H5: =IF($A5+H$2-1>TriangleSize,"",(Inputs!G50/RoundingValue)/IF(UseExpAdj="Yes",(Inputs!$C94/RoundingValue),1)) -> 4120063 | I5: =IF($A5+I$2-1>TriangleSize,"",(Inputs!H50/RoundingValue)/IF(UseExpAdj="Yes",(Inputs!$C94/RoundingValue),1)) -> 4647867 | J5: =IF($A5+J$2-1>TriangleSize,"",(Inputs!I50/RoundingValue)/IF(UseExpAdj="Yes",(Inputs!$C94/RoundingValue),1)) -> 4914039 | K5: =IF($A5+K$2-1>TriangleSize,"",(Inputs!J50/RoundingValue)/IF(UseExpAdj="Yes",(Inputs!$C94/RoundingValue),1)) -> 5339085 | L5: =IF($A5+L$2-1>TriangleSize,"",(Inputs!K50/RoundingValue)/IF(UseExpAdj="Yes",(Inputs!$C94/RoundingValue),1)) ->  | AA5: 2 | AB5: =Inputs!A50 -> 2007 | AC5: =IF($AA5+AC$2-1>TriangleSize,"",(Inputs!B64/RoundingValue)/IF(UseExpAdj="Yes",(Inputs!$C94/RoundingValue),1)) -> 352118 | AD5: =IF($AA5+AD$2-1>TriangleSize,"",(Inputs!C64/RoundingValue)/IF(UseExpAdj="Yes",(Inputs!$C94/RoundingValue),1)) -> 1236139 | AE5: =IF($AA5+AE$2-1>TriangleSize,"",(Inputs!D64/RoundingValue)/IF(UseExpAdj="Yes",(Inputs!$C94/RoundingValue),1)) -> 2170033 | AF5: =IF($AA5+AF$2-1>TriangleSize,"",(Inputs!E64/RoundingValue)/IF(UseExpAdj="Yes",(Inputs!$C94/RoundingValue),1)) -> 3353322 | AG5: =IF($AA5+AG$2-1>TriangleSize,"",(Inputs!F64/RoundingValue)/IF(UseExpAdj="Yes",(Inputs!$C94/RoundingValue),1)) -> 3799067 | AH5: =IF($AA5+AH$2-1>TriangleSize,"",(Inputs!G64/RoundingValue)/IF(UseExpAdj="Yes",(Inputs!$C94/RoundingValue),1)) -> 4120063 | AI5: =IF($AA5+AI$2-1>TriangleSize,"",(Inputs!H64/RoundingValue)/IF(UseExpAdj="Yes",(Inputs!$C94/RoundingValue),1)) -> 4647867 | AJ5: =IF($AA5+AJ$2-1>TriangleSize,"",(Inputs!I64/RoundingValue)/IF(UseExpAdj="Yes",(Inputs!$C94/RoundingValue),1)) -> 4914039 | AK5: =IF($AA5+AK$2-1>TriangleSize,"",(Inputs!J64/RoundingValue)/IF(UseExpAdj="Yes",(Inputs!$C94/RoundingValue),1)) -> 5339085 | AL5: =IF($AA5+AL$2-1>TriangleSize,"",(Inputs!K64/RoundingValue)/IF(UseExpAdj="Yes",(Inputs!$C94/RoundingValue),1)) -> 
A6: 3 | B6: =Inputs!A51 -> 2008 | C6: =IF($A6+C$2-1>TriangleSize,"",(Inputs!B51/RoundingValue)/IF(UseExpAdj="Yes",(Inputs!$C95/RoundingValue),1)) -> 290507 | D6: =IF($A6+D$2-1>TriangleSize,"",(Inputs!C51/RoundingValue)/IF(UseExpAdj="Yes",(Inputs!$C95/RoundingValue),1)) -> 1292306 | E6: =IF($A6+E$2-1>TriangleSize,"",(Inputs!D51/RoundingValue)/IF(UseExpAdj="Yes",(Inputs!$C95/RoundingValue),1)) -> 2218525 | F6: =IF($A6+F$2-1>TriangleSize,"",(Inputs!E51/RoundingValue)/IF(UseExpAdj="Yes",(Inputs!$C95/RoundingValue),1)) -> 3235179 | G6: =IF($A6+G$2-1>TriangleSize,"",(Inputs!F51/RoundingValue)/IF(UseExpAdj="Yes",(Inputs!$C95/RoundingValue),1)) -> 3985995 | H6: =IF($A6+H$2-1>TriangleSize,"",(Inputs!G51/RoundingValue)/IF(UseExpAdj="Yes",(Inputs!$C95/RoundingValue),1)) -> 4132918 | I6: =IF($A6+I$2-1>TriangleSize,"",(Inputs!H51/RoundingValue)/IF(UseExpAdj="Yes",(Inputs!$C95/RoundingValue),1)) -> 4628910 | J6: =IF($A6+J$2-1>TriangleSize,"",(Inputs!I51/RoundingValue)/IF(UseExpAdj="Yes",(Inputs!$C95/RoundingValue),1)) -> 4909315 | K6: =IF($A6+K$2-1>TriangleSize,"",(Inputs!J51/RoundingValue)/IF(UseExpAdj="Yes",(Inputs!$C95/RoundingValue),1)) ->  | L6: =IF($A6+L$2-1>TriangleSize,"",(Inputs!K51/RoundingValue)/IF(UseExpAdj="Yes",(Inputs!$C95/RoundingValue),1)) ->  | AA6: 3 | AB6: =Inputs!A51 -> 2008 | AC6: =IF($AA6+AC$2-1>TriangleSize,"",(Inputs!B65/RoundingValue)/IF(UseExpAdj="Yes",(Inputs!$C95/RoundingValue),1)) -> 290507 | AD6: =IF($AA6+AD$2-1>TriangleSize,"",(Inputs!C65/RoundingValue)/IF(UseExpAdj="Yes",(Inputs!$C95/RoundingValue),1)) -> 1292306 | AE6: =IF($AA6+AE$2-1>TriangleSize,"",(Inputs!D65/RoundingValue)/IF(UseExpAdj="Yes",(Inputs!$C95/RoundingValue),1)) -> 2218525 | AF6: =IF($AA6+AF$2-1>TriangleSize,"",(Inputs!E65/RoundingValue)/IF(UseExpAdj="Yes",(Inputs!$C95/RoundingValue),1)) -> 3235179 | AG6: =IF($AA6+AG$2-1>TriangleSize,"",(Inputs!F65/RoundingValue)/IF(UseExpAdj="Yes",(Inputs!$C95/RoundingValue),1)) -> 3985995 | AH6: =IF($AA6+AH$2-1>TriangleSize,"",(Inputs!G65/RoundingValue)/IF(UseExpAdj="Yes",(Inputs!$C95/RoundingValue),1)) -> 4132918 | AI6: =IF($AA6+AI$2-1>TriangleSize,"",(Inputs!H65/RoundingValue)/IF(UseExpAdj="Yes",(Inputs!$C95/RoundingValue),1)) -> 4628910 | AJ6: =IF($AA6+AJ$2-1>TriangleSize,"",(Inputs!I65/RoundingValue)/IF(UseExpAdj="Yes",(Inputs!$C95/RoundingValue),1)) -> 4909315 | AK6: =IF($AA6+AK$2-1>TriangleSize,"",(Inputs!J65/RoundingValue)/IF(UseExpAdj="Yes",(Inputs!$C95/RoundingValue),1)) ->  | AL6: =IF($AA6+AL$2-1>TriangleSize,"",(Inputs!K65/RoundingValue)/IF(UseExpAdj="Yes",(Inputs!$C95/RoundingValue),1)) -> 
A7: 4 | B7: =Inputs!A52 -> 2009 | C7: =IF($A7+C$2-1>TriangleSize,"",(Inputs!B52/RoundingValue)/IF(UseExpAdj="Yes",(Inputs!$C96/RoundingValue),1)) -> 310608 | D7: =IF($A7+D$2-1>TriangleSize,"",(Inputs!C52/RoundingValue)/IF(UseExpAdj="Yes",(Inputs!$C96/RoundingValue),1)) -> 1418858 | E7: =IF($A7+E$2-1>TriangleSize,"",(Inputs!D52/RoundingValue)/IF(UseExpAdj="Yes",(Inputs!$C96/RoundingValue),1)) -> 2195047 | F7: =IF($A7+F$2-1>TriangleSize,"",(Inputs!E52/RoundingValue)/IF(UseExpAdj="Yes",(Inputs!$C96/RoundingValue),1)) -> 3757447 | G7: =IF($A7+G$2-1>TriangleSize,"",(Inputs!F52/RoundingValue)/IF(UseExpAdj="Yes",(Inputs!$C96/RoundingValue),1)) -> 4029929 | H7: =IF($A7+H$2-1>TriangleSize,"",(Inputs!G52/RoundingValue)/IF(UseExpAdj="Yes",(Inputs!$C96/RoundingValue),1)) -> 4381982 | I7: =IF($A7+I$2-1>TriangleSize,"",(Inputs!H52/RoundingValue)/IF(UseExpAdj="Yes",(Inputs!$C96/RoundingValue),1)) -> 4588268 | J7: =IF($A7+J$2-1>TriangleSize,"",(Inputs!I52/RoundingValue)/IF(UseExpAdj="Yes",(Inputs!$C96/RoundingValue),1)) ->  | K7: =IF($A7+K$2-1>TriangleSize,"",(Inputs!J52/RoundingValue)/IF(UseExpAdj="Yes",(Inputs!$C96/RoundingValue),1)) ->  | L7: =IF($A7+L$2-1>TriangleSize,"",(Inputs!K52/RoundingValue)/IF(UseExpAdj="Yes",(Inputs!$C96/RoundingValue),1)) ->  | AA7: 4 | AB7: =Inputs!A52 -> 2009 | AC7: =IF($AA7+AC$2-1>TriangleSize,"",(Inputs!B66/RoundingValue)/IF(UseExpAdj="Yes",(Inputs!$C96/RoundingValue),1)) -> 310608 | AD7: =IF($AA7+AD$2-1>TriangleSize,"",(Inputs!C66/RoundingValue)/IF(UseExpAdj="Yes",(Inputs!$C96/RoundingValue),1)) -> 1418858 | AE7: =IF($AA7+AE$2-1>TriangleSize,"",(Inputs!D66/RoundingValue)/IF(UseExpAdj="Yes",(Inputs!$C96/RoundingValue),1)) -> 2195047 | AF7: =IF($AA7+AF$2-1>TriangleSize,"",(Inputs!E66/RoundingValue)/IF(UseExpAdj="Yes",(Inputs!$C96/RoundingValue),1)) -> 3757447 | AG7: =IF($AA7+AG$2-1>TriangleSize,"",(Inputs!F66/RoundingValue)/IF(UseExpAdj="Yes",(Inputs!$C96/RoundingValue),1)) -> 4029929 | AH7: =IF($AA7+AH$2-1>TriangleSize,"",(Inputs!G66/RoundingValue)/IF(UseExpAdj="Yes",(Inputs!$C96/RoundingValue),1)) -> 4381982 | AI7: =IF($AA7+AI$2-1>TriangleSize,"",(Inputs!H66/RoundingValue)/IF(UseExpAdj="Yes",(Inputs!$C96/RoundingValue),1)) -> 4588268 | AJ7: =IF($AA7+AJ$2-1>TriangleSize,"",(Inputs!I66/RoundingValue)/IF(UseExpAdj="Yes",(Inputs!$C96/RoundingValue),1)) ->  | AK7: =IF($AA7+AK$2-1>TriangleSize,"",(Inputs!J66/RoundingValue)/IF(UseExpAdj="Yes",(Inputs!$C96/RoundingValue),1)) ->  | AL7: =IF($AA7+AL$2-1>TriangleSize,"",(Inputs!K66/RoundingValue)/IF(UseExpAdj="Yes",(Inputs!$C96/RoundingValue),1)) -> 
A8: 5 | B8: =Inputs!A53 -> 2010 | C8: =IF($A8+C$2-1>TriangleSize,"",(Inputs!B53/RoundingValue)/IF(UseExpAdj="Yes",(Inputs!$C97/RoundingValue),1)) -> 443160 | D8: =IF($A8+D$2-1>TriangleSize,"",(Inputs!C53/RoundingValue)/IF(UseExpAdj="Yes",(Inputs!$C97/RoundingValue),1)) -> 1136350 | E8: =IF($A8+E$2-1>TriangleSize,"",(Inputs!D53/RoundingValue)/IF(UseExpAdj="Yes",(Inputs!$C97/RoundingValue),1)) -> 2128333 | F8: =IF($A8+F$2-1>TriangleSize,"",(Inputs!E53/RoundingValue)/IF(UseExpAdj="Yes",(Inputs!$C97/RoundingValue),1)) -> 2897821 | G8: =IF($A8+G$2-1>TriangleSize,"",(Inputs!F53/RoundingValue)/IF(UseExpAdj="Yes",(Inputs!$C97/RoundingValue),1)) -> 3402672 | H8: =IF($A8+H$2-1>TriangleSize,"",(Inputs!G53/RoundingValue)/IF(UseExpAdj="Yes",(Inputs!$C97/RoundingValue),1)) -> 3873311 | I8: =IF($A8+I$2-1>TriangleSize,"",(Inputs!H53/RoundingValue)/IF(UseExpAdj="Yes",(Inputs!$C97/RoundingValue),1)) ->  | J8: =IF($A8+J$2-1>TriangleSize,"",(Inputs!I53/RoundingValue)/IF(UseExpAdj="Yes",(Inputs!$C97/RoundingValue),1)) ->  | K8: =IF($A8+K$2-1>TriangleSize,"",(Inputs!J53/RoundingValue)/IF(UseExpAdj="Yes",(Inputs!$C97/RoundingValue),1)) ->  | L8: =IF($A8+L$2-1>TriangleSize,"",(Inputs!K53/RoundingValue)/IF(UseExpAdj="Yes",(Inputs!$C97/RoundingValue),1)) ->  | AA8: 5 | AB8: =Inputs!A53 -> 2010 | AC8: =IF($AA8+AC$2-1>TriangleSize,"",(Inputs!B67/RoundingValue)/IF(UseExpAdj="Yes",(Inputs!$C97/RoundingValue),1)) -> 443160 | AD8: =IF($AA8+AD$2-1>TriangleSize,"",(Inputs!C67/RoundingValue)/IF(UseExpAdj="Yes",(Inputs!$C97/RoundingValue),1)) -> 1136350 | AE8: =IF($AA8+AE$2-1>TriangleSize,"",(Inputs!D67/RoundingValue)/IF(UseExpAdj="Yes",(Inputs!$C97/RoundingValue),1)) -> 2128333 | AF8: =IF($AA8+AF$2-1>TriangleSize,"",(Inputs!E67/RoundingValue)/IF(UseExpAdj="Yes",(Inputs!$C97/RoundingValue),1)) -> 2897821 | AG8: =IF($AA8+AG$2-1>TriangleSize,"",(Inputs!F67/RoundingValue)/IF(UseExpAdj="Yes",(Inputs!$C97/RoundingValue),1)) -> 3402672 | AH8: =IF($AA8+AH$2-1>TriangleSize,"",(Inputs!G67/RoundingValue)/IF(UseExpAdj="Yes",(Inputs!$C97/RoundingValue),1)) -> 3873311 | AI8: =IF($AA8+AI$2-1>TriangleSize,"",(Inputs!H67/RoundingValue)/IF(UseExpAdj="Yes",(Inputs!$C97/RoundingValue),1)) ->  | AJ8: =IF($AA8+AJ$2-1>TriangleSize,"",(Inputs!I67/RoundingValue)/IF(UseExpAdj="Yes",(Inputs!$C97/RoundingValue),1)) ->  | AK8: =IF($AA8+AK$2-1>TriangleSize,"",(Inputs!J67/RoundingValue)/IF(UseExpAdj="Yes",(Inputs!$C97/RoundingValue),1)) ->  | AL8: =IF($AA8+AL$2-1>TriangleSize,"",(Inputs!K67/RoundingValue)/IF(UseExpAdj="Yes",(Inputs!$C97/RoundingValue),1)) -> 
A9: 6 | B9: =Inputs!A54 -> 2011 | C9: =IF($A9+C$2-1>TriangleSize,"",(Inputs!B54/RoundingValue)/IF(UseExpAdj="Yes",(Inputs!$C98/RoundingValue),1)) -> 396132 | D9: =IF($A9+D$2-1>TriangleSize,"",(Inputs!C54/RoundingValue)/IF(UseExpAdj="Yes",(Inputs!$C98/RoundingValue),1)) -> 1333217 | E9: =IF($A9+E$2-1>TriangleSize,"",(Inputs!D54/RoundingValue)/IF(UseExpAdj="Yes",(Inputs!$C98/RoundingValue),1)) -> 2180715 | F9: =IF($A9+F$2-1>TriangleSize,"",(Inputs!E54/RoundingValue)/IF(UseExpAdj="Yes",(Inputs!$C98/RoundingValue),1)) -> 2985752 | G9: =IF($A9+G$2-1>TriangleSize,"",(Inputs!F54/RoundingValue)/IF(UseExpAdj="Yes",(Inputs!$C98/RoundingValue),1)) -> 3691712 | H9: =IF($A9+H$2-1>TriangleSize,"",(Inputs!G54/RoundingValue)/IF(UseExpAdj="Yes",(Inputs!$C98/RoundingValue),1)) ->  | I9: =IF($A9+I$2-1>TriangleSize,"",(Inputs!H54/RoundingValue)/IF(UseExpAdj="Yes",(Inputs!$C98/RoundingValue),1)) ->  | J9: =IF($A9+J$2-1>TriangleSize,"",(Inputs!I54/RoundingValue)/IF(UseExpAdj="Yes",(Inputs!$C98/RoundingValue),1)) ->  | K9: =IF($A9+K$2-1>TriangleSize,"",(Inputs!J54/RoundingValue)/IF(UseExpAdj="Yes",(Inputs!$C98/RoundingValue),1)) ->  | L9: =IF($A9+L$2-1>TriangleSize,"",(Inputs!K54/RoundingValue)/IF(UseExpAdj="Yes",(Inputs!$C98/RoundingValue),1)) ->  | AA9: 6 | AB9: =Inputs!A54 -> 2011 | AC9: =IF($AA9+AC$2-1>TriangleSize,"",(Inputs!B68/RoundingValue)/IF(UseExpAdj="Yes",(Inputs!$C98/RoundingValue),1)) -> 396132 | AD9: =IF($AA9+AD$2-1>TriangleSize,"",(Inputs!C68/RoundingValue)/IF(UseExpAdj="Yes",(Inputs!$C98/RoundingValue),1)) -> 1333217 | AE9: =IF($AA9+AE$2-1>TriangleSize,"",(Inputs!D68/RoundingValue)/IF(UseExpAdj="Yes",(Inputs!$C98/RoundingValue),1)) -> 2180715 | AF9: =IF($AA9+AF$2-1>TriangleSize,"",(Inputs!E68/RoundingValue)/IF(UseExpAdj="Yes",(Inputs!$C98/RoundingValue),1)) -> 2985752 | AG9: =IF($AA9+AG$2-1>TriangleSize,"",(Inputs!F68/RoundingValue)/IF(UseExpAdj="Yes",(Inputs!$C98/RoundingValue),1)) -> 3691712 | AH9: =IF($AA9+AH$2-1>TriangleSize,"",(Inputs!G68/RoundingValue)/IF(UseExpAdj="Yes",(Inputs!$C98/RoundingValue),1)) ->  | AI9: =IF($AA9+AI$2-1>TriangleSize,"",(Inputs!H68/RoundingValue)/IF(UseExpAdj="Yes",(Inputs!$C98/RoundingValue),1)) ->  | AJ9: =IF($AA9+AJ$2-1>TriangleSize,"",(Inputs!I68/RoundingValue)/IF(UseExpAdj="Yes",(Inputs!$C98/RoundingValue),1)) ->  | AK9: =IF($AA9+AK$2-1>TriangleSize,"",(Inputs!J68/RoundingValue)/IF(UseExpAdj="Yes",(Inputs!$C98/RoundingValue),1)) ->  | AL9: =IF($AA9+AL$2-1>TriangleSize,"",(Inputs!K68/RoundingValue)/IF(UseExpAdj="Yes",(Inputs!$C98/RoundingValue),1)) -> 
A10: 7 | B10: =Inputs!A55 -> 2012 | C10: =IF($A10+C$2-1>TriangleSize,"",(Inputs!B55/RoundingValue)/IF(UseExpAdj="Yes",(Inputs!$C99/RoundingValue),1)) -> 440832 | D10: =IF($A10+D$2-1>TriangleSize,"",(Inputs!C55/RoundingValue)/IF(UseExpAdj="Yes",(Inputs!$C99/RoundingValue),1)) -> 1288463 | E10: =IF($A10+E$2-1>TriangleSize,"",(Inputs!D55/RoundingValue)/IF(UseExpAdj="Yes",(Inputs!$C99/RoundingValue),1)) -> 2419861 | F10: =IF($A10+F$2-1>TriangleSize,"",(Inputs!E55/RoundingValue)/IF(UseExpAdj="Yes",(Inputs!$C99/RoundingValue),1)) -> 3483130 | G10: =IF($A10+G$2-1>TriangleSize,"",(Inputs!F55/RoundingValue)/IF(UseExpAdj="Yes",(Inputs!$C99/RoundingValue),1)) ->  | H10: =IF($A10+H$2-1>TriangleSize,"",(Inputs!G55/RoundingValue)/IF(UseExpAdj="Yes",(Inputs!$C99/RoundingValue),1)) ->  | I10: =IF($A10+I$2-1>TriangleSize,"",(Inputs!H55/RoundingValue)/IF(UseExpAdj="Yes",(Inputs!$C99/RoundingValue),1)) ->  | J10: =IF($A10+J$2-1>TriangleSize,"",(Inputs!I55/RoundingValue)/IF(UseExpAdj="Yes",(Inputs!$C99/RoundingValue),1)) ->  | K10: =IF($A10+K$2-1>TriangleSize,"",(Inputs!J55/RoundingValue)/IF(UseExpAdj="Yes",(Inputs!$C99/RoundingValue),1)) ->  | L10: =IF($A10+L$2-1>TriangleSize,"",(Inputs!K55/RoundingValue)/IF(UseExpAdj="Yes",(Inputs!$C99/RoundingValue),1)) ->  | AA10: 7 | AB10: =Inputs!A55 -> 2012 | AC10: =IF($AA10+AC$2-1>TriangleSize,"",(Inputs!B69/RoundingValue)/IF(UseExpAdj="Yes",(Inputs!$C99/RoundingValue),1)) -> 440832 | AD10: =IF($AA10+AD$2-1>TriangleSize,"",(Inputs!C69/RoundingValue)/IF(UseExpAdj="Yes",(Inputs!$C99/RoundingValue),1)) -> 1288463 | AE10: =IF($AA10+AE$2-1>TriangleSize,"",(Inputs!D69/RoundingValue)/IF(UseExpAdj="Yes",(Inputs!$C99/RoundingValue),1)) -> 2419861 | AF10: =IF($AA10+AF$2-1>TriangleSize,"",(Inputs!E69/RoundingValue)/IF(UseExpAdj="Yes",(Inputs!$C99/RoundingValue),1)) -> 3483130 | AG10: =IF($AA10+AG$2-1>TriangleSize,"",(Inputs!F69/RoundingValue)/IF(UseExpAdj="Yes",(Inputs!$C99/RoundingValue),1)) ->  | AH10: =IF($AA10+AH$2-1>TriangleSize,"",(Inputs!G69/RoundingValue)/IF(UseExpAdj="Yes",(Inputs!$C99/RoundingValue),1)) ->  | AI10: =IF($AA10+AI$2-1>TriangleSize,"",(Inputs!H69/RoundingValue)/IF(UseExpAdj="Yes",(Inputs!$C99/RoundingValue),1)) ->  | AJ10: =IF($AA10+AJ$2-1>TriangleSize,"",(Inputs!I69/RoundingValue)/IF(UseExpAdj="Yes",(Inputs!$C99/RoundingValue),1)) ->  | AK10: =IF($AA10+AK$2-1>TriangleSize,"",(Inputs!J69/RoundingValue)/IF(UseExpAdj="Yes",(Inputs!$C99/RoundingValue),1)) ->  | AL10: =IF($AA10+AL$2-1>TriangleSize,"",(Inputs!K69/RoundingValue)/IF(UseExpAdj="Yes",(Inputs!$C99/RoundingValue),1)) -> 
A11: 8 | B11: =Inputs!A56 -> 2013 | C11: =IF($A11+C$2-1>TriangleSize,"",(Inputs!B56/RoundingValue)/IF(UseExpAdj="Yes",(Inputs!$C100/RoundingValue),1)) -> 359480 | D11: =IF($A11+D$2-1>TriangleSize,"",(Inputs!C56/RoundingValue)/IF(UseExpAdj="Yes",(Inputs!$C100/RoundingValue),1)) -> 1421128 | E11: =IF($A11+E$2-1>TriangleSize,"",(Inputs!D56/RoundingValue)/IF(UseExpAdj="Yes",(Inputs!$C100/RoundingValue),1)) -> 2864498 | F11: =IF($A11+F$2-1>TriangleSize,"",(Inputs!E56/RoundingValue)/IF(UseExpAdj="Yes",(Inputs!$C100/RoundingValue),1)) ->  | G11: =IF($A11+G$2-1>TriangleSize,"",(Inputs!F56/RoundingValue)/IF(UseExpAdj="Yes",(Inputs!$C100/RoundingValue),1)) ->  | H11: =IF($A11+H$2-1>TriangleSize,"",(Inputs!G56/RoundingValue)/IF(UseExpAdj="Yes",(Inputs!$C100/RoundingValue),1)) ->  | I11: =IF($A11+I$2-1>TriangleSize,"",(Inputs!H56/RoundingValue)/IF(UseExpAdj="Yes",(Inputs!$C100/RoundingValue),1)) ->  | J11: =IF($A11+J$2-1>TriangleSize,"",(Inputs!I56/RoundingValue)/IF(UseExpAdj="Yes",(Inputs!$C100/RoundingValue),1)) ->  | K11: =IF($A11+K$2-1>TriangleSize,"",(Inputs!J56/RoundingValue)/IF(UseExpAdj="Yes",(Inputs!$C100/RoundingValue),1)) ->  | L11: =IF($A11+L$2-1>TriangleSize,"",(Inputs!K56/RoundingValue)/IF(UseExpAdj="Yes",(Inputs!$C100/RoundingValue),1)) ->  | AA11: 8 | AB11: =Inputs!A56 -> 2013 | AC11: =IF($AA11+AC$2-1>TriangleSize,"",(Inputs!B70/RoundingValue)/IF(UseExpAdj="Yes",(Inputs!$C100/RoundingValue),1)) -> 359480 | AD11: =IF($AA11+AD$2-1>TriangleSize,"",(Inputs!C70/RoundingValue)/IF(UseExpAdj="Yes",(Inputs!$C100/RoundingValue),1)) -> 1421128 | AE11: =IF($AA11+AE$2-1>TriangleSize,"",(Inputs!D70/RoundingValue)/IF(UseExpAdj="Yes",(Inputs!$C100/RoundingValue),1)) -> 2864498 | AF11: =IF($AA11+AF$2-1>TriangleSize,"",(Inputs!E70/RoundingValue)/IF(UseExpAdj="Yes",(Inputs!$C100/RoundingValue),1)) ->  | AG11: =IF($AA11+AG$2-1>TriangleSize,"",(Inputs!F70/RoundingValue)/IF(UseExpAdj="Yes",(Inputs!$C100/RoundingValue),1)) ->  | AH11: =IF($AA11+AH$2-1>TriangleSize,"",(Inputs!G70/RoundingValue)/IF(UseExpAdj="Yes",(Inputs!$C100/RoundingValue),1)) ->  | AI11: =IF($AA11+AI$2-1>TriangleSize,"",(Inputs!H70/RoundingValue)/IF(UseExpAdj="Yes",(Inputs!$C100/RoundingValue),1)) ->  | AJ11: =IF($AA11+AJ$2-1>TriangleSize,"",(Inputs!I70/RoundingValue)/IF(UseExpAdj="Yes",(Inputs!$C100/RoundingValue),1)) ->  | AK11: =IF($AA11+AK$2-1>TriangleSize,"",(Inputs!J70/RoundingValue)/IF(UseExpAdj="Yes",(Inputs!$C100/RoundingValue),1)) ->  | AL11: =IF($AA11+AL$2-1>TriangleSize,"",(Inputs!K70/RoundingValue)/IF(UseExpAdj="Yes",(Inputs!$C100/RoundingValue),1)) -> 
A12: 9 | B12: =Inputs!A57 -> 2014 | C12: =IF($A12+C$2-1>TriangleSize,"",(Inputs!B57/RoundingValue)/IF(UseExpAdj="Yes",(Inputs!$C101/RoundingValue),1)) -> 376686 | D12: =IF($A12+D$2-1>TriangleSize,"",(Inputs!C57/RoundingValue)/IF(UseExpAdj="Yes",(Inputs!$C101/RoundingValue),1)) -> 1363294 | E12: =IF($A12+E$2-1>TriangleSize,"",(Inputs!D57/RoundingValue)/IF(UseExpAdj="Yes",(Inputs!$C101/RoundingValue),1)) ->  | F12: =IF($A12+F$2-1>TriangleSize,"",(Inputs!E57/RoundingValue)/IF(UseExpAdj="Yes",(Inputs!$C101/RoundingValue),1)) ->  | G12: =IF($A12+G$2-1>TriangleSize,"",(Inputs!F57/RoundingValue)/IF(UseExpAdj="Yes",(Inputs!$C101/RoundingValue),1)) ->  | H12: =IF($A12+H$2-1>TriangleSize,"",(Inputs!G57/RoundingValue)/IF(UseExpAdj="Yes",(Inputs!$C101/RoundingValue),1)) ->  | I12: =IF($A12+I$2-1>TriangleSize,"",(Inputs!H57/RoundingValue)/IF(UseExpAdj="Yes",(Inputs!$C101/RoundingValue),1)) ->  | J12: =IF($A12+J$2-1>TriangleSize,"",(Inputs!I57/RoundingValue)/IF(UseExpAdj="Yes",(Inputs!$C101/RoundingValue),1)) ->  | K12: =IF($A12+K$2-1>TriangleSize,"",(Inputs!J57/RoundingValue)/IF(UseExpAdj="Yes",(Inputs!$C101/RoundingValue),1)) ->  | L12: =IF($A12+L$2-1>TriangleSize,"",(Inputs!K57/RoundingValue)/IF(UseExpAdj="Yes",(Inputs!$C101/RoundingValue),1)) ->  | AA12: 9 | AB12: =Inputs!A57 -> 2014 | AC12: =IF($AA12+AC$2-1>TriangleSize,"",(Inputs!B71/RoundingValue)/IF(UseExpAdj="Yes",(Inputs!$C101/RoundingValue),1)) -> 376686 | AD12: =IF($AA12+AD$2-1>TriangleSize,"",(Inputs!C71/RoundingValue)/IF(UseExpAdj="Yes",(Inputs!$C101/RoundingValue),1)) -> 1363294 | AE12: =IF($AA12+AE$2-1>TriangleSize,"",(Inputs!D71/RoundingValue)/IF(UseExpAdj="Yes",(Inputs!$C101/RoundingValue),1)) ->  | AF12: =IF($AA12+AF$2-1>TriangleSize,"",(Inputs!E71/RoundingValue)/IF(UseExpAdj="Yes",(Inputs!$C101/RoundingValue),1)) ->  | AG12: =IF($AA12+AG$2-1>TriangleSize,"",(Inputs!F71/RoundingValue)/IF(UseExpAdj="Yes",(Inputs!$C101/RoundingValue),1)) ->  | AH12: =IF($AA12+AH$2-1>TriangleSize,"",(Inputs!G71/RoundingValue)/IF(UseExpAdj="Yes",(Inputs!$C101/RoundingValue),1)) ->  | AI12: =IF($AA12+AI$2-1>TriangleSize,"",(Inputs!H71/RoundingValue)/IF(UseExpAdj="Yes",(Inputs!$C101/RoundingValue),1)) ->  | AJ12: =IF($AA12+AJ$2-1>TriangleSize,"",(Inputs!I71/RoundingValue)/IF(UseExpAdj="Yes",(Inputs!$C101/RoundingValue),1)) ->  | AK12: =IF($AA12+AK$2-1>TriangleSize,"",(Inputs!J71/RoundingValue)/IF(UseExpAdj="Yes",(Inputs!$C101/RoundingValue),1)) ->  | AL12: =IF($AA12+AL$2-1>TriangleSize,"",(Inputs!K71/RoundingValue)/IF(UseExpAdj="Yes",(Inputs!$C101/RoundingValue),1)) -> 
A13: 10 | B13: =Inputs!A58 -> 2015 | C13: =IF($A13+C$2-1>TriangleSize,"",(Inputs!B58/RoundingValue)/IF(UseExpAdj="Yes",(Inputs!$C102/RoundingValue),1)) -> 344014 | D13: =IF($A13+D$2-1>TriangleSize,"",(Inputs!C58/RoundingValue)/IF(UseExpAdj="Yes",(Inputs!$C102/RoundingValue),1)) ->  | E13: =IF($A13+E$2-1>TriangleSize,"",(Inputs!D58/RoundingValue)/IF(UseExpAdj="Yes",(Inputs!$C102/RoundingValue),1)) ->  | F13: =IF($A13+F$2-1>TriangleSize,"",(Inputs!E58/RoundingValue)/IF(UseExpAdj="Yes",(Inputs!$C102/RoundingValue),1)) ->  | G13: =IF($A13+G$2-1>TriangleSize,"",(Inputs!F58/RoundingValue)/IF(UseExpAdj="Yes",(Inputs!$C102/RoundingValue),1)) ->  | H13: =IF($A13+H$2-1>TriangleSize,"",(Inputs!G58/RoundingValue)/IF(UseExpAdj="Yes",(Inputs!$C102/RoundingValue),1)) ->  | I13: =IF($A13+I$2-1>TriangleSize,"",(Inputs!H58/RoundingValue)/IF(UseExpAdj="Yes",(Inputs!$C102/RoundingValue),1)) ->  | J13: =IF($A13+J$2-1>TriangleSize,"",(Inputs!I58/RoundingValue)/IF(UseExpAdj="Yes",(Inputs!$C102/RoundingValue),1)) ->  | K13: =IF($A13+K$2-1>TriangleSize,"",(Inputs!J58/RoundingValue)/IF(UseExpAdj="Yes",(Inputs!$C102/RoundingValue),1)) ->  | L13: =IF($A13+L$2-1>TriangleSize,"",(Inputs!K58/RoundingValue)/IF(UseExpAdj="Yes",(Inputs!$C102/RoundingValue),1)) ->  | AA13: 10 | AB13: =Inputs!A58 -> 2015 | AC13: =IF($AA13+AC$2-1>TriangleSize,"",(Inputs!B72/RoundingValue)/IF(UseExpAdj="Yes",(Inputs!$C102/RoundingValue),1)) -> 344014 | AD13: =IF($AA13+AD$2-1>TriangleSize,"",(Inputs!C72/RoundingValue)/IF(UseExpAdj="Yes",(Inputs!$C102/RoundingValue),1)) ->  | AE13: =IF($AA13+AE$2-1>TriangleSize,"",(Inputs!D72/RoundingValue)/IF(UseExpAdj="Yes",(Inputs!$C102/RoundingValue),1)) ->  | AF13: =IF($AA13+AF$2-1>TriangleSize,"",(Inputs!E72/RoundingValue)/IF(UseExpAdj="Yes",(Inputs!$C102/RoundingValue),1)) ->  | AG13: =IF($AA13+AG$2-1>TriangleSize,"",(Inputs!F72/RoundingValue)/IF(UseExpAdj="Yes",(Inputs!$C102/RoundingValue),1)) ->  | AH13: =IF($AA13+AH$2-1>TriangleSize,"",(Inputs!G72/RoundingValue)/IF(UseExpAdj="Yes",(Inputs!$C102/RoundingValue),1)) ->  | AI13: =IF($AA13+AI$2-1>TriangleSize,"",(Inputs!H72/RoundingValue)/IF(UseExpAdj="Yes",(Inputs!$C102/RoundingValue),1)) ->  | AJ13: =IF($AA13+AJ$2-1>TriangleSize,"",(Inputs!I72/RoundingValue)/IF(UseExpAdj="Yes",(Inputs!$C102/RoundingValue),1)) ->  | AK13: =IF($AA13+AK$2-1>TriangleSize,"",(Inputs!J72/RoundingValue)/IF(UseExpAdj="Yes",(Inputs!$C102/RoundingValue),1)) ->  | AL13: =IF($AA13+AL$2-1>TriangleSize,"",(Inputs!K72/RoundingValue)/IF(UseExpAdj="Yes",(Inputs!$C102/RoundingValue),1)) -> 
A15: =A1-1 -> -2 | B15: ="Incremental Data (Paid"&IF(UseExpAdj="Yes",", Exposure Adjusted)",")") -> Incremental Data (Paid) | AA15: =AA1-1 -> -2 | AB15: ="Incremental Data (Incurred"&IF(UseExpAdj="Yes",", Exposure Adjusted)",")") -> Incremental Data (Incurred)
C16: 1 | D16: 2 | E16: 3 | F16: 4 | G16: 5 | H16: 6 | I16: 7 | J16: 8 | K16: 9 | L16: 10 | AC16: 1 | AD16: 2 | AE16: 3 | AF16: 4 | AG16: 5 | AH16: 6 | AI16: 7 | AJ16: 8 | AK16: 9 | AL16: 10
B17: =B3 -> Year | C17: =C3 -> 12 | D17: 24 | E17: 36 | F17: 48 | G17: 60 | H17: 72 | I17: 84 | J17: 96 | K17: 108 | L17: 120 | AB17: =AB3 -> Year | AC17: 12 | AD17: 24 | AE17: 36 | AF17: 48 | AG17: 60 | AH17: 72 | AI17: 84 | AJ17: 96 | AK17: 108 | AL17: 120
A18: 1 | B18: 2006 | C18: =IF($A18+C$16-1>TriangleSize,"",C4) -> 357848 | D18: =IF($A18+D$16-1>TriangleSize,"",D4-C4) -> 766940 | E18: 610542 | F18: 482940 | G18: 527326 | H18: 574398 | I18: 146342 | J18: 139950 | K18: 227229 | L18: 67948 | N18: =IF(OR(COUNTIF(C18:L18,">0")>0,COUNTIF(C18:L18,"<0")>0),IF(ParmP_AY1=1,1,0),0) -> 1 | AA18: 1 | AB18: =AB4 -> 2006 | AC18: =IF($AA18+AC$16-1>TriangleSize,"",AC4) -> 357848 | AD18: =IF($AA18+AD$16-1>TriangleSize,"",AD4-AC4) -> 766940 | AE18: 610542 | AF18: 482940 | AG18: 527326 | AH18: 574398 | AI18: 146342 | AJ18: 139950 | AK18: 227229 | AL18: 67948 | AN18: =IF(OR(COUNTIF(AC18:AL18,">0")>0,COUNTIF(AC18:AL18,"<0")>0),IF(ParmI_AY1=1,1,0),0) -> 1 | AS18: 1.36465 | AT18: -16.31 | AU18: =AK18-(EXP(AS18)+AT18) -> 227241.3956 | AV18: =-SQRT(-(EXP(AS18)+AT18)^2) -> -12.39564721 | AW18: =AU18/AV18 -> -18332.35423
A19: 2 | B19: 2007 | C19: 352118 | D19: =IF($A19+D$16-1>TriangleSize,"",D5-C5) -> 884021 | E19: 933894 | F19: 1183289 | G19: 445745 | H19: 320996 | I19: 527804 | J19: 266172 | K19: 425046 | N19: =IF(OR(COUNTIF(C19:L19,">0")>0,COUNTIF(C19:L19,"<0")>0),IF(ParmP_AY2=1,1,0),0) -> 1 | O19: =IF(OR(C19<>0,D18<>0),IF(ParmP_CY1=1,1,0),0) -> 0 | AA19: 2 | AB19: 2007 | AC19: 352118 | AD19: =IF($AA19+AD$16-1>TriangleSize,"",AD5-AC5) -> 884021 | AE19: 933894 | AF19: 1183289 | AG19: 445745 | AH19: 320996 | AI19: 527804 | AJ19: 266172 | AK19: 425046 | AN19: =IF(OR(COUNTIF(AC19:AL19,">0")>0,COUNTIF(AC19:AL19,"<0")>0),IF(ParmI_AY2=1,1,0),0) -> 1 | AO19: =IF(OR(AC19<>0,AD18<>0),IF(ParmI_CY1=1,1,0),0) -> 0 | AS19: 1.68249 | AT19: -16.31 | AU19: =AK19-(EXP(AS19)+AT19) -> 425056.9311 | AV19: =-SQRT(-(EXP(AS19)+AT19)^2) -> -10.93106715 | AW19: =AU19/AV19 -> -38885.21819
A20: 3 | B20: 2008 | C20: 290507 | D20: =IF($A20+D$16-1>TriangleSize,"",D6-C6) -> 1001799 | E20: 926219 | F20: 1016654 | G20: 750816 | H20: 146923 | I20: 495992 | J20: 280405 | N20: =IF(OR(COUNTIF(C20:L20,">0")>0,COUNTIF(C20:L20,"<0")>0),IF(ParmP_AY3=1,1,0),0) -> 1 | O20: =IF(OR(C20<>0,D19<>0,E18<>0),IF(ParmP_CY2=1,1,0),0) -> 0 | AA20: 3 | AB20: 2008 | AC20: 290507 | AD20: =IF($AA20+AD$16-1>TriangleSize,"",AD6-AC6) -> 1001799 | AE20: 926219 | AF20: 1016654 | AG20: 750816 | AH20: 146923 | AI20: 495992 | AJ20: 280405 | AN20: =IF(OR(COUNTIF(AC20:AL20,">0")>0,COUNTIF(AC20:AL20,"<0")>0),IF(ParmI_AY3=1,1,0),0) -> 1 | AO20: =IF(OR(AC20<>0,AD19<>0,AE18<>0),IF(ParmI_CY2=1,1,0),0) -> 0
A21: 4 | B21: 2009 | C21: 310608 | D21: =IF($A21+D$16-1>TriangleSize,"",D7-C7) -> 1108250 | E21: 776189 | F21: 1562400 | G21: 272482 | H21: 352053 | I21: 206286 | N21: =IF(OR(COUNTIF(C21:L21,">0")>0,COUNTIF(C21:L21,"<0")>0),IF(ParmP_AY4=1,1,0),0) -> 1 | O21: =IF(OR(C21<>0,D20<>0,E19<>0,F18<>0),IF(ParmP_CY3=1,1,0),0) -> 0 | AA21: 4 | AB21: 2009 | AC21: 310608 | AD21: =IF($AA21+AD$16-1>TriangleSize,"",AD7-AC7) -> 1108250 | AE21: 776189 | AF21: 1562400 | AG21: 272482 | AH21: 352053 | AI21: 206286 | AN21: =IF(OR(COUNTIF(AC21:AL21,">0")>0,COUNTIF(AC21:AL21,"<0")>0),IF(ParmI_AY4=1,1,0),0) -> 1 | AO21: =IF(OR(AC21<>0,AD20<>0,AE19<>0,AF18<>0),IF(ParmI_CY3=1,1,0),0) -> 0
A22: 5 | B22: 2010 | C22: 443160 | D22: =IF($A22+D$16-1>TriangleSize,"",D8-C8) -> 693190 | E22: 991983 | F22: 769488 | G22: 504851 | H22: 470639 | N22: =IF(OR(COUNTIF(C22:L22,">0")>0,COUNTIF(C22:L22,"<0")>0),IF(ParmP_AY5=1,1,0),0) -> 1 | O22: =IF(OR(C22<>0,D21<>0,E20<>0,F19<>0,G18<>0),IF(ParmP_CY4=1,1,0),0) -> 0 | AA22: 5 | AB22: 2010 | AC22: 443160 | AD22: =IF($AA22+AD$16-1>TriangleSize,"",AD8-AC8) -> 693190 | AE22: 991983 | AF22: 769488 | AG22: 504851 | AH22: 470639 | AN22: =IF(OR(COUNTIF(AC22:AL22,">0")>0,COUNTIF(AC22:AL22,"<0")>0),IF(ParmI_AY5=1,1,0),0) -> 1 | AO22: =IF(OR(AC22<>0,AD21<>0,AE20<>0,AF19<>0,AG18<>0),IF(ParmI_CY4=1,1,0),0) -> 0
A23: 6 | B23: 2011 | C23: 396132 | D23: =IF($A23+D$16-1>TriangleSize,"",D9-C9) -> 937085 | E23: 847498 | F23: 805037 | G23: 705960 | N23: =IF(OR(COUNTIF(C23:L23,">0")>0,COUNTIF(C23:L23,"<0")>0),IF(ParmP_AY6=1,1,0),0) -> 1 | O23: =IF(OR(C23<>0,D22<>0,E21<>0,F20<>0,G19<>0,H18<>0),IF(ParmP_CY5=1,1,0),0) -> 0 | AA23: 6 | AB23: 2011 | AC23: 396132 | AD23: =IF($AA23+AD$16-1>TriangleSize,"",AD9-AC9) -> 937085 | AE23: 847498 | AF23: 805037 | AG23: 705960 | AN23: =IF(OR(COUNTIF(AC23:AL23,">0")>0,COUNTIF(AC23:AL23,"<0")>0),IF(ParmI_AY6=1,1,0),0) -> 1 | AO23: =IF(OR(AC23<>0,AD22<>0,AE21<>0,AF20<>0,AG19<>0,AH18<>0),IF(ParmI_CY5=1,1,0),0) -> 0
A24: 7 | B24: 2012 | C24: 440832 | D24: =IF($A24+D$16-1>TriangleSize,"",D10-C10) -> 847631 | E24: 1131398 | F24: 1063269 | N24: =IF(OR(COUNTIF(C24:L24,">0")>0,COUNTIF(C24:L24,"<0")>0),IF(ParmP_AY7=1,1,0),0) -> 1 | O24: =IF(OR(C24<>0,D23<>0,E22<>0,F21<>0,G20<>0,H19<>0,I18<>0),IF(ParmP_CY6=1,1,0),0) -> 0 | AA24: 7 | AB24: 2012 | AC24: 440832 | AD24: =IF($AA24+AD$16-1>TriangleSize,"",AD10-AC10) -> 847631 | AE24: 1131398 | AF24: 1063269 | AN24: =IF(OR(COUNTIF(AC24:AL24,">0")>0,COUNTIF(AC24:AL24,"<0")>0),IF(ParmI_AY7=1,1,0),0) -> 1 | AO24: =IF(OR(AC24<>0,AD23<>0,AE22<>0,AF21<>0,AG20<>0,AH19<>0,AI18<>0),IF(ParmI_CY6=1,1,0),0) -> 0
A25: 8 | B25: 2013 | C25: 359480 | D25: =IF($A25+D$16-1>TriangleSize,"",D11-C11) -> 1061648 | E25: 1443370 | N25: =IF(OR(COUNTIF(C25:L25,">0")>0,COUNTIF(C25:L25,"<0")>0),IF(ParmP_AY8=1,1,0),0) -> 1 | O25: =IF(OR(C25<>0,D24<>0,E23<>0,F22<>0,G21<>0,H20<>0,I19<>0,J18<>0),IF(ParmP_CY7=1,1,0),0) -> 0 | AA25: 8 | AB25: 2013 | AC25: 359480 | AD25: =IF($AA25+AD$16-1>TriangleSize,"",AD11-AC11) -> 1061648 | AE25: 1443370 | AN25: =IF(OR(COUNTIF(AC25:AL25,">0")>0,COUNTIF(AC25:AL25,"<0")>0),IF(ParmI_AY8=1,1,0),0) -> 1 | AO25: =IF(OR(AC25<>0,AD24<>0,AE23<>0,AF22<>0,AG21<>0,AH20<>0,AI19<>0,AJ18<>0),IF(ParmI_CY7=1,1,0),0) -> 0
A26: 9 | B26: 2014 | C26: 376686 | D26: =IF($A26+D$16-1>TriangleSize,"",D12-C12) -> 986608 | N26: =IF(OR(COUNTIF(C26:L26,">0")>0,COUNTIF(C26:L26,"<0")>0),IF(ParmP_AY9=1,1,0),0) -> 1 | O26: =IF(OR(C26<>0,D25<>0,E24<>0,F23<>0,G22<>0,H21<>0,I20<>0,J19<>0,K18<>0),IF(ParmP_CY8=1,1,0),0) -> 0 | AA26: 9 | AB26: 2014 | AC26: 376686 | AD26: =IF($AA26+AD$16-1>TriangleSize,"",AD12-AC12) -> 986608 | AN26: =IF(OR(COUNTIF(AC26:AL26,">0")>0,COUNTIF(AC26:AL26,"<0")>0),IF(ParmI_AY9=1,1,0),0) -> 1 | AO26: =IF(OR(AC26<>0,AD25<>0,AE24<>0,AF23<>0,AG22<>0,AH21<>0,AI20<>0,AJ19<>0,AK18<>0),IF(ParmI_CY8=1,1,0),0) -> 0
A27: 10 | B27: 2015 | C27: 344014 | D27: =IF($A27+D$16-1>TriangleSize,"",D13-C13) ->  | N27: =IF(OR(COUNTIF(C27:L27,">0")>0,COUNTIF(C27:L27,"<0")>0),IF(ParmP_AY10=1,1,0),0) -> 1 | O27: =IF(OR(C27<>0,D26<>0,E25<>0,F24<>0,G23<>0,H22<>0,I21<>0,J20<>0,K19<>0,L18<>0),IF(ParmP_CY9=1,1,0),0) -> 0 | AA27: 10 | AB27: 2015 | AC27: 344014 | AN27: =IF(OR(COUNTIF(AC27:AL27,">0")>0,COUNTIF(AC27:AL27,"<0")>0),IF(ParmI_AY10=1,1,0),0) -> 1 | AO27: =IF(OR(AC27<>0,AD26<>0,AE25<>0,AF24<>0,AG23<>0,AH22<>0,AI21<>0,AJ20<>0,AK19<>0,AL18<>0),IF(ParmI_CY9=1,1,0),0) -> 0
A29: =A15-1 -> -3 | B29: ="Age-To-Age Factors (Paid"&IF(UseExpAdj="Yes",", Exposure Adjusted)",")") -> Age-To-Age Factors (Paid) | AA29: =AA15-1 -> -3 | AB29: ="Age-To-Age Factors (Incurred"&IF(UseExpAdj="Yes",", Exposure Adjusted)",")") -> Age-To-Age Factors (Incurred)
C30: 1 | D30: 2 | E30: 3 | F30: 4 | G30: 5 | H30: 6 | I30: 7 | J30: 8 | K30: 9 | L30: 10 | AC30: 1 | AD30: 2 | AE30: 3 | AF30: 4 | AG30: 5 | AH30: 6 | AI30: 7 | AJ30: 8 | AK30: 9 | AL30: 10
B31: =B17 -> Year | C31: 12 | D31: 24 | E31: 36 | F31: 48 | G31: 60 | H31: 72 | I31: 84 | J31: 96 | K31: 108 | L31: 120 | AB31: =AB17 -> Year | AC31: 12 | AD31: 24 | AE31: 36 | AF31: 48 | AG31: 60 | AH31: 72 | AI31: 84 | AJ31: 96 | AK31: 108 | AL31: 120
A32: 1 | B32: 2006 | C32: =IF(OR($A32>TriangleSize,C$30>TriangleSize),"",IF($A32+C$30-1>TriangleSize,0,IF(C161=1,0,1))) -> 1 | D32: 1 | E32: 1 | F32: 1 | G32: 1 | H32: 1 | I32: 1 | J32: 1 | K32: 1 | L32: 1 | AA32: 1 | AB32: =AB18 -> 2006 | AC32: =IF(OR($AA32>TriangleSize,AC$30>TriangleSize),"",IF($AA32+AC$30-1>TriangleSize,0,IF(AC161=1,0,1))) -> 1 | AD32: 1 | AE32: 1 | AF32: 1 | AG32: 1 | AH32: 1 | AI32: 1 | AJ32: 1 | AK32: 1 | AL32: 1 | AN32: =IF(OR(COUNTIF(AC32:AL32,">0")>0,COUNTIF(AC32:AL32,"<0")>0),IF(ParmI_AY1=1,1,0),0) -> 1 | AS32: 1.36465 | AT32: -16.31 | AU32: =AK32-(EXP(AS32)+AT32) -> 13.39564721 | AV32: =-SQRT(-(EXP(AS32)+AT32)^2) -> -12.39564721 | AW32: =AU32/AV32 -> -1.08067348
A33: 2 | B33: 2007 | C33: =IF(OR($A33>TriangleSize,C$30>TriangleSize),"",IF($A33+C$30-1>TriangleSize,0,IF(C162=1,0,1))) -> 1 | D33: 1 | E33: 1 | F33: 1 | G33: 1 | H33: 1 | I33: 1 | J33: 1 | K33: 1 | L33: 0 | AA33: 2 | AB33: =AB19 -> 2007 | AC33: =IF(OR($AA33>TriangleSize,AC$30>TriangleSize),"",IF($AA33+AC$30-1>TriangleSize,0,IF(AC162=1,0,1))) -> 1 | AD33: 1 | AE33: 1 | AF33: 1 | AG33: 1 | AH33: 1 | AI33: 1 | AJ33: 1 | AK33: 1 | AL33: 0 | AN33: =IF(OR(COUNTIF(AC33:AL33,">0")>0,COUNTIF(AC33:AL33,"<0")>0),IF(ParmI_AY2=1,1,0),0) -> 1 | AO33: =IF(OR(AC33<>0,AD32<>0),IF(ParmI_CY1=1,1,0),0) -> 0 | AS33: 1.68249 | AT33: -16.31 | AU33: =AK33-(EXP(AS33)+AT33) -> 11.93106715 | AV33: =-SQRT(-(EXP(AS33)+AT33)^2) -> -10.93106715 | AW33: =AU33/AV33 -> -1.091482376
A34: 3 | B34: 2008 | C34: =IF(OR($A34>TriangleSize,C$30>TriangleSize),"",IF($A34+C$30-1>TriangleSize,0,IF(C163=1,0,1))) -> 1 | D34: 1 | E34: 1 | F34: 1 | G34: 1 | H34: 1 | I34: 1 | J34: 1 | K34: 0 | L34: 0 | AA34: 3 | AB34: =AB20 -> 2008 | AC34: =IF(OR($AA34>TriangleSize,AC$30>TriangleSize),"",IF($AA34+AC$30-1>TriangleSize,0,IF(AC163=1,0,1))) -> 1 | AD34: 1 | AE34: 1 | AF34: 1 | AG34: 1 | AH34: 1 | AI34: 1 | AJ34: 1 | AK34: 0 | AL34: 0 | AN34: =IF(OR(COUNTIF(AC34:AL34,">0")>0,COUNTIF(AC34:AL34,"<0")>0),IF(ParmI_AY3=1,1,0),0) -> 1 | AO34: =IF(OR(AC34<>0,AD33<>0,AE32<>0),IF(ParmI_CY2=1,1,0),0) -> 0
A35: 4 | B35: 2009 | C35: =IF(OR($A35>TriangleSize,C$30>TriangleSize),"",IF($A35+C$30-1>TriangleSize,0,IF(C164=1,0,1))) -> 1 | D35: 1 | E35: 1 | F35: 1 | G35: 1 | H35: 1 | I35: 1 | J35: 0 | K35: 0 | L35: 0 | AA35: 4 | AB35: =AB21 -> 2009 | AC35: =IF(OR($AA35>TriangleSize,AC$30>TriangleSize),"",IF($AA35+AC$30-1>TriangleSize,0,IF(AC164=1,0,1))) -> 1 | AD35: 1 | AE35: 1 | AF35: 1 | AG35: 1 | AH35: 1 | AI35: 1 | AJ35: 0 | AK35: 0 | AL35: 0 | AN35: =IF(OR(COUNTIF(AC35:AL35,">0")>0,COUNTIF(AC35:AL35,"<0")>0),IF(ParmI_AY4=1,1,0),0) -> 1 | AO35: =IF(OR(AC35<>0,AD34<>0,AE33<>0,AF32<>0),IF(ParmI_CY3=1,1,0),0) -> 0
A36: 5 | B36: 2010 | C36: =IF(OR($A36>TriangleSize,C$30>TriangleSize),"",IF($A36+C$30-1>TriangleSize,0,IF(C165=1,0,1))) -> 1 | D36: 1 | E36: 1 | F36: 1 | G36: 1 | H36: 1 | I36: 0 | J36: 0 | K36: 0 | L36: 0 | AA36: 5 | AB36: =AB22 -> 2010 | AC36: =IF(OR($AA36>TriangleSize,AC$30>TriangleSize),"",IF($AA36+AC$30-1>TriangleSize,0,IF(AC165=1,0,1))) -> 1 | AD36: 1 | AE36: 1 | AF36: 1 | AG36: 1 | AH36: 1 | AI36: 0 | AJ36: 0 | AK36: 0 | AL36: 0 | AN36: =IF(OR(COUNTIF(AC36:AL36,">0")>0,COUNTIF(AC36:AL36,"<0")>0),IF(ParmI_AY5=1,1,0),0) -> 1 | AO36: =IF(OR(AC36<>0,AD35<>0,AE34<>0,AF33<>0,AG32<>0),IF(ParmI_CY4=1,1,0),0) -> 0
A37: 6 | B37: 2011 | C37: =IF(OR($A37>TriangleSize,C$30>TriangleSize),"",IF($A37+C$30-1>TriangleSize,0,IF(C166=1,0,1))) -> 1 | D37: 1 | E37: 1 | F37: 1 | G37: 1 | H37: 0 | I37: 0 | J37: 0 | K37: 0 | L37: 0 | AA37: 6 | AB37: =AB23 -> 2011 | AC37: =IF(OR($AA37>TriangleSize,AC$30>TriangleSize),"",IF($AA37+AC$30-1>TriangleSize,0,IF(AC166=1,0,1))) -> 1 | AD37: 1 | AE37: 1 | AF37: 1 | AG37: 1 | AH37: 0 | AI37: 0 | AJ37: 0 | AK37: 0 | AL37: 0 | AN37: =IF(OR(COUNTIF(AC37:AL37,">0")>0,COUNTIF(AC37:AL37,"<0")>0),IF(ParmI_AY6=1,1,0),0) -> 1 | AO37: =IF(OR(AC37<>0,AD36<>0,AE35<>0,AF34<>0,AG33<>0,AH32<>0),IF(ParmI_CY5=1,1,0),0) -> 0
A38: 7 | B38: 2012 | C38: =IF(OR($A38>TriangleSize,C$30>TriangleSize),"",IF($A38+C$30-1>TriangleSize,0,IF(C167=1,0,1))) -> 1 | D38: 1 | E38: 1 | F38: 1 | G38: 0 | H38: 0 | I38: 0 | J38: 0 | K38: 0 | L38: 0 | AA38: 7 | AB38: =AB24 -> 2012 | AC38: =IF(OR($AA38>TriangleSize,AC$30>TriangleSize),"",IF($AA38+AC$30-1>TriangleSize,0,IF(AC167=1,0,1))) -> 1 | AD38: 1 | AE38: 1 | AF38: 1 | AG38: 0 | AH38: 0 | AI38: 0 | AJ38: 0 | AK38: 0 | AL38: 0 | AN38: =IF(OR(COUNTIF(AC38:AL38,">0")>0,COUNTIF(AC38:AL38,"<0")>0),IF(ParmI_AY7=1,1,0),0) -> 1 | AO38: =IF(OR(AC38<>0,AD37<>0,AE36<>0,AF35<>0,AG34<>0,AH33<>0,AI32<>0),IF(ParmI_CY6=1,1,0),0) -> 0
A39: 8 | B39: 2013 | C39: =IF(OR($A39>TriangleSize,C$30>TriangleSize),"",IF($A39+C$30-1>TriangleSize,0,IF(C168=1,0,1))) -> 1 | D39: 1 | E39: 1 | F39: 0 | G39: 0 | H39: 0 | I39: 0 | J39: 0 | K39: 0 | L39: 0 | AA39: 8 | AB39: =AB25 -> 2013 | AC39: =IF(OR($AA39>TriangleSize,AC$30>TriangleSize),"",IF($AA39+AC$30-1>TriangleSize,0,IF(AC168=1,0,1))) -> 1 | AD39: 1 | AE39: 1 | AF39: 0 | AG39: 0 | AH39: 0 | AI39: 0 | AJ39: 0 | AK39: 0 | AL39: 0 | AN39: =IF(OR(COUNTIF(AC39:AL39,">0")>0,COUNTIF(AC39:AL39,"<0")>0),IF(ParmI_AY8=1,1,0),0) -> 1 | AO39: =IF(OR(AC39<>0,AD38<>0,AE37<>0,AF36<>0,AG35<>0,AH34<>0,AI33<>0,AJ32<>0),IF(ParmI_CY7=1,1,0),0) -> 0
A40: 9 | B40: 2014 | C40: =IF(OR($A40>TriangleSize,C$30>TriangleSize),"",IF($A40+C$30-1>TriangleSize,0,IF(C169=1,0,1))) -> 1 | D40: 1 | E40: 0 | F40: 0 | G40: 0 | H40: 0 | I40: 0 | J40: 0 | K40: 0 | L40: 0 | AA40: 9 | AB40: =AB26 -> 2014 | AC40: =IF(OR($AA40>TriangleSize,AC$30>TriangleSize),"",IF($AA40+AC$30-1>TriangleSize,0,IF(AC169=1,0,1))) -> 1 | AD40: 1 | AE40: 0 | AF40: 0 | AG40: 0 | AH40: 0 | AI40: 0 | AJ40: 0 | AK40: 0 | AL40: 0 | AN40: =IF(OR(COUNTIF(AC40:AL40,">0")>0,COUNTIF(AC40:AL40,"<0")>0),IF(ParmI_AY9=1,1,0),0) -> 1 | AO40: =IF(OR(AC40<>0,AD39<>0,AE38<>0,AF37<>0,AG36<>0,AH35<>0,AI34<>0,AJ33<>0,AK32<>0),IF(ParmI_CY8=1,1,0),0) -> 0
A41: 10 | B41: 2015 | C41: =IF(OR($A41>TriangleSize,C$30>TriangleSize),"",IF($A41+C$30-1>TriangleSize,0,IF(C170=1,0,1))) -> 1 | D41: 0 | E41: 0 | F41: 0 | G41: 0 | H41: 0 | I41: 0 | J41: 0 | K41: 0 | L41: 0 | AA41: 10 | AB41: =AB27 -> 2015 | AC41: =IF(OR($AA41>TriangleSize,AC$30>TriangleSize),"",IF($AA41+AC$30-1>TriangleSize,0,IF(AC170=1,0,1))) -> 1 | AD41: 0 | AE41: 0 | AF41: 0 | AG41: 0 | AH41: 0 | AI41: 0 | AJ41: 0 | AK41: 0 | AL41: 0 | AN41: =IF(OR(COUNTIF(AC41:AL41,">0")>0,COUNTIF(AC41:AL41,"<0")>0),IF(ParmI_AY10=1,1,0),0) -> 1 | AO41: =IF(OR(AC41<>0,AD40<>0,AE39<>0,AF38<>0,AG37<>0,AH36<>0,AI35<>0,AJ34<>0,AK33<>0,AL32<>0),IF(ParmI_CY9=1,1,0),0) -> 0
C43: =C3&"-"&D3 -> 12-24 | D43: =IF(E30>TriangleSize,"",D3&"-"&E3) -> 24-36 | E43: 36-48 | F43: 48-60 | G43: 60-72 | H43: 72-84 | I43: 84-96 | J43: 96-108 | K43: 108-120 | AC43: =AC3&"-"&AD3 -> 12-24 | AD43: =IF(AE30>TriangleSize,"",AD3&"-"&AE3) -> 24-36 | AE43: =IF(AF30>TriangleSize,"",AE3&"-"&AF3) -> 36-48 | AF43: =IF(AG30>TriangleSize,"",AF3&"-"&AG3) -> 48-60 | AG43: =IF(AH30>TriangleSize,"",AG3&"-"&AH3) -> 60-72 | AH43: =IF(AI30>TriangleSize,"",AH3&"-"&AI3) -> 72-84 | AI43: =IF(AJ30>TriangleSize,"",AI3&"-"&AJ3) -> 84-96 | AJ43: =IF(AK30>TriangleSize,"",AJ3&"-"&AK3) -> 96-108 | AK43: =IF(AL30>TriangleSize,"",AK3&"-"&AL3) -> 108-120
C44: =SUMPRODUCT(D4:D13,D32:D41) -> 11614543 | D44: =SUMPRODUCT(E4:E13,E32:E41) -> 17912342 | E44: 21930921 | F44: 21654971 | G44: 19828268 | H44: 17331381 | I44: 13429640 | J44: 9172600 | K44: 3901463 | AC44: =SUMPRODUCT(AD4:AD13,AD32:AD41) -> 11614543 | AD44: =SUMPRODUCT(AE4:AE13,AE32:AE41) -> 17912342 | AE44: 21930921 | AF44: 21654971 | AG44: 19828268 | AH44: 17331381 | AI44: 13429640 | AJ44: 9172600 | AK44: 3901463
C45: =SUMPRODUCT(C4:C13,D32:D41) -> 3327371 | D45: =SUMPRODUCT(D4:D13,E32:E41) -> 10251249 | E45: 15047844 | F45: 18447791 | G45: 17963259 | H45: 15954957 | I45: 12743113 | J45: 8520325 | K45: 3833515 | AC45: =SUMPRODUCT(AC4:AC13,AD32:AD41) -> 3327371 | AD45: =SUMPRODUCT(AD4:AD13,AE32:AE41) -> 10251249 | AE45: 15047844 | AF45: 18447791 | AG45: 17963259 | AH45: 15954957 | AI45: 12743113 | AJ45: 8520325 | AK45: 3833515
C46: =IF(C45=0,1,C44/C45) -> 3.490606548 | D46: 1.747332642 | E46: 1.457412836 | F46: 1.173851709 | G46: 1.103823532 | H46: 1.086269364 | I46: =IF(I45=0,1,I44/I45) -> 1.053874356 | J46: =IF(J45=0,1,J44/J45) -> 1.076555178 | K46: 1.017724725 | AC46: =IF(AC45=0,1,AC44/AC45) -> 3.490606548 | AD46: =IF(AD45=0,1,AD44/AD45) -> 1.747332642 | AE46: 1.457412836 | AF46: 1.173851709 | AG46: 1.103823532 | AH46: 1.086269364 | AI46: 1.053874356 | AJ46: 1.076555178 | AK46: 1.017724725
C47: =IF(ModelUsed=Inputs!$U$4,IF(ParmP_DY1=1,1,0),IF(C46=1,0,1)) -> 1 | D47: =IF(ModelUsed=Inputs!$U$4,IF(ParmP_DY2=1,1,0),IF(D46=1,0,1)) -> 1 | E47: =IF(ModelUsed=Inputs!$U$4,IF(ParmP_DY3=1,1,0),IF(E46=1,0,1)) -> 1 | F47: =IF(ModelUsed=Inputs!$U$4,IF(ParmP_DY4=1,1,0),IF(F46=1,0,1)) -> 1 | G47: =IF(ModelUsed=Inputs!$U$4,IF(ParmP_DY5=1,1,0),IF(G46=1,0,1)) -> 1 | H47: =IF(ModelUsed=Inputs!$U$4,IF(ParmP_DY6=1,1,0),IF(H46=1,0,1)) -> 1 | I47: =IF(ModelUsed=Inputs!$U$4,IF(ParmP_DY7=1,1,0),IF(I46=1,0,1)) -> 1 | J47: =IF(ModelUsed=Inputs!$U$4,IF(ParmP_DY8=1,1,0),IF(J46=1,0,1)) -> 1 | K47: =IF(ModelUsed=Inputs!$U$4,IF(ParmP_DY9=1,1,0),IF(K46=1,0,1)) -> 1 | AC47: =IF(ModelUsed=Inputs!$U$4,IF(ParmI_DY1=1,1,0),IF(AC46=1,0,1)) -> 1 | AD47: =IF(ModelUsed=Inputs!$U$4,IF(ParmI_DY2=1,1,0),IF(AD46=1,0,1)) -> 1 | AE47: =IF(ModelUsed=Inputs!$U$4,IF(ParmI_DY3=1,1,0),IF(AE46=1,0,1)) -> 1 | AF47: =IF(ModelUsed=Inputs!$U$4,IF(ParmI_DY4=1,1,0),IF(AF46=1,0,1)) -> 1 | AG47: =IF(ModelUsed=Inputs!$U$4,IF(ParmI_DY5=1,1,0),IF(AG46=1,0,1)) -> 1 | AH47: =IF(ModelUsed=Inputs!$U$4,IF(ParmI_DY6=1,1,0),IF(AH46=1,0,1)) -> 1 | AI47: =IF(ModelUsed=Inputs!$U$4,IF(ParmI_DY7=1,1,0),IF(AI46=1,0,1)) -> 1 | AJ47: =IF(ModelUsed=Inputs!$U$4,IF(ParmI_DY8=1,1,0),IF(AJ46=1,0,1)) -> 1 | AK47: =IF(ModelUsed=Inputs!$U$4,IF(ParmI_DY9=1,1,0),IF(AK46=1,0,1)) -> 1
A48: =A29-1 -> -4 | B48: ="Cumulative Fitted Triangle (Paid"&IF(UseExpAdj="Yes",", Exposure Adjusted)",")") -> Cumulative Fitted Triangle (Paid) | AA48: =AA29-1 -> -4 | AB48: ="Cumulative Fitted Triangle (Incurred"&IF(UseExpAdj="Yes",", Exposure Adjusted)",")") -> Cumulative Fitted Triangle (Incurred)
C49: 1 | D49: 2 | E49: 3 | F49: 4 | G49: 5 | H49: 6 | I49: 7 | J49: 8 | K49: 9 | L49: 10 | AC49: 1 | AD49: 2 | AE49: 3 | AF49: 4 | AG49: 5 | AH49: 6 | AI49: 7 | AJ49: 8 | AK49: 9 | AL49: 10
B50: =B3 -> Year | C50: 12 | D50: 24 | E50: 36 | F50: 48 | G50: 60 | H50: 72 | I50: 84 | J50: 96 | K50: 108 | L50: 120 | AB50: =AB3 -> Year | AC50: 12 | AD50: 24 | AE50: 36 | AF50: 48 | AG50: 60 | AH50: 72 | AI50: 84 | AJ50: 96 | AK50: 108 | AL50: 120
A51: 1 | B51: =B4 -> 2006 | C51: =IF($A51+C$49-1>TriangleSize,"",IF(ModelUsed=Inputs!$U$4,C705,IF($A51+C$49-1=TriangleSize,C4,D51/C$46))) -> 270061.4156 | D51: =IF($A51+D$49-1>TriangleSize,"",IF(ModelUsed=Inputs!$U$4,C51+D705,IF($A51+D$49-1=TriangleSize,D4,E51/D$46))) -> 942678.1458 | E51: =IF($A51+E$49-1>TriangleSize,"",IF(ModelUsed=Inputs!$U$4,D51+E705,IF($A51+E$49-1=TriangleSize,E4,F51/E$46))) -> 1647172.295 | F51: =IF($A51+F$49-1>TriangleSize,"",IF(ModelUsed=Inputs!$U$4,E51+F705,IF($A51+F$49-1=TriangleSize,F4,G51/F$46))) -> 2400610.046 | G51: =IF($A51+G$49-1>TriangleSize,"",IF(ModelUsed=Inputs!$U$4,F51+G705,IF($A51+G$49-1=TriangleSize,G4,H51/G$46))) -> 2817960.206 | H51: =IF($A51+H$49-1>TriangleSize,"",IF(ModelUsed=Inputs!$U$4,G51+H705,IF($A51+H$49-1=TriangleSize,H4,I51/H$46))) -> 3110530.789 | I51: =IF($A51+I$49-1>TriangleSize,"",IF(ModelUsed=Inputs!$U$4,H51+I705,IF($A51+I$49-1=TriangleSize,I4,J51/I$46))) -> 3378874.303 | J51: =IF($A51+J$49-1>TriangleSize,"",IF(ModelUsed=Inputs!$U$4,I51+J705,IF($A51+J$49-1=TriangleSize,J4,K51/J$46))) -> 3560908.978 | K51: =IF($A51+K$49-1>TriangleSize,"",IF(ModelUsed=Inputs!$U$4,J51+K705,IF($A51+K$49-1=TriangleSize,K4,L51/K$46))) -> 3833515 | L51: =IF($A51+L$49-1>TriangleSize,"",IF(ModelUsed=Inputs!$U$4,K51+L705,IF($A51+L$49-1=TriangleSize,L4,M51/L$46))) -> 3901463 | AA51: 1 | AB51: =AB4 -> 2006 | AC51: =IF($AA51+AC$49-1>TriangleSize,"",IF(ModelUsed=Inputs!$U$4,AC705,IF($AA51+AC$49-1=TriangleSize,AC4,AD51/AC$46))) -> 270061.4156 | AD51: =IF($AA51+AD$49-1>TriangleSize,"",IF(ModelUsed=Inputs!$U$4,AC51+AD705,IF($AA51+AD$49-1=TriangleSize,AD4,AE51/AD$46))) -> 942678.1458 | AE51: =IF($AA51+AE$49-1>TriangleSize,"",IF(ModelUsed=Inputs!$U$4,AD51+AE705,IF($AA51+AE$49-1=TriangleSize,AE4,AF51/AE$46))) -> 1647172.295 | AF51: =IF($AA51+AF$49-1>TriangleSize,"",IF(ModelUsed=Inputs!$U$4,AE51+AF705,IF($AA51+AF$49-1=TriangleSize,AF4,AG51/AF$46))) -> 2400610.046 | AG51: =IF($AA51+AG$49-1>TriangleSize,"",IF(ModelUsed=Inputs!$U$4,AF51+AG705,IF($AA51+AG$49-1=TriangleSize,AG4,AH51/AG$46))) -> 2817960.206 | AH51: =IF($AA51+AH$49-1>TriangleSize,"",IF(ModelUsed=Inputs!$U$4,AG51+AH705,IF($AA51+AH$49-1=TriangleSize,AH4,AI51/AH$46))) -> 3110530.789 | AI51: =IF($AA51+AI$49-1>TriangleSize,"",IF(ModelUsed=Inputs!$U$4,AH51+AI705,IF($AA51+AI$49-1=TriangleSize,AI4,AJ51/AI$46))) -> 3378874.303 | AJ51: =IF($AA51+AJ$49-1>TriangleSize,"",IF(ModelUsed=Inputs!$U$4,AI51+AJ705,IF($AA51+AJ$49-1=TriangleSize,AJ4,AK51/AJ$46))) -> 3560908.978 | AK51: =IF($AA51+AK$49-1>TriangleSize,"",IF(ModelUsed=Inputs!$U$4,AJ51+AK705,IF($AA51+AK$49-1=TriangleSize,AK4,AL51/AK$46))) -> 3833515 | AL51: =IF($AA51+AL$49-1>TriangleSize,"",IF(ModelUsed=Inputs!$U$4,AK51+AL705,IF($AA51+AL$49-1=TriangleSize,AL4,AM51/AL$46))) -> 3901463
A52: 2 | B52: 2007 | C52: =IF($A52+C$49-1>TriangleSize,"",IF(ModelUsed=Inputs!$U$4,C706,IF($A52+C$49-1=TriangleSize,C5,D52/C$46))) -> 376125.0063 | D52: =IF($A52+D$49-1>TriangleSize,"",IF(ModelUsed=Inputs!$U$4,C52+D706,IF($A52+D$49-1=TriangleSize,D5,E52/D$46))) -> 1312904.41 | E52: =IF($A52+E$49-1>TriangleSize,"",IF(ModelUsed=Inputs!$U$4,D52+E706,IF($A52+E$49-1=TriangleSize,E5,F52/E$46))) -> 2294080.731 | F52: =IF($A52+F$49-1>TriangleSize,"",IF(ModelUsed=Inputs!$U$4,E52+F706,IF($A52+F$49-1=TriangleSize,F5,G52/F$46))) -> 3343422.704 | G52: =IF($A52+G$49-1>TriangleSize,"",IF(ModelUsed=Inputs!$U$4,F52+G706,IF($A52+G$49-1=TriangleSize,G5,H52/G$46))) -> 3924682.457 | H52: =IF($A52+H$49-1>TriangleSize,"",IF(ModelUsed=Inputs!$U$4,G52+H706,IF($A52+H$49-1=TriangleSize,H5,I52/H$46))) -> 4332156.852 | I52: =IF($A52+I$49-1>TriangleSize,"",IF(ModelUsed=Inputs!$U$4,H52+I706,IF($A52+I$49-1=TriangleSize,I5,J52/I$46))) -> 4705889.27 | J52: =IF($A52+J$49-1>TriangleSize,"",IF(ModelUsed=Inputs!$U$4,I52+J706,IF($A52+J$49-1=TriangleSize,J5,K52/J$46))) -> 4959416.022 | K52: =IF($A52+K$49-1>TriangleSize,"",IF(ModelUsed=Inputs!$U$4,J52+K706,IF($A52+K$49-1=TriangleSize,K5,L52/K$46))) -> 5339085 | L52: =IF($A52+L$49-1>TriangleSize,"",IF(ModelUsed=Inputs!$U$4,K52+L706,IF($A52+L$49-1=TriangleSize,L5,M52/L$46))) ->  | AA52: 2 | AB52: 2007 | AC52: =IF($AA52+AC$49-1>TriangleSize,"",IF(ModelUsed=Inputs!$U$4,AC706,IF($AA52+AC$49-1=TriangleSize,AC5,AD52/AC$46))) -> 376125.0063 | AD52: =IF($AA52+AD$49-1>TriangleSize,"",IF(ModelUsed=Inputs!$U$4,AC52+AD706,IF($AA52+AD$49-1=TriangleSize,AD5,AE52/AD$46))) -> 1312904.41 | AE52: =IF($AA52+AE$49-1>TriangleSize,"",IF(ModelUsed=Inputs!$U$4,AD52+AE706,IF($AA52+AE$49-1=TriangleSize,AE5,AF52/AE$46))) -> 2294080.731 | AF52: =IF($AA52+AF$49-1>TriangleSize,"",IF(ModelUsed=Inputs!$U$4,AE52+AF706,IF($AA52+AF$49-1=TriangleSize,AF5,AG52/AF$46))) -> 3343422.704 | AG52: =IF($AA52+AG$49-1>TriangleSize,"",IF(ModelUsed=Inputs!$U$4,AF52+AG706,IF($AA52+AG$49-1=TriangleSize,AG5,AH52/AG$46))) -> 3924682.457 | AH52: =IF($AA52+AH$49-1>TriangleSize,"",IF(ModelUsed=Inputs!$U$4,AG52+AH706,IF($AA52+AH$49-1=TriangleSize,AH5,AI52/AH$46))) -> 4332156.852 | AI52: =IF($AA52+AI$49-1>TriangleSize,"",IF(ModelUsed=Inputs!$U$4,AH52+AI706,IF($AA52+AI$49-1=TriangleSize,AI5,AJ52/AI$46))) -> 4705889.27 | AJ52: =IF($AA52+AJ$49-1>TriangleSize,"",IF(ModelUsed=Inputs!$U$4,AI52+AJ706,IF($AA52+AJ$49-1=TriangleSize,AJ5,AK52/AJ$46))) -> 4959416.022 | AK52: =IF($AA52+AK$49-1>TriangleSize,"",IF(ModelUsed=Inputs!$U$4,AJ52+AK706,IF($AA52+AK$49-1=TriangleSize,AK5,AL52/AK$46))) -> 5339085 | AL52: =IF($AA52+AL$49-1>TriangleSize,"",IF(ModelUsed=Inputs!$U$4,AK52+AL706,IF($AA52+AL$49-1=TriangleSize,AL5,AM52/AL$46))) -> 
A53: 3 | B53: 2008 | C53: =IF($A53+C$49-1>TriangleSize,"",IF(ModelUsed=Inputs!$U$4,C707,IF($A53+C$49-1=TriangleSize,C6,D53/C$46))) -> 372325.3155 | D53: =IF($A53+D$49-1>TriangleSize,"",IF(ModelUsed=Inputs!$U$4,C53+D707,IF($A53+D$49-1=TriangleSize,D6,E53/D$46))) -> 1299641.184 | E53: =IF($A53+E$49-1>TriangleSize,"",IF(ModelUsed=Inputs!$U$4,D53+E707,IF($A53+E$49-1=TriangleSize,E6,F53/E$46))) -> 2270905.464 | F53: =IF($A53+F$49-1>TriangleSize,"",IF(ModelUsed=Inputs!$U$4,E53+F707,IF($A53+F$49-1=TriangleSize,F6,G53/F$46))) -> 3309646.773 | G53: =IF($A53+G$49-1>TriangleSize,"",IF(ModelUsed=Inputs!$U$4,F53+G707,IF($A53+G$49-1=TriangleSize,G6,H53/G$46))) -> 3885034.522 | H53: =IF($A53+H$49-1>TriangleSize,"",IF(ModelUsed=Inputs!$U$4,G53+H707,IF($A53+H$49-1=TriangleSize,H6,I53/H$46))) -> 4288392.529 | I53: =IF($A53+I$49-1>TriangleSize,"",IF(ModelUsed=Inputs!$U$4,H53+I707,IF($A53+I$49-1=TriangleSize,I6,J53/I$46))) -> 4658349.427 | J53: =IF($A53+J$49-1>TriangleSize,"",IF(ModelUsed=Inputs!$U$4,I53+J707,IF($A53+J$49-1=TriangleSize,J6,K53/J$46))) -> 4909315 | K53: =IF($A53+K$49-1>TriangleSize,"",IF(ModelUsed=Inputs!$U$4,J53+K707,IF($A53+K$49-1=TriangleSize,K6,L53/K$46))) ->  | L53: =IF($A53+L$49-1>TriangleSize,"",IF(ModelUsed=Inputs!$U$4,K53+L707,IF($A53+L$49-1=TriangleSize,L6,M53/L$46))) ->  | AA53: 3 | AB53: 2008 | AC53: =IF($AA53+AC$49-1>TriangleSize,"",IF(ModelUsed=Inputs!$U$4,AC707,IF($AA53+AC$49-1=TriangleSize,AC6,AD53/AC$46))) -> 372325.3155 | AD53: =IF($AA53+AD$49-1>TriangleSize,"",IF(ModelUsed=Inputs!$U$4,AC53+AD707,IF($AA53+AD$49-1=TriangleSize,AD6,AE53/AD$46))) -> 1299641.184 | AE53: =IF($AA53+AE$49-1>TriangleSize,"",IF(ModelUsed=Inputs!$U$4,AD53+AE707,IF($AA53+AE$49-1=TriangleSize,AE6,AF53/AE$46))) -> 2270905.464 | AF53: =IF($AA53+AF$49-1>TriangleSize,"",IF(ModelUsed=Inputs!$U$4,AE53+AF707,IF($AA53+AF$49-1=TriangleSize,AF6,AG53/AF$46))) -> 3309646.773 | AG53: =IF($AA53+AG$49-1>TriangleSize,"",IF(ModelUsed=Inputs!$U$4,AF53+AG707,IF($AA53+AG$49-1=TriangleSize,AG6,AH53/AG$46))) -> 3885034.522 | AH53: =IF($AA53+AH$49-1>TriangleSize,"",IF(ModelUsed=Inputs!$U$4,AG53+AH707,IF($AA53+AH$49-1=TriangleSize,AH6,AI53/AH$46))) -> 4288392.529 | AI53: =IF($AA53+AI$49-1>TriangleSize,"",IF(ModelUsed=Inputs!$U$4,AH53+AI707,IF($AA53+AI$49-1=TriangleSize,AI6,AJ53/AI$46))) -> 4658349.427 | AJ53: =IF($AA53+AJ$49-1>TriangleSize,"",IF(ModelUsed=Inputs!$U$4,AI53+AJ707,IF($AA53+AJ$49-1=TriangleSize,AJ6,AK53/AJ$46))) -> 4909315 | AK53: =IF($AA53+AK$49-1>TriangleSize,"",IF(ModelUsed=Inputs!$U$4,AJ53+AK707,IF($AA53+AK$49-1=TriangleSize,AK6,AL53/AK$46))) ->  | AL53: =IF($AA53+AL$49-1>TriangleSize,"",IF(ModelUsed=Inputs!$U$4,AK53+AL707,IF($AA53+AL$49-1=TriangleSize,AL6,AM53/AL$46))) -> 
A54: 4 | B54: 2009 | C54: =IF($A54+C$49-1>TriangleSize,"",IF(ModelUsed=Inputs!$U$4,C708,IF($A54+C$49-1=TriangleSize,C7,D54/C$46))) -> 366723.9561 | D54: =IF($A54+D$49-1>TriangleSize,"",IF(ModelUsed=Inputs!$U$4,C54+D708,IF($A54+D$49-1=TriangleSize,D7,E54/D$46))) -> 1280089.042 | E54: =IF($A54+E$49-1>TriangleSize,"",IF(ModelUsed=Inputs!$U$4,D54+E708,IF($A54+E$49-1=TriangleSize,E7,F54/E$46))) -> 2236741.369 | F54: =IF($A54+F$49-1>TriangleSize,"",IF(ModelUsed=Inputs!$U$4,E54+F708,IF($A54+F$49-1=TriangleSize,F7,G54/F$46))) -> 3259855.582 | G54: =IF($A54+G$49-1>TriangleSize,"",IF(ModelUsed=Inputs!$U$4,F54+G708,IF($A54+G$49-1=TriangleSize,G7,H54/G$46))) -> 3826587.047 | H54: =IF($A54+H$49-1>TriangleSize,"",IF(ModelUsed=Inputs!$U$4,G54+H708,IF($A54+H$49-1=TriangleSize,H7,I54/H$46))) -> 4223876.83 | I54: =IF($A54+I$49-1>TriangleSize,"",IF(ModelUsed=Inputs!$U$4,H54+I708,IF($A54+I$49-1=TriangleSize,I7,J54/I$46))) -> 4588268 | J54: =IF($A54+J$49-1>TriangleSize,"",IF(ModelUsed=Inputs!$U$4,I54+J708,IF($A54+J$49-1=TriangleSize,J7,K54/J$46))) ->  | K54: =IF($A54+K$49-1>TriangleSize,"",IF(ModelUsed=Inputs!$U$4,J54+K708,IF($A54+K$49-1=TriangleSize,K7,L54/K$46))) ->  | L54: =IF($A54+L$49-1>TriangleSize,"",IF(ModelUsed=Inputs!$U$4,K54+L708,IF($A54+L$49-1=TriangleSize,L7,M54/L$46))) ->  | AA54: 4 | AB54: 2009 | AC54: =IF($AA54+AC$49-1>TriangleSize,"",IF(ModelUsed=Inputs!$U$4,AC708,IF($AA54+AC$49-1=TriangleSize,AC7,AD54/AC$46))) -> 366723.9561 | AD54: =IF($AA54+AD$49-1>TriangleSize,"",IF(ModelUsed=Inputs!$U$4,AC54+AD708,IF($AA54+AD$49-1=TriangleSize,AD7,AE54/AD$46))) -> 1280089.042 | AE54: =IF($AA54+AE$49-1>TriangleSize,"",IF(ModelUsed=Inputs!$U$4,AD54+AE708,IF($AA54+AE$49-1=TriangleSize,AE7,AF54/AE$46))) -> 2236741.369 | AF54: =IF($AA54+AF$49-1>TriangleSize,"",IF(ModelUsed=Inputs!$U$4,AE54+AF708,IF($AA54+AF$49-1=TriangleSize,AF7,AG54/AF$46))) -> 3259855.582 | AG54: =IF($AA54+AG$49-1>TriangleSize,"",IF(ModelUsed=Inputs!$U$4,AF54+AG708,IF($AA54+AG$49-1=TriangleSize,AG7,AH54/AG$46))) -> 3826587.047 | AH54: =IF($AA54+AH$49-1>TriangleSize,"",IF(ModelUsed=Inputs!$U$4,AG54+AH708,IF($AA54+AH$49-1=TriangleSize,AH7,AI54/AH$46))) -> 4223876.83 | AI54: =IF($AA54+AI$49-1>TriangleSize,"",IF(ModelUsed=Inputs!$U$4,AH54+AI708,IF($AA54+AI$49-1=TriangleSize,AI7,AJ54/AI$46))) -> 4588268 | AJ54: =IF($AA54+AJ$49-1>TriangleSize,"",IF(ModelUsed=Inputs!$U$4,AI54+AJ708,IF($AA54+AJ$49-1=TriangleSize,AJ7,AK54/AJ$46))) ->  | AK54: =IF($AA54+AK$49-1>TriangleSize,"",IF(ModelUsed=Inputs!$U$4,AJ54+AK708,IF($AA54+AK$49-1=TriangleSize,AK7,AL54/AK$46))) ->  | AL54: =IF($AA54+AL$49-1>TriangleSize,"",IF(ModelUsed=Inputs!$U$4,AK54+AL708,IF($AA54+AL$49-1=TriangleSize,AL7,AM54/AL$46))) -> 
A55: 5 | B55: 2010 | C55: =IF($A55+C$49-1>TriangleSize,"",IF(ModelUsed=Inputs!$U$4,C709,IF($A55+C$49-1=TriangleSize,C8,D55/C$46))) -> 336287.2522 | D55: =IF($A55+D$49-1>TriangleSize,"",IF(ModelUsed=Inputs!$U$4,C55+D709,IF($A55+D$49-1=TriangleSize,D8,E55/D$46))) -> 1173846.485 | E55: =IF($A55+E$49-1>TriangleSize,"",IF(ModelUsed=Inputs!$U$4,D55+E709,IF($A55+E$49-1=TriangleSize,E8,F55/E$46))) -> 2051100.279 | F55: =IF($A55+F$49-1>TriangleSize,"",IF(ModelUsed=Inputs!$U$4,E55+F709,IF($A55+F$49-1=TriangleSize,F8,G55/F$46))) -> 2989299.875 | G55: =IF($A55+G$49-1>TriangleSize,"",IF(ModelUsed=Inputs!$U$4,F55+G709,IF($A55+G$49-1=TriangleSize,G8,H55/G$46))) -> 3508994.769 | H55: =IF($A55+H$49-1>TriangleSize,"",IF(ModelUsed=Inputs!$U$4,G55+H709,IF($A55+H$49-1=TriangleSize,H8,I55/H$46))) -> 3873311 | I55: =IF($A55+I$49-1>TriangleSize,"",IF(ModelUsed=Inputs!$U$4,H55+I709,IF($A55+I$49-1=TriangleSize,I8,J55/I$46))) ->  | J55: =IF($A55+J$49-1>TriangleSize,"",IF(ModelUsed=Inputs!$U$4,I55+J709,IF($A55+J$49-1=TriangleSize,J8,K55/J$46))) ->  | K55: =IF($A55+K$49-1>TriangleSize,"",IF(ModelUsed=Inputs!$U$4,J55+K709,IF($A55+K$49-1=TriangleSize,K8,L55/K$46))) ->  | L55: =IF($A55+L$49-1>TriangleSize,"",IF(ModelUsed=Inputs!$U$4,K55+L709,IF($A55+L$49-1=TriangleSize,L8,M55/L$46))) ->  | AA55: 5 | AB55: 2010 | AC55: =IF($AA55+AC$49-1>TriangleSize,"",IF(ModelUsed=Inputs!$U$4,AC709,IF($AA55+AC$49-1=TriangleSize,AC8,AD55/AC$46))) -> 336287.2522 | AD55: =IF($AA55+AD$49-1>TriangleSize,"",IF(ModelUsed=Inputs!$U$4,AC55+AD709,IF($AA55+AD$49-1=TriangleSize,AD8,AE55/AD$46))) -> 1173846.485 | AE55: =IF($AA55+AE$49-1>TriangleSize,"",IF(ModelUsed=Inputs!$U$4,AD55+AE709,IF($AA55+AE$49-1=TriangleSize,AE8,AF55/AE$46))) -> 2051100.279 | AF55: =IF($AA55+AF$49-1>TriangleSize,"",IF(ModelUsed=Inputs!$U$4,AE55+AF709,IF($AA55+AF$49-1=TriangleSize,AF8,AG55/AF$46))) -> 2989299.875 | AG55: =IF($AA55+AG$49-1>TriangleSize,"",IF(ModelUsed=Inputs!$U$4,AF55+AG709,IF($AA55+AG$49-1=TriangleSize,AG8,AH55/AG$46))) -> 3508994.769 | AH55: =IF($AA55+AH$49-1>TriangleSize,"",IF(ModelUsed=Inputs!$U$4,AG55+AH709,IF($AA55+AH$49-1=TriangleSize,AH8,AI55/AH$46))) -> 3873311 | AI55: =IF($AA55+AI$49-1>TriangleSize,"",IF(ModelUsed=Inputs!$U$4,AH55+AI709,IF($AA55+AI$49-1=TriangleSize,AI8,AJ55/AI$46))) ->  | AJ55: =IF($AA55+AJ$49-1>TriangleSize,"",IF(ModelUsed=Inputs!$U$4,AI55+AJ709,IF($AA55+AJ$49-1=TriangleSize,AJ8,AK55/AJ$46))) ->  | AK55: =IF($AA55+AK$49-1>TriangleSize,"",IF(ModelUsed=Inputs!$U$4,AJ55+AK709,IF($AA55+AK$49-1=TriangleSize,AK8,AL55/AK$46))) ->  | AL55: =IF($AA55+AL$49-1>TriangleSize,"",IF(ModelUsed=Inputs!$U$4,AK55+AL709,IF($AA55+AL$49-1=TriangleSize,AL8,AM55/AL$46))) -> 
A56: 6 | B56: 2011 | C56: =IF($A56+C$49-1>TriangleSize,"",IF(ModelUsed=Inputs!$U$4,C710,IF($A56+C$49-1=TriangleSize,C9,D56/C$46))) -> 353798.1007 | D56: =IF($A56+D$49-1>TriangleSize,"",IF(ModelUsed=Inputs!$U$4,C56+D710,IF($A56+D$49-1=TriangleSize,D9,E56/D$46))) -> 1234969.967 | E56: =IF($A56+E$49-1>TriangleSize,"",IF(ModelUsed=Inputs!$U$4,D56+E710,IF($A56+E$49-1=TriangleSize,E9,F56/E$46))) -> 2157903.335 | F56: =IF($A56+F$49-1>TriangleSize,"",IF(ModelUsed=Inputs!$U$4,E56+F710,IF($A56+F$49-1=TriangleSize,F9,G56/F$46))) -> 3144956.02 | G56: =IF($A56+G$49-1>TriangleSize,"",IF(ModelUsed=Inputs!$U$4,F56+G710,IF($A56+G$49-1=TriangleSize,G9,H56/G$46))) -> 3691712 | H56: =IF($A56+H$49-1>TriangleSize,"",IF(ModelUsed=Inputs!$U$4,G56+H710,IF($A56+H$49-1=TriangleSize,H9,I56/H$46))) ->  | I56: =IF($A56+I$49-1>TriangleSize,"",IF(ModelUsed=Inputs!$U$4,H56+I710,IF($A56+I$49-1=TriangleSize,I9,J56/I$46))) ->  | J56: =IF($A56+J$49-1>TriangleSize,"",IF(ModelUsed=Inputs!$U$4,I56+J710,IF($A56+J$49-1=TriangleSize,J9,K56/J$46))) ->  | K56: =IF($A56+K$49-1>TriangleSize,"",IF(ModelUsed=Inputs!$U$4,J56+K710,IF($A56+K$49-1=TriangleSize,K9,L56/K$46))) ->  | L56: =IF($A56+L$49-1>TriangleSize,"",IF(ModelUsed=Inputs!$U$4,K56+L710,IF($A56+L$49-1=TriangleSize,L9,M56/L$46))) ->  | AA56: 6 | AB56: 2011 | AC56: =IF($AA56+AC$49-1>TriangleSize,"",IF(ModelUsed=Inputs!$U$4,AC710,IF($AA56+AC$49-1=TriangleSize,AC9,AD56/AC$46))) -> 353798.1007 | AD56: =IF($AA56+AD$49-1>TriangleSize,"",IF(ModelUsed=Inputs!$U$4,AC56+AD710,IF($AA56+AD$49-1=TriangleSize,AD9,AE56/AD$46))) -> 1234969.967 | AE56: =IF($AA56+AE$49-1>TriangleSize,"",IF(ModelUsed=Inputs!$U$4,AD56+AE710,IF($AA56+AE$49-1=TriangleSize,AE9,AF56/AE$46))) -> 2157903.335 | AF56: =IF($AA56+AF$49-1>TriangleSize,"",IF(ModelUsed=Inputs!$U$4,AE56+AF710,IF($AA56+AF$49-1=TriangleSize,AF9,AG56/AF$46))) -> 3144956.02 | AG56: =IF($AA56+AG$49-1>TriangleSize,"",IF(ModelUsed=Inputs!$U$4,AF56+AG710,IF($AA56+AG$49-1=TriangleSize,AG9,AH56/AG$46))) -> 3691712 | AH56: =IF($AA56+AH$49-1>TriangleSize,"",IF(ModelUsed=Inputs!$U$4,AG56+AH710,IF($AA56+AH$49-1=TriangleSize,AH9,AI56/AH$46))) ->  | AI56: =IF($AA56+AI$49-1>TriangleSize,"",IF(ModelUsed=Inputs!$U$4,AH56+AI710,IF($AA56+AI$49-1=TriangleSize,AI9,AJ56/AI$46))) ->  | AJ56: =IF($AA56+AJ$49-1>TriangleSize,"",IF(ModelUsed=Inputs!$U$4,AI56+AJ710,IF($AA56+AJ$49-1=TriangleSize,AJ9,AK56/AJ$46))) ->  | AK56: =IF($AA56+AK$49-1>TriangleSize,"",IF(ModelUsed=Inputs!$U$4,AJ56+AK710,IF($AA56+AK$49-1=TriangleSize,AK9,AL56/AK$46))) ->  | AL56: =IF($AA56+AL$49-1>TriangleSize,"",IF(ModelUsed=Inputs!$U$4,AK56+AL710,IF($AA56+AL$49-1=TriangleSize,AL9,AM56/AL$46))) -> 
A57: 7 | B57: 2012 | C57: =IF($A57+C$49-1>TriangleSize,"",IF(ModelUsed=Inputs!$U$4,C711,IF($A57+C$49-1=TriangleSize,C10,D57/C$46))) -> 391841.6572 | D57: =IF($A57+D$49-1>TriangleSize,"",IF(ModelUsed=Inputs!$U$4,C57+D711,IF($A57+D$49-1=TriangleSize,D10,E57/D$46))) -> 1367765.054 | E57: =IF($A57+E$49-1>TriangleSize,"",IF(ModelUsed=Inputs!$U$4,D57+E711,IF($A57+E$49-1=TriangleSize,E10,F57/E$46))) -> 2389940.526 | F57: =IF($A57+F$49-1>TriangleSize,"",IF(ModelUsed=Inputs!$U$4,E57+F711,IF($A57+F$49-1=TriangleSize,F10,G57/F$46))) -> 3483130 | G57: =IF($A57+G$49-1>TriangleSize,"",IF(ModelUsed=Inputs!$U$4,F57+G711,IF($A57+G$49-1=TriangleSize,G10,H57/G$46))) ->  | H57: =IF($A57+H$49-1>TriangleSize,"",IF(ModelUsed=Inputs!$U$4,G57+H711,IF($A57+H$49-1=TriangleSize,H10,I57/H$46))) ->  | I57: =IF($A57+I$49-1>TriangleSize,"",IF(ModelUsed=Inputs!$U$4,H57+I711,IF($A57+I$49-1=TriangleSize,I10,J57/I$46))) ->  | J57: =IF($A57+J$49-1>TriangleSize,"",IF(ModelUsed=Inputs!$U$4,I57+J711,IF($A57+J$49-1=TriangleSize,J10,K57/J$46))) ->  | K57: =IF($A57+K$49-1>TriangleSize,"",IF(ModelUsed=Inputs!$U$4,J57+K711,IF($A57+K$49-1=TriangleSize,K10,L57/K$46))) ->  | L57: =IF($A57+L$49-1>TriangleSize,"",IF(ModelUsed=Inputs!$U$4,K57+L711,IF($A57+L$49-1=TriangleSize,L10,M57/L$46))) ->  | AA57: 7 | AB57: 2012 | AC57: =IF($AA57+AC$49-1>TriangleSize,"",IF(ModelUsed=Inputs!$U$4,AC711,IF($AA57+AC$49-1=TriangleSize,AC10,AD57/AC$46))) -> 391841.6572 | AD57: =IF($AA57+AD$49-1>TriangleSize,"",IF(ModelUsed=Inputs!$U$4,AC57+AD711,IF($AA57+AD$49-1=TriangleSize,AD10,AE57/AD$46))) -> 1367765.054 | AE57: =IF($AA57+AE$49-1>TriangleSize,"",IF(ModelUsed=Inputs!$U$4,AD57+AE711,IF($AA57+AE$49-1=TriangleSize,AE10,AF57/AE$46))) -> 2389940.526 | AF57: =IF($AA57+AF$49-1>TriangleSize,"",IF(ModelUsed=Inputs!$U$4,AE57+AF711,IF($AA57+AF$49-1=TriangleSize,AF10,AG57/AF$46))) -> 3483130 | AG57: =IF($AA57+AG$49-1>TriangleSize,"",IF(ModelUsed=Inputs!$U$4,AF57+AG711,IF($AA57+AG$49-1=TriangleSize,AG10,AH57/AG$46))) ->  | AH57: =IF($AA57+AH$49-1>TriangleSize,"",IF(ModelUsed=Inputs!$U$4,AG57+AH711,IF($AA57+AH$49-1=TriangleSize,AH10,AI57/AH$46))) ->  | AI57: =IF($AA57+AI$49-1>TriangleSize,"",IF(ModelUsed=Inputs!$U$4,AH57+AI711,IF($AA57+AI$49-1=TriangleSize,AI10,AJ57/AI$46))) ->  | AJ57: =IF($AA57+AJ$49-1>TriangleSize,"",IF(ModelUsed=Inputs!$U$4,AI57+AJ711,IF($AA57+AJ$49-1=TriangleSize,AJ10,AK57/AJ$46))) ->  | AK57: =IF($AA57+AK$49-1>TriangleSize,"",IF(ModelUsed=Inputs!$U$4,AJ57+AK711,IF($AA57+AK$49-1=TriangleSize,AK10,AL57/AK$46))) ->  | AL57: =IF($AA57+AL$49-1>TriangleSize,"",IF(ModelUsed=Inputs!$U$4,AK57+AL711,IF($AA57+AL$49-1=TriangleSize,AL10,AM57/AL$46))) -> 
A58: 8 | B58: 2013 | C58: =IF($A58+C$49-1>TriangleSize,"",IF(ModelUsed=Inputs!$U$4,C712,IF($A58+C$49-1=TriangleSize,C11,D58/C$46))) -> 469647.521 | D58: =IF($A58+D$49-1>TriangleSize,"",IF(ModelUsed=Inputs!$U$4,C58+D712,IF($A58+D$49-1=TriangleSize,D11,E58/D$46))) -> 1639354.712 | E58: =IF($A58+E$49-1>TriangleSize,"",IF(ModelUsed=Inputs!$U$4,D58+E712,IF($A58+E$49-1=TriangleSize,E11,F58/E$46))) -> 2864498 | F58: =IF($A58+F$49-1>TriangleSize,"",IF(ModelUsed=Inputs!$U$4,E58+F712,IF($A58+F$49-1=TriangleSize,F11,G58/F$46))) ->  | G58: =IF($A58+G$49-1>TriangleSize,"",IF(ModelUsed=Inputs!$U$4,F58+G712,IF($A58+G$49-1=TriangleSize,G11,H58/G$46))) ->  | H58: =IF($A58+H$49-1>TriangleSize,"",IF(ModelUsed=Inputs!$U$4,G58+H712,IF($A58+H$49-1=TriangleSize,H11,I58/H$46))) ->  | I58: =IF($A58+I$49-1>TriangleSize,"",IF(ModelUsed=Inputs!$U$4,H58+I712,IF($A58+I$49-1=TriangleSize,I11,J58/I$46))) ->  | J58: =IF($A58+J$49-1>TriangleSize,"",IF(ModelUsed=Inputs!$U$4,I58+J712,IF($A58+J$49-1=TriangleSize,J11,K58/J$46))) ->  | K58: =IF($A58+K$49-1>TriangleSize,"",IF(ModelUsed=Inputs!$U$4,J58+K712,IF($A58+K$49-1=TriangleSize,K11,L58/K$46))) ->  | L58: =IF($A58+L$49-1>TriangleSize,"",IF(ModelUsed=Inputs!$U$4,K58+L712,IF($A58+L$49-1=TriangleSize,L11,M58/L$46))) ->  | AA58: 8 | AB58: 2013 | AC58: =IF($AA58+AC$49-1>TriangleSize,"",IF(ModelUsed=Inputs!$U$4,AC712,IF($AA58+AC$49-1=TriangleSize,AC11,AD58/AC$46))) -> 469647.521 | AD58: =IF($AA58+AD$49-1>TriangleSize,"",IF(ModelUsed=Inputs!$U$4,AC58+AD712,IF($AA58+AD$49-1=TriangleSize,AD11,AE58/AD$46))) -> 1639354.712 | AE58: =IF($AA58+AE$49-1>TriangleSize,"",IF(ModelUsed=Inputs!$U$4,AD58+AE712,IF($AA58+AE$49-1=TriangleSize,AE11,AF58/AE$46))) -> 2864498 | AF58: =IF($AA58+AF$49-1>TriangleSize,"",IF(ModelUsed=Inputs!$U$4,AE58+AF712,IF($AA58+AF$49-1=TriangleSize,AF11,AG58/AF$46))) ->  | AG58: =IF($AA58+AG$49-1>TriangleSize,"",IF(ModelUsed=Inputs!$U$4,AF58+AG712,IF($AA58+AG$49-1=TriangleSize,AG11,AH58/AG$46))) ->  | AH58: =IF($AA58+AH$49-1>TriangleSize,"",IF(ModelUsed=Inputs!$U$4,AG58+AH712,IF($AA58+AH$49-1=TriangleSize,AH11,AI58/AH$46))) ->  | AI58: =IF($AA58+AI$49-1>TriangleSize,"",IF(ModelUsed=Inputs!$U$4,AH58+AI712,IF($AA58+AI$49-1=TriangleSize,AI11,AJ58/AI$46))) ->  | AJ58: =IF($AA58+AJ$49-1>TriangleSize,"",IF(ModelUsed=Inputs!$U$4,AI58+AJ712,IF($AA58+AJ$49-1=TriangleSize,AJ11,AK58/AJ$46))) ->  | AK58: =IF($AA58+AK$49-1>TriangleSize,"",IF(ModelUsed=Inputs!$U$4,AJ58+AK712,IF($AA58+AK$49-1=TriangleSize,AK11,AL58/AK$46))) ->  | AL58: =IF($AA58+AL$49-1>TriangleSize,"",IF(ModelUsed=Inputs!$U$4,AK58+AL712,IF($AA58+AL$49-1=TriangleSize,AL11,AM58/AL$46))) -> 
A59: 9 | B59: 2014 | C59: =IF($A59+C$49-1>TriangleSize,"",IF(ModelUsed=Inputs!$U$4,C713,IF($A59+C$49-1=TriangleSize,C12,D59/C$46))) -> 390560.7754 | D59: =IF($A59+D$49-1>TriangleSize,"",IF(ModelUsed=Inputs!$U$4,C59+D713,IF($A59+D$49-1=TriangleSize,D12,E59/D$46))) -> 1363294 | E59: =IF($A59+E$49-1>TriangleSize,"",IF(ModelUsed=Inputs!$U$4,D59+E713,IF($A59+E$49-1=TriangleSize,E12,F59/E$46))) ->  | F59: =IF($A59+F$49-1>TriangleSize,"",IF(ModelUsed=Inputs!$U$4,E59+F713,IF($A59+F$49-1=TriangleSize,F12,G59/F$46))) ->  | G59: =IF($A59+G$49-1>TriangleSize,"",IF(ModelUsed=Inputs!$U$4,F59+G713,IF($A59+G$49-1=TriangleSize,G12,H59/G$46))) ->  | H59: =IF($A59+H$49-1>TriangleSize,"",IF(ModelUsed=Inputs!$U$4,G59+H713,IF($A59+H$49-1=TriangleSize,H12,I59/H$46))) ->  | I59: =IF($A59+I$49-1>TriangleSize,"",IF(ModelUsed=Inputs!$U$4,H59+I713,IF($A59+I$49-1=TriangleSize,I12,J59/I$46))) ->  | J59: =IF($A59+J$49-1>TriangleSize,"",IF(ModelUsed=Inputs!$U$4,I59+J713,IF($A59+J$49-1=TriangleSize,J12,K59/J$46))) ->  | K59: =IF($A59+K$49-1>TriangleSize,"",IF(ModelUsed=Inputs!$U$4,J59+K713,IF($A59+K$49-1=TriangleSize,K12,L59/K$46))) ->  | L59: =IF($A59+L$49-1>TriangleSize,"",IF(ModelUsed=Inputs!$U$4,K59+L713,IF($A59+L$49-1=TriangleSize,L12,M59/L$46))) ->  | AA59: 9 | AB59: 2014 | AC59: =IF($AA59+AC$49-1>TriangleSize,"",IF(ModelUsed=Inputs!$U$4,AC713,IF($AA59+AC$49-1=TriangleSize,AC12,AD59/AC$46))) -> 390560.7754 | AD59: =IF($AA59+AD$49-1>TriangleSize,"",IF(ModelUsed=Inputs!$U$4,AC59+AD713,IF($AA59+AD$49-1=TriangleSize,AD12,AE59/AD$46))) -> 1363294 | AE59: =IF($AA59+AE$49-1>TriangleSize,"",IF(ModelUsed=Inputs!$U$4,AD59+AE713,IF($AA59+AE$49-1=TriangleSize,AE12,AF59/AE$46))) ->  | AF59: =IF($AA59+AF$49-1>TriangleSize,"",IF(ModelUsed=Inputs!$U$4,AE59+AF713,IF($AA59+AF$49-1=TriangleSize,AF12,AG59/AF$46))) ->  | AG59: =IF($AA59+AG$49-1>TriangleSize,"",IF(ModelUsed=Inputs!$U$4,AF59+AG713,IF($AA59+AG$49-1=TriangleSize,AG12,AH59/AG$46))) ->  | AH59: =IF($AA59+AH$49-1>TriangleSize,"",IF(ModelUsed=Inputs!$U$4,AG59+AH713,IF($AA59+AH$49-1=TriangleSize,AH12,AI59/AH$46))) ->  | AI59: =IF($AA59+AI$49-1>TriangleSize,"",IF(ModelUsed=Inputs!$U$4,AH59+AI713,IF($AA59+AI$49-1=TriangleSize,AI12,AJ59/AI$46))) ->  | AJ59: =IF($AA59+AJ$49-1>TriangleSize,"",IF(ModelUsed=Inputs!$U$4,AI59+AJ713,IF($AA59+AJ$49-1=TriangleSize,AJ12,AK59/AJ$46))) ->  | AK59: =IF($AA59+AK$49-1>TriangleSize,"",IF(ModelUsed=Inputs!$U$4,AJ59+AK713,IF($AA59+AK$49-1=TriangleSize,AK12,AL59/AK$46))) ->  | AL59: =IF($AA59+AL$49-1>TriangleSize,"",IF(ModelUsed=Inputs!$U$4,AK59+AL713,IF($AA59+AL$49-1=TriangleSize,AL12,AM59/AL$46))) -> 
A60: 10 | B60: 2015 | C60: =IF($A60+C$49-1>TriangleSize,"",IF(ModelUsed=Inputs!$U$4,C714,IF($A60+C$49-1=TriangleSize,C13,D60/C$46))) -> 344014 | D60: =IF($A60+D$49-1>TriangleSize,"",IF(ModelUsed=Inputs!$U$4,C60+D714,IF($A60+D$49-1=TriangleSize,D13,E60/D$46))) ->  | E60: =IF($A60+E$49-1>TriangleSize,"",IF(ModelUsed=Inputs!$U$4,D60+E714,IF($A60+E$49-1=TriangleSize,E13,F60/E$46))) ->  | F60: =IF($A60+F$49-1>TriangleSize,"",IF(ModelUsed=Inputs!$U$4,E60+F714,IF($A60+F$49-1=TriangleSize,F13,G60/F$46))) ->  | G60: =IF($A60+G$49-1>TriangleSize,"",IF(ModelUsed=Inputs!$U$4,F60+G714,IF($A60+G$49-1=TriangleSize,G13,H60/G$46))) ->  | H60: =IF($A60+H$49-1>TriangleSize,"",IF(ModelUsed=Inputs!$U$4,G60+H714,IF($A60+H$49-1=TriangleSize,H13,I60/H$46))) ->  | I60: =IF($A60+I$49-1>TriangleSize,"",IF(ModelUsed=Inputs!$U$4,H60+I714,IF($A60+I$49-1=TriangleSize,I13,J60/I$46))) ->  | J60: =IF($A60+J$49-1>TriangleSize,"",IF(ModelUsed=Inputs!$U$4,I60+J714,IF($A60+J$49-1=TriangleSize,J13,K60/J$46))) ->  | K60: =IF($A60+K$49-1>TriangleSize,"",IF(ModelUsed=Inputs!$U$4,J60+K714,IF($A60+K$49-1=TriangleSize,K13,L60/K$46))) ->  | L60: =IF($A60+L$49-1>TriangleSize,"",IF(ModelUsed=Inputs!$U$4,K60+L714,IF($A60+L$49-1=TriangleSize,L13,M60/L$46))) ->  | AA60: 10 | AB60: 2015 | AC60: =IF($AA60+AC$49-1>TriangleSize,"",IF(ModelUsed=Inputs!$U$4,AC714,IF($AA60+AC$49-1=TriangleSize,AC13,AD60/AC$46))) -> 344014 | AD60: =IF($AA60+AD$49-1>TriangleSize,"",IF(ModelUsed=Inputs!$U$4,AC60+AD714,IF($AA60+AD$49-1=TriangleSize,AD13,AE60/AD$46))) ->  | AE60: =IF($AA60+AE$49-1>TriangleSize,"",IF(ModelUsed=Inputs!$U$4,AD60+AE714,IF($AA60+AE$49-1=TriangleSize,AE13,AF60/AE$46))) ->  | AF60: =IF($AA60+AF$49-1>TriangleSize,"",IF(ModelUsed=Inputs!$U$4,AE60+AF714,IF($AA60+AF$49-1=TriangleSize,AF13,AG60/AF$46))) ->  | AG60: =IF($AA60+AG$49-1>TriangleSize,"",IF(ModelUsed=Inputs!$U$4,AF60+AG714,IF($AA60+AG$49-1=TriangleSize,AG13,AH60/AG$46))) ->  | AH60: =IF($AA60+AH$49-1>TriangleSize,"",IF(ModelUsed=Inputs!$U$4,AG60+AH714,IF($AA60+AH$49-1=TriangleSize,AH13,AI60/AH$46))) ->  | AI60: =IF($AA60+AI$49-1>TriangleSize,"",IF(ModelUsed=Inputs!$U$4,AH60+AI714,IF($AA60+AI$49-1=TriangleSize,AI13,AJ60/AI$46))) ->  | AJ60: =IF($AA60+AJ$49-1>TriangleSize,"",IF(ModelUsed=Inputs!$U$4,AI60+AJ714,IF($AA60+AJ$49-1=TriangleSize,AJ13,AK60/AJ$46))) ->  | AK60: =IF($AA60+AK$49-1>TriangleSize,"",IF(ModelUsed=Inputs!$U$4,AJ60+AK714,IF($AA60+AK$49-1=TriangleSize,AK13,AL60/AK$46))) ->  | AL60: =IF($AA60+AL$49-1>TriangleSize,"",IF(ModelUsed=Inputs!$U$4,AK60+AL714,IF($AA60+AL$49-1=TriangleSize,AL13,AM60/AL$46))) -> 
A62: =A48-1 -> -5 | B62: ="Incremental Fitted Triangle (Paid"&IF(UseExpAdj="Yes",", Exposure Adjusted)",")") -> Incremental Fitted Triangle (Paid) | AA62: =AA48-1 -> -5 | AB62: ="Incremental Fitted Triangle (Incurred"&IF(UseExpAdj="Yes",", Exposure Adjusted)",")") -> Incremental Fitted Triangle (Incurred)
C63: 1 | D63: 2 | E63: 3 | F63: 4 | G63: 5 | H63: 6 | I63: 7 | J63: 8 | K63: 9 | L63: 10 | AC63: 1 | AD63: 2 | AE63: 3 | AF63: 4 | AG63: 5 | AH63: 6 | AI63: 7 | AJ63: 8 | AK63: 9 | AL63: 10
B64: =B3 -> Year | C64: =C3 -> 12 | D64: 24 | E64: 36 | F64: 48 | G64: 60 | H64: 72 | I64: 84 | J64: 96 | K64: 108 | L64: 120 | AB64: =AB3 -> Year | AC64: =AC3 -> 12 | AD64: 24 | AE64: 36 | AF64: 48 | AG64: 60 | AH64: 72 | AI64: 84 | AJ64: 96 | AK64: 108 | AL64: 120
A65: 1 | B65: =B4 -> 2006 | C65: =IF($A65+C$63-1>TriangleSize,"",IF(ModelUsed=Inputs!$U$4,C705,C51)) -> 270061.4156 | D65: =IF($A65+D$63-1>TriangleSize,"",IF(ModelUsed=Inputs!$U$4,D705,D51-C51)) -> 672616.7301 | E65: =IF($A65+E$63-1>TriangleSize,"",IF(ModelUsed=Inputs!$U$4,E705,E51-D51)) -> 704494.1493 | F65: =IF($A65+F$63-1>TriangleSize,"",IF(ModelUsed=Inputs!$U$4,F705,F51-E51)) -> 753437.7509 | G65: =IF($A65+G$63-1>TriangleSize,"",IF(ModelUsed=Inputs!$U$4,G705,G51-F51)) -> 417350.1601 | H65: =IF($A65+H$63-1>TriangleSize,"",IF(ModelUsed=Inputs!$U$4,H705,H51-G51)) -> 292570.5823 | I65: =IF($A65+I$63-1>TriangleSize,"",IF(ModelUsed=Inputs!$U$4,I705,I51-H51)) -> 268343.5142 | J65: =IF($A65+J$63-1>TriangleSize,"",IF(ModelUsed=Inputs!$U$4,J705,J51-I51)) -> 182034.6754 | K65: =IF($A65+K$63-1>TriangleSize,"",IF(ModelUsed=Inputs!$U$4,K705,K51-J51)) -> 272606.0219 | L65: =IF($A65+L$63-1>TriangleSize,"",IF(ModelUsed=Inputs!$U$4,L705,L51-K51)) -> 67948 | AA65: 1 | AB65: =AB4 -> 2006 | AC65: =IF($AA65+AC$63-1>TriangleSize,"",IF(ModelUsed=Inputs!$U$4,AC705,AC51)) -> 270061.4156 | AD65: =IF($AA65+AD$63-1>TriangleSize,"",IF(ModelUsed=Inputs!$U$4,AD705,AD51-AC51)) -> 672616.7301 | AE65: =IF($AA65+AE$63-1>TriangleSize,"",IF(ModelUsed=Inputs!$U$4,AE705,AE51-AD51)) -> 704494.1493 | AF65: =IF($AA65+AF$63-1>TriangleSize,"",IF(ModelUsed=Inputs!$U$4,AF705,AF51-AE51)) -> 753437.7509 | AG65: =IF($AA65+AG$63-1>TriangleSize,"",IF(ModelUsed=Inputs!$U$4,AG705,AG51-AF51)) -> 417350.1601 | AH65: =IF($AA65+AH$63-1>TriangleSize,"",IF(ModelUsed=Inputs!$U$4,AH705,AH51-AG51)) -> 292570.5823 | AI65: =IF($AA65+AI$63-1>TriangleSize,"",IF(ModelUsed=Inputs!$U$4,AI705,AI51-AH51)) -> 268343.5142 | AJ65: =IF($AA65+AJ$63-1>TriangleSize,"",IF(ModelUsed=Inputs!$U$4,AJ705,AJ51-AI51)) -> 182034.6754 | AK65: =IF($AA65+AK$63-1>TriangleSize,"",IF(ModelUsed=Inputs!$U$4,AK705,AK51-AJ51)) -> 272606.0219 | AL65: =IF($AA65+AL$63-1>TriangleSize,"",IF(ModelUsed=Inputs!$U$4,AL705,AL51-AK51)) -> 67948
A66: 2 | B66: 2007 | C66: =IF($A66+C$63-1>TriangleSize,"",IF(ModelUsed=Inputs!$U$4,C706,C52)) -> 376125.0063 | D66: =IF($A66+D$63-1>TriangleSize,"",IF(ModelUsed=Inputs!$U$4,D706,D52-C52)) -> 936779.4034 | E66: =IF($A66+E$63-1>TriangleSize,"",IF(ModelUsed=Inputs!$U$4,E706,E52-D52)) -> 981176.3213 | F66: =IF($A66+F$63-1>TriangleSize,"",IF(ModelUsed=Inputs!$U$4,F706,F52-E52)) -> 1049341.973 | G66: =IF($A66+G$63-1>TriangleSize,"",IF(ModelUsed=Inputs!$U$4,G706,G52-F52)) -> 581259.7524 | H66: =IF($A66+H$63-1>TriangleSize,"",IF(ModelUsed=Inputs!$U$4,H706,H52-G52)) -> 407474.3956 | I66: =IF($A66+I$63-1>TriangleSize,"",IF(ModelUsed=Inputs!$U$4,I706,I52-H52)) -> 373732.4183 | J66: =IF($A66+J$63-1>TriangleSize,"",IF(ModelUsed=Inputs!$U$4,J706,J52-I52)) -> 253526.7515 | K66: =IF($A66+K$63-1>TriangleSize,"",IF(ModelUsed=Inputs!$U$4,K706,K52-J52)) -> 379668.9781 | L66: =IF($A66+L$63-1>TriangleSize,"",IF(ModelUsed=Inputs!$U$4,L706,L52-K52)) ->  | AA66: 2 | AB66: 2007 | AC66: =IF($AA66+AC$63-1>TriangleSize,"",IF(ModelUsed=Inputs!$U$4,AC706,AC52)) -> 376125.0063 | AD66: =IF($AA66+AD$63-1>TriangleSize,"",IF(ModelUsed=Inputs!$U$4,AD706,AD52-AC52)) -> 936779.4034 | AE66: =IF($AA66+AE$63-1>TriangleSize,"",IF(ModelUsed=Inputs!$U$4,AE706,AE52-AD52)) -> 981176.3213 | AF66: =IF($AA66+AF$63-1>TriangleSize,"",IF(ModelUsed=Inputs!$U$4,AF706,AF52-AE52)) -> 1049341.973 | AG66: =IF($AA66+AG$63-1>TriangleSize,"",IF(ModelUsed=Inputs!$U$4,AG706,AG52-AF52)) -> 581259.7524 | AH66: =IF($AA66+AH$63-1>TriangleSize,"",IF(ModelUsed=Inputs!$U$4,AH706,AH52-AG52)) -> 407474.3956 | AI66: =IF($AA66+AI$63-1>TriangleSize,"",IF(ModelUsed=Inputs!$U$4,AI706,AI52-AH52)) -> 373732.4183 | AJ66: =IF($AA66+AJ$63-1>TriangleSize,"",IF(ModelUsed=Inputs!$U$4,AJ706,AJ52-AI52)) -> 253526.7515 | AK66: =IF($AA66+AK$63-1>TriangleSize,"",IF(ModelUsed=Inputs!$U$4,AK706,AK52-AJ52)) -> 379668.9781 | AL66: =IF($AA66+AL$63-1>TriangleSize,"",IF(ModelUsed=Inputs!$U$4,AL706,AL52-AK52)) -> 
A67: 3 | B67: 2008 | C67: =IF($A67+C$63-1>TriangleSize,"",IF(ModelUsed=Inputs!$U$4,C707,C53)) -> 372325.3155 | D67: =IF($A67+D$63-1>TriangleSize,"",IF(ModelUsed=Inputs!$U$4,D707,D53-C53)) -> 927315.8688 | E67: =IF($A67+E$63-1>TriangleSize,"",IF(ModelUsed=Inputs!$U$4,E707,E53-D53)) -> 971264.28 | F67: =IF($A67+F$63-1>TriangleSize,"",IF(ModelUsed=Inputs!$U$4,F707,F53-E53)) -> 1038741.309 | G67: =IF($A67+G$63-1>TriangleSize,"",IF(ModelUsed=Inputs!$U$4,G707,G53-F53)) -> 575387.749 | H67: =IF($A67+H$63-1>TriangleSize,"",IF(ModelUsed=Inputs!$U$4,H707,H53-G53)) -> 403358.007 | I67: =IF($A67+I$63-1>TriangleSize,"",IF(ModelUsed=Inputs!$U$4,I707,I53-H53)) -> 369956.8979 | J67: =IF($A67+J$63-1>TriangleSize,"",IF(ModelUsed=Inputs!$U$4,J707,J53-I53)) -> 250965.5731 | K67: =IF($A67+K$63-1>TriangleSize,"",IF(ModelUsed=Inputs!$U$4,K707,K53-J53)) ->  | L67: =IF($A67+L$63-1>TriangleSize,"",IF(ModelUsed=Inputs!$U$4,L707,L53-K53)) ->  | AA67: 3 | AB67: 2008 | AC67: =IF($AA67+AC$63-1>TriangleSize,"",IF(ModelUsed=Inputs!$U$4,AC707,AC53)) -> 372325.3155 | AD67: =IF($AA67+AD$63-1>TriangleSize,"",IF(ModelUsed=Inputs!$U$4,AD707,AD53-AC53)) -> 927315.8688 | AE67: =IF($AA67+AE$63-1>TriangleSize,"",IF(ModelUsed=Inputs!$U$4,AE707,AE53-AD53)) -> 971264.28 | AF67: =IF($AA67+AF$63-1>TriangleSize,"",IF(ModelUsed=Inputs!$U$4,AF707,AF53-AE53)) -> 1038741.309 | AG67: =IF($AA67+AG$63-1>TriangleSize,"",IF(ModelUsed=Inputs!$U$4,AG707,AG53-AF53)) -> 575387.749 | AH67: =IF($AA67+AH$63-1>TriangleSize,"",IF(ModelUsed=Inputs!$U$4,AH707,AH53-AG53)) -> 403358.007 | AI67: =IF($AA67+AI$63-1>TriangleSize,"",IF(ModelUsed=Inputs!$U$4,AI707,AI53-AH53)) -> 369956.8979 | AJ67: =IF($AA67+AJ$63-1>TriangleSize,"",IF(ModelUsed=Inputs!$U$4,AJ707,AJ53-AI53)) -> 250965.5731 | AK67: =IF($AA67+AK$63-1>TriangleSize,"",IF(ModelUsed=Inputs!$U$4,AK707,AK53-AJ53)) ->  | AL67: =IF($AA67+AL$63-1>TriangleSize,"",IF(ModelUsed=Inputs!$U$4,AL707,AL53-AK53)) -> 
A68: 4 | B68: 2009 | C68: =IF($A68+C$63-1>TriangleSize,"",IF(ModelUsed=Inputs!$U$4,C708,C54)) -> 366723.9561 | D68: =IF($A68+D$63-1>TriangleSize,"",IF(ModelUsed=Inputs!$U$4,D708,D54-C54)) -> 913365.0863 | E68: =IF($A68+E$63-1>TriangleSize,"",IF(ModelUsed=Inputs!$U$4,E708,E54-D54)) -> 956652.3262 | F68: =IF($A68+F$63-1>TriangleSize,"",IF(ModelUsed=Inputs!$U$4,F708,F54-E54)) -> 1023114.213 | G68: =IF($A68+G$63-1>TriangleSize,"",IF(ModelUsed=Inputs!$U$4,G708,G54-F54)) -> 566731.4652 | H68: =IF($A68+H$63-1>TriangleSize,"",IF(ModelUsed=Inputs!$U$4,H708,H54-G54)) -> 397289.7836 | I68: =IF($A68+I$63-1>TriangleSize,"",IF(ModelUsed=Inputs!$U$4,I708,I54-H54)) -> 364391.1696 | J68: =IF($A68+J$63-1>TriangleSize,"",IF(ModelUsed=Inputs!$U$4,J708,J54-I54)) ->  | K68: =IF($A68+K$63-1>TriangleSize,"",IF(ModelUsed=Inputs!$U$4,K708,K54-J54)) ->  | L68: =IF($A68+L$63-1>TriangleSize,"",IF(ModelUsed=Inputs!$U$4,L708,L54-K54)) ->  | AA68: 4 | AB68: 2009 | AC68: =IF($AA68+AC$63-1>TriangleSize,"",IF(ModelUsed=Inputs!$U$4,AC708,AC54)) -> 366723.9561 | AD68: =IF($AA68+AD$63-1>TriangleSize,"",IF(ModelUsed=Inputs!$U$4,AD708,AD54-AC54)) -> 913365.0863 | AE68: =IF($AA68+AE$63-1>TriangleSize,"",IF(ModelUsed=Inputs!$U$4,AE708,AE54-AD54)) -> 956652.3262 | AF68: =IF($AA68+AF$63-1>TriangleSize,"",IF(ModelUsed=Inputs!$U$4,AF708,AF54-AE54)) -> 1023114.213 | AG68: =IF($AA68+AG$63-1>TriangleSize,"",IF(ModelUsed=Inputs!$U$4,AG708,AG54-AF54)) -> 566731.4652 | AH68: =IF($AA68+AH$63-1>TriangleSize,"",IF(ModelUsed=Inputs!$U$4,AH708,AH54-AG54)) -> 397289.7836 | AI68: =IF($AA68+AI$63-1>TriangleSize,"",IF(ModelUsed=Inputs!$U$4,AI708,AI54-AH54)) -> 364391.1696 | AJ68: =IF($AA68+AJ$63-1>TriangleSize,"",IF(ModelUsed=Inputs!$U$4,AJ708,AJ54-AI54)) ->  | AK68: =IF($AA68+AK$63-1>TriangleSize,"",IF(ModelUsed=Inputs!$U$4,AK708,AK54-AJ54)) ->  | AL68: =IF($AA68+AL$63-1>TriangleSize,"",IF(ModelUsed=Inputs!$U$4,AL708,AL54-AK54)) -> 
A69: 5 | B69: 2010 | C69: =IF($A69+C$63-1>TriangleSize,"",IF(ModelUsed=Inputs!$U$4,C709,C55)) -> 336287.2522 | D69: =IF($A69+D$63-1>TriangleSize,"",IF(ModelUsed=Inputs!$U$4,D709,D55-C55)) -> 837559.2324 | E69: =IF($A69+E$63-1>TriangleSize,"",IF(ModelUsed=Inputs!$U$4,E709,E55-D55)) -> 877253.7948 | F69: =IF($A69+F$63-1>TriangleSize,"",IF(ModelUsed=Inputs!$U$4,F709,F55-E55)) -> 938199.5958 | G69: =IF($A69+G$63-1>TriangleSize,"",IF(ModelUsed=Inputs!$U$4,G709,G55-F55)) -> 519694.8932 | H69: =IF($A69+H$63-1>TriangleSize,"",IF(ModelUsed=Inputs!$U$4,H709,H55-G55)) -> 364316.2315 | I69: =IF($A69+I$63-1>TriangleSize,"",IF(ModelUsed=Inputs!$U$4,I709,I55-H55)) ->  | J69: =IF($A69+J$63-1>TriangleSize,"",IF(ModelUsed=Inputs!$U$4,J709,J55-I55)) ->  | K69: =IF($A69+K$63-1>TriangleSize,"",IF(ModelUsed=Inputs!$U$4,K709,K55-J55)) ->  | L69: =IF($A69+L$63-1>TriangleSize,"",IF(ModelUsed=Inputs!$U$4,L709,L55-K55)) ->  | AA69: 5 | AB69: 2010 | AC69: =IF($AA69+AC$63-1>TriangleSize,"",IF(ModelUsed=Inputs!$U$4,AC709,AC55)) -> 336287.2522 | AD69: =IF($AA69+AD$63-1>TriangleSize,"",IF(ModelUsed=Inputs!$U$4,AD709,AD55-AC55)) -> 837559.2324 | AE69: =IF($AA69+AE$63-1>TriangleSize,"",IF(ModelUsed=Inputs!$U$4,AE709,AE55-AD55)) -> 877253.7948 | AF69: =IF($AA69+AF$63-1>TriangleSize,"",IF(ModelUsed=Inputs!$U$4,AF709,AF55-AE55)) -> 938199.5958 | AG69: =IF($AA69+AG$63-1>TriangleSize,"",IF(ModelUsed=Inputs!$U$4,AG709,AG55-AF55)) -> 519694.8932 | AH69: =IF($AA69+AH$63-1>TriangleSize,"",IF(ModelUsed=Inputs!$U$4,AH709,AH55-AG55)) -> 364316.2315 | AI69: =IF($AA69+AI$63-1>TriangleSize,"",IF(ModelUsed=Inputs!$U$4,AI709,AI55-AH55)) ->  | AJ69: =IF($AA69+AJ$63-1>TriangleSize,"",IF(ModelUsed=Inputs!$U$4,AJ709,AJ55-AI55)) ->  | AK69: =IF($AA69+AK$63-1>TriangleSize,"",IF(ModelUsed=Inputs!$U$4,AK709,AK55-AJ55)) ->  | AL69: =IF($AA69+AL$63-1>TriangleSize,"",IF(ModelUsed=Inputs!$U$4,AL709,AL55-AK55)) -> 
A70: 6 | B70: 2011 | C70: =IF($A70+C$63-1>TriangleSize,"",IF(ModelUsed=Inputs!$U$4,C710,C56)) -> 353798.1007 | D70: =IF($A70+D$63-1>TriangleSize,"",IF(ModelUsed=Inputs!$U$4,D710,D56-C56)) -> 881171.8663 | E70: =IF($A70+E$63-1>TriangleSize,"",IF(ModelUsed=Inputs!$U$4,E710,E56-D56)) -> 922933.3684 | F70: =IF($A70+F$63-1>TriangleSize,"",IF(ModelUsed=Inputs!$U$4,F710,F56-E56)) -> 987052.6845 | G70: =IF($A70+G$63-1>TriangleSize,"",IF(ModelUsed=Inputs!$U$4,G710,G56-F56)) -> 546755.9801 | H70: =IF($A70+H$63-1>TriangleSize,"",IF(ModelUsed=Inputs!$U$4,H710,H56-G56)) ->  | I70: =IF($A70+I$63-1>TriangleSize,"",IF(ModelUsed=Inputs!$U$4,I710,I56-H56)) ->  | J70: =IF($A70+J$63-1>TriangleSize,"",IF(ModelUsed=Inputs!$U$4,J710,J56-I56)) ->  | K70: =IF($A70+K$63-1>TriangleSize,"",IF(ModelUsed=Inputs!$U$4,K710,K56-J56)) ->  | L70: =IF($A70+L$63-1>TriangleSize,"",IF(ModelUsed=Inputs!$U$4,L710,L56-K56)) ->  | AA70: 6 | AB70: 2011 | AC70: =IF($AA70+AC$63-1>TriangleSize,"",IF(ModelUsed=Inputs!$U$4,AC710,AC56)) -> 353798.1007 | AD70: =IF($AA70+AD$63-1>TriangleSize,"",IF(ModelUsed=Inputs!$U$4,AD710,AD56-AC56)) -> 881171.8663 | AE70: =IF($AA70+AE$63-1>TriangleSize,"",IF(ModelUsed=Inputs!$U$4,AE710,AE56-AD56)) -> 922933.3684 | AF70: =IF($AA70+AF$63-1>TriangleSize,"",IF(ModelUsed=Inputs!$U$4,AF710,AF56-AE56)) -> 987052.6845 | AG70: =IF($AA70+AG$63-1>TriangleSize,"",IF(ModelUsed=Inputs!$U$4,AG710,AG56-AF56)) -> 546755.9801 | AH70: =IF($AA70+AH$63-1>TriangleSize,"",IF(ModelUsed=Inputs!$U$4,AH710,AH56-AG56)) ->  | AI70: =IF($AA70+AI$63-1>TriangleSize,"",IF(ModelUsed=Inputs!$U$4,AI710,AI56-AH56)) ->  | AJ70: =IF($AA70+AJ$63-1>TriangleSize,"",IF(ModelUsed=Inputs!$U$4,AJ710,AJ56-AI56)) ->  | AK70: =IF($AA70+AK$63-1>TriangleSize,"",IF(ModelUsed=Inputs!$U$4,AK710,AK56-AJ56)) ->  | AL70: =IF($AA70+AL$63-1>TriangleSize,"",IF(ModelUsed=Inputs!$U$4,AL710,AL56-AK56)) -> 
A71: 7 | B71: 2012 | C71: =IF($A71+C$63-1>TriangleSize,"",IF(ModelUsed=Inputs!$U$4,C711,C57)) -> 391841.6572 | D71: =IF($A71+D$63-1>TriangleSize,"",IF(ModelUsed=Inputs!$U$4,D711,D57-C57)) -> 975923.3971 | E71: =IF($A71+E$63-1>TriangleSize,"",IF(ModelUsed=Inputs!$U$4,E711,E57-D57)) -> 1022175.472 | F71: =IF($A71+F$63-1>TriangleSize,"",IF(ModelUsed=Inputs!$U$4,F711,F57-E57)) -> 1093189.474 | G71: =IF($A71+G$63-1>TriangleSize,"",IF(ModelUsed=Inputs!$U$4,G711,G57-F57)) ->  | H71: =IF($A71+H$63-1>TriangleSize,"",IF(ModelUsed=Inputs!$U$4,H711,H57-G57)) ->  | I71: =IF($A71+I$63-1>TriangleSize,"",IF(ModelUsed=Inputs!$U$4,I711,I57-H57)) ->  | J71: =IF($A71+J$63-1>TriangleSize,"",IF(ModelUsed=Inputs!$U$4,J711,J57-I57)) ->  | K71: =IF($A71+K$63-1>TriangleSize,"",IF(ModelUsed=Inputs!$U$4,K711,K57-J57)) ->  | L71: =IF($A71+L$63-1>TriangleSize,"",IF(ModelUsed=Inputs!$U$4,L711,L57-K57)) ->  | AA71: 7 | AB71: 2012 | AC71: =IF($AA71+AC$63-1>TriangleSize,"",IF(ModelUsed=Inputs!$U$4,AC711,AC57)) -> 391841.6572 | AD71: =IF($AA71+AD$63-1>TriangleSize,"",IF(ModelUsed=Inputs!$U$4,AD711,AD57-AC57)) -> 975923.3971 | AE71: =IF($AA71+AE$63-1>TriangleSize,"",IF(ModelUsed=Inputs!$U$4,AE711,AE57-AD57)) -> 1022175.472 | AF71: =IF($AA71+AF$63-1>TriangleSize,"",IF(ModelUsed=Inputs!$U$4,AF711,AF57-AE57)) -> 1093189.474 | AG71: =IF($AA71+AG$63-1>TriangleSize,"",IF(ModelUsed=Inputs!$U$4,AG711,AG57-AF57)) ->  | AH71: =IF($AA71+AH$63-1>TriangleSize,"",IF(ModelUsed=Inputs!$U$4,AH711,AH57-AG57)) ->  | AI71: =IF($AA71+AI$63-1>TriangleSize,"",IF(ModelUsed=Inputs!$U$4,AI711,AI57-AH57)) ->  | AJ71: =IF($AA71+AJ$63-1>TriangleSize,"",IF(ModelUsed=Inputs!$U$4,AJ711,AJ57-AI57)) ->  | AK71: =IF($AA71+AK$63-1>TriangleSize,"",IF(ModelUsed=Inputs!$U$4,AK711,AK57-AJ57)) ->  | AL71: =IF($AA71+AL$63-1>TriangleSize,"",IF(ModelUsed=Inputs!$U$4,AL711,AL57-AK57)) -> 
A72: 8 | B72: 2013 | C72: =IF($A72+C$63-1>TriangleSize,"",IF(ModelUsed=Inputs!$U$4,C712,C58)) -> 469647.521 | D72: =IF($A72+D$63-1>TriangleSize,"",IF(ModelUsed=Inputs!$U$4,D712,D58-C58)) -> 1169707.191 | E72: =IF($A72+E$63-1>TriangleSize,"",IF(ModelUsed=Inputs!$U$4,E712,E58-D58)) -> 1225143.288 | F72: =IF($A72+F$63-1>TriangleSize,"",IF(ModelUsed=Inputs!$U$4,F712,F58-E58)) ->  | G72: =IF($A72+G$63-1>TriangleSize,"",IF(ModelUsed=Inputs!$U$4,G712,G58-F58)) ->  | H72: =IF($A72+H$63-1>TriangleSize,"",IF(ModelUsed=Inputs!$U$4,H712,H58-G58)) ->  | I72: =IF($A72+I$63-1>TriangleSize,"",IF(ModelUsed=Inputs!$U$4,I712,I58-H58)) ->  | J72: =IF($A72+J$63-1>TriangleSize,"",IF(ModelUsed=Inputs!$U$4,J712,J58-I58)) ->  | K72: =IF($A72+K$63-1>TriangleSize,"",IF(ModelUsed=Inputs!$U$4,K712,K58-J58)) ->  | L72: =IF($A72+L$63-1>TriangleSize,"",IF(ModelUsed=Inputs!$U$4,L712,L58-K58)) ->  | AA72: 8 | AB72: 2013 | AC72: =IF($AA72+AC$63-1>TriangleSize,"",IF(ModelUsed=Inputs!$U$4,AC712,AC58)) -> 469647.521 | AD72: =IF($AA72+AD$63-1>TriangleSize,"",IF(ModelUsed=Inputs!$U$4,AD712,AD58-AC58)) -> 1169707.191 | AE72: =IF($AA72+AE$63-1>TriangleSize,"",IF(ModelUsed=Inputs!$U$4,AE712,AE58-AD58)) -> 1225143.288 | AF72: =IF($AA72+AF$63-1>TriangleSize,"",IF(ModelUsed=Inputs!$U$4,AF712,AF58-AE58)) ->  | AG72: =IF($AA72+AG$63-1>TriangleSize,"",IF(ModelUsed=Inputs!$U$4,AG712,AG58-AF58)) ->  | AH72: =IF($AA72+AH$63-1>TriangleSize,"",IF(ModelUsed=Inputs!$U$4,AH712,AH58-AG58)) ->  | AI72: =IF($AA72+AI$63-1>TriangleSize,"",IF(ModelUsed=Inputs!$U$4,AI712,AI58-AH58)) ->  | AJ72: =IF($AA72+AJ$63-1>TriangleSize,"",IF(ModelUsed=Inputs!$U$4,AJ712,AJ58-AI58)) ->  | AK72: =IF($AA72+AK$63-1>TriangleSize,"",IF(ModelUsed=Inputs!$U$4,AK712,AK58-AJ58)) ->  | AL72: =IF($AA72+AL$63-1>TriangleSize,"",IF(ModelUsed=Inputs!$U$4,AL712,AL58-AK58)) -> 
A73: 9 | B73: 2014 | C73: =IF($A73+C$63-1>TriangleSize,"",IF(ModelUsed=Inputs!$U$4,C713,C59)) -> 390560.7754 | D73: =IF($A73+D$63-1>TriangleSize,"",IF(ModelUsed=Inputs!$U$4,D713,D59-C59)) -> 972733.2246 | E73: =IF($A73+E$63-1>TriangleSize,"",IF(ModelUsed=Inputs!$U$4,E713,E59-D59)) ->  | F73: =IF($A73+F$63-1>TriangleSize,"",IF(ModelUsed=Inputs!$U$4,F713,F59-E59)) ->  | G73: =IF($A73+G$63-1>TriangleSize,"",IF(ModelUsed=Inputs!$U$4,G713,G59-F59)) ->  | H73: =IF($A73+H$63-1>TriangleSize,"",IF(ModelUsed=Inputs!$U$4,H713,H59-G59)) ->  | I73: =IF($A73+I$63-1>TriangleSize,"",IF(ModelUsed=Inputs!$U$4,I713,I59-H59)) ->  | J73: =IF($A73+J$63-1>TriangleSize,"",IF(ModelUsed=Inputs!$U$4,J713,J59-I59)) ->  | K73: =IF($A73+K$63-1>TriangleSize,"",IF(ModelUsed=Inputs!$U$4,K713,K59-J59)) ->  | L73: =IF($A73+L$63-1>TriangleSize,"",IF(ModelUsed=Inputs!$U$4,L713,L59-K59)) ->  | AA73: 9 | AB73: 2014 | AC73: =IF($AA73+AC$63-1>TriangleSize,"",IF(ModelUsed=Inputs!$U$4,AC713,AC59)) -> 390560.7754 | AD73: =IF($AA73+AD$63-1>TriangleSize,"",IF(ModelUsed=Inputs!$U$4,AD713,AD59-AC59)) -> 972733.2246 | AE73: =IF($AA73+AE$63-1>TriangleSize,"",IF(ModelUsed=Inputs!$U$4,AE713,AE59-AD59)) ->  | AF73: =IF($AA73+AF$63-1>TriangleSize,"",IF(ModelUsed=Inputs!$U$4,AF713,AF59-AE59)) ->  | AG73: =IF($AA73+AG$63-1>TriangleSize,"",IF(ModelUsed=Inputs!$U$4,AG713,AG59-AF59)) ->  | AH73: =IF($AA73+AH$63-1>TriangleSize,"",IF(ModelUsed=Inputs!$U$4,AH713,AH59-AG59)) ->  | AI73: =IF($AA73+AI$63-1>TriangleSize,"",IF(ModelUsed=Inputs!$U$4,AI713,AI59-AH59)) ->  | AJ73: =IF($AA73+AJ$63-1>TriangleSize,"",IF(ModelUsed=Inputs!$U$4,AJ713,AJ59-AI59)) ->  | AK73: =IF($AA73+AK$63-1>TriangleSize,"",IF(ModelUsed=Inputs!$U$4,AK713,AK59-AJ59)) ->  | AL73: =IF($AA73+AL$63-1>TriangleSize,"",IF(ModelUsed=Inputs!$U$4,AL713,AL59-AK59)) -> 
A74: 10 | B74: 2015 | C74: =IF($A74+C$63-1>TriangleSize,"",IF(ModelUsed=Inputs!$U$4,C714,C60)) -> 344014 | D74: =IF($A74+D$63-1>TriangleSize,"",IF(ModelUsed=Inputs!$U$4,D714,D60-C60)) ->  | E74: =IF($A74+E$63-1>TriangleSize,"",IF(ModelUsed=Inputs!$U$4,E714,E60-D60)) ->  | F74: =IF($A74+F$63-1>TriangleSize,"",IF(ModelUsed=Inputs!$U$4,F714,F60-E60)) ->  | G74: =IF($A74+G$63-1>TriangleSize,"",IF(ModelUsed=Inputs!$U$4,G714,G60-F60)) ->  | H74: =IF($A74+H$63-1>TriangleSize,"",IF(ModelUsed=Inputs!$U$4,H714,H60-G60)) ->  | I74: =IF($A74+I$63-1>TriangleSize,"",IF(ModelUsed=Inputs!$U$4,I714,I60-H60)) ->  | J74: =IF($A74+J$63-1>TriangleSize,"",IF(ModelUsed=Inputs!$U$4,J714,J60-I60)) ->  | K74: =IF($A74+K$63-1>TriangleSize,"",IF(ModelUsed=Inputs!$U$4,K714,K60-J60)) ->  | L74: =IF($A74+L$63-1>TriangleSize,"",IF(ModelUsed=Inputs!$U$4,L714,L60-K60)) ->  | AA74: 10 | AB74: 2015 | AC74: =IF($AA74+AC$63-1>TriangleSize,"",IF(ModelUsed=Inputs!$U$4,AC714,AC60)) -> 344014 | AD74: =IF($AA74+AD$63-1>TriangleSize,"",IF(ModelUsed=Inputs!$U$4,AD714,AD60-AC60)) ->  | AE74: =IF($AA74+AE$63-1>TriangleSize,"",IF(ModelUsed=Inputs!$U$4,AE714,AE60-AD60)) ->  | AF74: =IF($AA74+AF$63-1>TriangleSize,"",IF(ModelUsed=Inputs!$U$4,AF714,AF60-AE60)) ->  | AG74: =IF($AA74+AG$63-1>TriangleSize,"",IF(ModelUsed=Inputs!$U$4,AG714,AG60-AF60)) ->  | AH74: =IF($AA74+AH$63-1>TriangleSize,"",IF(ModelUsed=Inputs!$U$4,AH714,AH60-AG60)) ->  | AI74: =IF($AA74+AI$63-1>TriangleSize,"",IF(ModelUsed=Inputs!$U$4,AI714,AI60-AH60)) ->  | AJ74: =IF($AA74+AJ$63-1>TriangleSize,"",IF(ModelUsed=Inputs!$U$4,AJ714,AJ60-AI60)) ->  | AK74: =IF($AA74+AK$63-1>TriangleSize,"",IF(ModelUsed=Inputs!$U$4,AK714,AK60-AJ60)) ->  | AL74: =IF($AA74+AL$63-1>TriangleSize,"",IF(ModelUsed=Inputs!$U$4,AL714,AL60-AK60)) -> 
A76: =A62-1 -> -6 | B76: ="Unscaled Pearson Residuals (Paid"&IF(UseExpAdj="Yes",", Exposure Adjusted)",")") -> Unscaled Pearson Residuals (Paid) | AA76: =AA62-1 -> -6 | AB76: ="Unscaled Pearson Residuals (Incurred"&IF(UseExpAdj="Yes",", Exposure Adjusted)",")") -> Unscaled Pearson Residuals (Incurred)
C77: 1 | D77: 2 | E77: 3 | F77: 4 | G77: 5 | H77: 6 | I77: 7 | J77: 8 | K77: 9 | L77: 10 | AC77: 1 | AD77: 2 | AE77: 3 | AF77: 4 | AG77: 5 | AH77: 6 | AI77: 7 | AJ77: 8 | AK77: 9 | AL77: 10
B78: =B3 -> Year | C78: 12 | D78: 24 | E78: 36 | F78: 48 | G78: 60 | H78: 72 | I78: 84 | J78: 96 | K78: 108 | L78: 120 | AB78: =AB3 -> Year | AC78: 12 | AD78: 24 | AE78: 36 | AF78: 48 | AG78: 60 | AH78: 72 | AI78: 84 | AJ78: 96 | AK78: 108 | AL78: 120
A79: 1 | B79: =B4 -> 2006 | C79: =IF($A79+C$77-1>TriangleSize,"",IF(C65=0,0,ROUND((C18-C65)/SQRT(ABS(C65^kValue)),8))) -> 168.926149 | D79: 115.0098442 | E79: -111.9355467 | F79: -311.6305098 | G79: 170.2342709 | H79: 521.0362185 | I79: -235.5155947 | J79: -98.6386046 | K79: -86.90970328 | L79: 0 | AA79: 1 | AB79: =AB4 -> 2006 | AC79: =IF($AA79+AC$77-1>TriangleSize,"",IF(AC65=0,0,ROUND((AC18-AC65)/SQRT(ABS(AC65^kValue)),8))) -> 168.926149 | AD79: 115.0098442 | AE79: -111.9355467 | AF79: -311.6305098 | AG79: 170.2342709 | AH79: 521.0362185 | AI79: -235.5155947 | AJ79: -98.6386046 | AK79: -86.90970328 | AL79: 0 | AN79: =IF(OR(COUNTIF(AC79:AL79,">0")>0,COUNTIF(AC79:AL79,"<0")>0),1,0) -> 1
A80: 2 | B80: 2007 | C80: =IF($A80+C$77-1>TriangleSize,"",IF(C66=0,0,ROUND((C19-C66)/SQRT(ABS(C66^kValue)),8))) -> -39.14460379 | D80: -54.5095978 | E80: -47.73371771 | F80: 130.7598927 | G80: -177.7466603 | H80: -135.4744703 | I80: 252.0241482 | J80: 25.11397582 | K80: 73.64333254 | AA80: 2 | AB80: 2007 | AC80: =IF($AA80+AC$77-1>TriangleSize,"",IF(AC66=0,0,ROUND((AC19-AC66)/SQRT(ABS(AC66^kValue)),8))) -> -39.14460379 | AD80: -54.5095978 | AE80: -47.73371771 | AF80: 130.7598927 | AG80: -177.7466603 | AH80: -135.4744703 | AI80: 252.0241482 | AJ80: 25.11397582 | AK80: 73.64333254 | AN80: 1
A81: 3 | B81: 2008 | C81: =IF($A81+C$77-1>TriangleSize,"",IF(C67=0,0,ROUND((C20-C67)/SQRT(ABS(C67^kValue)),8))) -> -134.0877955 | D81: 77.34710799 | E81: -45.70677534 | F81: -21.6715064 | G81: 231.2699615 | H81: -403.7680691 | I81: 207.2125011 | J81: 58.76547846 | AA81: 3 | AB81: 2008 | AC81: =IF($AA81+AC$77-1>TriangleSize,"",IF(AC67=0,0,ROUND((AC20-AC67)/SQRT(ABS(AC67^kValue)),8))) -> -134.0877955 | AD81: 77.34710799 | AE81: -45.70677534 | AF81: -21.6715064 | AG81: 231.2699615 | AH81: -403.7680691 | AI81: 207.2125011 | AJ81: 58.76547846 | AN81: 1
A82: 4 | B82: 2009 | C82: =IF($A82+C$77-1>TriangleSize,"",IF(C68=0,0,ROUND((C21-C68)/SQRT(ABS(C68^kValue)),8))) -> -92.66521256 | D82: 203.9182135 | E82: -184.506594 | F82: 533.1592099 | G82: -390.8652126 | H82: -71.76918593 | I82: -261.9160717 | AA82: 4 | AB82: 2009 | AC82: =IF($AA82+AC$77-1>TriangleSize,"",IF(AC68=0,0,ROUND((AC21-AC68)/SQRT(ABS(AC68^kValue)),8))) -> -92.66521256 | AD82: 203.9182135 | AE82: -184.506594 | AF82: 533.1592099 | AG82: -390.8652126 | AH82: -71.76918593 | AI82: -261.9160717 | AN82: 1
A83: 5 | B83: 2010 | C83: =IF($A83+C$77-1>TriangleSize,"",IF(C69=0,0,ROUND((C22-C69)/SQRT(ABS(C69^kValue)),8))) -> 184.2942448 | D83: -157.7490972 | E83: 122.4930243 | F83: -174.1796095 | G83: -20.59081787 | H83: 176.1517719 | AA83: 5 | AB83: 2010 | AC83: =IF($AA83+AC$77-1>TriangleSize,"",IF(AC69=0,0,ROUND((AC22-AC69)/SQRT(ABS(AC69^kValue)),8))) -> 184.2942448 | AD83: -157.7490972 | AE83: 122.4930243 | AF83: -174.1796095 | AG83: -20.59081787 | AH83: 176.1517719 | AN83: 1
A84: 6 | B84: 2011 | C84: =IF($A84+C$77-1>TriangleSize,"",IF(C70=0,0,ROUND((C23-C70)/SQRT(ABS(C70^kValue)),8))) -> 71.1722218 | D84: 59.56395431 | E84: -78.52172676 | F84: -183.2055586 | G84: 215.3065583 | AA84: 6 | AB84: 2011 | AC84: =IF($AA84+AC$77-1>TriangleSize,"",IF(AC70=0,0,ROUND((AC23-AC70)/SQRT(ABS(AC70^kValue)),8))) -> 71.1722218 | AD84: 59.56395431 | AE84: -78.52172676 | AF84: -183.2055586 | AG84: 215.3065583 | AN84: 1
A85: 7 | B85: 2012 | C85: =IF($A85+C$77-1>TriangleSize,"",IF(C71=0,0,ROUND((C24-C71)/SQRT(ABS(C71^kValue)),8))) -> 78.26276302 | D85: -129.8652796 | E85: 108.0312739 | F85: -28.61677888 | AA85: 7 | AB85: 2012 | AC85: =IF($AA85+AC$77-1>TriangleSize,"",IF(AC71=0,0,ROUND((AC24-AC71)/SQRT(ABS(AC71^kValue)),8))) -> 78.26276302 | AD85: -129.8652796 | AE85: 108.0312739 | AF85: -28.61677888 | AN85: 1
A86: 8 | B86: 2013 | C86: =IF($A86+C$77-1>TriangleSize,"",IF(C72=0,0,ROUND((C25-C72)/SQRT(ABS(C72^kValue)),8))) -> -160.7561363 | D86: -99.91326047 | E86: 197.1580283 | AA86: 8 | AB86: 2013 | AC86: =IF($AA86+AC$77-1>TriangleSize,"",IF(AC72=0,0,ROUND((AC25-AC72)/SQRT(ABS(AC72^kValue)),8))) -> -160.7561363 | AD86: -99.91326047 | AE86: 197.1580283 | AN86: 1
A87: 9 | B87: 2014 | C87: =IF($A87+C$77-1>TriangleSize,"",IF(C73=0,0,ROUND((C26-C73)/SQRT(ABS(C73^kValue)),8))) -> -22.20146585 | D87: 14.06789399 | AA87: 9 | AB87: 2014 | AC87: =IF($AA87+AC$77-1>TriangleSize,"",IF(AC73=0,0,ROUND((AC26-AC73)/SQRT(ABS(AC73^kValue)),8))) -> -22.20146585 | AD87: 14.06789399 | AN87: 1
A88: 10 | B88: 2015 | C88: =IF($A88+C$77-1>TriangleSize,"",IF(C74=0,0,ROUND((C27-C74)/SQRT(ABS(C74^kValue)),8))) -> 0 | AA88: 10 | AB88: 2015 | AC88: =IF($AA88+AC$77-1>TriangleSize,"",IF(AC74=0,0,ROUND((AC27-AC74)/SQRT(ABS(AC74^kValue)),8))) -> 0 | AN88: =IF(Sample_Zeros="Yes",0,1) -> 0
B90: ="Unscaled Pearson Residuals, Excluding Outliers (Paid"&IF(UseExpAdj="Yes",", Exposure Adjusted)",")") -> Unscaled Pearson Residuals, Excluding Outliers (Paid) | AB90: ="Unscaled Pearson Residuals, Excluding Outliers (Incurred"&IF(UseExpAdj="Yes",", Exposure Adjusted)",")") -> Unscaled Pearson Residuals, Excluding Outliers (Incurred)
C91: 1 | D91: 2 | E91: 3 | F91: 4 | G91: 5 | H91: 6 | I91: 7 | J91: 8 | K91: 9 | L91: 10 | AC91: 1 | AD91: 2 | AE91: 3 | AF91: 4 | AG91: 5 | AH91: 6 | AI91: 7 | AJ91: 8 | AK91: 9 | AL91: 10
B92: =B3 -> Year | C92: =C3 -> 12 | D92: 24 | E92: 36 | F92: 48 | G92: 60 | H92: 72 | I92: 84 | J92: 96 | K92: 108 | L92: 120 | AB92: =AB3 -> Year | AC92: =AC3 -> 12 | AD92: 24 | AE92: 36 | AF92: 48 | AG92: 60 | AH92: 72 | AI92: 84 | AJ92: 96 | AK92: 108 | AL92: 120
A93: 1 | B93: =B4 -> 2006 | C93: =IF(C161=0,C79,0) -> 168.926149 | D93: 115.0098442 | E93: -111.9355467 | F93: -311.6305098 | G93: 170.2342709 | H93: 521.0362185 | I93: -235.5155947 | J93: -98.6386046 | K93: -86.90970328 | L93: 0 | AA93: 1 | AB93: =AB4 -> 2006 | AC93: =IF(AC161=0,AC79,0) -> 168.926149 | AD93: 115.0098442 | AE93: -111.9355467 | AF93: -311.6305098 | AG93: 170.2342709 | AH93: 521.0362185 | AI93: -235.5155947 | AJ93: -98.6386046 | AK93: -86.90970328 | AL93: 0
A94: 2 | B94: 2007 | C94: =IF(C162=0,C80,0) -> -39.14460379 | D94: -54.5095978 | E94: -47.73371771 | F94: 130.7598927 | G94: -177.7466603 | H94: -135.4744703 | I94: 252.0241482 | J94: 25.11397582 | K94: 73.64333254 | AA94: 2 | AB94: 2007 | AC94: =IF(AC162=0,AC80,0) -> -39.14460379 | AD94: -54.5095978 | AE94: -47.73371771 | AF94: 130.7598927 | AG94: -177.7466603 | AH94: -135.4744703 | AI94: 252.0241482 | AJ94: 25.11397582 | AK94: 73.64333254
A95: 3 | B95: 2008 | C95: =IF(C163=0,C81,0) -> -134.0877955 | D95: 77.34710799 | E95: -45.70677534 | F95: -21.6715064 | G95: 231.2699615 | H95: -403.7680691 | I95: 207.2125011 | J95: 58.76547846 | AA95: 3 | AB95: 2008 | AC95: =IF(AC163=0,AC81,0) -> -134.0877955 | AD95: 77.34710799 | AE95: -45.70677534 | AF95: -21.6715064 | AG95: 231.2699615 | AH95: -403.7680691 | AI95: 207.2125011 | AJ95: 58.76547846
A96: 4 | B96: 2009 | C96: =IF(C164=0,C82,0) -> -92.66521256 | D96: 203.9182135 | E96: -184.506594 | F96: 533.1592099 | G96: -390.8652126 | H96: -71.76918593 | I96: -261.9160717 | AA96: 4 | AB96: 2009 | AC96: =IF(AC164=0,AC82,0) -> -92.66521256 | AD96: 203.9182135 | AE96: -184.506594 | AF96: 533.1592099 | AG96: -390.8652126 | AH96: -71.76918593 | AI96: -261.9160717
A97: 5 | B97: 2010 | C97: =IF(C165=0,C83,0) -> 184.2942448 | D97: -157.7490972 | E97: 122.4930243 | F97: -174.1796095 | G97: -20.59081787 | H97: 176.1517719 | AA97: 5 | AB97: 2010 | AC97: =IF(AC165=0,AC83,0) -> 184.2942448 | AD97: -157.7490972 | AE97: 122.4930243 | AF97: -174.1796095 | AG97: -20.59081787 | AH97: 176.1517719
A98: 6 | B98: 2011 | C98: =IF(C166=0,C84,0) -> 71.1722218 | D98: =IF(D166=0,D84,0) -> 59.56395431 | E98: =IF(E166=0,E84,0) -> -78.52172676 | F98: =IF(F166=0,F84,0) -> -183.2055586 | G98: =IF(G166=0,G84,0) -> 215.3065583 | AA98: 6 | AB98: 2011 | AC98: =IF(AC166=0,AC84,0) -> 71.1722218 | AD98: =IF(AD166=0,AD84,0) -> 59.56395431 | AE98: =IF(AE166=0,AE84,0) -> -78.52172676 | AF98: =IF(AF166=0,AF84,0) -> -183.2055586 | AG98: =IF(AG166=0,AG84,0) -> 215.3065583
A99: 7 | B99: 2012 | C99: =IF(C167=0,C85,0) -> 78.26276302 | D99: =IF(D167=0,D85,0) -> -129.8652796 | E99: =IF(E167=0,E85,0) -> 108.0312739 | F99: =IF(F167=0,F85,0) -> -28.61677888 | AA99: 7 | AB99: 2012 | AC99: =IF(AC167=0,AC85,0) -> 78.26276302 | AD99: =IF(AD167=0,AD85,0) -> -129.8652796 | AE99: =IF(AE167=0,AE85,0) -> 108.0312739 | AF99: =IF(AF167=0,AF85,0) -> -28.61677888
A100: 8 | B100: 2013 | C100: =IF(C168=0,C86,0) -> -160.7561363 | D100: =IF(D168=0,D86,0) -> -99.91326047 | E100: =IF(E168=0,E86,0) -> 197.1580283 | AA100: 8 | AB100: 2013 | AC100: =IF(AC168=0,AC86,0) -> -160.7561363 | AD100: =IF(AD168=0,AD86,0) -> -99.91326047 | AE100: =IF(AE168=0,AE86,0) -> 197.1580283
A101: 9 | B101: 2014 | C101: =IF(C169=0,C87,0) -> -22.20146585 | D101: =IF(D169=0,D87,0) -> 14.06789399 | AA101: 9 | AB101: 2014 | AC101: =IF(AC169=0,AC87,0) -> -22.20146585 | AD101: =IF(AD169=0,AD87,0) -> 14.06789399
A102: 10 | B102: 2015 | C102: =IF(C170=0,C88,0) -> 0 | AA102: 10 | AB102: 2015 | AC102: =IF(AC170=0,AC88,0) -> 0
A106: =A76-1 -> -7 | B106: ="Hat Matrix Adjustment Factors (Paid"&IF(UseExpAdj="Yes",", Exposure Adjusted)",")") -> Hat Matrix Adjustment Factors (Paid) | AA106: =AA76-1 -> -7 | AB106: ="Hat Matrix Adjustment Factors (Incurred"&IF(UseExpAdj="Yes",", Exposure Adjusted)",")") -> Hat Matrix Adjustment Factors (Incurred)
C107: 0 | D107: =C107+MAX(Acc_Total-C119,0) -> 10 | E107: 19 | F107: 27 | G107: 34 | H107: 40 | I107: 45 | J107: 49 | K107: 52 | L107: 54 | AC107: 0 | AD107: =AC107+MAX(Acc_Total-AC119,0) -> 10 | AE107: 19 | AF107: 27 | AG107: 34 | AH107: 40 | AI107: 45 | AJ107: 49 | AK107: 52 | AL107: 54
B108: =B3 -> Year | C108: =C3 -> 12 | D108: 24 | E108: 36 | F108: 48 | G108: 60 | H108: 72 | I108: 84 | J108: 96 | K108: 108 | L108: 120 | AB108: =AB3 -> Year | AC108: =AC3 -> 12 | AD108: 24 | AE108: 36 | AF108: 48 | AG108: 60 | AH108: 72 | AI108: 84 | AJ108: 96 | AK108: 108 | AL108: 120
A109: 1 | B109: =B4 -> 2006 | C109: =IF($A109+C$91-1>TriangleSize,"",IF(HatMaritxFactor_Pd="No",1,VLOOKUP($A109+C$107,'Hat Matrix'!$A$7:$I$64,9))) -> 1.086907044 | D109: =IF($A109+D$91-1>TriangleSize,"",IF(HatMaritxFactor_Pd="No",1,VLOOKUP($A109+D$107,'Hat Matrix'!$A$7:$I$64,9))) -> 1.163563602 | E109: =IF($A109+E$91-1>TriangleSize,"",IF(HatMaritxFactor_Pd="No",1,VLOOKUP($A109+E$107,'Hat Matrix'!$A$7:$I$64,9))) -> 1.17254214 | F109: =IF($A109+F$91-1>TriangleSize,"",IF(HatMaritxFactor_Pd="No",1,VLOOKUP($A109+F$107,'Hat Matrix'!$A$7:$I$64,9))) -> 1.190730987 | G109: =IF($A109+G$91-1>TriangleSize,"",IF(HatMaritxFactor_Pd="No",1,VLOOKUP($A109+G$107,'Hat Matrix'!$A$7:$I$64,9))) -> 1.13897449 | H109: =IF($A109+H$91-1>TriangleSize,"",IF(HatMaritxFactor_Pd="No",1,VLOOKUP($A109+H$107,'Hat Matrix'!$A$7:$I$64,9))) -> 1.134832754 | I109: =IF($A109+I$91-1>TriangleSize,"",IF(HatMaritxFactor_Pd="No",1,VLOOKUP($A109+I$107,'Hat Matrix'!$A$7:$I$64,9))) -> 1.156853792 | J109: =IF($A109+J$91-1>TriangleSize,"",IF(HatMaritxFactor_Pd="No",1,VLOOKUP($A109+J$107,'Hat Matrix'!$A$7:$I$64,9))) -> 1.19574341 | K109: =IF($A109+K$91-1>TriangleSize,"",IF(HatMaritxFactor_Pd="No",1,VLOOKUP($A109+K$107,'Hat Matrix'!$A$7:$I$64,9))) -> 1.359975101 | L109: =IF($A109+L$91-1>TriangleSize,"",IF(HatMaritxFactor_Pd="No",1,VLOOKUP($A109+L$107,'Hat Matrix'!$A$7:$I$64,9))) -> 67108864 | AA109: 1 | AB109: =AB4 -> 2006 | AC109: =IF($AA109+AC$91-1>TriangleSize,"",IF(HatMatrixFactor_Inc="No",1,VLOOKUP($AA109+AC$107,'Hat Matrix'!$A$107:$I$161,9))) -> 1.086907044 | AD109: =IF($AA109+AD$91-1>TriangleSize,"",IF(HatMatrixFactor_Inc="No",1,VLOOKUP($AA109+AD$107,'Hat Matrix'!$A$107:$I$161,9))) -> 1.163563602 | AE109: =IF($AA109+AE$91-1>TriangleSize,"",IF(HatMatrixFactor_Inc="No",1,VLOOKUP($AA109+AE$107,'Hat Matrix'!$A$107:$I$161,9))) -> 1.17254214 | AF109: =IF($AA109+AF$91-1>TriangleSize,"",IF(HatMatrixFactor_Inc="No",1,VLOOKUP($AA109+AF$107,'Hat Matrix'!$A$107:$I$161,9))) -> 1.190730987 | AG109: =IF($AA109+AG$91-1>TriangleSize,"",IF(HatMatrixFactor_Inc="No",1,VLOOKUP($AA109+AG$107,'Hat Matrix'!$A$107:$I$161,9))) -> 1.13897449 | AH109: =IF($AA109+AH$91-1>TriangleSize,"",IF(HatMatrixFactor_Inc="No",1,VLOOKUP($AA109+AH$107,'Hat Matrix'!$A$107:$I$161,9))) -> 1.134832754 | AI109: =IF($AA109+AI$91-1>TriangleSize,"",IF(HatMatrixFactor_Inc="No",1,VLOOKUP($AA109+AI$107,'Hat Matrix'!$A$107:$I$161,9))) -> 1.156853792 | AJ109: =IF($AA109+AJ$91-1>TriangleSize,"",IF(HatMatrixFactor_Inc="No",1,VLOOKUP($AA109+AJ$107,'Hat Matrix'!$A$107:$I$161,9))) -> 1.19574341 | AK109: =IF($AA109+AK$91-1>TriangleSize,"",IF(HatMatrixFactor_Inc="No",1,VLOOKUP($AA109+AK$107,'Hat Matrix'!$A$107:$I$161,9))) -> 1.359975101 | AL109: =IF($AA109+AL$91-1>TriangleSize,"",IF(HatMatrixFactor_Inc="No",1,VLOOKUP($AA109+AL$107,'Hat Matrix'!$A$107:$I$161,9))) -> 67108864
A110: 2 | B110: 2007 | C110: =IF($A110+C$91-1>TriangleSize,"",IF(HatMaritxFactor_Pd="No",1,VLOOKUP($A110+C$107,'Hat Matrix'!$A$7:$I$64,9))) -> 1.108479815 | D110: =IF($A110+D$91-1>TriangleSize,"",IF(HatMaritxFactor_Pd="No",1,VLOOKUP($A110+D$107,'Hat Matrix'!$A$7:$I$64,9))) -> 1.191091179 | E110: =IF($A110+E$91-1>TriangleSize,"",IF(HatMaritxFactor_Pd="No",1,VLOOKUP($A110+E$107,'Hat Matrix'!$A$7:$I$64,9))) -> 1.201732593 | F110: =IF($A110+F$91-1>TriangleSize,"",IF(HatMaritxFactor_Pd="No",1,VLOOKUP($A110+F$107,'Hat Matrix'!$A$7:$I$64,9))) -> 1.224672073 | G110: =IF($A110+G$91-1>TriangleSize,"",IF(HatMaritxFactor_Pd="No",1,VLOOKUP($A110+G$107,'Hat Matrix'!$A$7:$I$64,9))) -> 1.175562892 | H110: =IF($A110+H$91-1>TriangleSize,"",IF(HatMaritxFactor_Pd="No",1,VLOOKUP($A110+H$107,'Hat Matrix'!$A$7:$I$64,9))) -> 1.179590252 | I110: =IF($A110+I$91-1>TriangleSize,"",IF(HatMaritxFactor_Pd="No",1,VLOOKUP($A110+I$107,'Hat Matrix'!$A$7:$I$64,9))) -> 1.216781015 | J110: =IF($A110+J$91-1>TriangleSize,"",IF(HatMaritxFactor_Pd="No",1,VLOOKUP($A110+J$107,'Hat Matrix'!$A$7:$I$64,9))) -> 1.291007023 | K110: =IF($A110+K$91-1>TriangleSize,"",IF(HatMaritxFactor_Pd="No",1,VLOOKUP($A110+K$107,'Hat Matrix'!$A$7:$I$64,9))) -> 1.604965832 | L110: =IF($A110+L$91-1>TriangleSize,"",IF(HatMaritxFactor_Pd="No",1,VLOOKUP($A110+L$107,'Hat Matrix'!$A$7:$I$64,9))) ->  | AA110: 2 | AB110: 2007 | AC110: =IF($AA110+AC$91-1>TriangleSize,"",IF(HatMatrixFactor_Inc="No",1,VLOOKUP($AA110+AC$107,'Hat Matrix'!$A$107:$I$161,9))) -> 1.108479815 | AD110: =IF($AA110+AD$91-1>TriangleSize,"",IF(HatMatrixFactor_Inc="No",1,VLOOKUP($AA110+AD$107,'Hat Matrix'!$A$107:$I$161,9))) -> 1.191091179 | AE110: =IF($AA110+AE$91-1>TriangleSize,"",IF(HatMatrixFactor_Inc="No",1,VLOOKUP($AA110+AE$107,'Hat Matrix'!$A$107:$I$161,9))) -> 1.201732593 | AF110: =IF($AA110+AF$91-1>TriangleSize,"",IF(HatMatrixFactor_Inc="No",1,VLOOKUP($AA110+AF$107,'Hat Matrix'!$A$107:$I$161,9))) -> 1.224672073 | AG110: =IF($AA110+AG$91-1>TriangleSize,"",IF(HatMatrixFactor_Inc="No",1,VLOOKUP($AA110+AG$107,'Hat Matrix'!$A$107:$I$161,9))) -> 1.175562892 | AH110: =IF($AA110+AH$91-1>TriangleSize,"",IF(HatMatrixFactor_Inc="No",1,VLOOKUP($AA110+AH$107,'Hat Matrix'!$A$107:$I$161,9))) -> 1.179590252 | AI110: =IF($AA110+AI$91-1>TriangleSize,"",IF(HatMatrixFactor_Inc="No",1,VLOOKUP($AA110+AI$107,'Hat Matrix'!$A$107:$I$161,9))) -> 1.216781015 | AJ110: =IF($AA110+AJ$91-1>TriangleSize,"",IF(HatMatrixFactor_Inc="No",1,VLOOKUP($AA110+AJ$107,'Hat Matrix'!$A$107:$I$161,9))) -> 1.291007023 | AK110: =IF($AA110+AK$91-1>TriangleSize,"",IF(HatMatrixFactor_Inc="No",1,VLOOKUP($AA110+AK$107,'Hat Matrix'!$A$107:$I$161,9))) -> 1.604965832 | AL110: =IF($AA110+AL$91-1>TriangleSize,"",IF(HatMatrixFactor_Inc="No",1,VLOOKUP($AA110+AL$107,'Hat Matrix'!$A$107:$I$161,9))) -> 
A111: 3 | B111: 2008 | C111: =IF($A111+C$91-1>TriangleSize,"",IF(HatMaritxFactor_Pd="No",1,VLOOKUP($A111+C$107,'Hat Matrix'!$A$7:$I$64,9))) -> 1.109241161 | D111: =IF($A111+D$91-1>TriangleSize,"",IF(HatMaritxFactor_Pd="No",1,VLOOKUP($A111+D$107,'Hat Matrix'!$A$7:$I$64,9))) -> 1.194897662 | E111: =IF($A111+E$91-1>TriangleSize,"",IF(HatMaritxFactor_Pd="No",1,VLOOKUP($A111+E$107,'Hat Matrix'!$A$7:$I$64,9))) -> 1.205842402 | F111: =IF($A111+F$91-1>TriangleSize,"",IF(HatMaritxFactor_Pd="No",1,VLOOKUP($A111+F$107,'Hat Matrix'!$A$7:$I$64,9))) -> 1.229285953 | G111: =IF($A111+G$91-1>TriangleSize,"",IF(HatMaritxFactor_Pd="No",1,VLOOKUP($A111+G$107,'Hat Matrix'!$A$7:$I$64,9))) -> 1.177060327 | H111: =IF($A111+H$91-1>TriangleSize,"",IF(HatMaritxFactor_Pd="No",1,VLOOKUP($A111+H$107,'Hat Matrix'!$A$7:$I$64,9))) -> 1.179922962 | I111: =IF($A111+I$91-1>TriangleSize,"",IF(HatMaritxFactor_Pd="No",1,VLOOKUP($A111+I$107,'Hat Matrix'!$A$7:$I$64,9))) -> 1.216510265 | J111: =IF($A111+J$91-1>TriangleSize,"",IF(HatMaritxFactor_Pd="No",1,VLOOKUP($A111+J$107,'Hat Matrix'!$A$7:$I$64,9))) -> 1.288838567 | K111: =IF($A111+K$91-1>TriangleSize,"",IF(HatMaritxFactor_Pd="No",1,VLOOKUP($A111+K$107,'Hat Matrix'!$A$7:$I$64,9))) ->  | L111: =IF($A111+L$91-1>TriangleSize,"",IF(HatMaritxFactor_Pd="No",1,VLOOKUP($A111+L$107,'Hat Matrix'!$A$7:$I$64,9))) ->  | AA111: 3 | AB111: 2008 | AC111: =IF($AA111+AC$91-1>TriangleSize,"",IF(HatMatrixFactor_Inc="No",1,VLOOKUP($AA111+AC$107,'Hat Matrix'!$A$107:$I$161,9))) -> 1.109241161 | AD111: =IF($AA111+AD$91-1>TriangleSize,"",IF(HatMatrixFactor_Inc="No",1,VLOOKUP($AA111+AD$107,'Hat Matrix'!$A$107:$I$161,9))) -> 1.194897662 | AE111: =IF($AA111+AE$91-1>TriangleSize,"",IF(HatMatrixFactor_Inc="No",1,VLOOKUP($AA111+AE$107,'Hat Matrix'!$A$107:$I$161,9))) -> 1.205842402 | AF111: =IF($AA111+AF$91-1>TriangleSize,"",IF(HatMatrixFactor_Inc="No",1,VLOOKUP($AA111+AF$107,'Hat Matrix'!$A$107:$I$161,9))) -> 1.229285953 | AG111: =IF($AA111+AG$91-1>TriangleSize,"",IF(HatMatrixFactor_Inc="No",1,VLOOKUP($AA111+AG$107,'Hat Matrix'!$A$107:$I$161,9))) -> 1.177060327 | AH111: =IF($AA111+AH$91-1>TriangleSize,"",IF(HatMatrixFactor_Inc="No",1,VLOOKUP($AA111+AH$107,'Hat Matrix'!$A$107:$I$161,9))) -> 1.179922962 | AI111: =IF($AA111+AI$91-1>TriangleSize,"",IF(HatMatrixFactor_Inc="No",1,VLOOKUP($AA111+AI$107,'Hat Matrix'!$A$107:$I$161,9))) -> 1.216510265 | AJ111: =IF($AA111+AJ$91-1>TriangleSize,"",IF(HatMatrixFactor_Inc="No",1,VLOOKUP($AA111+AJ$107,'Hat Matrix'!$A$107:$I$161,9))) -> 1.288838567 | AK111: =IF($AA111+AK$91-1>TriangleSize,"",IF(HatMatrixFactor_Inc="No",1,VLOOKUP($AA111+AK$107,'Hat Matrix'!$A$107:$I$161,9))) ->  | AL111: =IF($AA111+AL$91-1>TriangleSize,"",IF(HatMatrixFactor_Inc="No",1,VLOOKUP($AA111+AL$107,'Hat Matrix'!$A$107:$I$161,9))) -> 
A112: 4 | B112: 2009 | C112: =IF($A112+C$91-1>TriangleSize,"",IF(HatMaritxFactor_Pd="No",1,VLOOKUP($A112+C$107,'Hat Matrix'!$A$7:$I$64,9))) -> 1.109882086 | D112: =IF($A112+D$91-1>TriangleSize,"",IF(HatMaritxFactor_Pd="No",1,VLOOKUP($A112+D$107,'Hat Matrix'!$A$7:$I$64,9))) -> 1.199053408 | E112: =IF($A112+E$91-1>TriangleSize,"",IF(HatMaritxFactor_Pd="No",1,VLOOKUP($A112+E$107,'Hat Matrix'!$A$7:$I$64,9))) -> 1.210337946 | F112: =IF($A112+F$91-1>TriangleSize,"",IF(HatMaritxFactor_Pd="No",1,VLOOKUP($A112+F$107,'Hat Matrix'!$A$7:$I$64,9))) -> 1.23432226 | G112: =IF($A112+G$91-1>TriangleSize,"",IF(HatMaritxFactor_Pd="No",1,VLOOKUP($A112+G$107,'Hat Matrix'!$A$7:$I$64,9))) -> 1.17838211 | H112: =IF($A112+H$91-1>TriangleSize,"",IF(HatMaritxFactor_Pd="No",1,VLOOKUP($A112+H$107,'Hat Matrix'!$A$7:$I$64,9))) -> 1.179783694 | I112: =IF($A112+I$91-1>TriangleSize,"",IF(HatMaritxFactor_Pd="No",1,VLOOKUP($A112+I$107,'Hat Matrix'!$A$7:$I$64,9))) -> 1.215479346 | J112: =IF($A112+J$91-1>TriangleSize,"",IF(HatMaritxFactor_Pd="No",1,VLOOKUP($A112+J$107,'Hat Matrix'!$A$7:$I$64,9))) ->  | K112: =IF($A112+K$91-1>TriangleSize,"",IF(HatMaritxFactor_Pd="No",1,VLOOKUP($A112+K$107,'Hat Matrix'!$A$7:$I$64,9))) ->  | L112: =IF($A112+L$91-1>TriangleSize,"",IF(HatMaritxFactor_Pd="No",1,VLOOKUP($A112+L$107,'Hat Matrix'!$A$7:$I$64,9))) ->  | AA112: 4 | AB112: 2009 | AC112: =IF($AA112+AC$91-1>TriangleSize,"",IF(HatMatrixFactor_Inc="No",1,VLOOKUP($AA112+AC$107,'Hat Matrix'!$A$107:$I$161,9))) -> 1.109882086 | AD112: =IF($AA112+AD$91-1>TriangleSize,"",IF(HatMatrixFactor_Inc="No",1,VLOOKUP($AA112+AD$107,'Hat Matrix'!$A$107:$I$161,9))) -> 1.199053408 | AE112: =IF($AA112+AE$91-1>TriangleSize,"",IF(HatMatrixFactor_Inc="No",1,VLOOKUP($AA112+AE$107,'Hat Matrix'!$A$107:$I$161,9))) -> 1.210337946 | AF112: =IF($AA112+AF$91-1>TriangleSize,"",IF(HatMatrixFactor_Inc="No",1,VLOOKUP($AA112+AF$107,'Hat Matrix'!$A$107:$I$161,9))) -> 1.23432226 | AG112: =IF($AA112+AG$91-1>TriangleSize,"",IF(HatMatrixFactor_Inc="No",1,VLOOKUP($AA112+AG$107,'Hat Matrix'!$A$107:$I$161,9))) -> 1.17838211 | AH112: =IF($AA112+AH$91-1>TriangleSize,"",IF(HatMatrixFactor_Inc="No",1,VLOOKUP($AA112+AH$107,'Hat Matrix'!$A$107:$I$161,9))) -> 1.179783694 | AI112: =IF($AA112+AI$91-1>TriangleSize,"",IF(HatMatrixFactor_Inc="No",1,VLOOKUP($AA112+AI$107,'Hat Matrix'!$A$107:$I$161,9))) -> 1.215479346 | AJ112: =IF($AA112+AJ$91-1>TriangleSize,"",IF(HatMatrixFactor_Inc="No",1,VLOOKUP($AA112+AJ$107,'Hat Matrix'!$A$107:$I$161,9))) ->  | AK112: =IF($AA112+AK$91-1>TriangleSize,"",IF(HatMatrixFactor_Inc="No",1,VLOOKUP($AA112+AK$107,'Hat Matrix'!$A$107:$I$161,9))) ->  | AL112: =IF($AA112+AL$91-1>TriangleSize,"",IF(HatMatrixFactor_Inc="No",1,VLOOKUP($AA112+AL$107,'Hat Matrix'!$A$107:$I$161,9))) -> 
A113: 5 | B113: 2010 | C113: =IF($A113+C$91-1>TriangleSize,"",IF(HatMaritxFactor_Pd="No",1,VLOOKUP($A113+C$107,'Hat Matrix'!$A$7:$I$64,9))) -> 1.107316965 | D113: =IF($A113+D$91-1>TriangleSize,"",IF(HatMaritxFactor_Pd="No",1,VLOOKUP($A113+D$107,'Hat Matrix'!$A$7:$I$64,9))) -> 1.202739621 | E113: =IF($A113+E$91-1>TriangleSize,"",IF(HatMaritxFactor_Pd="No",1,VLOOKUP($A113+E$107,'Hat Matrix'!$A$7:$I$64,9))) -> 1.214423089 | F113: =IF($A113+F$91-1>TriangleSize,"",IF(HatMaritxFactor_Pd="No",1,VLOOKUP($A113+F$107,'Hat Matrix'!$A$7:$I$64,9))) -> 1.238625661 | G113: =IF($A113+G$91-1>TriangleSize,"",IF(HatMaritxFactor_Pd="No",1,VLOOKUP($A113+G$107,'Hat Matrix'!$A$7:$I$64,9))) -> 1.174389163 | H113: =IF($A113+H$91-1>TriangleSize,"",IF(HatMaritxFactor_Pd="No",1,VLOOKUP($A113+H$107,'Hat Matrix'!$A$7:$I$64,9))) -> 1.171235953 | I113: =IF($A113+I$91-1>TriangleSize,"",IF(HatMaritxFactor_Pd="No",1,VLOOKUP($A113+I$107,'Hat Matrix'!$A$7:$I$64,9))) ->  | J113: =IF($A113+J$91-1>TriangleSize,"",IF(HatMaritxFactor_Pd="No",1,VLOOKUP($A113+J$107,'Hat Matrix'!$A$7:$I$64,9))) ->  | K113: =IF($A113+K$91-1>TriangleSize,"",IF(HatMaritxFactor_Pd="No",1,VLOOKUP($A113+K$107,'Hat Matrix'!$A$7:$I$64,9))) ->  | L113: =IF($A113+L$91-1>TriangleSize,"",IF(HatMaritxFactor_Pd="No",1,VLOOKUP($A113+L$107,'Hat Matrix'!$A$7:$I$64,9))) ->  | AA113: 5 | AB113: 2010 | AC113: =IF($AA113+AC$91-1>TriangleSize,"",IF(HatMatrixFactor_Inc="No",1,VLOOKUP($AA113+AC$107,'Hat Matrix'!$A$107:$I$161,9))) -> 1.107316965 | AD113: =IF($AA113+AD$91-1>TriangleSize,"",IF(HatMatrixFactor_Inc="No",1,VLOOKUP($AA113+AD$107,'Hat Matrix'!$A$107:$I$161,9))) -> 1.202739621 | AE113: =IF($AA113+AE$91-1>TriangleSize,"",IF(HatMatrixFactor_Inc="No",1,VLOOKUP($AA113+AE$107,'Hat Matrix'!$A$107:$I$161,9))) -> 1.214423089 | AF113: =IF($AA113+AF$91-1>TriangleSize,"",IF(HatMatrixFactor_Inc="No",1,VLOOKUP($AA113+AF$107,'Hat Matrix'!$A$107:$I$161,9))) -> 1.238625661 | AG113: =IF($AA113+AG$91-1>TriangleSize,"",IF(HatMatrixFactor_Inc="No",1,VLOOKUP($AA113+AG$107,'Hat Matrix'!$A$107:$I$161,9))) -> 1.174389163 | AH113: =IF($AA113+AH$91-1>TriangleSize,"",IF(HatMatrixFactor_Inc="No",1,VLOOKUP($AA113+AH$107,'Hat Matrix'!$A$107:$I$161,9))) -> 1.171235953 | AI113: =IF($AA113+AI$91-1>TriangleSize,"",IF(HatMatrixFactor_Inc="No",1,VLOOKUP($AA113+AI$107,'Hat Matrix'!$A$107:$I$161,9))) ->  | AJ113: =IF($AA113+AJ$91-1>TriangleSize,"",IF(HatMatrixFactor_Inc="No",1,VLOOKUP($AA113+AJ$107,'Hat Matrix'!$A$107:$I$161,9))) ->  | AK113: =IF($AA113+AK$91-1>TriangleSize,"",IF(HatMatrixFactor_Inc="No",1,VLOOKUP($AA113+AK$107,'Hat Matrix'!$A$107:$I$161,9))) ->  | AL113: =IF($AA113+AL$91-1>TriangleSize,"",IF(HatMatrixFactor_Inc="No",1,VLOOKUP($AA113+AL$107,'Hat Matrix'!$A$107:$I$161,9))) -> 
A114: 6 | B114: 2011 | C114: =IF($A114+C$91-1>TriangleSize,"",IF(HatMaritxFactor_Pd="No",1,VLOOKUP($A114+C$107,'Hat Matrix'!$A$7:$I$64,9))) -> 1.115724281 | D114: =IF($A114+D$91-1>TriangleSize,"",IF(HatMaritxFactor_Pd="No",1,VLOOKUP($A114+D$107,'Hat Matrix'!$A$7:$I$64,9))) -> 1.22294329 | E114: =IF($A114+E$91-1>TriangleSize,"",IF(HatMaritxFactor_Pd="No",1,VLOOKUP($A114+E$107,'Hat Matrix'!$A$7:$I$64,9))) -> 1.236175924 | F114: =IF($A114+F$91-1>TriangleSize,"",IF(HatMaritxFactor_Pd="No",1,VLOOKUP($A114+F$107,'Hat Matrix'!$A$7:$I$64,9))) -> 1.263587206 | G114: =IF($A114+G$91-1>TriangleSize,"",IF(HatMaritxFactor_Pd="No",1,VLOOKUP($A114+G$107,'Hat Matrix'!$A$7:$I$64,9))) -> 1.189577814 | H114: =IF($A114+H$91-1>TriangleSize,"",IF(HatMaritxFactor_Pd="No",1,VLOOKUP($A114+H$107,'Hat Matrix'!$A$7:$I$64,9))) ->  | I114: =IF($A114+I$91-1>TriangleSize,"",IF(HatMaritxFactor_Pd="No",1,VLOOKUP($A114+I$107,'Hat Matrix'!$A$7:$I$64,9))) ->  | J114: =IF($A114+J$91-1>TriangleSize,"",IF(HatMaritxFactor_Pd="No",1,VLOOKUP($A114+J$107,'Hat Matrix'!$A$7:$I$64,9))) ->  | K114: =IF($A114+K$91-1>TriangleSize,"",IF(HatMaritxFactor_Pd="No",1,VLOOKUP($A114+K$107,'Hat Matrix'!$A$7:$I$64,9))) ->  | L114: =IF($A114+L$91-1>TriangleSize,"",IF(HatMaritxFactor_Pd="No",1,VLOOKUP($A114+L$107,'Hat Matrix'!$A$7:$I$64,9))) ->  | AA114: 6 | AB114: 2011 | AC114: =IF($AA114+AC$91-1>TriangleSize,"",IF(HatMatrixFactor_Inc="No",1,VLOOKUP($AA114+AC$107,'Hat Matrix'!$A$107:$I$161,9))) -> 1.115724281 | AD114: =IF($AA114+AD$91-1>TriangleSize,"",IF(HatMatrixFactor_Inc="No",1,VLOOKUP($AA114+AD$107,'Hat Matrix'!$A$107:$I$161,9))) -> 1.22294329 | AE114: =IF($AA114+AE$91-1>TriangleSize,"",IF(HatMatrixFactor_Inc="No",1,VLOOKUP($AA114+AE$107,'Hat Matrix'!$A$107:$I$161,9))) -> 1.236175924 | AF114: =IF($AA114+AF$91-1>TriangleSize,"",IF(HatMatrixFactor_Inc="No",1,VLOOKUP($AA114+AF$107,'Hat Matrix'!$A$107:$I$161,9))) -> 1.263587206 | AG114: =IF($AA114+AG$91-1>TriangleSize,"",IF(HatMatrixFactor_Inc="No",1,VLOOKUP($AA114+AG$107,'Hat Matrix'!$A$107:$I$161,9))) -> 1.189577814 | AH114: =IF($AA114+AH$91-1>TriangleSize,"",IF(HatMatrixFactor_Inc="No",1,VLOOKUP($AA114+AH$107,'Hat Matrix'!$A$107:$I$161,9))) ->  | AI114: =IF($AA114+AI$91-1>TriangleSize,"",IF(HatMatrixFactor_Inc="No",1,VLOOKUP($AA114+AI$107,'Hat Matrix'!$A$107:$I$161,9))) ->  | AJ114: =IF($AA114+AJ$91-1>TriangleSize,"",IF(HatMatrixFactor_Inc="No",1,VLOOKUP($AA114+AJ$107,'Hat Matrix'!$A$107:$I$161,9))) ->  | AK114: =IF($AA114+AK$91-1>TriangleSize,"",IF(HatMatrixFactor_Inc="No",1,VLOOKUP($AA114+AK$107,'Hat Matrix'!$A$107:$I$161,9))) ->  | AL114: =IF($AA114+AL$91-1>TriangleSize,"",IF(HatMatrixFactor_Inc="No",1,VLOOKUP($AA114+AL$107,'Hat Matrix'!$A$107:$I$161,9))) -> 
A115: 7 | B115: 2012 | C115: =IF($A115+C$91-1>TriangleSize,"",IF(HatMaritxFactor_Pd="No",1,VLOOKUP($A115+C$107,'Hat Matrix'!$A$7:$I$64,9))) -> 1.133035475 | D115: =IF($A115+D$91-1>TriangleSize,"",IF(HatMaritxFactor_Pd="No",1,VLOOKUP($A115+D$107,'Hat Matrix'!$A$7:$I$64,9))) -> 1.264905873 | E115: =IF($A115+E$91-1>TriangleSize,"",IF(HatMaritxFactor_Pd="No",1,VLOOKUP($A115+E$107,'Hat Matrix'!$A$7:$I$64,9))) -> 1.28156998 | F115: =IF($A115+F$91-1>TriangleSize,"",IF(HatMaritxFactor_Pd="No",1,VLOOKUP($A115+F$107,'Hat Matrix'!$A$7:$I$64,9))) -> 1.316277766 | G115: =IF($A115+G$91-1>TriangleSize,"",IF(HatMaritxFactor_Pd="No",1,VLOOKUP($A115+G$107,'Hat Matrix'!$A$7:$I$64,9))) ->  | H115: =IF($A115+H$91-1>TriangleSize,"",IF(HatMaritxFactor_Pd="No",1,VLOOKUP($A115+H$107,'Hat Matrix'!$A$7:$I$64,9))) ->  | I115: =IF($A115+I$91-1>TriangleSize,"",IF(HatMaritxFactor_Pd="No",1,VLOOKUP($A115+I$107,'Hat Matrix'!$A$7:$I$64,9))) ->  | J115: =IF($A115+J$91-1>TriangleSize,"",IF(HatMaritxFactor_Pd="No",1,VLOOKUP($A115+J$107,'Hat Matrix'!$A$7:$I$64,9))) ->  | K115: =IF($A115+K$91-1>TriangleSize,"",IF(HatMaritxFactor_Pd="No",1,VLOOKUP($A115+K$107,'Hat Matrix'!$A$7:$I$64,9))) ->  | L115: =IF($A115+L$91-1>TriangleSize,"",IF(HatMaritxFactor_Pd="No",1,VLOOKUP($A115+L$107,'Hat Matrix'!$A$7:$I$64,9))) ->  | AA115: 7 | AB115: 2012 | AC115: =IF($AA115+AC$91-1>TriangleSize,"",IF(HatMatrixFactor_Inc="No",1,VLOOKUP($AA115+AC$107,'Hat Matrix'!$A$107:$I$161,9))) -> 1.133035475 | AD115: =IF($AA115+AD$91-1>TriangleSize,"",IF(HatMatrixFactor_Inc="No",1,VLOOKUP($AA115+AD$107,'Hat Matrix'!$A$107:$I$161,9))) -> 1.264905873 | AE115: =IF($AA115+AE$91-1>TriangleSize,"",IF(HatMatrixFactor_Inc="No",1,VLOOKUP($AA115+AE$107,'Hat Matrix'!$A$107:$I$161,9))) -> 1.28156998 | AF115: =IF($AA115+AF$91-1>TriangleSize,"",IF(HatMatrixFactor_Inc="No",1,VLOOKUP($AA115+AF$107,'Hat Matrix'!$A$107:$I$161,9))) -> 1.316277766 | AG115: =IF($AA115+AG$91-1>TriangleSize,"",IF(HatMatrixFactor_Inc="No",1,VLOOKUP($AA115+AG$107,'Hat Matrix'!$A$107:$I$161,9))) ->  | AH115: =IF($AA115+AH$91-1>TriangleSize,"",IF(HatMatrixFactor_Inc="No",1,VLOOKUP($AA115+AH$107,'Hat Matrix'!$A$107:$I$161,9))) ->  | AI115: =IF($AA115+AI$91-1>TriangleSize,"",IF(HatMatrixFactor_Inc="No",1,VLOOKUP($AA115+AI$107,'Hat Matrix'!$A$107:$I$161,9))) ->  | AJ115: =IF($AA115+AJ$91-1>TriangleSize,"",IF(HatMatrixFactor_Inc="No",1,VLOOKUP($AA115+AJ$107,'Hat Matrix'!$A$107:$I$161,9))) ->  | AK115: =IF($AA115+AK$91-1>TriangleSize,"",IF(HatMatrixFactor_Inc="No",1,VLOOKUP($AA115+AK$107,'Hat Matrix'!$A$107:$I$161,9))) ->  | AL115: =IF($AA115+AL$91-1>TriangleSize,"",IF(HatMatrixFactor_Inc="No",1,VLOOKUP($AA115+AL$107,'Hat Matrix'!$A$107:$I$161,9))) -> 
A116: 8 | B116: 2013 | C116: =IF($A116+C$91-1>TriangleSize,"",IF(HatMaritxFactor_Pd="No",1,VLOOKUP($A116+C$107,'Hat Matrix'!$A$7:$I$64,9))) -> 1.182012952 | D116: =IF($A116+D$91-1>TriangleSize,"",IF(HatMaritxFactor_Pd="No",1,VLOOKUP($A116+D$107,'Hat Matrix'!$A$7:$I$64,9))) -> 1.410809993 | E116: =IF($A116+E$91-1>TriangleSize,"",IF(HatMaritxFactor_Pd="No",1,VLOOKUP($A116+E$107,'Hat Matrix'!$A$7:$I$64,9))) -> 1.442204483 | F116: =IF($A116+F$91-1>TriangleSize,"",IF(HatMaritxFactor_Pd="No",1,VLOOKUP($A116+F$107,'Hat Matrix'!$A$7:$I$64,9))) ->  | G116: =IF($A116+G$91-1>TriangleSize,"",IF(HatMaritxFactor_Pd="No",1,VLOOKUP($A116+G$107,'Hat Matrix'!$A$7:$I$64,9))) ->  | H116: =IF($A116+H$91-1>TriangleSize,"",IF(HatMaritxFactor_Pd="No",1,VLOOKUP($A116+H$107,'Hat Matrix'!$A$7:$I$64,9))) ->  | I116: =IF($A116+I$91-1>TriangleSize,"",IF(HatMaritxFactor_Pd="No",1,VLOOKUP($A116+I$107,'Hat Matrix'!$A$7:$I$64,9))) ->  | J116: =IF($A116+J$91-1>TriangleSize,"",IF(HatMaritxFactor_Pd="No",1,VLOOKUP($A116+J$107,'Hat Matrix'!$A$7:$I$64,9))) ->  | K116: =IF($A116+K$91-1>TriangleSize,"",IF(HatMaritxFactor_Pd="No",1,VLOOKUP($A116+K$107,'Hat Matrix'!$A$7:$I$64,9))) ->  | L116: =IF($A116+L$91-1>TriangleSize,"",IF(HatMaritxFactor_Pd="No",1,VLOOKUP($A116+L$107,'Hat Matrix'!$A$7:$I$64,9))) ->  | AA116: 8 | AB116: 2013 | AC116: =IF($AA116+AC$91-1>TriangleSize,"",IF(HatMatrixFactor_Inc="No",1,VLOOKUP($AA116+AC$107,'Hat Matrix'!$A$107:$I$161,9))) -> 1.182012952 | AD116: =IF($AA116+AD$91-1>TriangleSize,"",IF(HatMatrixFactor_Inc="No",1,VLOOKUP($AA116+AD$107,'Hat Matrix'!$A$107:$I$161,9))) -> 1.410809993 | AE116: =IF($AA116+AE$91-1>TriangleSize,"",IF(HatMatrixFactor_Inc="No",1,VLOOKUP($AA116+AE$107,'Hat Matrix'!$A$107:$I$161,9))) -> 1.442204483 | AF116: =IF($AA116+AF$91-1>TriangleSize,"",IF(HatMatrixFactor_Inc="No",1,VLOOKUP($AA116+AF$107,'Hat Matrix'!$A$107:$I$161,9))) ->  | AG116: =IF($AA116+AG$91-1>TriangleSize,"",IF(HatMatrixFactor_Inc="No",1,VLOOKUP($AA116+AG$107,'Hat Matrix'!$A$107:$I$161,9))) ->  | AH116: =IF($AA116+AH$91-1>TriangleSize,"",IF(HatMatrixFactor_Inc="No",1,VLOOKUP($AA116+AH$107,'Hat Matrix'!$A$107:$I$161,9))) ->  | AI116: =IF($AA116+AI$91-1>TriangleSize,"",IF(HatMatrixFactor_Inc="No",1,VLOOKUP($AA116+AI$107,'Hat Matrix'!$A$107:$I$161,9))) ->  | AJ116: =IF($AA116+AJ$91-1>TriangleSize,"",IF(HatMatrixFactor_Inc="No",1,VLOOKUP($AA116+AJ$107,'Hat Matrix'!$A$107:$I$161,9))) ->  | AK116: =IF($AA116+AK$91-1>TriangleSize,"",IF(HatMatrixFactor_Inc="No",1,VLOOKUP($AA116+AK$107,'Hat Matrix'!$A$107:$I$161,9))) ->  | AL116: =IF($AA116+AL$91-1>TriangleSize,"",IF(HatMatrixFactor_Inc="No",1,VLOOKUP($AA116+AL$107,'Hat Matrix'!$A$107:$I$161,9))) -> 
A117: 9 | B117: 2014 | C117: =IF($A117+C$91-1>TriangleSize,"",IF(HatMaritxFactor_Pd="No",1,VLOOKUP($A117+C$107,'Hat Matrix'!$A$7:$I$64,9))) -> 1.260116095 | D117: =IF($A117+D$91-1>TriangleSize,"",IF(HatMaritxFactor_Pd="No",1,VLOOKUP($A117+D$107,'Hat Matrix'!$A$7:$I$64,9))) -> 1.988671827 | E117: =IF($A117+E$91-1>TriangleSize,"",IF(HatMaritxFactor_Pd="No",1,VLOOKUP($A117+E$107,'Hat Matrix'!$A$7:$I$64,9))) ->  | F117: =IF($A117+F$91-1>TriangleSize,"",IF(HatMaritxFactor_Pd="No",1,VLOOKUP($A117+F$107,'Hat Matrix'!$A$7:$I$64,9))) ->  | G117: =IF($A117+G$91-1>TriangleSize,"",IF(HatMaritxFactor_Pd="No",1,VLOOKUP($A117+G$107,'Hat Matrix'!$A$7:$I$64,9))) ->  | H117: =IF($A117+H$91-1>TriangleSize,"",IF(HatMaritxFactor_Pd="No",1,VLOOKUP($A117+H$107,'Hat Matrix'!$A$7:$I$64,9))) ->  | I117: =IF($A117+I$91-1>TriangleSize,"",IF(HatMaritxFactor_Pd="No",1,VLOOKUP($A117+I$107,'Hat Matrix'!$A$7:$I$64,9))) ->  | J117: =IF($A117+J$91-1>TriangleSize,"",IF(HatMaritxFactor_Pd="No",1,VLOOKUP($A117+J$107,'Hat Matrix'!$A$7:$I$64,9))) ->  | K117: =IF($A117+K$91-1>TriangleSize,"",IF(HatMaritxFactor_Pd="No",1,VLOOKUP($A117+K$107,'Hat Matrix'!$A$7:$I$64,9))) ->  | L117: =IF($A117+L$91-1>TriangleSize,"",IF(HatMaritxFactor_Pd="No",1,VLOOKUP($A117+L$107,'Hat Matrix'!$A$7:$I$64,9))) ->  | AA117: 9 | AB117: 2014 | AC117: =IF($AA117+AC$91-1>TriangleSize,"",IF(HatMatrixFactor_Inc="No",1,VLOOKUP($AA117+AC$107,'Hat Matrix'!$A$107:$I$161,9))) -> 1.260116095 | AD117: =IF($AA117+AD$91-1>TriangleSize,"",IF(HatMatrixFactor_Inc="No",1,VLOOKUP($AA117+AD$107,'Hat Matrix'!$A$107:$I$161,9))) -> 1.988671827 | AE117: =IF($AA117+AE$91-1>TriangleSize,"",IF(HatMatrixFactor_Inc="No",1,VLOOKUP($AA117+AE$107,'Hat Matrix'!$A$107:$I$161,9))) ->  | AF117: =IF($AA117+AF$91-1>TriangleSize,"",IF(HatMatrixFactor_Inc="No",1,VLOOKUP($AA117+AF$107,'Hat Matrix'!$A$107:$I$161,9))) ->  | AG117: =IF($AA117+AG$91-1>TriangleSize,"",IF(HatMatrixFactor_Inc="No",1,VLOOKUP($AA117+AG$107,'Hat Matrix'!$A$107:$I$161,9))) ->  | AH117: =IF($AA117+AH$91-1>TriangleSize,"",IF(HatMatrixFactor_Inc="No",1,VLOOKUP($AA117+AH$107,'Hat Matrix'!$A$107:$I$161,9))) ->  | AI117: =IF($AA117+AI$91-1>TriangleSize,"",IF(HatMatrixFactor_Inc="No",1,VLOOKUP($AA117+AI$107,'Hat Matrix'!$A$107:$I$161,9))) ->  | AJ117: =IF($AA117+AJ$91-1>TriangleSize,"",IF(HatMatrixFactor_Inc="No",1,VLOOKUP($AA117+AJ$107,'Hat Matrix'!$A$107:$I$161,9))) ->  | AK117: =IF($AA117+AK$91-1>TriangleSize,"",IF(HatMatrixFactor_Inc="No",1,VLOOKUP($AA117+AK$107,'Hat Matrix'!$A$107:$I$161,9))) ->  | AL117: =IF($AA117+AL$91-1>TriangleSize,"",IF(HatMatrixFactor_Inc="No",1,VLOOKUP($AA117+AL$107,'Hat Matrix'!$A$107:$I$161,9))) -> 
A118: 10 | B118: 2015 | C118: =IF($A118+C$91-1>TriangleSize,"",IF(HatMaritxFactor_Pd="No",1,VLOOKUP($A118+C$107,'Hat Matrix'!$A$7:$I$64,9))) -> 0 | D118: =IF($A118+D$91-1>TriangleSize,"",IF(HatMaritxFactor_Pd="No",1,VLOOKUP($A118+D$107,'Hat Matrix'!$A$7:$I$64,9))) ->  | E118: =IF($A118+E$91-1>TriangleSize,"",IF(HatMaritxFactor_Pd="No",1,VLOOKUP($A118+E$107,'Hat Matrix'!$A$7:$I$64,9))) ->  | F118: =IF($A118+F$91-1>TriangleSize,"",IF(HatMaritxFactor_Pd="No",1,VLOOKUP($A118+F$107,'Hat Matrix'!$A$7:$I$64,9))) ->  | G118: =IF($A118+G$91-1>TriangleSize,"",IF(HatMaritxFactor_Pd="No",1,VLOOKUP($A118+G$107,'Hat Matrix'!$A$7:$I$64,9))) ->  | H118: =IF($A118+H$91-1>TriangleSize,"",IF(HatMaritxFactor_Pd="No",1,VLOOKUP($A118+H$107,'Hat Matrix'!$A$7:$I$64,9))) ->  | I118: =IF($A118+I$91-1>TriangleSize,"",IF(HatMaritxFactor_Pd="No",1,VLOOKUP($A118+I$107,'Hat Matrix'!$A$7:$I$64,9))) ->  | J118: =IF($A118+J$91-1>TriangleSize,"",IF(HatMaritxFactor_Pd="No",1,VLOOKUP($A118+J$107,'Hat Matrix'!$A$7:$I$64,9))) ->  | K118: =IF($A118+K$91-1>TriangleSize,"",IF(HatMaritxFactor_Pd="No",1,VLOOKUP($A118+K$107,'Hat Matrix'!$A$7:$I$64,9))) ->  | L118: =IF($A118+L$91-1>TriangleSize,"",IF(HatMaritxFactor_Pd="No",1,VLOOKUP($A118+L$107,'Hat Matrix'!$A$7:$I$64,9))) ->  | AA118: 10 | AB118: 2015 | AC118: =IF($AA118+AC$91-1>TriangleSize,"",IF(HatMatrixFactor_Inc="No",1,VLOOKUP($AA118+AC$107,'Hat Matrix'!$A$107:$I$161,9))) -> 0 | AD118: =IF($AA118+AD$91-1>TriangleSize,"",IF(HatMatrixFactor_Inc="No",1,VLOOKUP($AA118+AD$107,'Hat Matrix'!$A$107:$I$161,9))) ->  | AE118: =IF($AA118+AE$91-1>TriangleSize,"",IF(HatMatrixFactor_Inc="No",1,VLOOKUP($AA118+AE$107,'Hat Matrix'!$A$107:$I$161,9))) ->  | AF118: =IF($AA118+AF$91-1>TriangleSize,"",IF(HatMatrixFactor_Inc="No",1,VLOOKUP($AA118+AF$107,'Hat Matrix'!$A$107:$I$161,9))) ->  | AG118: =IF($AA118+AG$91-1>TriangleSize,"",IF(HatMatrixFactor_Inc="No",1,VLOOKUP($AA118+AG$107,'Hat Matrix'!$A$107:$I$161,9))) ->  | AH118: =IF($AA118+AH$91-1>TriangleSize,"",IF(HatMatrixFactor_Inc="No",1,VLOOKUP($AA118+AH$107,'Hat Matrix'!$A$107:$I$161,9))) ->  | AI118: =IF($AA118+AI$91-1>TriangleSize,"",IF(HatMatrixFactor_Inc="No",1,VLOOKUP($AA118+AI$107,'Hat Matrix'!$A$107:$I$161,9))) ->  | AJ118: =IF($AA118+AJ$91-1>TriangleSize,"",IF(HatMatrixFactor_Inc="No",1,VLOOKUP($AA118+AJ$107,'Hat Matrix'!$A$107:$I$161,9))) ->  | AK118: =IF($AA118+AK$91-1>TriangleSize,"",IF(HatMatrixFactor_Inc="No",1,VLOOKUP($AA118+AK$107,'Hat Matrix'!$A$107:$I$161,9))) ->  | AL118: =IF($AA118+AL$91-1>TriangleSize,"",IF(HatMatrixFactor_Inc="No",1,VLOOKUP($AA118+AL$107,'Hat Matrix'!$A$107:$I$161,9))) -> 
C119: 0 | D119: 1 | E119: 2 | F119: 3 | G119: 4 | H119: 5 | I119: 6 | J119: 7 | K119: 8 | L119: 9 | AC119: 0 | AD119: 1 | AE119: 2 | AF119: 3 | AG119: 4 | AH119: 5 | AI119: 6 | AJ119: 7 | AK119: 8 | AL119: 9
A120: =A106-1 -> -8 | B120: =IF($L$188="No","Unscaled ","Standardized ")&"Pearson Residuals (Paid"&IF(UseExpAdj="Yes",", Exposure Adjusted)",")") -> Standardized Pearson Residuals (Paid) | AA120: =AA106-1 -> -8 | AB120: =IF($AL$188="No","Unscaled ","Standardized ")&"Pearson Residuals (Incurred"&IF(UseExpAdj="Yes",", Exposure Adjusted)",")") -> Standardized Pearson Residuals (Incurred)
C121: 1 | D121: 2 | E121: 3 | F121: 4 | G121: 5 | H121: 6 | I121: 7 | J121: 8 | K121: 9 | L121: 10 | AC121: 1 | AD121: 2 | AE121: 3 | AF121: 4 | AG121: 5 | AH121: 6 | AI121: 7 | AJ121: 8 | AK121: 9 | AL121: 10
B122: =B3 -> Year | C122: =C3 -> 12 | D122: 24 | E122: 36 | F122: 48 | G122: 60 | H122: 72 | I122: 84 | J122: 96 | K122: 108 | L122: 120 | AB122: =AB3 -> Year | AC122: =AC3 -> 12 | AD122: 24 | AE122: 36 | AF122: 48 | AG122: 60 | AH122: 72 | AI122: 84 | AJ122: 96 | AK122: 108 | AL122: 120
A123: 1 | B123: =B4 -> 2006 | C123: =IF($A123+C$121-1>TriangleSize,"",IF(C161=1,"",C79*C109)) -> 183.6070213 | D123: 133.8212686 | E123: -131.2491454 | F123: -371.0681045 | G123: 193.8924919 | H123: 591.288967 | I123: -272.4571089 | J123: -117.9464614 | K123: -118.1950325 | L123: 0 | N123: =IF($A123>TriangleSize,0,IF($A123=TriangleSize,IF(ParmP_AY1=1,1,0),IF(OR(COUNTIF(C123:L123,">0")>0,COUNTIF(C123:L123,"<0")>0),IF(ParmP_AY1=1,1,0),0))) -> 1 | O123: =IF(C123<>0,IF(ParmP_CY1=1,1,0),0) -> 0 | AA123: 1 | AB123: =AB4 -> 2006 | AC123: =IF($AA123+AC$121-1>TriangleSize,"",IF(AC161=1,"",AC79*AC109)) -> 183.6070213 | AD123: 133.8212686 | AE123: -131.2491454 | AF123: -371.0681045 | AG123: 193.8924919 | AH123: 591.288967 | AI123: -272.4571089 | AJ123: -117.9464614 | AK123: -118.1950325 | AL123: 0 | AN123: =IF(OR(COUNTIF(AC123:AL123,">0")>0,COUNTIF(AC123:AL123,"<0")>0),IF(ParmI_AY1=1,1,0),0) -> 1 | AO123: =IF(AC123<>0,IF(ParmI_CY1=1,1,0),0) -> 0
A124: 2 | B124: 2007 | C124: =IF($A124+C$121-1>TriangleSize,"",IF(C162=1,"",C80*C110)) -> -43.39100318 | D124: -64.92590111 | E124: -57.36316437 | F124: 160.1379889 | G124: -208.952378 | H124: -159.8043645 | I124: 306.6581989 | J124: 32.42231916 | K124: 118.1950325 | N124: =IF($A124>TriangleSize,0,IF($A124=TriangleSize,IF(ParmP_AY2=1,1,0),IF(OR(COUNTIF(C124:L124,">0")>0,COUNTIF(C124:L124,"<0")>0),IF(ParmP_AY2=1,1,0),0))) -> 1 | O124: =IF(OR(C124<>0,D123<>0),IF(ParmP_CY2=1,1,0),0) -> 0 | AA124: 2 | AB124: 2007 | AC124: =IF($AA124+AC$121-1>TriangleSize,"",IF(AC162=1,"",AC80*AC110)) -> -43.39100318 | AD124: -64.92590111 | AE124: -57.36316437 | AF124: 160.1379889 | AG124: -208.952378 | AH124: -159.8043645 | AI124: 306.6581989 | AJ124: 32.42231916 | AK124: 118.1950325 | AN124: =IF(OR(COUNTIF(AC124:AL124,">0")>0,COUNTIF(AC124:AL124,"<0")>0),IF(ParmI_AY2=1,1,0),0) -> 1 | AO124: =IF(OR(AC124<>0,AD123<>0),IF(ParmI_CY2=1,1,0),0) -> 0
A125: 3 | B125: 2008 | C125: =IF($A125+C$121-1>TriangleSize,"",IF(C163=1,"",C81*C111)) -> -148.735702 | D125: 92.42187853 | E125: -55.11516775 | F125: -26.64047839 | G125: 272.2186965 | H125: -476.415216 | I125: 252.0761347 | J125: 75.73921506 | N125: =IF($A125>TriangleSize,0,IF($A125=TriangleSize,IF(ParmP_AY3=1,1,0),IF(OR(COUNTIF(C125:L125,">0")>0,COUNTIF(C125:L125,"<0")>0),IF(ParmP_AY3=1,1,0),0))) -> 1 | O125: =IF(OR(C125<>0,D124<>0,E123<>0),IF(ParmP_CY3=1,1,0),0) -> 0 | AA125: 3 | AB125: 2008 | AC125: =IF($AA125+AC$121-1>TriangleSize,"",IF(AC163=1,"",AC81*AC111)) -> -148.735702 | AD125: 92.42187853 | AE125: -55.11516775 | AF125: -26.64047839 | AG125: 272.2186965 | AH125: -476.415216 | AI125: 252.0761347 | AJ125: 75.73921506 | AN125: =IF(OR(COUNTIF(AC125:AL125,">0")>0,COUNTIF(AC125:AL125,"<0")>0),IF(ParmI_AY3=1,1,0),0) -> 1 | AO125: =IF(OR(AC125<>0,AD124<>0,AE123<>0),IF(ParmI_CY3=1,1,0),0) -> 0
A126: 4 | B126: 2009 | C126: =IF($A126+C$121-1>TriangleSize,"",IF(C164=1,"",C82*C112)) -> -102.8474594 | D126: 244.5088288 | E126: -223.315332 | F126: 658.0902808 | G126: -460.5885739 | H126: -84.67211529 | I126: -318.3535754 | N126: =IF($A126>TriangleSize,0,IF($A126=TriangleSize,IF(ParmP_AY4=1,1,0),IF(OR(COUNTIF(C126:L126,">0")>0,COUNTIF(C126:L126,"<0")>0),IF(ParmP_AY4=1,1,0),0))) -> 1 | O126: =IF(OR(C126<>0,D125<>0,E124<>0,F123<>0),IF(ParmP_CY4=1,1,0),0) -> 0 | AA126: 4 | AB126: 2009 | AC126: =IF($AA126+AC$121-1>TriangleSize,"",IF(AC164=1,"",AC82*AC112)) -> -102.8474594 | AD126: 244.5088288 | AE126: -223.315332 | AF126: 658.0902808 | AG126: -460.5885739 | AH126: -84.67211529 | AI126: -318.3535754 | AN126: =IF(OR(COUNTIF(AC126:AL126,">0")>0,COUNTIF(AC126:AL126,"<0")>0),IF(ParmI_AY4=1,1,0),0) -> 1 | AO126: =IF(OR(AC126<>0,AD125<>0,AE124<>0,AF123<>0),IF(ParmI_CY4=1,1,0),0) -> 0
A127: 5 | B127: 2010 | C127: =IF($A127+C$121-1>TriangleSize,"",IF(C165=1,"",C83*C113)) -> 204.0721438 | D127: -189.7310894 | E127: 148.758357 | F127: -215.743334 | G127: -24.18163336 | H127: 206.3152884 | N127: =IF($A127>TriangleSize,0,IF($A127=TriangleSize,IF(ParmP_AY5=1,1,0),IF(OR(COUNTIF(C127:L127,">0")>0,COUNTIF(C127:L127,"<0")>0),IF(ParmP_AY5=1,1,0),0))) -> 1 | O127: =IF(OR(C127<>0,D126<>0,E125<>0,F124<>0,G123<>0),IF(ParmP_CY5=1,1,0),0) -> 0 | AA127: 5 | AB127: 2010 | AC127: =IF($AA127+AC$121-1>TriangleSize,"",IF(AC165=1,"",AC83*AC113)) -> 204.0721438 | AD127: -189.7310894 | AE127: 148.758357 | AF127: -215.743334 | AG127: -24.18163336 | AH127: 206.3152884 | AN127: =IF(OR(COUNTIF(AC127:AL127,">0")>0,COUNTIF(AC127:AL127,"<0")>0),IF(ParmI_AY5=1,1,0),0) -> 1 | AO127: =IF(OR(AC127<>0,AD126<>0,AE125<>0,AF124<>0,AG123<>0),IF(ParmI_CY5=1,1,0),0) -> 0
A128: 6 | B128: 2011 | C128: =IF($A128+C$121-1>TriangleSize,"",IF(C166=1,"",C84*C114)) -> 79.40857596 | D128: 72.84333823 | E128: -97.06666815 | F128: -231.4961999 | G128: 256.1239049 | N128: =IF($A128>TriangleSize,0,IF($A128=TriangleSize,IF(ParmP_AY6=1,1,0),IF(OR(COUNTIF(C128:L128,">0")>0,COUNTIF(C128:L128,"<0")>0),IF(ParmP_AY6=1,1,0),0))) -> 1 | O128: =IF(OR(C128<>0,D127<>0,E126<>0,F125<>0,G124<>0,H123<>0),IF(ParmP_CY6=1,1,0),0) -> 0 | AA128: 6 | AB128: 2011 | AC128: =IF($AA128+AC$121-1>TriangleSize,"",IF(AC166=1,"",AC84*AC114)) -> 79.40857596 | AD128: 72.84333823 | AE128: -97.06666815 | AF128: -231.4961999 | AG128: 256.1239049 | AN128: =IF(OR(COUNTIF(AC128:AL128,">0")>0,COUNTIF(AC128:AL128,"<0")>0),IF(ParmI_AY6=1,1,0),0) -> 1 | AO128: =IF(OR(AC128<>0,AD127<>0,AE126<>0,AF125<>0,AG124<>0,AH123<>0),IF(ParmI_CY6=1,1,0),0) -> 0
A129: 7 | B129: 2012 | C129: =IF($A129+C$121-1>TriangleSize,"",IF(C167=1,"",C85*C115)) -> 88.67448691 | D129: -164.2673548 | E129: 138.4496375 | F129: -37.66762978 | N129: =IF($A129>TriangleSize,0,IF($A129=TriangleSize,IF(ParmP_AY7=1,1,0),IF(OR(COUNTIF(C129:L129,">0")>0,COUNTIF(C129:L129,"<0")>0),IF(ParmP_AY7=1,1,0),0))) -> 1 | O129: =IF(OR(C129<>0,D128<>0,E127<>0,F126<>0,G125<>0,H124<>0,I123<>0),IF(ParmP_CY7=1,1,0),0) -> 0 | AA129: 7 | AB129: 2012 | AC129: =IF($AA129+AC$121-1>TriangleSize,"",IF(AC167=1,"",AC85*AC115)) -> 88.67448691 | AD129: -164.2673548 | AE129: 138.4496375 | AF129: -37.66762978 | AN129: =IF(OR(COUNTIF(AC129:AL129,">0")>0,COUNTIF(AC129:AL129,"<0")>0),IF(ParmI_AY7=1,1,0),0) -> 1 | AO129: =IF(OR(AC129<>0,AD128<>0,AE127<>0,AF126<>0,AG125<>0,AH124<>0,AI123<>0),IF(ParmI_CY7=1,1,0),0) -> 0
A130: 8 | B130: 2013 | C130: =IF($A130+C$121-1>TriangleSize,"",IF(C168=1,"",C86*C116)) -> -190.0158352 | D130: -140.9586263 | E130: 284.3421923 | N130: =IF($A130>TriangleSize,0,IF($A130=TriangleSize,IF(ParmP_AY8=1,1,0),IF(OR(COUNTIF(C130:L130,">0")>0,COUNTIF(C130:L130,"<0")>0),IF(ParmP_AY8=1,1,0),0))) -> 1 | O130: =IF(OR(C130<>0,D129<>0,E128<>0,F127<>0,G126<>0,H125<>0,I124<>0,J123<>0),IF(ParmP_CY8=1,1,0),0) -> 0 | AA130: 8 | AB130: 2013 | AC130: =IF($AA130+AC$121-1>TriangleSize,"",IF(AC168=1,"",AC86*AC116)) -> -190.0158352 | AD130: -140.9586263 | AE130: 284.3421923 | AN130: =IF(OR(COUNTIF(AC130:AL130,">0")>0,COUNTIF(AC130:AL130,"<0")>0),IF(ParmI_AY8=1,1,0),0) -> 1 | AO130: =IF(OR(AC130<>0,AD129<>0,AE128<>0,AF127<>0,AG126<>0,AH125<>0,AI124<>0,AJ123<>0),IF(ParmI_CY8=1,1,0),0) -> 0
A131: 9 | B131: 2014 | C131: =IF($A131+C$121-1>TriangleSize,"",IF(C169=1,"",C87*C117)) -> -27.97642444 | D131: 27.97642445 | N131: =IF($A131>TriangleSize,0,IF($A131=TriangleSize,IF(ParmP_AY9=1,1,0),IF(OR(COUNTIF(C131:L131,">0")>0,COUNTIF(C131:L131,"<0")>0),IF(ParmP_AY9=1,1,0),0))) -> 1 | O131: =IF(OR(C131<>0,D130<>0,E129<>0,F128<>0,G127<>0,H126<>0,I125<>0,J124<>0,K123<>0),IF(ParmP_CY9=1,1,0),0) -> 0 | AA131: 9 | AB131: 2014 | AC131: =IF($AA131+AC$121-1>TriangleSize,"",IF(AC169=1,"",AC87*AC117)) -> -27.97642444 | AD131: 27.97642445 | AN131: =IF(OR(COUNTIF(AC131:AL131,">0")>0,COUNTIF(AC131:AL131,"<0")>0),IF(ParmI_AY9=1,1,0),0) -> 1 | AO131: =IF(OR(AC131<>0,AD130<>0,AE129<>0,AF128<>0,AG127<>0,AH126<>0,AI125<>0,AJ124<>0,AK123<>0),IF(ParmI_CY9=1,1,0),0) -> 0
A132: 10 | B132: 2015 | C132: =IF($A132+C$121-1>TriangleSize,"",IF(C170=1,"",C88*C118)) -> 0 | N132: =IF($A132>TriangleSize,0,IF($A132=TriangleSize,IF(ParmP_AY10=1,1,0),IF(OR(COUNTIF(C132:L132,">0")>0,COUNTIF(C132:L132,"<0")>0),IF(ParmP_AY1=10,1,0),0))) -> 1 | AA132: 10 | AB132: 2015 | AC132: =IF($AA132+AC$121-1>TriangleSize,"",IF(AC170=1,"",AC88*AC118)) -> 0 | AN132: =IF(ParmI_AY10=1,1,0) -> 1
A134: =A120-1 -> -9 | B134: ="Heteroscedasticity Factors (Paid"&IF(UseExpAdj="Yes",", Exposure Adjusted)",")") -> Heteroscedasticity Factors (Paid) | AA134: =AA120-1 -> -9 | AB134: ="Heteroscedasticity Factors (Incurred"&IF(UseExpAdj="Yes",", Exposure Adjusted)",")") -> Heteroscedasticity Factors (Incurred)
B136: Relativities | C136: =C3 -> 12 | D136: =D3 -> 24 | E136: 36 | F136: 48 | G136: 60 | H136: 72 | I136: 84 | J136: 96 | K136: 108 | L136: 120 | AB136: Relativities | AC136: =AC3 -> 12 | AD136: =AD3 -> 24 | AE136: 36 | AF136: 48 | AG136: 60 | AH136: 72 | AI136: 84 | AJ136: 96 | AK136: 108 | AL136: 120
B137: Std. Dev. Prior | C137: =IF(OR($B145=0,C145=""),0,C145/$B145) -> 0.3314238527 | D137: =IF(OR($B145=0,D145=""),0,D145/$B145) -> 0.3712601386 | E137: 0.4242845712 | F137: 0.8457133702 | G137: 0.7300910466 | H137: 1 | I137: 0.8259301451 | J137: 0.2520389142 | K137: 0.414435713 | L137: 0 | AB137: Std. Dev. Prior | AC137: =IF(OR($AB145=0,AC145=""),0,AC145/$AB145) -> 0.3314238527 | AD137: =IF(OR($AB145=0,AD145=""),0,AD145/$AB145) -> 0.3712601386 | AE137: 0.4242845712 | AF137: 0.8457133702 | AG137: 0.7300910466 | AH137: 1 | AI137: 0.8259301451 | AJ137: 0.2520389142 | AK137: 0.414435713 | AL137: 0
B138: Range Prior | C138: =IF(OR($B146=0,C146=""),0,C146/$B146) -> 0.3690984687 | D138: =IF(OR($B146=0,D146=""),0,D146/$B146) -> 0.4067043336 | E138: 0.4754664564 | F138: 0.9638984297 | G138: 0.6863392333 | H138: 1 | I138: 0.5853791568 | J138: 0.1814038753 | K138: 0.2214003361 | L138: 0 | AB138: Range Prior | AC138: =IF(OR($AB146=0,AC146=""),0,AC146/$AB146) -> 0.3690984687 | AD138: =IF(OR($AB146=0,AD146=""),0,AD146/$AB146) -> 0.4067043336 | AE138: 0.4754664564 | AF138: 0.9638984297 | AG138: 0.6863392333 | AH138: 1 | AI138: 0.5853791568 | AJ138: 0.1814038753 | AK138: 0.2214003361 | AL138: 0
B139: Std. Dev. After | C139: =IF(OR($B151=0,C151=""),0,C151/$B151) -> 0.4564671861 | D139: =IF(OR($B151=0,D151=""),0,D151/$B151) -> 0.5113333558 | E139: 0.5843634451 | F139: 0.5227607107 | G139: 0.4512910967 | H139: 0.6181298879 | I139: 0.5105321079 | J139: 0.6081496029 | K139: 1 | L139: 0 | AB139: Std. Dev. After | AC139: =IF(OR($AB151=0,AC151=""),0,AC151/$AB151) -> 0.3057422041 | AD139: =IF(OR($AB151=0,AD151=""),0,AD151/$AB151) -> 0.6044719028 | AE139: 0.6908043052 | AF139: 0.6382010187 | AG139: 0.6735171412 | AH139: 0.922511164 | AI139: 1 | AJ139: 0.3051576647 | AK139: 0.5017805869 | AL139: 0
B140: Range After | C140: =IF(OR($B152=0,C152=""),0,C152/$B152) -> 0.7762870835 | D140: =IF(OR($B152=0,D152=""),0,D152/$B152) -> 0.8553796553 | E140: 1 | F140: 0.9098406388 | G140: 0.6478476437 | H140: 0.9439175444 | I140: 0.5525496562 | J140: 0.6684111766 | K140: 0.8157844419 | L140: 0 | AB140: Range After | AC140: =IF(OR($AB152=0,AC152=""),0,AC152/$AB152) -> 0.3690984687 | AD140: =IF(OR($AB152=0,AD152=""),0,AD152/$AB152) -> 0.7178024984 | AE140: 0.839162463 | AF140: 0.7884859129 | AG140: 0.6863392333 | AH140: 1 | AI140: 0.7682849162 | AJ140: 0.2380847687 | AK140: 0.2905783999 | AL140: 0
B141: Group | C141: 0 | D141: 0 | E141: 0 | F141: 1 | G141: 1 | H141: 1 | I141: 1 | J141: 2 | K141: 2 | L141: 2 | AB141: Group | AC141: 0 | AD141: 1 | AE141: 1 | AF141: 3 | AG141: 0 | AH141: 0 | AI141: 2 | AJ141: 2 | AK141: 2 | AL141: 2
B142: Factor | C142: =IF(HeteroAdjOption="StdDev",C147,C157) -> 1.585032504 | D142: 1.585032504 | E142: 1.585032504 | F142: 0.7113643787 | G142: 0.7113643787 | H142: 0.7113643787 | I142: 0.7113643787 | J142: 2.776867762 | K142: 2.776867762 | L142: 2.776867762 | M142: =$L$142 -> 2.776867762 | N142: =$L$142 -> 2.776867762 | O142: 2.776867762 | P142: 2.776867762 | Q142: 2.776867762 | AB142: Factor | AC142: =IF(HeteroAdjOption="StdDev",AC147,AC157) -> 0.8813614856 | AD142: 1.5555366 | AE142: 1.5555366 | AF142: 0.7209692372 | AG142: 0.8813614856 | AH142: 0.8813614856 | AI142: 1.156748967 | AJ142: 1.156748967 | AK142: 1.156748967 | AL142: 1.156748967 | AM142: =$AL$142 -> 1.156748967 | AN142: =$AL$142 -> 1.156748967 | AO142: 1.156748967 | AP142: 1.156748967 | AQ142: 1.156748967
D143: =IF(COUNTIF(D109:D118,">0")>0,IF(ParmP_DY1=1,1,0),0) -> 1 | E143: =IF(COUNTIF(E109:E118,">0")>0,IF(ParmP_DY2=1,1,0),0) -> 1 | F143: =IF(COUNTIF(F109:F118,">0")>0,IF(ParmP_DY3=1,1,0),0) -> 1 | G143: =IF(COUNTIF(G109:G118,">0")>0,IF(ParmP_DY4=1,1,0),0) -> 1 | H143: =IF(COUNTIF(H109:H118,">0")>0,IF(ParmP_DY5=1,1,0),0) -> 1 | I143: =IF(COUNTIF(I109:I118,">0")>0,IF(ParmP_DY6=1,1,0),0) -> 1 | J143: =IF(COUNTIF(J109:J118,">0")>0,IF(ParmP_DY7=1,1,0),0) -> 1 | K143: =IF(COUNTIF(K109:K118,">0")>0,IF(ParmP_DY8=1,1,0),0) -> 1 | L143: =IF(COUNTIF(L109:L118,">0")>0,IF(Sample_Zeros="Yes",0,IF(ParmP_DY9=1,1,0)),0) -> 0 | AD143: =IF(COUNTIF(AD109:AD118,">0")>0,IF(ParmI_DY1=1,1,0),0) -> 1 | AE143: =IF(COUNTIF(AE109:AE118,">0")>0,IF(ParmI_DY2=1,1,0),0) -> 1 | AF143: =IF(COUNTIF(AF109:AF118,">0")>0,IF(ParmI_DY3=1,1,0),0) -> 1 | AG143: =IF(COUNTIF(AG109:AG118,">0")>0,IF(ParmI_DY4=1,1,0),0) -> 1 | AH143: =IF(COUNTIF(AH109:AH118,">0")>0,IF(ParmI_DY5=1,1,0),0) -> 1 | AI143: =IF(COUNTIF(AI109:AI118,">0")>0,IF(ParmI_DY6=1,1,0),0) -> 1 | AJ143: =IF(COUNTIF(AJ109:AJ118,">0")>0,IF(ParmI_DY7=1,1,0),0) -> 1 | AK143: =IF(COUNTIF(AK109:AK118,">0")>0,IF(ParmI_DY8=1,1,0),0) -> 1 | AL143: =IF(COUNTIF(AL109:AL118,">0")>0,IF(Sample_Zeros="Yes",0,IF(ParmI_DY9=1,1,0)),0) -> 0
A144: =GroupStdDev(PdStdResiduals,PdOutliersAll,PdHeteroGroups,Include_Zeros) -> 2 | B144: 224.0763071 | C144: 144.8127407 | D144: 144.8127407 | E144: 144.8127407 | F144: 317.5347107 | G144: 317.5347107 | H144: 317.5347107 | I144: 317.5347107 | J144: 98.6135662 | K144: 98.6135662 | L144: 98.6135662 | N144: <== Function for Standard Deviation hetero factors | AA144: =GroupStdDev(AC123:AL132,AC161:AL170,AC141:AL141,Include_Zeros) -> 3 | AB144: 224.0763071 | AC144: 249.5501216 | AD144: 154.9923845 | AE144: 154.9923845 | AF144: 341.0988429 | AG144: 249.5501216 | AH144: 249.5501216 | AI144: 205.9199958 | AJ144: 205.9199958 | AK144: 205.9199958 | AL144: 205.9199958
B145: 403.3267712 | C145: 133.6721124 | D145: 149.739153 | E145: 171.1253262 | F145: 341.0988429 | G145: 294.4652645 | H145: 403.3267712 | I145: 333.1197386 | J145: 101.6540415 | K145: 167.153018 | AB145: 403.3267712 | AC145: 133.6721124 | AD145: 149.739153 | AE145: 171.1253262 | AF145: 341.0988429 | AG145: 294.4652645 | AH145: 403.3267712 | AI145: 333.1197386 | AJ145: 101.6540415 | AK145: 167.153018
B146: 1067.704183 | C146: 394.087979 | D146: 434.2399182 | E146: 507.6575243 | F146: 1029.158385 | G146: 732.8072703 | H146: 1067.704183 | I146: 625.0117744 | J146: 193.6856765 | K146: 236.390065 | AB146: 1067.704183 | AC146: 394.087979 | AD146: 434.2399182 | AE146: 507.6575243 | AF146: 1029.158385 | AG146: 732.8072703 | AH146: 1067.704183 | AI146: 625.0117744 | AJ146: 193.6856765 | AK146: 236.390065
C147: =IF(C144=0,1,$B144/C144) -> 1.547352159 | D147: =IF(D144=0,1,$B144/D144) -> 1.547352159 | E147: 1.547352159 | F147: 0.7056750002 | G147: 0.7056750002 | H147: 0.7056750002 | I147: 0.7056750002 | J147: 2.272266542 | K147: =IF(K144=0,1,$B144/K144) -> 2.272266542 | L147: 2.272266542 | N147: <== Factors based on total Standard Deviation instead of Max group Standard Deviation (proposed) | AC147: =IF(OR($AB144=0,AC144=""),1,$AB144/AC144) -> 0.8979210494 | AD147: =IF(OR($AB144=0,AD144=""),1,$AB144/AD144) -> 1.445724626 | AE147: =IF(OR($AB144=0,AE144=""),1,$AB144/AE144) -> 1.445724626 | AF147: 0.6569248524 | AG147: 0.8979210494 | AH147: 0.8979210494 | AI147: 1.088171677 | AJ147: 1.088171677 | AK147: 1.088171677 | AL147: 1.088171677
C148: =($D$191/C147)^2 -> 23261.74222 | D148: 23261.74222 | E148: 23261.74222 | F148: 111843.5916 | G148: 111843.5916 | H148: 111843.5916 | I148: 111843.5916 | J148: 10787.03335 | K148: 10787.03335 | L148: 10787.03335 | N148: <== Implied Scale Parameters | AC148: =($AD$191/AC147)^2 -> 71172.01164 | AD148: 27454.55374 | AE148: 27454.55374 | AF148: 132970.151 | AG148: 71172.01164 | AH148: 71172.01164 | AI148: 48460.81467 | AJ148: 48460.81467 | AK148: 48460.81467 | AL148: 48460.81467
A150: =GroupStdDev(PdAdjResiduals,PdOutliersAll,PdHeteroGroups,Include_Zeros) -> 2 | B150: 228.384425 | C150: 229.532901 | D150: 229.532901 | E150: 229.532901 | F150: 225.8828822 | G150: 225.8828822 | H150: 225.8828822 | I150: 225.8828822 | J150: 273.8368328 | K150: 273.8368328 | L150: 273.8368328 | N150: <== Check of group Standard Deviations using hetero adjusted residuals | AA150: =GroupStdDev(IncAdjResiduals,IncOutliersAll,IncHeteroGroups,Include_Zeros) -> 3 | AB150: 226.584171 | AC150: 219.9438659 | AD150: 241.0963268 | AE150: 241.0963268 | AF150: 245.9217726 | AG150: 219.9438659 | AH150: 219.9438659 | AI150: 238.1977424 | AJ150: 238.1977424 | AK150: 238.1977424 | AL150: 238.1977424
B151: 464.1618269 | C151: 211.874643 | D151: 237.3414245 | E151: 271.2392042 | F151: 242.6455665 | G151: 209.4720999 | H151: 286.912298 | I151: 236.9695159 | J151: 282.2798307 | K151: 464.1618269 | AB151: 385.3359136 | AC151: 117.8134516 | AD151: 232.9247329 | AE151: 266.1917081 | AF151: 245.9217726 | AG151: 259.530343 | AH151: 355.4766822 | AI151: 385.3359136 | AJ151: 117.5882075 | AK151: 193.3540809
B152: 804.6536769 | C152: 624.6422561 | D152: 688.2843848 | E152: 804.6536769 | F152: 732.1066153 | G152: 521.2929885 | H152: 759.5267227 | I152: 444.6111125 | J152: 537.8395109 | K152: 656.4239507 | AB152: 941.0333449 | AC152: 347.3339666 | AD152: 675.476086 | AE152: 789.6798595 | AF152: 741.991536 | AG152: 645.8681044 | AH152: 941.0333449 | AI152: 722.9817245 | AJ152: 224.0457062 | AK152: 273.4439636
C153: =IF(C150=0,1,$B150/C150) -> 0.9949964644 | D153: =IF(D150=0,1,$B150/D150) -> 0.9949964644 | E153: 0.9949964644 | F153: 1.011074512 | G153: 1.011074512 | H153: 1.011074512 | I153: 1.011074512 | J153: 0.8340164566 | K153: 0.8340164566 | L153: 0.8340164566 | AC153: =IF(OR($AB150=0,AC150=""),1,$AB150/AC150) -> 1.030190908 | AD153: =IF(OR($AB150=0,AD150=""),1,$AB150/AD150) -> 0.9398076444 | AE153: 0.9398076444 | AF153: 0.921366858 | AG153: 1.030190908 | AH153: 1.030190908 | AI153: 0.9512439902 | AJ153: 0.9512439902 | AK153: 0.9512439902 | AL153: 0.9512439902
C154: 0 | D154: 1 | E154: 2 | F154: 3 | G154: 4 | H154: 5 | I154: 6 | J154: 7 | K154: 8 | L154: 9 | AC154: 0 | AD154: 1 | AE154: 2 | AF154: 3 | AG154: 4 | AH154: 5 | AI154: 6 | AJ154: 7 | AK154: 8 | AL154: 9
B155: =GroupScaleParm(PdResiduals,PdOutliersAll,PdHeteroGroups,IF(Include_Zeros="Yes",No_of_Obs_Pd,No_of_Res_Pd),No_of_Parms_Pd,Include_Zeros) -> 235.9990662 | C155: 148.8922566 | D155: 148.8922566 | E155: 148.8922566 | F155: 331.7555296 | G155: 331.7555296 | H155: 331.7555296 | I155: 331.7555296 | J155: 84.98750623 | K155: 84.98750623 | L155: 84.98750623 | N155: <== Function for Scale Parameter hetero factors | AB155: =GroupScaleParm(IncResiduals,IncOutliersAll,IncHeteroGroups,IF(Include_Zeros="Yes",No_of_Obs_Inc,No_of_Res_Inc),No_of_Parms_Inc,Include_Zeros) -> 239.5481235 | AC155: 271.7932737 | AD155: 153.9970988 | AE155: 153.9970988 | AF155: 332.2584531 | AG155: 271.7932737 | AH155: 271.7932737 | AI155: 207.0873891 | AJ155: 207.0873891 | AK155: 207.0873891 | AL155: 207.0873891
B156: 235.9990662 | C156: 148.8922566 | D156: 148.8922566 | E156: 148.8922566 | F156: 331.7555296 | G156: 331.7555296 | H156: 331.7555296 | I156: 331.7555296 | J156: 84.98750623 | K156: 84.98750623 | L156: 84.98750623 | AB156: 239.5481235 | AC156: 271.7932737 | AD156: 153.9970988 | AE156: 153.9970988 | AF156: 332.2584531 | AG156: 271.7932737 | AH156: 271.7932737 | AI156: 207.0873891 | AJ156: 207.0873891 | AK156: 207.0873891 | AL156: 207.0873891
C157: =$B156/C156 -> 1.585032504 | D157: =$B156/D156 -> 1.585032504 | E157: 1.585032504 | F157: 0.7113643787 | G157: 0.7113643787 | H157: 0.7113643787 | I157: 0.7113643787 | J157: 2.776867762 | K157: 2.776867762 | L157: 2.776867762 | N157: <== Hetero Adjustment Factors based on Total Scale Parameter | AC157: =$AB156/AC156 -> 0.8813614856 | AD157: =$AB156/AD156 -> 1.5555366 | AE157: 1.5555366 | AF157: 0.7209692372 | AG157: 0.8813614856 | AH157: 0.8813614856 | AI157: 1.156748967 | AJ157: 1.156748967 | AK157: 1.156748967 | AL157: 1.156748967
A158: =A134-1 -> -10 | B158: Outliers (Paid) | AA158: =AA134-1 -> -10 | AB158: Outliers (Incurred)
C159: 1 | D159: 2 | E159: 3 | F159: 4 | G159: 5 | H159: 6 | I159: 7 | J159: 8 | K159: 9 | L159: 10 | AC159: 1 | AD159: 2 | AE159: 3 | AF159: 4 | AG159: 5 | AH159: 6 | AI159: 7 | AJ159: 8 | AK159: 9 | AL159: 10
B160: =B3 -> Year | C160: =C3 -> 12 | D160: 24 | E160: 36 | F160: 48 | G160: 60 | H160: 72 | I160: 84 | J160: 96 | K160: 108 | L160: 120 | AB160: =AB3 -> Year | AC160: =AC3 -> 12 | AD160: 24 | AE160: 36 | AF160: 48 | AG160: 60 | AH160: 72 | AI160: 84 | AJ160: 96 | AK160: 108 | AL160: 120
A161: 1 | B161: =B4 -> 2006 | C161: 0 | D161: 0 | E161: 0 | F161: 0 | G161: 0 | H161: 0 | I161: 0 | J161: 0 | K161: 0 | L161: 0 | N161: =TriangleSize -> 10 | AA161: 1 | AB161: =AB4 -> 2006 | AC161: 0 | AD161: 0 | AE161: 0 | AF161: 0 | AG161: 0 | AH161: 0 | AI161: 0 | AJ161: 0 | AK161: 0 | AL161: 0
A162: 2 | B162: 2007 | C162: 0 | D162: 0 | E162: 0 | F162: 0 | G162: 0 | H162: 0 | I162: 0 | J162: 0 | K162: 0 | AA162: 2 | AB162: 2007 | AC162: 0 | AD162: 0 | AE162: 0 | AF162: 0 | AG162: 0 | AH162: 0 | AI162: 0 | AJ162: 0 | AK162: 0
A163: 3 | B163: 2008 | C163: 0 | D163: 0 | E163: 0 | F163: 0 | G163: 0 | H163: 0 | I163: 0 | J163: 0 | AA163: 3 | AB163: 2008 | AC163: 0 | AD163: 0 | AE163: 0 | AF163: 0 | AG163: 0 | AH163: 0 | AI163: 0 | AJ163: 0
A164: 4 | B164: 2009 | C164: 0 | D164: 0 | E164: 0 | F164: 0 | G164: 0 | H164: 0 | I164: 0 | AA164: 4 | AB164: 2009 | AC164: 0 | AD164: 0 | AE164: 0 | AF164: 0 | AG164: 0 | AH164: 0 | AI164: 0
A165: 5 | B165: 2010 | C165: 0 | D165: 0 | E165: 0 | F165: 0 | G165: 0 | H165: 0 | AA165: 5 | AB165: 2010 | AC165: 0 | AD165: 0 | AE165: 0 | AF165: 0 | AG165: 0 | AH165: 0
A166: 6 | B166: 2011 | C166: 0 | D166: 0 | E166: 0 | F166: 0 | G166: 0 | AA166: 6 | AB166: 2011 | AC166: 0 | AD166: 0 | AE166: 0 | AF166: 0 | AG166: 0
A167: 7 | B167: 2012 | C167: 0 | D167: 0 | E167: 0 | F167: 0 | AA167: 7 | AB167: 2012 | AC167: 0 | AD167: 0 | AE167: 0 | AF167: 0
A168: 8 | B168: 2013 | C168: 0 | D168: 0 | E168: 0 | AA168: 8 | AB168: 2013 | AC168: 0 | AD168: 0 | AE168: 0
A169: 9 | B169: 2014 | C169: 0 | D169: 0 | AA169: 9 | AB169: 2014 | AC169: 0 | AD169: 0
A170: 10 | B170: 2015 | C170: 0 | AA170: 10 | AB170: 2015 | AC170: 0
A172: =A158-1 -> -11 | B172: =IF($L$188="No","Unscaled ","Standardized ")&IF(H191=0,"","Hetero-Adjusted ")&"Pearson Residuals (Paid"&IF(UseExpAdj="Yes",", Exposure Adjusted)",")") -> Standardized Hetero-Adjusted Pearson Residuals (Paid) | AA172: =AA158-1 -> -11 | AB172: =IF($AL$188="No","Unscaled ","Standardized ")&IF(AH191=0,"","Hetero-Adjusted ")&"Pearson Residuals (Incurred"&IF(UseExpAdj="Yes",", Exposure Adjusted)",")") -> Standardized Hetero-Adjusted Pearson Residuals (Incurred)
C173: 1 | D173: 2 | E173: 3 | F173: 4 | G173: 5 | H173: 6 | I173: 7 | J173: 8 | K173: 9 | L173: 10 | AC173: 1 | AD173: 2 | AE173: 3 | AF173: 4 | AG173: 5 | AH173: 6 | AI173: 7 | AJ173: 8 | AK173: 9 | AL173: 10
B174: =B50 -> Year | C174: =C50 -> 12 | D174: 24 | E174: 36 | F174: 48 | G174: 60 | H174: 72 | I174: 84 | J174: 96 | K174: 108 | L174: 120 | AB174: =AB50 -> Year | AC174: =AC50 -> 12 | AD174: 24 | AE174: 36 | AF174: 48 | AG174: 60 | AH174: 72 | AI174: 84 | AJ174: 96 | AK174: 108 | AL174: 120
A175: 1 | B175: =B51 -> 2006 | C175: =IF($A175+C$173-1>TriangleSize,"",IF(C161=1,"",C123*C$142)) -> 291.0230967 | D175: 212.1110604 | E175: -208.0341616 | F175: -263.9646316 | G175: 137.928212 | H175: 420.6219086 | I175: -193.816282 | J175: -327.5217263 | K175: -328.2119753 | L175: 0 | AA175: 1 | AB175: =AB51 -> 2006 | AC175: =IF($AA175+AC$173-1>TriangleSize,"",IF(AC161=1,"",AC123*AC$142)) -> 161.8241571 | AD175: 208.1638812 | AE175: -204.1628495 | AF175: -267.5286883 | AG175: 170.8893747 | AH175: 521.1393223 | AI175: -315.1644793 | AJ175: -136.4344474 | AK175: -136.7219818 | AL175: 0
A176: 2 | B176: 2007 | C176: =IF($A176+C$173-1>TriangleSize,"",IF(C162=1,"",C124*C$142)) -> -68.77615041 | D176: -102.9096636 | E176: -90.92248004 | F176: 113.916461 | G176: -148.6412785 | H176: -113.6791325 | I176: 218.1457191 | J176: 90.03249282 | K176: 328.2119753 | AA176: 2 | AB176: 2007 | AC176: =IF($AA176+AC$173-1>TriangleSize,"",IF(AC162=1,"",AC124*AC$142)) -> -38.24315902 | AD176: -100.9946155 | AE176: -89.23050168 | AF176: 115.4545637 | AG176: -184.1625783 | AH176: -140.8454121 | AI176: 354.7265549 | AJ176: 37.5044842 | AK176: 136.7219818
A177: 3 | B177: 2008 | C177: =IF($A177+C$173-1>TriangleSize,"",IF(C163=1,"",C125*C$142)) -> -235.7509221 | D177: 146.4916815 | E177: -87.35933233 | F177: -18.95108736 | G177: 193.6466839 | H177: -338.9048141 | I177: 179.317983 | J177: 210.3177846 | AA177: 3 | AB177: 2008 | AC177: =IF($AA177+AC$173-1>TriangleSize,"",IF(AC163=1,"",AC125*AC$142)) -> -131.0899193 | AD177: 143.7656147 | AE177: -85.73366065 | AF177: -19.20696538 | AG177: 239.9230747 | AH177: -419.8940225 | AI177: 291.5888085 | AJ177: 87.6112588
A178: 4 | B178: 2009 | C178: =IF($A178+C$173-1>TriangleSize,"",IF(C164=1,"",C126*C$142)) -> -163.016566 | D178: 387.5544411 | E178: -353.9620598 | F178: 468.1419837 | G178: -327.6463047 | H178: -60.23272669 | I178: -226.4653934 | AA178: 4 | AB178: 2009 | AC178: =IF($AA178+AC$173-1>TriangleSize,"",IF(AC164=1,"",AC126*AC$142)) -> -90.64578959 | AD178: 380.3424323 | AE178: -347.3751723 | AF178: 474.4628478 | AG178: -405.9450297 | AH178: -74.62674132 | AI178: -368.2551696
A179: 5 | B179: 2010 | C179: =IF($A179+C$173-1>TriangleSize,"",IF(C165=1,"",C127*C$142)) -> 323.4609811 | D179: -300.7299436 | E179: 235.786831 | F179: -153.4721228 | G179: -17.20195259 | H179: 146.765347 | AA179: 5 | AB179: 2010 | AC179: =IF($AA179+AC$173-1>TriangleSize,"",IF(AC165=1,"",AC127*AC$142)) -> 179.8613278 | AD179: -295.1336537 | AE179: 231.3990688 | AF179: -155.544307 | AG179: -21.31276031 | AH179: 181.8383491
A180: 6 | B180: 2011 | C180: =IF($A180+C$173-1>TriangleSize,"",IF(C166=1,"",C128*C$142)) -> 125.865174 | D180: 115.4590588 | E180: -153.853824 | F180: -164.6781504 | G180: 182.1974224 | AA180: 6 | AB180: 2011 | AC180: =IF($AA180+AC$173-1>TriangleSize,"",IF(AC166=1,"",AC128*AC$142)) -> 69.98766048 | AD180: 113.3104787 | AE180: -150.990755 | AF180: -166.9016386 | AG180: 225.7377453
A181: 7 | B181: 2012 | C181: =IF($A181+C$173-1>TriangleSize,"",IF(C167=1,"",C129*C$142)) -> 140.551944 | D181: -260.3690967 | E181: 219.4471756 | F181: -26.79541005 | AA181: 7 | AB181: 2012 | AC181: =IF($AA181+AC$173-1>TriangleSize,"",IF(AC167=1,"",AC129*AC$142)) -> 78.15427751 | AD181: -255.5238826 | AE181: 215.3634785 | AF181: -27.15720231
A182: 8 | B182: 2013 | C182: =IF($A182+C$173-1>TriangleSize,"",IF(C168=1,"",C130*C$142)) -> -301.181275 | D182: -223.4240044 | E182: 450.6916171 | AA182: 8 | AB182: 2013 | AC182: =IF($AA182+AC$173-1>TriangleSize,"",IF(AC168=1,"",AC130*AC$142)) -> -167.4726388 | AD182: -219.2663023 | AE182: 442.3046872
A183: 9 | B183: 2014 | C183: =IF($A183+C$173-1>TriangleSize,"",IF(C169=1,"",C131*C$142)) -> -44.34354208 | D183: 44.34354209 | AA183: 9 | AB183: 2014 | AC183: =IF($AA183+AC$173-1>TriangleSize,"",IF(AC169=1,"",AC131*AC$142)) -> -24.65734301 | AD183: 43.51835217
A184: 10 | B184: 2015 | C184: =IF($A184+C$173-1>TriangleSize,"",IF(C170=1,"",C132*C$142)) -> 0 | AA184: 10 | AB184: 2015 | AC184: =IF($AA184+AC$173-1>TriangleSize,"",IF(AC170=1,"",AC132*AC$142)) -> 0
A186: =A172-1 -> -12 | B186: ="Scale Parameters (Paid"&IF(UseExpAdj="Yes",", Exposure Adjusted)",")") -> Scale Parameters (Paid) | AA186: =AA172-1 -> -12 | AB186: ="Scale Parameters (Incurred"&IF(UseExpAdj="Yes",", Exposure Adjusted)",")") -> Scale Parameters (Incurred)
C187: Degrees of Freedom: | D187: =No_of_Obs_Pd-No_of_Parms_Pd -> 34 | G187: Number of Data Points: | H187: =SUM(C32:L41) -> 55 | K187: Number of Residuals: | L187: =COUNTIF(C123:L132,">0")+COUNTIF(C123:L132,"<0") -> 53 | AC187: Degrees of Freedom: | AD187: =No_of_Obs_Inc-No_of_Parms_Inc -> 33 | AG187: Number of Data Points: | AH187: =SUM(AC32:AL41) -> 55 | AK187: Number of Residuals: | AL187: =COUNTIF(AC123:AL132,">0")+COUNTIF(AC123:AL132,"<0") -> 53
C188: D. of F. Adjustment: | D188: =SQRT(No_of_Obs_Pd/DoF_Pd) -> 1.271867548 | G188: Accident Year Parameters: | H188: =SUM(N18:N27) -> 10 | K188: Include Hat Matrix Adjustment? | L188: =HatMatrixFactor -> Yes | AC188: D. of F. Adjustment: | AD188: =SQRT(No_of_Obs_Inc/DoF_Inc) -> 1.290994449 | AG188: Accident Year Parameters: | AH188: =SUM(AN18:AN27) -> 10 | AK188: Include Hat Matrix Adjustment? | AL188: =HatMatrixFactor -> Yes
C189: Pearson Chi-Squared Statistic: | D189: =SUMSQ(C93:L102) -> 1893649.014 | G189: Development Year Parameters: | H189: =SUM(C47:K47) -> 9 | K189: Include DoF Adjustment? | L189: =DoF_Factor -> No | R189: Yes | AC189: Pearson Chi-Squared Statistic: | AD189: =SUMSQ(AC93:AL102) -> 1893649.014 | AG189: Development Parameters: | AH189: =SUM(AC47:AK47) -> 9 | AK189: Include DoF Adjustment? | AL189: =DoF_Factor -> No
C190: Scale Parameter: | D190: =D189/D187 -> 55695.55925 | E190: =IF(Scale_Parm="Yes",D190,1) -> 55695.55925 | G190: Calendar Year Parameters: | H190: =SUM(O18:O27) -> 0 | L190: =SQRT(No_of_Obs_Pd/(No_of_Obs_Pd-H188-H189)) -> 1.236033081 | R190: No | AC190: Scale Parameter: | AD190: =AD189/AD187 -> 57383.30347 | AE190: =IF(Scale_Parm="Yes",AD190,1) -> 57383.30347 | AG190: Calendar Year Parameters: | AH190: =SUM(AO18:AO27) -> 0 | AL190: =SQRT(No_of_Obs_Inc/(No_of_Obs_Inc-AH188-AH189)) -> 1.236033081
D191: =SQRT(D190) -> 235.9990662 | G191: Hetero Parameters: | H191: =A144 -> 2 | L191: =SUM(H188:H191)+IF(ModelUsed=Inputs!$U$4,H192,0) -> 21 | AD191: =SQRT(AD190) -> 239.5481235 | AG191: Hetero Parameters: | AH191: =AA144 -> 3 | AL191: =SUM(AH188:AH191)+IF(ModelUsed=Inputs!$U$4,AH192,0) -> 22
G192: Constant: | H192: =IF(V705=0,0,1) -> 0 | AG192: Constant: | AH192: =IF(AV705=0,0,1) -> 0
A193: =A186-1 -> -13 | B193: =IF(DoF_Factor_Pd="Yes","Scaled","Standardized")&" Pearson Residuals (Paid"&IF(UseExpAdj="Yes",", Exposure Adjusted)",")") -> Standardized Pearson Residuals (Paid) | AA193: =AA186-1 -> -13 | AB193: =IF(DoF_Factor_Inc="Yes","Scaled","Standardized")&" Pearson Residuals (Incurred"&IF(UseExpAdj="Yes",", Exposure Adjusted)",")") -> Standardized Pearson Residuals (Incurred)
C194: 1 | D194: 2 | E194: 3 | F194: 4 | G194: 5 | H194: 6 | I194: 7 | J194: 8 | K194: 9 | L194: 10 | AC194: 1 | AD194: 2 | AE194: 3 | AF194: 4 | AG194: 5 | AH194: 6 | AI194: 7 | AJ194: 8 | AK194: 9 | AL194: 10
B195: =B3 -> Year | C195: 12 | D195: 24 | E195: 36 | F195: 48 | G195: 60 | H195: 72 | I195: 84 | J195: 96 | K195: 108 | L195: 120 | AB195: =AB3 -> Year | AC195: 12 | AD195: 24 | AE195: 36 | AF195: 48 | AG195: 60 | AH195: 72 | AI195: 84 | AJ195: 96 | AK195: 108 | AL195: 120
A196: 1 | B196: =B4 -> 2006 | C196: =IF($A196+C$194-1>TriangleSize,"",IF(C161=1,"",C123*IF(DoF_Factor_Pd="Yes",DoF_Adj_Pd,1))) -> 183.6070213 | D196: 133.8212686 | E196: -131.2491454 | F196: -371.0681045 | G196: 193.8924919 | H196: 591.288967 | I196: -272.4571089 | J196: -117.9464614 | K196: -118.1950325 | L196: 0 | AA196: 1 | AB196: =AB4 -> 2006 | AC196: =IF($AA196+AC$194-1>TriangleSize,"",IF(AC161=1,"",AC123*IF(DoF_Factor_Inc="Yes",DoF_Adj_Inc,1))) -> 183.6070213 | AD196: 133.8212686 | AE196: -131.2491454 | AF196: -371.0681045 | AG196: 193.8924919 | AH196: 591.288967 | AI196: -272.4571089 | AJ196: -117.9464614 | AK196: -118.1950325 | AL196: 0
A197: 2 | B197: 2007 | C197: =IF($A197+C$194-1>TriangleSize,"",IF(C162=1,"",C124*IF(DoF_Factor_Pd="Yes",DoF_Adj_Pd,1))) -> -43.39100318 | D197: -64.92590111 | E197: -57.36316437 | F197: 160.1379889 | G197: -208.952378 | H197: -159.8043645 | I197: 306.6581989 | J197: 32.42231916 | K197: 118.1950325 | AA197: 2 | AB197: 2007 | AC197: =IF($AA197+AC$194-1>TriangleSize,"",IF(AC162=1,"",AC124*IF(DoF_Factor_Inc="Yes",DoF_Adj_Inc,1))) -> -43.39100318 | AD197: -64.92590111 | AE197: -57.36316437 | AF197: 160.1379889 | AG197: -208.952378 | AH197: -159.8043645 | AI197: 306.6581989 | AJ197: 32.42231916 | AK197: 118.1950325
A198: 3 | B198: 2008 | C198: =IF($A198+C$194-1>TriangleSize,"",IF(C163=1,"",C125*IF(DoF_Factor_Pd="Yes",DoF_Adj_Pd,1))) -> -148.735702 | D198: 92.42187853 | E198: -55.11516775 | F198: -26.64047839 | G198: 272.2186965 | H198: -476.415216 | I198: 252.0761347 | J198: 75.73921506 | AA198: 3 | AB198: 2008 | AC198: =IF($AA198+AC$194-1>TriangleSize,"",IF(AC163=1,"",AC125*IF(DoF_Factor_Inc="Yes",DoF_Adj_Inc,1))) -> -148.735702 | AD198: 92.42187853 | AE198: -55.11516775 | AF198: -26.64047839 | AG198: 272.2186965 | AH198: -476.415216 | AI198: 252.0761347 | AJ198: 75.73921506
A199: 4 | B199: 2009 | C199: =IF($A199+C$194-1>TriangleSize,"",IF(C164=1,"",C126*IF(DoF_Factor_Pd="Yes",DoF_Adj_Pd,1))) -> -102.8474594 | D199: 244.5088288 | E199: -223.315332 | F199: 658.0902808 | G199: -460.5885739 | H199: -84.67211529 | I199: -318.3535754 | AA199: 4 | AB199: 2009 | AC199: =IF($AA199+AC$194-1>TriangleSize,"",IF(AC164=1,"",AC126*IF(DoF_Factor_Inc="Yes",DoF_Adj_Inc,1))) -> -102.8474594 | AD199: 244.5088288 | AE199: -223.315332 | AF199: 658.0902808 | AG199: -460.5885739 | AH199: -84.67211529 | AI199: -318.3535754
A200: 5 | B200: 2010 | C200: =IF($A200+C$194-1>TriangleSize,"",IF(C165=1,"",C127*IF(DoF_Factor_Pd="Yes",DoF_Adj_Pd,1))) -> 204.0721438 | D200: -189.7310894 | E200: 148.758357 | F200: -215.743334 | G200: -24.18163336 | H200: 206.3152884 | AA200: 5 | AB200: 2010 | AC200: =IF($AA200+AC$194-1>TriangleSize,"",IF(AC165=1,"",AC127*IF(DoF_Factor_Inc="Yes",DoF_Adj_Inc,1))) -> 204.0721438 | AD200: -189.7310894 | AE200: 148.758357 | AF200: -215.743334 | AG200: -24.18163336 | AH200: 206.3152884
A201: 6 | B201: 2011 | C201: =IF($A201+C$194-1>TriangleSize,"",IF(C166=1,"",C128*IF(DoF_Factor_Pd="Yes",DoF_Adj_Pd,1))) -> 79.40857596 | D201: 72.84333823 | E201: -97.06666815 | F201: -231.4961999 | G201: 256.1239049 | AA201: 6 | AB201: 2011 | AC201: =IF($AA201+AC$194-1>TriangleSize,"",IF(AC166=1,"",AC128*IF(DoF_Factor_Inc="Yes",DoF_Adj_Inc,1))) -> 79.40857596 | AD201: 72.84333823 | AE201: -97.06666815 | AF201: -231.4961999 | AG201: 256.1239049
A202: 7 | B202: 2012 | C202: =IF($A202+C$194-1>TriangleSize,"",IF(C167=1,"",C129*IF(DoF_Factor_Pd="Yes",DoF_Adj_Pd,1))) -> 88.67448691 | D202: -164.2673548 | E202: 138.4496375 | F202: -37.66762978 | AA202: 7 | AB202: 2012 | AC202: =IF($AA202+AC$194-1>TriangleSize,"",IF(AC167=1,"",AC129*IF(DoF_Factor_Inc="Yes",DoF_Adj_Inc,1))) -> 88.67448691 | AD202: -164.2673548 | AE202: 138.4496375 | AF202: -37.66762978
A203: 8 | B203: 2013 | C203: =IF($A203+C$194-1>TriangleSize,"",IF(C168=1,"",C130*IF(DoF_Factor_Pd="Yes",DoF_Adj_Pd,1))) -> -190.0158352 | D203: -140.9586263 | E203: 284.3421923 | AA203: 8 | AB203: 2013 | AC203: =IF($AA203+AC$194-1>TriangleSize,"",IF(AC168=1,"",AC130*IF(DoF_Factor_Inc="Yes",DoF_Adj_Inc,1))) -> -190.0158352 | AD203: -140.9586263 | AE203: 284.3421923
A204: 9 | B204: 2014 | C204: =IF($A204+C$194-1>TriangleSize,"",IF(C169=1,"",C131*IF(DoF_Factor_Pd="Yes",DoF_Adj_Pd,1))) -> -27.97642444 | D204: 27.97642445 | AA204: 9 | AB204: 2014 | AC204: =IF($AA204+AC$194-1>TriangleSize,"",IF(AC169=1,"",AC131*IF(DoF_Factor_Inc="Yes",DoF_Adj_Inc,1))) -> -27.97642444 | AD204: 27.97642445
A205: 10 | B205: 2015 | C205: =IF($A205+C$194-1>TriangleSize,"",IF(C170=1,"",C132*IF(DoF_Factor_Pd="Yes",DoF_Adj_Pd,1))) -> 0 | AA205: 10 | AB205: 2015 | AC205: =IF($AA205+AC$194-1>TriangleSize,"",IF(AC170=1,"",AC132*IF(DoF_Factor_Inc="Yes",DoF_Adj_Inc,1))) -> 0
A207: =A193-1 -> -14 | B207: =IF(DoF_Factor_Pd="Yes","Scaled","Standardized")&" Hetero-Adjusted Pearson Residuals (Paid"&IF(UseExpAdj="Yes",", Exposure Adjusted)",")") -> Standardized Hetero-Adjusted Pearson Residuals (Paid) | AA207: =AA193-1 -> -14 | AB207: =IF(DoF_Factor_Inc="Yes","Scaled","Standardized")&" Hetero-Adjusted Pearson Residuals (Incurred"&IF(UseExpAdj="Yes",", Exposure Adjusted)",")") -> Standardized Hetero-Adjusted Pearson Residuals (Incurred)
C208: 1 | D208: 2 | E208: 3 | F208: 4 | G208: 5 | H208: 6 | I208: 7 | J208: 8 | K208: 9 | L208: 10 | AC208: 1 | AD208: 2 | AE208: 3 | AF208: 4 | AG208: 5 | AH208: 6 | AI208: 7 | AJ208: 8 | AK208: 9 | AL208: 10
B209: =B3 -> Year | C209: =C3 -> 12 | D209: 24 | E209: 36 | F209: 48 | G209: 60 | H209: 72 | I209: 84 | J209: 96 | K209: 108 | L209: 120 | AB209: =AB3 -> Year | AC209: =AC3 -> 12 | AD209: 24 | AE209: 36 | AF209: 48 | AG209: 60 | AH209: 72 | AI209: 84 | AJ209: 96 | AK209: 108 | AL209: 120
A210: 1 | B210: =B4 -> 2006 | C210: =IF($A210+C$208-1>TriangleSize,"",IF(C161=1,"",C196*C$142)) -> 291.0230967 | D210: 212.1110604 | E210: -208.0341616 | F210: -263.9646316 | G210: 137.928212 | H210: 420.6219086 | I210: -193.816282 | J210: -327.5217263 | K210: -328.2119753 | L210: 0 | AA210: 1 | AB210: =AB4 -> 2006 | AC210: =IF($AA210+AC$208-1>TriangleSize,"",IF(AC161=1,"",AC196*AC$142)) -> 161.8241571 | AD210: 208.1638812 | AE210: -204.1628495 | AF210: -267.5286883 | AG210: 170.8893747 | AH210: 521.1393223 | AI210: -315.1644793 | AJ210: -136.4344474 | AK210: -136.7219818 | AL210: 0
A211: 2 | B211: 2007 | C211: =IF($A211+C$208-1>TriangleSize,"",IF(C162=1,"",C197*C$142)) -> -68.77615041 | D211: -102.9096636 | E211: -90.92248004 | F211: 113.916461 | G211: -148.6412785 | H211: -113.6791325 | I211: 218.1457191 | J211: 90.03249282 | K211: 328.2119753 | AA211: 2 | AB211: 2007 | AC211: =IF($AA211+AC$208-1>TriangleSize,"",IF(AC162=1,"",AC197*AC$142)) -> -38.24315902 | AD211: -100.9946155 | AE211: -89.23050168 | AF211: 115.4545637 | AG211: -184.1625783 | AH211: -140.8454121 | AI211: 354.7265549 | AJ211: 37.5044842 | AK211: 136.7219818
A212: 3 | B212: 2008 | C212: =IF($A212+C$208-1>TriangleSize,"",IF(C163=1,"",C198*C$142)) -> -235.7509221 | D212: 146.4916815 | E212: -87.35933233 | F212: -18.95108736 | G212: 193.6466839 | H212: -338.9048141 | I212: 179.317983 | J212: 210.3177846 | AA212: 3 | AB212: 2008 | AC212: =IF($AA212+AC$208-1>TriangleSize,"",IF(AC163=1,"",AC198*AC$142)) -> -131.0899193 | AD212: 143.7656147 | AE212: -85.73366065 | AF212: -19.20696538 | AG212: 239.9230747 | AH212: -419.8940225 | AI212: 291.5888085 | AJ212: 87.6112588
A213: 4 | B213: 2009 | C213: =IF($A213+C$208-1>TriangleSize,"",IF(C164=1,"",C199*C$142)) -> -163.016566 | D213: 387.5544411 | E213: -353.9620598 | F213: 468.1419837 | G213: -327.6463047 | H213: -60.23272669 | I213: -226.4653934 | AA213: 4 | AB213: 2009 | AC213: =IF($AA213+AC$208-1>TriangleSize,"",IF(AC164=1,"",AC199*AC$142)) -> -90.64578959 | AD213: 380.3424323 | AE213: -347.3751723 | AF213: 474.4628478 | AG213: -405.9450297 | AH213: -74.62674132 | AI213: -368.2551696
A214: 5 | B214: 2010 | C214: =IF($A214+C$208-1>TriangleSize,"",IF(C165=1,"",C200*C$142)) -> 323.4609811 | D214: -300.7299436 | E214: 235.786831 | F214: -153.4721228 | G214: -17.20195259 | H214: 146.765347 | AA214: 5 | AB214: 2010 | AC214: =IF($AA214+AC$208-1>TriangleSize,"",IF(AC165=1,"",AC200*AC$142)) -> 179.8613278 | AD214: -295.1336537 | AE214: 231.3990688 | AF214: -155.544307 | AG214: -21.31276031 | AH214: 181.8383491
A215: 6 | B215: 2011 | C215: =IF($A215+C$208-1>TriangleSize,"",IF(C166=1,"",C201*C$142)) -> 125.865174 | D215: 115.4590588 | E215: -153.853824 | F215: -164.6781504 | G215: 182.1974224 | AA215: 6 | AB215: 2011 | AC215: =IF($AA215+AC$208-1>TriangleSize,"",IF(AC166=1,"",AC201*AC$142)) -> 69.98766048 | AD215: 113.3104787 | AE215: -150.990755 | AF215: -166.9016386 | AG215: 225.7377453
... 459 more rows

Sheet Diagnostics
A1: Residual Graphs Prior to Heteroscedasticity Adjustment (Paid) | Y1: =IF(ModelUsed=Inputs!U4,"GLM Bootstrap in Use: Model Parameters are Active!","GLM Bootstrap NOT in Use: Model Parameters are NOT Active!") -> GLM Bootstrap NOT in Use: Model Parameters are NOT Active! | AF1: Residual Graphs Prior to Heteroscedasticity Adjustment (Incurred)
A19: Period: | B19: 1 | C19: 2 | D19: 3 | E19: 4 | F19: 5 | G19: 6 | H19: 7 | I19: 8 | J19: 9 | M19: Period: | N19: 1 | O19: 2 | P19: 3 | Q19: 4 | R19: 5 | S19: 6 | T19: 7 | U19: 8 | V19: 9 | W19: 10 | AA19: Paid Summary Statistics | AF19: Period: | AG19: 1 | AH19: 2 | AI19: 3 | AJ19: 4 | AK19: 5 | AL19: 6 | AM19: 7 | AN19: 8 | AO19: 9 | AR19: Period: | AS19: 1 | AT19: 2 | AU19: 3 | AV19: 4 | AW19: 5 | AX19: 6 | AY19: 7 | AZ19: 8 | BA19: 9 | BB19: 10 | BF19: Incurred Summary Statistics
A20: Parameter: | B20: 1 | C20: 1 | D20: 1 | E20: 1 | F20: 1 | G20: 1 | H20: 1 | I20: 1 | J20: 1 | L20: =COUNTIF(ParmP_DY_ALL,1) -> 9 | M20: Parameter: | N20: 1 | O20: 1 | P20: 1 | Q20: 1 | R20: 1 | S20: 1 | T20: 1 | U20: 1 | V20: 1 | W20: 1 | X20: =COUNTIF(ParmP_AY_ALL,1) -> 10 | AA20: Parm | AB20: Value | AC20: t-Stat | AD20: p-Value | AF20: Parameter: | AG20: 1 | AH20: 1 | AI20: 1 | AJ20: 1 | AK20: 1 | AL20: 1 | AM20: 1 | AN20: 1 | AO20: 1 | AQ20: =COUNTIF(ParmI_DY_All,1) -> 9 | AR20: Parameter: | AS20: 1 | AT20: 1 | AU20: 1 | AV20: 1 | AW20: 1 | AX20: 1 | AY20: 1 | AZ20: 1 | BA20: 1 | BB20: 1 | BC20: =COUNTIF(ParmI_AY_All,1) -> 10 | BF20: Parm | BG20: Value | BH20: t-Stat | BI20: p-Value
B21: 1 | C21: =IF(C20=1,B21+1,B21) -> 2 | D21: 3 | E21: 4 | F21: 5 | G21: 6 | H21: 7 | I21: 8 | J21: 9 | N21: 1 | O21: =IF(O20=1,N21+1,N21) -> 2 | P21: 3 | Q21: 4 | R21: 5 | S21: 6 | T21: 7 | U21: 8 | V21: 9 | W21: 10 | Y21: 1 | Z21: 1 | AA21: ='Hat Matrix'!R6 -> α1 | AB21: =INDEX(Bootstrap!$M$705:$U$714,Z21,Y21) -> 12.50640468 | AC21: =INDEX(Bootstrap!$M$705:$U$714,Z21,Y21+1) -> 72.3233636 | AD21: =INDEX(Bootstrap!$M$705:$U$714,Z21,Y21+2) -> 1.405985097e-40 | AE21: 1 | AG21: 1 | AH21: =IF(AH20=1,AG21+1,AG21) -> 2 | AI21: 3 | AJ21: 4 | AK21: 5 | AL21: 6 | AM21: 7 | AN21: 8 | AO21: 9 | AS21: 1 | AT21: =IF(AT20=1,AS21+1,AS21) -> 2 | AU21: 3 | AV21: 4 | AW21: 5 | AX21: 6 | AY21: 7 | AZ21: 8 | BA21: 9 | BB21: 10 | BD21: 1 | BE21: 1 | BF21: ='Hat Matrix'!R106 -> α1 | BG21: =INDEX(Bootstrap!$AM$705:$AU$714,BE21,BD21) -> 12.50640468 | BH21: =INDEX(Bootstrap!$AM$705:$AU$714,BE21,BD21+1) -> 72.3233636 | BI21: =INDEX(Bootstrap!$AM$705:$AU$714,BE21,BD21+2) -> 1.405985097e-40 | BJ21: 1 | BN21: =EXP(AB21) -> 270061.4156
B22: 2 | C22: 3 | D22: 4 | E22: 5 | F22: 6 | G22: 7 | H22: 8 | I22: 9 | J22: 10 | N22: 1 | O22: 2 | P22: 3 | Q22: 4 | R22: 5 | S22: 6 | T22: 7 | U22: 8 | V22: 9 | W22: 10 | Y22: =IF(AE22<=ParmP_AY_Tot,1,IF(AE22<=ParmP_AY_Tot+ParmP_DY_Tot,4,IF(AE22<=ParmP_AY_Tot+ParmP_DY_Tot+ParmP_CY_Tot,7,""))) -> 1 | Z22: =IF(Y22="","",IF(Y22=1,HLOOKUP(AE22,$N$21:$W$22,2,FALSE),IF(Y22=4,HLOOKUP(AE22-ParmP_AY_Tot,$B$21:$J$22,2,FALSE),IF(Y22=7,HLOOKUP(AE22-ParmP_AY_Tot-ParmP_DY_Tot,$B$42:$J$43,2,FALSE),0)))) -> 2 | AA22: ='Hat Matrix'!S6 -> α2 | AB22: =IF(Y22="","",INDEX(Bootstrap!$M$705:$U$714,Z22,Y22)) -> 12.83767683 | AC22: =IF(Y22="","",INDEX(Bootstrap!$M$705:$U$714,Z22,Y22+1)) -> 2.05315217 | AD22: =IF(Y22="","",INDEX(Bootstrap!$M$705:$U$714,Z22,Y22+2)) -> 0.04737886299 | AE22: 2 | AG22: 2 | AH22: 3 | AI22: 4 | AJ22: 5 | AK22: 6 | AL22: 7 | AM22: 8 | AN22: 9 | AO22: 10 | AS22: 1 | AT22: 2 | AU22: 3 | AV22: 4 | AW22: 5 | AX22: 6 | AY22: 7 | AZ22: 8 | BA22: 9 | BB22: 10 | BD22: =IF(BJ22<=ParmI_AY_Tot,1,IF(BJ22<=ParmI_AY_Tot+ParmI_DY_Tot,4,IF(BJ22<=ParmI_AY_Tot+ParmI_DY_Tot+ParmI_CY_Tot,7,""))) -> 1 | BE22: =IF(BD22="","",IF(BD22=1,HLOOKUP(BJ22,$AS$21:$BB$22,2,FALSE),IF(BD22=4,HLOOKUP(BJ22-ParmI_AY_Tot,$AG$21:$AO$22,2,FALSE),IF(BD22=7,HLOOKUP(BJ22-ParmI_AY_Tot-ParmI_DY_Tot,$AG$42:$AO$43,2,FALSE),0)))) -> 2 | BF22: ='Hat Matrix'!S106 -> α2 | BG22: =IF(BD22="","",INDEX(Bootstrap!$AM$705:$AU$714,BE22,BD22)) -> 12.83767683 | BH22: =IF(BD22="","",INDEX(Bootstrap!$AM$705:$AU$714,BE22,BD22+1)) -> 2.05315217 | BI22: =IF(BD22="","",INDEX(Bootstrap!$AM$705:$AU$714,BE22,BD22+2)) -> 0.04737886299 | BJ22: 2 | BN22: =EXP(AB22) -> 376125.0063
Y23: 1 | Z23: 3 | AA23: ='Hat Matrix'!T6 -> α3 | AB23: =IF(Y23="","",INDEX(Bootstrap!$M$705:$U$714,Z23,Y23)) -> 12.82752326 | AC23: =IF(Y23="","",INDEX(Bootstrap!$M$705:$U$714,Z23,Y23+1)) -> 1.974230814 | AD23: =IF(Y23="","",INDEX(Bootstrap!$M$705:$U$714,Z23,Y23+2)) -> 0.05606610358 | AE23: 3 | BD23: 1 | BE23: 3 | BF23: ='Hat Matrix'!T106 -> α3 | BG23: =IF(BD23="","",INDEX(Bootstrap!$AM$705:$AU$714,BE23,BD23)) -> 12.82752326 | BH23: =IF(BD23="","",INDEX(Bootstrap!$AM$705:$AU$714,BE23,BD23+1)) -> 1.974230814 | BI23: =IF(BD23="","",INDEX(Bootstrap!$AM$705:$AU$714,BE23,BD23+2)) -> 0.05606610358 | BJ23: 3 | BN23: 372325.3155
Y24: 1 | Z24: 4 | AA24: ='Hat Matrix'!U6 -> α4 | AB24: =IF(Y24="","",INDEX(Bootstrap!$M$705:$U$714,Z24,Y24)) -> 12.81236468 | AC24: =IF(Y24="","",INDEX(Bootstrap!$M$705:$U$714,Z24,Y24+1)) -> 1.86217335 | AD24: =IF(Y24="","",INDEX(Bootstrap!$M$705:$U$714,Z24,Y24+2)) -> 0.07075675549 | AE24: 4 | BD24: 1 | BE24: 4 | BF24: ='Hat Matrix'!U106 -> α4 | BG24: =IF(BD24="","",INDEX(Bootstrap!$AM$705:$AU$714,BE24,BD24)) -> 12.81236468 | BH24: =IF(BD24="","",INDEX(Bootstrap!$AM$705:$AU$714,BE24,BD24+1)) -> 1.86217335 | BI24: =IF(BD24="","",INDEX(Bootstrap!$AM$705:$AU$714,BE24,BD24+2)) -> 0.07075675549 | BJ24: 4 | BN24: 366723.9561
Y25: 1 | Z25: 5 | AA25: ='Hat Matrix'!V6 -> α5 | AB25: =IF(Y25="","",INDEX(Bootstrap!$M$705:$U$714,Z25,Y25)) -> 12.72572099 | AC25: =IF(Y25="","",INDEX(Bootstrap!$M$705:$U$714,Z25,Y25+1)) -> 1.291220695 | AD25: =IF(Y25="","",INDEX(Bootstrap!$M$705:$U$714,Z25,Y25+2)) -> 0.2048570606 | AE25: 5 | BD25: 1 | BE25: 5 | BF25: ='Hat Matrix'!V106 -> α5 | BG25: =IF(BD25="","",INDEX(Bootstrap!$AM$705:$AU$714,BE25,BD25)) -> 12.72572099 | BH25: =IF(BD25="","",INDEX(Bootstrap!$AM$705:$AU$714,BE25,BD25+1)) -> 1.291220695 | BI25: =IF(BD25="","",INDEX(Bootstrap!$AM$705:$AU$714,BE25,BD25+2)) -> 0.2048570606 | BJ25: 5 | BN25: 336287.2522
Y26: 1 | Z26: 6 | AA26: ='Hat Matrix'!W6 -> α6 | AB26: =IF(Y26="","",INDEX(Bootstrap!$M$705:$U$714,Z26,Y26)) -> 12.77648169 | AC26: =IF(Y26="","",INDEX(Bootstrap!$M$705:$U$714,Z26,Y26+1)) -> 1.579363094 | AD26: =IF(Y26="","",INDEX(Bootstrap!$M$705:$U$714,Z26,Y26+2)) -> 0.1230004426 | AE26: 6 | BD26: 1 | BE26: 6 | BF26: ='Hat Matrix'!W106 -> α6 | BG26: =IF(BD26="","",INDEX(Bootstrap!$AM$705:$AU$714,BE26,BD26)) -> 12.77648169 | BH26: =IF(BD26="","",INDEX(Bootstrap!$AM$705:$AU$714,BE26,BD26+1)) -> 1.579363094 | BI26: =IF(BD26="","",INDEX(Bootstrap!$AM$705:$AU$714,BE26,BD26+2)) -> 0.1230004426 | BJ26: 6
Y27: 1 | Z27: 7 | AA27: ='Hat Matrix'!X6 -> α7 | AB27: =IF(Y27="","",INDEX(Bootstrap!$M$705:$U$714,Z27,Y27)) -> 12.8786131 | AC27: =IF(Y27="","",INDEX(Bootstrap!$M$705:$U$714,Z27,Y27+1)) -> 2.160746127 | AD27: =IF(Y27="","",INDEX(Bootstrap!$M$705:$U$714,Z27,Y27+2)) -> 0.03744580751 | AE27: 7 | BD27: 1 | BE27: 7 | BF27: ='Hat Matrix'!X106 -> α7 | BG27: =IF(BD27="","",INDEX(Bootstrap!$AM$705:$AU$714,BE27,BD27)) -> 12.8786131 | BH27: =IF(BD27="","",INDEX(Bootstrap!$AM$705:$AU$714,BE27,BD27+1)) -> 2.160746127 | BI27: =IF(BD27="","",INDEX(Bootstrap!$AM$705:$AU$714,BE27,BD27+2)) -> 0.03744580751 | BJ27: 7
Y28: 1 | Z28: 8 | AA28: ='Hat Matrix'!Y6 -> α8 | AB28: =IF(Y28="","",INDEX(Bootstrap!$M$705:$U$714,Z28,Y28)) -> 13.05973774 | AC28: =IF(Y28="","",INDEX(Bootstrap!$M$705:$U$714,Z28,Y28+1)) -> 3.101105704 | AD28: =IF(Y28="","",INDEX(Bootstrap!$M$705:$U$714,Z28,Y28+2)) -> 0.003735552684 | AE28: 8 | BD28: 1 | BE28: 8 | BF28: ='Hat Matrix'!Y106 -> α8 | BG28: =IF(BD28="","",INDEX(Bootstrap!$AM$705:$AU$714,BE28,BD28)) -> 13.05973774 | BH28: =IF(BD28="","",INDEX(Bootstrap!$AM$705:$AU$714,BE28,BD28+1)) -> 3.101105704 | BI28: =IF(BD28="","",INDEX(Bootstrap!$AM$705:$AU$714,BE28,BD28+2)) -> 0.003735552684 | BJ28: 8
Y29: 1 | Z29: 9 | AA29: ='Hat Matrix'!Z6 -> α9 | AB29: =IF(Y29="","",INDEX(Bootstrap!$M$705:$U$714,Z29,Y29)) -> 12.87533887 | AC29: =IF(Y29="","",INDEX(Bootstrap!$M$705:$U$714,Z29,Y29+1)) -> 1.652175965 | AD29: =IF(Y29="","",INDEX(Bootstrap!$M$705:$U$714,Z29,Y29+2)) -> 0.1071957863 | AE29: 9 | BD29: 1 | BE29: 9 | BF29: ='Hat Matrix'!Z106 -> α9 | BG29: =IF(BD29="","",INDEX(Bootstrap!$AM$705:$AU$714,BE29,BD29)) -> 12.87533887 | BH29: =IF(BD29="","",INDEX(Bootstrap!$AM$705:$AU$714,BE29,BD29+1)) -> 1.652175965 | BI29: =IF(BD29="","",INDEX(Bootstrap!$AM$705:$AU$714,BE29,BD29+2)) -> 0.1071957863 | BJ29: 9
Y30: 1 | Z30: 10 | AA30: ='Hat Matrix'!AA6 -> α10 | AB30: =IF(Y30="","",INDEX(Bootstrap!$M$705:$U$714,Z30,Y30)) -> 12.74843763 | AC30: =IF(Y30="","",INDEX(Bootstrap!$M$705:$U$714,Z30,Y30+1)) -> 0.6189621185 | AD30: =IF(Y30="","",INDEX(Bootstrap!$M$705:$U$714,Z30,Y30+2)) -> 0.5398386426 | AE30: 10 | BD30: 1 | BE30: 10 | BF30: ='Hat Matrix'!AA106 -> α10 | BG30: =IF(BD30="","",INDEX(Bootstrap!$AM$705:$AU$714,BE30,BD30)) -> 12.74843763 | BH30: =IF(BD30="","",INDEX(Bootstrap!$AM$705:$AU$714,BE30,BD30+1)) -> 0.6189621185 | BI30: =IF(BD30="","",INDEX(Bootstrap!$AM$705:$AU$714,BE30,BD30+2)) -> 0.5398386426 | BJ30: 10
Y31: 4 | Z31: 2 | AA31: ='Hat Matrix'!AB6 -> β1 | AB31: =IF(Y31="","",INDEX(Bootstrap!$M$705:$U$714,Z31,Y31)) -> 0.9125262744 | AC31: =IF(Y31="","",INDEX(Bootstrap!$M$705:$U$714,Z31,Y31+1)) -> 6.130552446 | AD31: =IF(Y31="","",INDEX(Bootstrap!$M$705:$U$714,Z31,Y31+2)) -> 4.652447907e-07 | AE31: 11 | BD31: 4 | BE31: 2 | BF31: ='Hat Matrix'!AB106 -> β1 | BG31: =IF(BD31="","",INDEX(Bootstrap!$AM$705:$AU$714,BE31,BD31)) -> 0.9125262744 | BH31: =IF(BD31="","",INDEX(Bootstrap!$AM$705:$AU$714,BE31,BD31+1)) -> 6.130552446 | BI31: =IF(BD31="","",INDEX(Bootstrap!$AM$705:$AU$714,BE31,BD31+2)) -> 4.652447907e-07 | BJ31: 11
Y32: 4 | Z32: 3 | AA32: ='Hat Matrix'!AC6 -> β2 | AB32: =IF(Y32="","",INDEX(Bootstrap!$M$705:$U$714,Z32,Y32)) -> 0.04630435377 | AC32: =IF(Y32="","",INDEX(Bootstrap!$M$705:$U$714,Z32,Y32+1)) -> 0.3939454496 | AD32: =IF(Y32="","",INDEX(Bootstrap!$M$705:$U$714,Z32,Y32+2)) -> 0.6959451618 | AE32: 12 | BD32: 4 | BE32: 3 | BF32: ='Hat Matrix'!AC106 -> β2 | BG32: =IF(BD32="","",INDEX(Bootstrap!$AM$705:$AU$714,BE32,BD32)) -> 0.04630435377 | BH32: =IF(BD32="","",INDEX(Bootstrap!$AM$705:$AU$714,BE32,BD32+1)) -> 0.3939454496 | BI32: =IF(BD32="","",INDEX(Bootstrap!$AM$705:$AU$714,BE32,BD32+2)) -> 0.6959451618 | BJ32: 12
Y33: 4 | Z33: 4 | AA33: ='Hat Matrix'!AD6 -> β3 | AB33: =IF(Y33="","",INDEX(Bootstrap!$M$705:$U$714,Z33,Y33)) -> 0.06716637481 | AC33: =IF(Y33="","",INDEX(Bootstrap!$M$705:$U$714,Z33,Y33+1)) -> 0.5471872479 | AD33: =IF(Y33="","",INDEX(Bootstrap!$M$705:$U$714,Z33,Y33+2)) -> 0.5876264524 | AE33: 13 | BD33: 4 | BE33: 4 | BF33: ='Hat Matrix'!AD106 -> β3 | BG33: =IF(BD33="","",INDEX(Bootstrap!$AM$705:$AU$714,BE33,BD33)) -> 0.06716637481 | BH33: =IF(BD33="","",INDEX(Bootstrap!$AM$705:$AU$714,BE33,BD33+1)) -> 0.5471872479 | BI33: =IF(BD33="","",INDEX(Bootstrap!$AM$705:$AU$714,BE33,BD33+2)) -> 0.5876264524 | BJ33: 13
Y34: 4 | Z34: 5 | AA34: ='Hat Matrix'!AE6 -> β4 | AB34: =IF(Y34="","",INDEX(Bootstrap!$M$705:$U$714,Z34,Y34)) -> -0.5907208195 | AC34: =IF(Y34="","",INDEX(Bootstrap!$M$705:$U$714,Z34,Y34+1)) -> -3.774276072 | AD34: =IF(Y34="","",INDEX(Bootstrap!$M$705:$U$714,Z34,Y34+2)) -> 0.0005793046941 | AE34: 14 | BD34: 4 | BE34: 5 | BF34: ='Hat Matrix'!AE106 -> β4 | BG34: =IF(BD34="","",INDEX(Bootstrap!$AM$705:$AU$714,BE34,BD34)) -> -0.5907208195 | BH34: =IF(BD34="","",INDEX(Bootstrap!$AM$705:$AU$714,BE34,BD34+1)) -> -3.774276072 | BI34: =IF(BD34="","",INDEX(Bootstrap!$AM$705:$AU$714,BE34,BD34+2)) -> 0.0005793046941 | BJ34: 14
Y35: 4 | Z35: 6 | AA35: ='Hat Matrix'!AF6 -> β5 | AB35: =IF(Y35="","",INDEX(Bootstrap!$M$705:$U$714,Z35,Y35)) -> -0.3552196373 | AC35: =IF(Y35="","",INDEX(Bootstrap!$M$705:$U$714,Z35,Y35+1)) -> -1.672577141 | AD35: =IF(Y35="","",INDEX(Bootstrap!$M$705:$U$714,Z35,Y35+2)) -> 0.1030808371 | AE35: 15 | BD35: 4 | BE35: 6 | BF35: ='Hat Matrix'!AF106 -> β5 | BG35: =IF(BD35="","",INDEX(Bootstrap!$AM$705:$AU$714,BE35,BD35)) -> -0.3552196373 | BH35: =IF(BD35="","",INDEX(Bootstrap!$AM$705:$AU$714,BE35,BD35+1)) -> -1.672577141 | BI35: =IF(BD35="","",INDEX(Bootstrap!$AM$705:$AU$714,BE35,BD35+2)) -> 0.1030808371 | BJ35: 15
Y36: 4 | Z36: 7 | AA36: ='Hat Matrix'!AG6 -> β6 | AB36: =IF(Y36="","",INDEX(Bootstrap!$M$705:$U$714,Z36,Y36)) -> -0.08643801558 | AC36: =IF(Y36="","",INDEX(Bootstrap!$M$705:$U$714,Z36,Y36+1)) -> -0.3337790012 | AD36: =IF(Y36="","",INDEX(Bootstrap!$M$705:$U$714,Z36,Y36+2)) -> 0.7404828472 | AE36: 16 | BD36: 4 | BE36: 7 | BF36: ='Hat Matrix'!AG106 -> β6 | BG36: =IF(BD36="","",INDEX(Bootstrap!$AM$705:$AU$714,BE36,BD36)) -> -0.08643801558 | BH36: =IF(BD36="","",INDEX(Bootstrap!$AM$705:$AU$714,BE36,BD36+1)) -> -0.3337790012 | BI36: =IF(BD36="","",INDEX(Bootstrap!$AM$705:$AU$714,BE36,BD36+2)) -> 0.7404828472 | BJ36: 16
Y37: 4 | Z37: 8 | AA37: ='Hat Matrix'!AH6 -> β7 | AB37: =IF(Y37="","",INDEX(Bootstrap!$M$705:$U$714,Z37,Y37)) -> -0.388070736 | AC37: =IF(Y37="","",INDEX(Bootstrap!$M$705:$U$714,Z37,Y37+1)) -> -1.139767425 | AD37: =IF(Y37="","",INDEX(Bootstrap!$M$705:$U$714,Z37,Y37+2)) -> 0.2619100895 | AE37: 17 | BD37: 4 | BE37: 8 | BF37: ='Hat Matrix'!AH106 -> β7 | BG37: =IF(BD37="","",INDEX(Bootstrap!$AM$705:$AU$714,BE37,BD37)) -> -0.388070736 | BH37: =IF(BD37="","",INDEX(Bootstrap!$AM$705:$AU$714,BE37,BD37+1)) -> -1.139767425 | BI37: =IF(BD37="","",INDEX(Bootstrap!$AM$705:$AU$714,BE37,BD37+2)) -> 0.2619100895 | BJ37: 17
A38: Period: | B38: 1 | C38: 2 | D38: 3 | E38: 4 | F38: 5 | G38: 6 | H38: 7 | I38: 8 | J38: 9 | Y38: 4 | Z38: 9 | AA38: ='Hat Matrix'!AI6 -> β8 | AB38: =IF(Y38="","",INDEX(Bootstrap!$M$705:$U$714,Z38,Y38)) -> 0.4038304166 | AC38: =IF(Y38="","",INDEX(Bootstrap!$M$705:$U$714,Z38,Y38+1)) -> 1.011096191 | AD38: =IF(Y38="","",INDEX(Bootstrap!$M$705:$U$714,Z38,Y38+2)) -> 0.3187182227 | AE38: 18 | AF38: Period: | AG38: 1 | AH38: 2 | AI38: 3 | AJ38: 4 | AK38: 5 | AL38: 6 | AM38: 7 | AN38: 8 | AO38: 9 | BD38: 4 | BE38: 9 | BF38: ='Hat Matrix'!AI106 -> β8 | BG38: =IF(BD38="","",INDEX(Bootstrap!$AM$705:$AU$714,BE38,BD38)) -> 0.4038304166 | BH38: =IF(BD38="","",INDEX(Bootstrap!$AM$705:$AU$714,BE38,BD38+1)) -> 1.011096191 | BI38: =IF(BD38="","",INDEX(Bootstrap!$AM$705:$AU$714,BE38,BD38+2)) -> 0.3187182227 | BJ38: 18
A39: Parameter: | B39: 0 | C39: 2 | D39: 2 | E39: 2 | F39: 2 | G39: 2 | H39: 2 | I39: 2 | J39: 2 | L39: =COUNTIF(ParmP_CY_ALL,1) -> 0 | Y39: 4 | Z39: 10 | AA39: ='Hat Matrix'!AJ6 -> β9 | AB39: =IF(Y39="","",INDEX(Bootstrap!$M$705:$U$714,Z39,Y39)) -> -1.389284903 | AC39: =IF(Y39="","",INDEX(Bootstrap!$M$705:$U$714,Z39,Y39+1)) -> -1.495696591 | AD39: =IF(Y39="","",INDEX(Bootstrap!$M$705:$U$714,Z39,Y39+2)) -> 0.1434485125 | AE39: 19 | AF39: Parameter: | AG39: 0 | AH39: 2 | AI39: 2 | AJ39: 2 | AK39: 2 | AL39: 2 | AM39: 2 | AN39: 2 | AO39: 2 | AQ39: =COUNTIF(ParmI_CY_All,1) -> 0 | BD39: 4 | BE39: 10 | BF39: ='Hat Matrix'!AJ106 -> β9 | BG39: =IF(BD39="","",INDEX(Bootstrap!$AM$705:$AU$714,BE39,BD39)) -> -1.389284903 | BH39: =IF(BD39="","",INDEX(Bootstrap!$AM$705:$AU$714,BE39,BD39+1)) -> -1.495696591 | BI39: =IF(BD39="","",INDEX(Bootstrap!$AM$705:$AU$714,BE39,BD39+2)) -> 0.1434485125 | BJ39: 19
AA40: ='Hat Matrix'!AK6 ->  | AB40: =IF(Y40="","",INDEX(Bootstrap!$M$705:$U$714,Z40,Y40)) ->  | AC40: =IF(Y40="","",INDEX(Bootstrap!$M$705:$U$714,Z40,Y40+1)) ->  | AD40: =IF(Y40="","",INDEX(Bootstrap!$M$705:$U$714,Z40,Y40+2)) ->  | AE40: 20 | BF40: ='Hat Matrix'!AK106 ->  | BG40: =IF(BD40="","",INDEX(Bootstrap!$AM$705:$AU$714,BE40,BD40)) ->  | BH40: =IF(BD40="","",INDEX(Bootstrap!$AM$705:$AU$714,BE40,BD40+1)) ->  | BI40: =IF(BD40="","",INDEX(Bootstrap!$AM$705:$AU$714,BE40,BD40+2)) ->  | BJ40: 20
A41: Residual Graphs After Heteroscedasticity Adjustment (Paid) | AA41: ='Hat Matrix'!AL6 ->  | AB41: =IF(Y41="","",INDEX(Bootstrap!$M$705:$U$714,Z41,Y41)) ->  | AC41: =IF(Y41="","",INDEX(Bootstrap!$M$705:$U$714,Z41,Y41+1)) ->  | AD41: =IF(Y41="","",INDEX(Bootstrap!$M$705:$U$714,Z41,Y41+2)) ->  | AE41: 21 | AF41: Residual Graphs After Heteroscedasticity Adjustment (Incurred) | BF41: ='Hat Matrix'!AL106 ->  | BG41: =IF(BD41="","",INDEX(Bootstrap!$AM$705:$AU$714,BE41,BD41)) ->  | BH41: =IF(BD41="","",INDEX(Bootstrap!$AM$705:$AU$714,BE41,BD41+1)) ->  | BI41: =IF(BD41="","",INDEX(Bootstrap!$AM$705:$AU$714,BE41,BD41+2)) ->  | BJ41: 21
B42: =IF(B39=1,1,0) -> 0 | C42: =IF(C39=1,B42+1,B42) -> 0 | D42: =IF(D39=1,C42+1,C42) -> 0 | E42: 0 | F42: 0 | G42: 0 | H42: 0 | I42: 0 | J42: 0 | AA42: ='Hat Matrix'!AM6 ->  | AB42: =IF(Y42="","",INDEX(Bootstrap!$M$705:$U$714,Z42,Y42)) ->  | AC42: =IF(Y42="","",INDEX(Bootstrap!$M$705:$U$714,Z42,Y42+1)) ->  | AD42: =IF(Y42="","",INDEX(Bootstrap!$M$705:$U$714,Z42,Y42+2)) ->  | AE42: 22 | AG42: =IF(AG39=1,1,0) -> 0 | AH42: =IF(AH39=1,AG42+1,AG42) -> 0 | AI42: =IF(AI39=1,AH42+1,AH42) -> 0 | AJ42: 0 | AK42: 0 | AL42: 0 | AM42: 0 | AN42: 0 | AO42: 0 | BF42: ='Hat Matrix'!AM106 ->  | BG42: =IF(BD42="","",INDEX(Bootstrap!$AM$705:$AU$714,BE42,BD42)) ->  | BH42: =IF(BD42="","",INDEX(Bootstrap!$AM$705:$AU$714,BE42,BD42+1)) ->  | BI42: =IF(BD42="","",INDEX(Bootstrap!$AM$705:$AU$714,BE42,BD42+2)) ->  | BJ42: 22
B43: 2 | C43: 3 | D43: 4 | E43: 5 | F43: 6 | G43: 7 | H43: 8 | I43: 9 | J43: 10 | AA43: ='Hat Matrix'!AN6 ->  | AB43: =IF(Y43="","",INDEX(Bootstrap!$M$705:$U$714,Z43,Y43)) ->  | AC43: =IF(Y43="","",INDEX(Bootstrap!$M$705:$U$714,Z43,Y43+1)) ->  | AD43: =IF(Y43="","",INDEX(Bootstrap!$M$705:$U$714,Z43,Y43+2)) ->  | AE43: 23 | AG43: 2 | AH43: 3 | AI43: 4 | AJ43: 5 | AK43: 6 | AL43: 7 | AM43: 8 | AN43: 9 | AO43: 10 | BF43: ='Hat Matrix'!AN106 ->  | BG43: =IF(BD43="","",INDEX(Bootstrap!$AM$705:$AU$714,BE43,BD43)) ->  | BH43: =IF(BD43="","",INDEX(Bootstrap!$AM$705:$AU$714,BE43,BD43+1)) ->  | BI43: =IF(BD43="","",INDEX(Bootstrap!$AM$705:$AU$714,BE43,BD43+2)) ->  | BJ43: 23
AA44: ='Hat Matrix'!AO6 ->  | AB44: =IF(Y44="","",INDEX(Bootstrap!$M$705:$U$714,Z44,Y44)) ->  | AC44: =IF(Y44="","",INDEX(Bootstrap!$M$705:$U$714,Z44,Y44+1)) ->  | AD44: =IF(Y44="","",INDEX(Bootstrap!$M$705:$U$714,Z44,Y44+2)) ->  | AE44: 24 | BF44: ='Hat Matrix'!AO106 ->  | BG44: =IF(BD44="","",INDEX(Bootstrap!$AM$705:$AU$714,BE44,BD44)) ->  | BH44: =IF(BD44="","",INDEX(Bootstrap!$AM$705:$AU$714,BE44,BD44+1)) ->  | BI44: =IF(BD44="","",INDEX(Bootstrap!$AM$705:$AU$714,BE44,BD44+2)) ->  | BJ44: 24
AA45: ='Hat Matrix'!AP6 ->  | AB45: =IF(Y45="","",INDEX(Bootstrap!$M$705:$U$714,Z45,Y45)) ->  | AC45: =IF(Y45="","",INDEX(Bootstrap!$M$705:$U$714,Z45,Y45+1)) ->  | AD45: =IF(Y45="","",INDEX(Bootstrap!$M$705:$U$714,Z45,Y45+2)) ->  | AE45: 25 | BF45: ='Hat Matrix'!AP106 ->  | BG45: =IF(BD45="","",INDEX(Bootstrap!$AM$705:$AU$714,BE45,BD45)) ->  | BH45: =IF(BD45="","",INDEX(Bootstrap!$AM$705:$AU$714,BE45,BD45+1)) ->  | BI45: =IF(BD45="","",INDEX(Bootstrap!$AM$705:$AU$714,BE45,BD45+2)) ->  | BJ45: 25
AA46: ='Hat Matrix'!AQ6 ->  | AB46: =IF(Y46="","",INDEX(Bootstrap!$M$705:$U$714,Z46,Y46)) ->  | AC46: =IF(Y46="","",INDEX(Bootstrap!$M$705:$U$714,Z46,Y46+1)) ->  | AD46: =IF(Y46="","",INDEX(Bootstrap!$M$705:$U$714,Z46,Y46+2)) ->  | AE46: 26 | BF46: ='Hat Matrix'!AQ106 ->  | BG46: =IF(BD46="","",INDEX(Bootstrap!$AM$705:$AU$714,BE46,BD46)) ->  | BH46: =IF(BD46="","",INDEX(Bootstrap!$AM$705:$AU$714,BE46,BD46+1)) ->  | BI46: =IF(BD46="","",INDEX(Bootstrap!$AM$705:$AU$714,BE46,BD46+2)) ->  | BJ46: 26
AA47: ='Hat Matrix'!AR6 ->  | AB47: =IF(Y47="","",INDEX(Bootstrap!$M$705:$U$714,Z47,Y47)) ->  | AC47: =IF(Y47="","",INDEX(Bootstrap!$M$705:$U$714,Z47,Y47+1)) ->  | AD47: =IF(Y47="","",INDEX(Bootstrap!$M$705:$U$714,Z47,Y47+2)) ->  | AE47: 27 | BF47: ='Hat Matrix'!AR106 ->  | BG47: =IF(BD47="","",INDEX(Bootstrap!$AM$705:$AU$714,BE47,BD47)) ->  | BH47: =IF(BD47="","",INDEX(Bootstrap!$AM$705:$AU$714,BE47,BD47+1)) ->  | BI47: =IF(BD47="","",INDEX(Bootstrap!$AM$705:$AU$714,BE47,BD47+2)) ->  | BJ47: 27
AA48: ='Hat Matrix'!AS6 ->  | AB48: =IF(Y48="","",INDEX(Bootstrap!$M$705:$U$714,Z48,Y48)) ->  | AC48: =IF(Y48="","",INDEX(Bootstrap!$M$705:$U$714,Z48,Y48+1)) ->  | AD48: =IF(Y48="","",INDEX(Bootstrap!$M$705:$U$714,Z48,Y48+2)) ->  | AE48: 28 | BF48: ='Hat Matrix'!AS106 ->  | BG48: =IF(BD48="","",INDEX(Bootstrap!$AM$705:$AU$714,BE48,BD48)) ->  | BH48: =IF(BD48="","",INDEX(Bootstrap!$AM$705:$AU$714,BE48,BD48+1)) ->  | BI48: =IF(BD48="","",INDEX(Bootstrap!$AM$705:$AU$714,BE48,BD48+2)) ->  | BJ48: 28
A77: Model Structure (Paid) | AF77: Model Structure (Incurred)
A130: Simulated Residuals (Paid) | AF130: Simulated Residuals (Incurred)
A166: Relativities Before Heteroscedasticity Adjustment (Paid) | AF166: Relativities Before Heteroscedasticity Adjustment (Incurred)
A185: Relativities After Heteroscedasticity Adjustment (Paid) | AF185: Relativities After Heteroscedasticity Adjustment (Incurred)
A204: Normality Plots (Paid) | AF204: Normality Plots (Incurred)
A222: N = | B222: =No_of_Obs_Pd-Calcs!J61 -> 55 | E222: ="P-Value = "&TEXT(pvaluecalc(B222,K222),"0.0%") -> P-Value = 19.1% | J222: R2 = | K222: =Calcs!AF5 -> 0.9717882839 | M222: N = | N222: =No_of_Obs_Pd-Calcs!J61 -> 55 | Q222: ="P-Value = "&TEXT(pvaluecalc(N222,W222),"0.0%") -> P-Value = 14.8% | V222: R2 = | W222: =Calcs!AM5 -> 0.9691570406 | AF222: N = | AG222: =No_of_Obs_Inc-Calcs!J261 -> 55 | AJ222: ="P-Value = "&TEXT(pvaluecalc(AG222,AP222),"0.0%") -> P-Value = 19.1% | AO222: R2 = | AP222: =Calcs!AF205 -> 0.9717882839 | AR222: N = | AS222: =No_of_Obs_Inc-Calcs!J261 -> 55 | AV222: ="P-Value = "&TEXT(pvaluecalc(AS222,BB222),"0.0%") -> P-Value = 79.6% | BA222: R2 = | BB222: =Calcs!AM205 -> 0.9884855112
A223: ="Normal: MU = "&TEXT(Calcs!V1,"0.00")&", Sigma = "&TEXT(Calcs!W1,"0.00") -> Normal: MU = 1.11, Sigma = 224.08 | F223: ="AIC = "&TEXT(Calcs!W62,"0.0")&", BIC = "&TEXT(Calcs!W63,"0.0") -> AIC = 592.2, BIC = 474.2 | M223: ="Normal: MU = "&TEXT(Calcs!X1,"0.00")&", Sigma = "&TEXT(Calcs!Y1,"0.00") -> Normal: MU = 1.40, Sigma = 228.38 | S223: ="AIC = "&TEXT(Calcs!Y62,"0.0")&", BIC = "&TEXT(Calcs!Y63,"0.0") -> AIC = 603.2, BIC = 489.2 | AF223: ="Normal: MU = "&TEXT(Calcs!V201,"0.00")&", Sigma = "&TEXT(Calcs!W201,"0.00") -> Normal: MU = 1.11, Sigma = 224.08 | AK223: ="AIC = "&TEXT(Calcs!W262,"0.0")&", BIC = "&TEXT(Calcs!W263,"0.0") -> AIC = 592.2, BIC = 474.2 | AR223: ="Normal: MU = "&TEXT(Calcs!X201,"0.00")&", Sigma = "&TEXT(Calcs!Y201,"0.00") -> Normal: MU = 1.19, Sigma = 226.58 | AX223: ="AIC = "&TEXT(Calcs!Y262,"0.0")&", BIC = "&TEXT(Calcs!Y263,"0.0") -> AIC = 550.7, BIC = 438.8
A225: Box-Whisker Plots (Paid) | AF225: Box-Whisker Plots (Incurred)
C243: Interquartile Range = | D243: ="["&TEXT(Calcs!AR6,"0.00")&", "&TEXT(Calcs!AR7,"0.00")&"]" -> [-147.44, 147.04] | J243: Median = | K243: =Calcs!AR16 -> -26.64047839 | O243: Interquartile Range = | P243: ="["&TEXT(Calcs!AZ6,"0.00")&", "&TEXT(Calcs!AZ7,"0.00")&"]" -> [-188.96, 181.72] | V243: Median = | W243: =Calcs!AZ16 -> -18.95108736 | AH243: Interquartile Range = | AI243: ="["&TEXT(Calcs!AR206,"0.00")&", "&TEXT(Calcs!AR207,"0.00")&"]" -> [-147.44, 147.04] | AO243: Median = | AP243: =Calcs!AR216 -> -26.64047839 | AT243: Interquartile Range = | AU243: ="["&TEXT(Calcs!AZ206,"0.00")&", "&TEXT(Calcs!AZ207,"0.00")&"]" -> [-154.79, 169.38] | BA243: Median = | BB243: =Calcs!AZ216 -> -21.31276031
A244: Outliers = | B244: =COUNTIF(Calcs!$AP$20:$AP$47,"Q130")+COUNTIF(Calcs!$AP$20:$AP$47,"Q330") -> 4 | M244: Outliers = | N244: =COUNTIF(Calcs!$AX$20:$AX$47,"Q130")+COUNTIF(Calcs!$AX$20:$AX$47,"Q330") -> 0 | AF244: Outliers = | AG244: =COUNTIF(Calcs!$AP$220:$AP$247,"Q130")+COUNTIF(Calcs!$AP$220:$AP$247,"Q330") -> 4 | AR244: Outliers = | AS244: =COUNTIF(Calcs!$AX$220:$AX$247,"Q130")+COUNTIF(Calcs!$AX$220:$AX$247,"Q330") -> 1
A247: ="Plots of Paid Link Ratio Tests ("&TEXT(RegressCol1,"0")&" - "&TEXT(RegressCol2,"0")&")" -> Plots of Paid Link Ratio Tests (12 - 24) | Z247: First Column: | AA247: 12 | AF247: ="Plots of Incurred Link Ratio Tests ("&TEXT(RegressCol1,"0")&" - "&TEXT(RegressCol2,"0")&")" -> Plots of Incurred Link Ratio Tests (12 - 24)
Z248: Delta: | AA248: 1 | AB248: =VLOOKUP(RegressDelta,DeltaTable,2) -> Volume Weighted Average
AA249: =OFFSET(Inputs!$B$48,0,MATCH(RegressCol1,ColumnList)) -> 24
A267: ="Corr. = "&TEXT(Calcs!BT15,"0.000") -> Corr. = -0.354 | D267: ="P-Value = "&TEXT(Calcs!BT18,"0.000") -> P-Value = 0.000 | I267: ="Int. P-Value = "&TEXT(Calcs!BT31,"0.000") -> Int. P-Value = 0.056 | M267: ="Corr. = "&TEXT(Calcs!BT28,"0.000") -> Corr. = -0.664 | V267: ="P-Value = "&TEXT(Calcs!BX31,"0.000") -> P-Value = 0.051 | AF267: ="Corr. = "&TEXT(Calcs!BT215,"0.000") -> Corr. = -0.354 | AI267: ="P-Value = "&TEXT(Calcs!BT218,"0.000") -> P-Value = 0.000 | AN267: ="Int. P-Value = "&TEXT(Calcs!BT231,"0.000") -> Int. P-Value = 0.056 | AR267: ="Corr. = "&TEXT(Calcs!BT228,"0.000") -> Corr. = -0.664 | BA267: ="P-Value = "&TEXT(Calcs!BX231,"0.000") -> P-Value = 0.051
A287: ="Corr. = "&TEXT(Calcs!BT41,"0.000") -> Corr. = 0.312 | I287: ="P-Value = "&TEXT(Calcs!BT44,"0.000") -> P-Value = 0.413 | M287: ="Corr. = "&TEXT(Calcs!BT54,"0.000") -> Corr. = -0.839 | V287: ="P-Value = "&TEXT(Calcs!BT57,"0.000") -> P-Value = 0.005 | AF287: ="Corr. = "&TEXT(Calcs!BT241,"0.000") -> Corr. = 0.312 | AN287: ="P-Value = "&TEXT(Calcs!BT244,"0.000") -> P-Value = 0.413 | AR287: ="Corr. = "&TEXT(Calcs!BT254,"0.000") -> Corr. = -0.839 | BA287: ="P-Value = "&TEXT(Calcs!BT257,"0.000") -> P-Value = 0.005
A307: ="Corr. = "&TEXT(Calcs!BT67,"0.000") -> Corr. = 0.795 | I307: ="P-Value = "&TEXT(Calcs!BT70,"0.000") -> P-Value = 0.010 | AF307: ="Corr. = "&TEXT(Calcs!BT267,"0.000") -> Corr. = 0.795 | AN307: ="P-Value = "&TEXT(Calcs!BT270,"0.000") -> P-Value = 0.010
A310: Test of the Independence Between Accident Years (Paid) | AF310: Test of the Independence Between Accident Years (Incurred)
B311: 1 | C311: 2 | D311: 3 | E311: 4 | F311: 5 | G311: 6 | H311: 7 | I311: 8 | J311: 9 | N311: Cal Year | AG311: 1 | AH311: 2 | AI311: 3 | AJ311: 4 | AK311: 5 | AL311: 6 | AM311: 7 | AN311: 8 | AO311: 9 | AS311: Cal Year
A312: Acc Year | B312: 12 | C312: 24 | D312: 36 | E312: 48 | F312: 60 | G312: 72 | H312: 84 | I312: 96 | J312: 108 | N312: Small | O312: Large | AF312: Acc Year | AG312: 12 | AH312: 24 | AI312: 36 | AJ312: 48 | AK312: 60 | AL312: 72 | AM312: 84 | AN312: 96 | AO312: 108 | AS312: Small | AT312: Large
A313: =FirstYear -> 2006 | B313: =IF(B$311+$K313-1<TriangleSize,Inputs!C49/Inputs!B49,"") -> 3.143200465 | C313: =IF(C$311+$K313-1<TriangleSize,Inputs!D49/Inputs!C49,"") -> 1.542806289 | D313: =IF(D$311+$K313-1<TriangleSize,Inputs!E49/Inputs!D49,"") -> 1.278298652 | E313: =IF(E$311+$K313-1<TriangleSize,Inputs!F49/Inputs!E49,"") -> 1.237719484 | F313: =IF(F$311+$K313-1<TriangleSize,Inputs!G49/Inputs!F49,"") -> 1.209207036 | G313: =IF(G$311+$K313-1<TriangleSize,Inputs!H49/Inputs!G49,"") -> 1.044078995 | H313: =IF(H$311+$K313-1<TriangleSize,Inputs!I49/Inputs!H49,"") -> 1.040374043 | I313: =IF(I$311+$K313-1<TriangleSize,Inputs!J49/Inputs!I49,"") -> 1.063009146 | J313: =IF(J$311+$K313-1<TriangleSize,Inputs!K49/Inputs!J49,"") -> 1.017724725 | K313: 1 | N313: =COUNTIF(N$325:N$333,-1) -> 1 | O313: =COUNTIF(N$325:N$333,1) -> 0 | AF313: =FirstYear -> 2006 | AG313: =IF(AG$311+$AP313-1<TriangleSize,Inputs!C63/Inputs!B63,"") -> 3.143200465 | AH313: =IF(AH$311+$AP313-1<TriangleSize,Inputs!D63/Inputs!C63,"") -> 1.542806289 | AI313: =IF(AI$311+$AP313-1<TriangleSize,Inputs!E63/Inputs!D63,"") -> 1.278298652 | AJ313: =IF(AJ$311+$AP313-1<TriangleSize,Inputs!F63/Inputs!E63,"") -> 1.237719484 | AK313: =IF(AK$311+$AP313-1<TriangleSize,Inputs!G63/Inputs!F63,"") -> 1.209207036 | AL313: =IF(AL$311+$AP313-1<TriangleSize,Inputs!H63/Inputs!G63,"") -> 1.044078995 | AM313: =IF(AM$311+$AP313-1<TriangleSize,Inputs!I63/Inputs!H63,"") -> 1.040374043 | AN313: =IF(AN$311+$AP313-1<TriangleSize,Inputs!J63/Inputs!I63,"") -> 1.063009146 | AO313: =IF(AO$311+$AP313-1<TriangleSize,Inputs!K63/Inputs!J63,"") -> 1.017724725 | AP313: 1 | AS313: =COUNTIF(AS$325:AS$333,-1) -> 1 | AT313: =COUNTIF(AS$325:AS$333,1) -> 0
A314: =A313+1 -> 2007 | B314: =IF(B$311+$K314-1<TriangleSize,Inputs!C50/Inputs!B50,"") -> 3.51058168 | C314: =IF(C$311+$K314-1<TriangleSize,Inputs!D50/Inputs!C50,"") -> 1.755492708 | D314: =IF(D$311+$K314-1<TriangleSize,Inputs!E50/Inputs!D50,"") -> 1.545286178 | E314: =IF(E$311+$K314-1<TriangleSize,Inputs!F50/Inputs!E50,"") -> 1.132926394 | F314: =IF(F$311+$K314-1<TriangleSize,Inputs!G50/Inputs!F50,"") -> 1.084493377 | G314: =IF(G$311+$K314-1<TriangleSize,Inputs!H50/Inputs!G50,"") -> 1.128105808 | H314: =IF(H$311+$K314-1<TriangleSize,Inputs!I50/Inputs!H50,"") -> 1.05726756 | I314: =IF(I$311+$K314-1<TriangleSize,Inputs!J50/Inputs!I50,"") -> 1.086496261 | J314: =IF(J$311+$K314-1<TriangleSize,Inputs!K50/Inputs!J50,"") ->  | K314: 2 | N314: =COUNTIF(O$325:O$333,-1) -> 1 | O314: =COUNTIF(O$325:O$333,1) -> 0 | AF314: =AF313+1 -> 2007 | AG314: =IF(AG$311+$AP314-1<TriangleSize,Inputs!C64/Inputs!B64,"") -> 3.51058168 | AH314: =IF(AH$311+$AP314-1<TriangleSize,Inputs!D64/Inputs!C64,"") -> 1.755492708 | AI314: =IF(AI$311+$AP314-1<TriangleSize,Inputs!E64/Inputs!D64,"") -> 1.545286178 | AJ314: =IF(AJ$311+$AP314-1<TriangleSize,Inputs!F64/Inputs!E64,"") -> 1.132926394 | AK314: =IF(AK$311+$AP314-1<TriangleSize,Inputs!G64/Inputs!F64,"") -> 1.084493377 | AL314: =IF(AL$311+$AP314-1<TriangleSize,Inputs!H64/Inputs!G64,"") -> 1.128105808 | AM314: =IF(AM$311+$AP314-1<TriangleSize,Inputs!I64/Inputs!H64,"") -> 1.05726756 | AN314: =IF(AN$311+$AP314-1<TriangleSize,Inputs!J64/Inputs!I64,"") -> 1.086496261 | AO314: =IF(AO$311+$AP314-1<TriangleSize,Inputs!K64/Inputs!J64,"") ->  | AP314: 2 | AS314: =COUNTIF(AT$325:AT$333,-1) -> 1 | AT314: =COUNTIF(AT$325:AT$333,1) -> 0
A315: =A314+1 -> 2008 | B315: =IF(B$311+$K315-1<TriangleSize,Inputs!C51/Inputs!B51,"") -> 4.448450468 | C315: =IF(C$311+$K315-1<TriangleSize,Inputs!D51/Inputs!C51,"") -> 1.716718022 | D315: =IF(D$311+$K315-1<TriangleSize,Inputs!E51/Inputs!D51,"") -> 1.458256725 | E315: =IF(E$311+$K315-1<TriangleSize,Inputs!F51/Inputs!E51,"") -> 1.232078658 | F315: =IF(F$311+$K315-1<TriangleSize,Inputs!G51/Inputs!F51,"") -> 1.036859805 | G315: =IF(G$311+$K315-1<TriangleSize,Inputs!H51/Inputs!G51,"") -> 1.120010124 | H315: =IF(H$311+$K315-1<TriangleSize,Inputs!I51/Inputs!H51,"") -> 1.060576896 | I315: =IF(I$311+$K315-1<TriangleSize,Inputs!J51/Inputs!I51,"") ->  | J315: =IF(J$311+$K315-1<TriangleSize,Inputs!K51/Inputs!J51,"") ->  | K315: 3 | N315: =COUNTIF(P$325:P$333,-1) -> 1 | O315: =COUNTIF(P$325:P$333,1) -> 2 | AF315: =AF314+1 -> 2008 | AG315: =IF(AG$311+$AP315-1<TriangleSize,Inputs!C65/Inputs!B65,"") -> 4.448450468 | AH315: =IF(AH$311+$AP315-1<TriangleSize,Inputs!D65/Inputs!C65,"") -> 1.716718022 | AI315: =IF(AI$311+$AP315-1<TriangleSize,Inputs!E65/Inputs!D65,"") -> 1.458256725 | AJ315: =IF(AJ$311+$AP315-1<TriangleSize,Inputs!F65/Inputs!E65,"") -> 1.232078658 | AK315: =IF(AK$311+$AP315-1<TriangleSize,Inputs!G65/Inputs!F65,"") -> 1.036859805 | AL315: =IF(AL$311+$AP315-1<TriangleSize,Inputs!H65/Inputs!G65,"") -> 1.120010124 | AM315: =IF(AM$311+$AP315-1<TriangleSize,Inputs!I65/Inputs!H65,"") -> 1.060576896 | AN315: =IF(AN$311+$AP315-1<TriangleSize,Inputs!J65/Inputs!I65,"") ->  | AO315: =IF(AO$311+$AP315-1<TriangleSize,Inputs!K65/Inputs!J65,"") ->  | AP315: 3 | AS315: =COUNTIF(AU$325:AU$333,-1) -> 1 | AT315: =COUNTIF(AU$325:AU$333,1) -> 2
A316: 2009 | B316: =IF(B$311+$K316-1<TriangleSize,Inputs!C52/Inputs!B52,"") -> 4.568002112 | C316: =IF(C$311+$K316-1<TriangleSize,Inputs!D52/Inputs!C52,"") -> 1.547051925 | D316: =IF(D$311+$K316-1<TriangleSize,Inputs!E52/Inputs!D52,"") -> 1.711784303 | E316: =IF(E$311+$K316-1<TriangleSize,Inputs!F52/Inputs!E52,"") -> 1.072517856 | F316: =IF(F$311+$K316-1<TriangleSize,Inputs!G52/Inputs!F52,"") -> 1.087359604 | G316: =IF(G$311+$K316-1<TriangleSize,Inputs!H52/Inputs!G52,"") -> 1.047075958 | H316: =IF(H$311+$K316-1<TriangleSize,Inputs!I52/Inputs!H52,"") ->  | I316: =IF(I$311+$K316-1<TriangleSize,Inputs!J52/Inputs!I52,"") ->  | J316: =IF(J$311+$K316-1<TriangleSize,Inputs!K52/Inputs!J52,"") ->  | K316: 4 | N316: =COUNTIF(Q$325:Q$333,-1) -> 1 | O316: =COUNTIF(Q$325:Q$333,1) -> 3 | AF316: 2009 | AG316: =IF(AG$311+$AP316-1<TriangleSize,Inputs!C66/Inputs!B66,"") -> 4.568002112 | AH316: =IF(AH$311+$AP316-1<TriangleSize,Inputs!D66/Inputs!C66,"") -> 1.547051925 | AI316: =IF(AI$311+$AP316-1<TriangleSize,Inputs!E66/Inputs!D66,"") -> 1.711784303 | AJ316: =IF(AJ$311+$AP316-1<TriangleSize,Inputs!F66/Inputs!E66,"") -> 1.072517856 | AK316: =IF(AK$311+$AP316-1<TriangleSize,Inputs!G66/Inputs!F66,"") -> 1.087359604 | AL316: =IF(AL$311+$AP316-1<TriangleSize,Inputs!H66/Inputs!G66,"") -> 1.047075958 | AM316: =IF(AM$311+$AP316-1<TriangleSize,Inputs!I66/Inputs!H66,"") ->  | AN316: =IF(AN$311+$AP316-1<TriangleSize,Inputs!J66/Inputs!I66,"") ->  | AO316: =IF(AO$311+$AP316-1<TriangleSize,Inputs!K66/Inputs!J66,"") ->  | AP316: 4 | AS316: =COUNTIF(AV$325:AV$333,-1) -> 1 | AT316: =COUNTIF(AV$325:AV$333,1) -> 3
A317: 2010 | B317: =IF(B$311+$K317-1<TriangleSize,Inputs!C53/Inputs!B53,"") -> 2.564198032 | C317: =IF(C$311+$K317-1<TriangleSize,Inputs!D53/Inputs!C53,"") -> 1.872955515 | D317: =IF(D$311+$K317-1<TriangleSize,Inputs!E53/Inputs!D53,"") -> 1.361544927 | E317: =IF(E$311+$K317-1<TriangleSize,Inputs!F53/Inputs!E53,"") -> 1.174217455 | F317: =IF(F$311+$K317-1<TriangleSize,Inputs!G53/Inputs!F53,"") -> 1.138314536 | G317: =IF(G$311+$K317-1<TriangleSize,Inputs!H53/Inputs!G53,"") ->  | H317: =IF(H$311+$K317-1<TriangleSize,Inputs!I53/Inputs!H53,"") ->  | I317: =IF(I$311+$K317-1<TriangleSize,Inputs!J53/Inputs!I53,"") ->  | J317: =IF(J$311+$K317-1<TriangleSize,Inputs!K53/Inputs!J53,"") ->  | K317: 5 | N317: =COUNTIF(R$325:R$333,-1) -> 3 | O317: =COUNTIF(R$325:R$333,1) -> 2 | AF317: 2010 | AG317: =IF(AG$311+$AP317-1<TriangleSize,Inputs!C67/Inputs!B67,"") -> 2.564198032 | AH317: =IF(AH$311+$AP317-1<TriangleSize,Inputs!D67/Inputs!C67,"") -> 1.872955515 | AI317: =IF(AI$311+$AP317-1<TriangleSize,Inputs!E67/Inputs!D67,"") -> 1.361544927 | AJ317: =IF(AJ$311+$AP317-1<TriangleSize,Inputs!F67/Inputs!E67,"") -> 1.174217455 | AK317: =IF(AK$311+$AP317-1<TriangleSize,Inputs!G67/Inputs!F67,"") -> 1.138314536 | AL317: =IF(AL$311+$AP317-1<TriangleSize,Inputs!H67/Inputs!G67,"") ->  | AM317: =IF(AM$311+$AP317-1<TriangleSize,Inputs!I67/Inputs!H67,"") ->  | AN317: =IF(AN$311+$AP317-1<TriangleSize,Inputs!J67/Inputs!I67,"") ->  | AO317: =IF(AO$311+$AP317-1<TriangleSize,Inputs!K67/Inputs!J67,"") ->  | AP317: 5 | AS317: =COUNTIF(AW$325:AW$333,-1) -> 3 | AT317: =COUNTIF(AW$325:AW$333,1) -> 2
A318: 2011 | B318: =IF(B$311+$K318-1<TriangleSize,Inputs!C54/Inputs!B54,"") -> 3.365587733 | C318: =IF(C$311+$K318-1<TriangleSize,Inputs!D54/Inputs!C54,"") -> 1.635678963 | D318: =IF(D$311+$K318-1<TriangleSize,Inputs!E54/Inputs!D54,"") -> 1.369161949 | E318: =IF(E$311+$K318-1<TriangleSize,Inputs!F54/Inputs!E54,"") -> 1.236442946 | F318: =IF(F$311+$K318-1<TriangleSize,Inputs!G54/Inputs!F54,"") ->  | G318: =IF(G$311+$K318-1<TriangleSize,Inputs!H54/Inputs!G54,"") ->  | H318: =IF(H$311+$K318-1<TriangleSize,Inputs!I54/Inputs!H54,"") ->  | I318: =IF(I$311+$K318-1<TriangleSize,Inputs!J54/Inputs!I54,"") ->  | J318: =IF(J$311+$K318-1<TriangleSize,Inputs!K54/Inputs!J54,"") ->  | K318: 6 | N318: =COUNTIF(S$325:S$333,-1) -> 3 | O318: =COUNTIF(S$325:S$333,1) -> 3 | AF318: 2011 | AG318: =IF(AG$311+$AP318-1<TriangleSize,Inputs!C68/Inputs!B68,"") -> 3.365587733 | AH318: =IF(AH$311+$AP318-1<TriangleSize,Inputs!D68/Inputs!C68,"") -> 1.635678963 | AI318: =IF(AI$311+$AP318-1<TriangleSize,Inputs!E68/Inputs!D68,"") -> 1.369161949 | AJ318: =IF(AJ$311+$AP318-1<TriangleSize,Inputs!F68/Inputs!E68,"") -> 1.236442946 | AK318: =IF(AK$311+$AP318-1<TriangleSize,Inputs!G68/Inputs!F68,"") ->  | AL318: =IF(AL$311+$AP318-1<TriangleSize,Inputs!H68/Inputs!G68,"") ->  | AM318: =IF(AM$311+$AP318-1<TriangleSize,Inputs!I68/Inputs!H68,"") ->  | AN318: =IF(AN$311+$AP318-1<TriangleSize,Inputs!J68/Inputs!I68,"") ->  | AO318: =IF(AO$311+$AP318-1<TriangleSize,Inputs!K68/Inputs!J68,"") ->  | AP318: 6 | AS318: =COUNTIF(AX$325:AX$333,-1) -> 3 | AT318: =COUNTIF(AX$325:AX$333,1) -> 3
A319: 2012 | B319: =IF(B$311+$K319-1<TriangleSize,Inputs!C55/Inputs!B55,"") -> 2.922798254 | C319: =IF(C$311+$K319-1<TriangleSize,Inputs!D55/Inputs!C55,"") -> 1.878098944 | D319: =IF(D$311+$K319-1<TriangleSize,Inputs!E55/Inputs!D55,"") -> 1.439392593 | E319: =IF(E$311+$K319-1<TriangleSize,Inputs!F55/Inputs!E55,"") ->  | F319: =IF(F$311+$K319-1<TriangleSize,Inputs!G55/Inputs!F55,"") ->  | G319: =IF(G$311+$K319-1<TriangleSize,Inputs!H55/Inputs!G55,"") ->  | H319: =IF(H$311+$K319-1<TriangleSize,Inputs!I55/Inputs!H55,"") ->  | I319: =IF(I$311+$K319-1<TriangleSize,Inputs!J55/Inputs!I55,"") ->  | J319: =IF(J$311+$K319-1<TriangleSize,Inputs!K55/Inputs!J55,"") ->  | K319: 7 | N319: =COUNTIF(T$325:T$333,-1) -> 6 | O319: =COUNTIF(T$325:T$333,1) -> 1 | AF319: 2012 | AG319: =IF(AG$311+$AP319-1<TriangleSize,Inputs!C69/Inputs!B69,"") -> 2.922798254 | AH319: =IF(AH$311+$AP319-1<TriangleSize,Inputs!D69/Inputs!C69,"") -> 1.878098944 | AI319: =IF(AI$311+$AP319-1<TriangleSize,Inputs!E69/Inputs!D69,"") -> 1.439392593 | AJ319: =IF(AJ$311+$AP319-1<TriangleSize,Inputs!F69/Inputs!E69,"") ->  | AK319: =IF(AK$311+$AP319-1<TriangleSize,Inputs!G69/Inputs!F69,"") ->  | AL319: =IF(AL$311+$AP319-1<TriangleSize,Inputs!H69/Inputs!G69,"") ->  | AM319: =IF(AM$311+$AP319-1<TriangleSize,Inputs!I69/Inputs!H69,"") ->  | AN319: =IF(AN$311+$AP319-1<TriangleSize,Inputs!J69/Inputs!I69,"") ->  | AO319: =IF(AO$311+$AP319-1<TriangleSize,Inputs!K69/Inputs!J69,"") ->  | AP319: 7 | AS319: =COUNTIF(AY$325:AY$333,-1) -> 6 | AT319: =COUNTIF(AY$325:AY$333,1) -> 1
A320: 2013 | B320: =IF(B$311+$K320-1<TriangleSize,Inputs!C56/Inputs!B56,"") -> 3.953288083 | C320: =IF(C$311+$K320-1<TriangleSize,Inputs!D56/Inputs!C56,"") -> 2.015650948 | D320: =IF(D$311+$K320-1<TriangleSize,Inputs!E56/Inputs!D56,"") ->  | E320: =IF(E$311+$K320-1<TriangleSize,Inputs!F56/Inputs!E56,"") ->  | F320: =IF(F$311+$K320-1<TriangleSize,Inputs!G56/Inputs!F56,"") ->  | G320: =IF(G$311+$K320-1<TriangleSize,Inputs!H56/Inputs!G56,"") ->  | H320: =IF(H$311+$K320-1<TriangleSize,Inputs!I56/Inputs!H56,"") ->  | I320: =IF(I$311+$K320-1<TriangleSize,Inputs!J56/Inputs!I56,"") ->  | J320: =IF(J$311+$K320-1<TriangleSize,Inputs!K56/Inputs!J56,"") ->  | K320: 8 | N320: =COUNTIF(U$325:U$333,-1) -> 3 | O320: =COUNTIF(U$325:U$333,1) -> 3 | AF320: 2013 | AG320: =IF(AG$311+$AP320-1<TriangleSize,Inputs!C70/Inputs!B70,"") -> 3.953288083 | AH320: =IF(AH$311+$AP320-1<TriangleSize,Inputs!D70/Inputs!C70,"") -> 2.015650948 | AI320: =IF(AI$311+$AP320-1<TriangleSize,Inputs!E70/Inputs!D70,"") ->  | AJ320: =IF(AJ$311+$AP320-1<TriangleSize,Inputs!F70/Inputs!E70,"") ->  | AK320: =IF(AK$311+$AP320-1<TriangleSize,Inputs!G70/Inputs!F70,"") ->  | AL320: =IF(AL$311+$AP320-1<TriangleSize,Inputs!H70/Inputs!G70,"") ->  | AM320: =IF(AM$311+$AP320-1<TriangleSize,Inputs!I70/Inputs!H70,"") ->  | AN320: =IF(AN$311+$AP320-1<TriangleSize,Inputs!J70/Inputs!I70,"") ->  | AO320: =IF(AO$311+$AP320-1<TriangleSize,Inputs!K70/Inputs!J70,"") ->  | AP320: 8 | AS320: =COUNTIF(AZ$325:AZ$333,-1) -> 3 | AT320: =COUNTIF(AZ$325:AZ$333,1) -> 3
A321: 2014 | B321: =IF(B$311+$K321-1<TriangleSize,Inputs!C57/Inputs!B57,"") -> 3.619178839 | C321: =IF(C$311+$K321-1<TriangleSize,Inputs!D57/Inputs!C57,"") ->  | D321: =IF(D$311+$K321-1<TriangleSize,Inputs!E57/Inputs!D57,"") ->  | E321: =IF(E$311+$K321-1<TriangleSize,Inputs!F57/Inputs!E57,"") ->  | F321: =IF(F$311+$K321-1<TriangleSize,Inputs!G57/Inputs!F57,"") ->  | G321: =IF(G$311+$K321-1<TriangleSize,Inputs!H57/Inputs!G57,"") ->  | H321: =IF(H$311+$K321-1<TriangleSize,Inputs!I57/Inputs!H57,"") ->  | I321: =IF(I$311+$K321-1<TriangleSize,Inputs!J57/Inputs!I57,"") ->  | J321: =IF(J$311+$K321-1<TriangleSize,Inputs!K57/Inputs!J57,"") ->  | K321: 9 | N321: =COUNTIF(V$325:V$333,-1) -> 1 | O321: =COUNTIF(V$325:V$333,1) -> 6 | AF321: 2014 | AG321: =IF(AG$311+$AP321-1<TriangleSize,Inputs!C71/Inputs!B71,"") -> 3.619178839 | AH321: =IF(AH$311+$AP321-1<TriangleSize,Inputs!D71/Inputs!C71,"") ->  | AI321: =IF(AI$311+$AP321-1<TriangleSize,Inputs!E71/Inputs!D71,"") ->  | AJ321: =IF(AJ$311+$AP321-1<TriangleSize,Inputs!F71/Inputs!E71,"") ->  | AK321: =IF(AK$311+$AP321-1<TriangleSize,Inputs!G71/Inputs!F71,"") ->  | AL321: =IF(AL$311+$AP321-1<TriangleSize,Inputs!H71/Inputs!G71,"") ->  | AM321: =IF(AM$311+$AP321-1<TriangleSize,Inputs!I71/Inputs!H71,"") ->  | AN321: =IF(AN$311+$AP321-1<TriangleSize,Inputs!J71/Inputs!I71,"") ->  | AO321: =IF(AO$311+$AP321-1<TriangleSize,Inputs!K71/Inputs!J71,"") ->  | AP321: 9 | AS321: =COUNTIF(BA$325:BA$333,-1) -> 1 | AT321: =COUNTIF(BA$325:BA$333,1) -> 6
A323: Median | B323: =MEDIAN(B313:B321) -> 3.51058168 | C323: =MEDIAN(C313:C321) -> 1.736105365 | D323: 1.439392593 | E323: 1.203148056 | F323: 1.087359604 | G323: 1.083543041 | H323: 1.05726756 | I323: 1.074752703 | J323: 1.017724725 | AF323: Median | AG323: =MEDIAN(AG313:AG321) -> 3.51058168 | AH323: =MEDIAN(AH313:AH321) -> 1.736105365 | AI323: 1.439392593 | AJ323: 1.203148056 | AK323: 1.087359604 | AL323: 1.083543041 | AM323: 1.05726756 | AN323: 1.074752703 | AO323: 1.017724725
B325: =IF(B313="","",IF(B313<B$323,-1,IF(B313>B$323,1,0))) -> -1 | C325: =IF(C313="","",IF(C313<C$323,-1,IF(C313>C$323,1,0))) -> -1 | D325: -1 | E325: 1 | F325: 1 | G325: -1 | H325: -1 | I325: -1 | J325: 0 | N325: =B325 -> -1 | O325: =C325 -> -1 | P325: =D325 -> -1 | Q325: =E325 -> 1 | R325: =F325 -> 1 | S325: =G325 -> -1 | T325: =H325 -> -1 | U325: =I325 -> -1 | V325: =J325 -> 0 | AG325: =IF(AG313="","",IF(AG313<AG$323,-1,IF(AG313>AG$323,1,0))) -> -1 | AH325: =IF(AH313="","",IF(AH313<AH$323,-1,IF(AH313>AH$323,1,0))) -> -1 | AI325: -1 | AJ325: 1 | AK325: 1 | AL325: -1 | AM325: -1 | AN325: -1 | AO325: 0 | AS325: =AG325 -> -1 | AT325: =AH325 -> -1 | AU325: =AI325 -> -1 | AV325: =AJ325 -> 1 | AW325: =AK325 -> 1 | AX325: =AL325 -> -1 | AY325: =AM325 -> -1 | AZ325: =AN325 -> -1 | BA325: =AO325 -> 0
B326: =IF(B314="","",IF(B314<B$323,-1,IF(B314>B$323,1,0))) -> 0 | C326: 1 | D326: 1 | E326: -1 | F326: -1 | G326: 1 | H326: 0 | I326: 1 | O326: =B326 -> 0 | P326: 1 | Q326: 1 | R326: -1 | S326: -1 | T326: 1 | U326: 0 | V326: 1 | AG326: =IF(AG314="","",IF(AG314<AG$323,-1,IF(AG314>AG$323,1,0))) -> 0 | AH326: 1 | AI326: 1 | AJ326: -1 | AK326: -1 | AL326: 1 | AM326: 0 | AN326: 1 | AT326: =AG326 -> 0 | AU326: 1 | AV326: 1 | AW326: -1 | AX326: -1 | AY326: 1 | AZ326: 0 | BA326: 1
B327: =IF(B315="","",IF(B315<B$323,-1,IF(B315>B$323,1,0))) -> 1 | C327: -1 | D327: 1 | E327: 1 | F327: -1 | G327: 1 | H327: 1 | P327: =B327 -> 1 | Q327: -1 | R327: 1 | S327: 1 | T327: -1 | U327: 1 | V327: 1 | AG327: =IF(AG315="","",IF(AG315<AG$323,-1,IF(AG315>AG$323,1,0))) -> 1 | AH327: -1 | AI327: 1 | AJ327: 1 | AK327: -1 | AL327: 1 | AM327: 1 | AU327: =AG327 -> 1 | AV327: -1 | AW327: 1 | AX327: 1 | AY327: -1 | AZ327: 1 | BA327: 1
B328: =IF(B316="","",IF(B316<B$323,-1,IF(B316>B$323,1,0))) -> 1 | C328: -1 | D328: 1 | E328: -1 | F328: 0 | G328: -1 | Q328: =B328 -> 1 | R328: -1 | S328: 1 | T328: -1 | U328: 0 | V328: -1 | AG328: =IF(AG316="","",IF(AG316<AG$323,-1,IF(AG316>AG$323,1,0))) -> 1 | AH328: -1 | AI328: 1 | AJ328: -1 | AK328: 0 | AL328: -1 | AV328: =AG328 -> 1 | AW328: -1 | AX328: 1 | AY328: -1 | AZ328: 0 | BA328: -1
B329: =IF(B317="","",IF(B317<B$323,-1,IF(B317>B$323,1,0))) -> -1 | C329: 1 | D329: -1 | E329: -1 | F329: 1 | R329: =B329 -> -1 | S329: =C329 -> 1 | T329: =D329 -> -1 | U329: =E329 -> -1 | V329: =F329 -> 1 | AG329: =IF(AG317="","",IF(AG317<AG$323,-1,IF(AG317>AG$323,1,0))) -> -1 | AH329: 1 | AI329: -1 | AJ329: -1 | AK329: 1 | AW329: =AG329 -> -1 | AX329: =AH329 -> 1 | AY329: =AI329 -> -1 | AZ329: =AJ329 -> -1 | BA329: =AK329 -> 1
B330: =IF(B318="","",IF(B318<B$323,-1,IF(B318>B$323,1,0))) -> -1 | C330: -1 | D330: -1 | E330: 1 | S330: =B330 -> -1 | T330: =C330 -> -1 | U330: =D330 -> -1 | V330: =E330 -> 1 | AG330: =IF(AG318="","",IF(AG318<AG$323,-1,IF(AG318>AG$323,1,0))) -> -1 | AH330: -1 | AI330: -1 | AJ330: 1 | AX330: =AG330 -> -1 | AY330: =AH330 -> -1 | AZ330: =AI330 -> -1 | BA330: =AJ330 -> 1
B331: =IF(B319="","",IF(B319<B$323,-1,IF(B319>B$323,1,0))) -> -1 | C331: 1 | D331: 0 | T331: =B331 -> -1 | U331: =C331 -> 1 | V331: =D331 -> 0 | AG331: =IF(AG319="","",IF(AG319<AG$323,-1,IF(AG319>AG$323,1,0))) -> -1 | AH331: 1 | AI331: 0 | AY331: =AG331 -> -1 | AZ331: =AH331 -> 1 | BA331: =AI331 -> 0
B332: =IF(B320="","",IF(B320<B$323,-1,IF(B320>B$323,1,0))) -> 1 | C332: 1 | U332: =B332 -> 1 | V332: =C332 -> 1 | AG332: =IF(AG320="","",IF(AG320<AG$323,-1,IF(AG320>AG$323,1,0))) -> 1 | AH332: 1 | AZ332: =AG332 -> 1 | BA332: =AH332 -> 1
B333: =IF(B321="","",IF(B321<B$323,-1,IF(B321>B$323,1,0))) -> 1 | V333: =B333 -> 1 | AG333: =IF(AG321="","",IF(AG321<AG$323,-1,IF(AG321>AG$323,1,0))) -> 1 | BA333: =AG333 -> 1
B341: ="Cumulative ("&TEXT(RegressCol2,"0")&") vs. Cumulative ("&TEXT(RegressCol1,"0")&")" -> Cumulative (24) vs. Cumulative (12)
B342: ="Cumulative @ "&TEXT(RegressCol2,"0")&" Months" -> Cumulative @ 24 Months
B343: ="Cumulative @ "&TEXT(RegressCol1,"0")&" Months" -> Cumulative @ 12 Months
B344: ="Incremental ("&TEXT(RegressCol2,"0")&") vs. Cumulative ("&TEXT(RegressCol1,"0")&")" -> Incremental (24) vs. Cumulative (12)
B345: ="Incremental @ "&TEXT(RegressCol2,"0")&" Months" -> Incremental @ 24 Months
B346: ="Incremental ("&TEXT(RegressCol2,"0")&") vs. Accident Year" -> Incremental (24) vs. Accident Year
B347: Accident Year
B348: ="Trend Adjusted Incremental ("&TEXT(RegressCol2,"0")&") vs. Cumulative ("&TEXT(RegressCol1,"0")&")" -> Trend Adjusted Incremental (24) vs. Cumulative (12)
B349: ="Trend Adj. Incr. @ "&TEXT(RegressCol2,"0")&" Months" -> Trend Adj. Incr. @ 24 Months
B350: ="Slope Adjusted Incremental ("&TEXT(RegressCol2,"0")&") vs. Accident Year" -> Slope Adjusted Incremental (24) vs. Accident Year
B351: ="Slope Adj. Incr. @ "&TEXT(RegressCol2,"0")&" Months" -> Slope Adj. Incr. @ 24 Months

Sheet Groups
A1: Notes: | B1: This sheet can be used to find the "optimal" hetero groups.
B2: Select "constraints" and selection criteria below, change "Auto Recalc" to TRUE and recalc workbook (hit [F9]).
B3: Change "Auto Recalc" to FALSE when not in use, otherwise this will greatly decrease simulation speed!
B5: Maximum Groups: | C5: 8
B6: Number of Top Groups: | C6: 10 | AD6: AIC | AE6: FALSE | AF6: StdDev
B7: Selection Criteria: | C7: BIC | AD7: BIC | AE7: TRUE | AF7: Mean
B8: Sort Option: | C8: Mean
B9: Auto Recalc: | C9: FALSE
A11: ="Top "&TopGroups&" Optimal Hetero Groups (Paid):" -> Top 10 Optimal Hetero Groups (Paid): | O11: ="Top "&TopGroups&" Optimal Hetero Groups (Incurred):" -> Top 10 Optimal Hetero Groups (Incurred):
A12: No. | B12: Group Label | C12: AIC | D12: BIC | E12: N | F12: Mu | G12: Sigma | H12: RSS | I12: R2 | J12: p-Value | K12: Outliers | L12: Actual Codes | O12: No. | P12: Group Label | Q12: AIC | R12: BIC | S12: N | T12: Mu | U12: Sigma | V12: RSS | W12: R2 | X12: p-Value | Y12: Outliers | Z12: Actual Codes
A13: Base | B13: =FindOptimalGroup(PdStdResiduals,PdOutliersAll,ParmP_AY_Tot,ParmP_DY_Tot,ParmP_CY_Tot,HeteroAdjOption,SortOption,Include_Zeros,Sample_Zeros,UseCriteria,TopGroups,MaxGroups,AutoGroups) -> 0 | C13: 0 | D13: 0 | E13: 0 | F13: 0 | G13: 0 | H13: 0 | I13: 0 | J13: 0 | K13: 0 | L13: 0 | O13: Base | P13: =FindOptimalGroup(Bootstrap!AC123:AL132,IncOutliersAll,ParmI_AY_Tot,ParmI_DY_Tot,ParmI_CY_Tot,HeteroAdjOption,SortOption,Include_Zeros,Sample_Zeros,UseCriteria,TopGroups,MaxGroups,AutoGroups) -> 0 | Q13: 0 | R13: 0 | S13: 0 | T13: 0 | U13: 0 | V13: 0 | W13: 0 | X13: 0 | Y13: 0 | Z13: 0
A14: 1 | B14: 0 | C14: 0 | D14: 0 | E14: 0 | F14: 0 | G14: 0 | H14: 0 | I14: 0 | J14: 0 | K14: 0 | L14: 0 | O14: 1 | P14: 0 | Q14: 0 | R14: 0 | S14: 0 | T14: 0 | U14: 0 | V14: 0 | W14: 0 | X14: 0 | Y14: 0 | Z14: 0
A15: 2 | B15: 0 | C15: 0 | D15: 0 | E15: 0 | F15: 0 | G15: 0 | H15: 0 | I15: 0 | J15: 0 | K15: 0 | L15: 0 | O15: 2 | P15: 0 | Q15: 0 | R15: 0 | S15: 0 | T15: 0 | U15: 0 | V15: 0 | W15: 0 | X15: 0 | Y15: 0 | Z15: 0
A16: 3 | B16: 0 | C16: 0 | D16: 0 | E16: 0 | F16: 0 | G16: 0 | H16: 0 | I16: 0 | J16: 0 | K16: 0 | L16: 0 | O16: 3 | P16: 0 | Q16: 0 | R16: 0 | S16: 0 | T16: 0 | U16: 0 | V16: 0 | W16: 0 | X16: 0 | Y16: 0 | Z16: 0
A17: 4 | B17: 0 | C17: 0 | D17: 0 | E17: 0 | F17: 0 | G17: 0 | H17: 0 | I17: 0 | J17: 0 | K17: 0 | L17: 0 | O17: 4 | P17: 0 | Q17: 0 | R17: 0 | S17: 0 | T17: 0 | U17: 0 | V17: 0 | W17: 0 | X17: 0 | Y17: 0 | Z17: 0
A18: 5 | B18: 0 | C18: 0 | D18: 0 | E18: 0 | F18: 0 | G18: 0 | H18: 0 | I18: 0 | J18: 0 | K18: 0 | L18: 0 | O18: 5 | P18: 0 | Q18: 0 | R18: 0 | S18: 0 | T18: 0 | U18: 0 | V18: 0 | W18: 0 | X18: 0 | Y18: 0 | Z18: 0
A19: 6 | B19: 0 | C19: 0 | D19: 0 | E19: 0 | F19: 0 | G19: 0 | H19: 0 | I19: 0 | J19: 0 | K19: 0 | L19: 0 | O19: 6 | P19: 0 | Q19: 0 | R19: 0 | S19: 0 | T19: 0 | U19: 0 | V19: 0 | W19: 0 | X19: 0 | Y19: 0 | Z19: 0
A20: 7 | B20: 0 | C20: 0 | D20: 0 | E20: 0 | F20: 0 | G20: 0 | H20: 0 | I20: 0 | J20: 0 | K20: 0 | L20: 0 | O20: 7 | P20: 0 | Q20: 0 | R20: 0 | S20: 0 | T20: 0 | U20: 0 | V20: 0 | W20: 0 | X20: 0 | Y20: 0 | Z20: 0
A21: 8 | B21: 0 | C21: 0 | D21: 0 | E21: 0 | F21: 0 | G21: 0 | H21: 0 | I21: 0 | J21: 0 | K21: 0 | L21: 0 | O21: 8 | P21: 0 | Q21: 0 | R21: 0 | S21: 0 | T21: 0 | U21: 0 | V21: 0 | W21: 0 | X21: 0 | Y21: 0 | Z21: 0
A22: 9 | B22: 0 | C22: 0 | D22: 0 | E22: 0 | F22: 0 | G22: 0 | H22: 0 | I22: 0 | J22: 0 | K22: 0 | L22: 0 | O22: 9 | P22: 0 | Q22: 0 | R22: 0 | S22: 0 | T22: 0 | U22: 0 | V22: 0 | W22: 0 | X22: 0 | Y22: 0 | Z22: 0
A23: 10 | B23: 0 | C23: 0 | D23: 0 | E23: 0 | F23: 0 | G23: 0 | H23: 0 | I23: 0 | J23: 0 | K23: 0 | L23: 0 | O23: 10 | P23: 0 | Q23: 0 | R23: 0 | S23: 0 | T23: 0 | U23: 0 | V23: 0 | W23: 0 | X23: 0 | Y23: 0 | Z23: 0
A24: 11 | B24: 0 | C24: 0 | D24: 0 | E24: 0 | F24: 0 | G24: 0 | H24: 0 | I24: 0 | J24: 0 | K24: 0 | L24: 0 | O24: 11 | P24: 0 | Q24: 0 | R24: 0 | S24: 0 | T24: 0 | U24: 0 | V24: 0 | W24: 0 | X24: 0 | Y24: 0 | Z24: 0
A25: 12 | B25: 0 | C25: 0 | D25: 0 | E25: 0 | F25: 0 | G25: 0 | H25: 0 | I25: 0 | J25: 0 | K25: 0 | L25: 0 | O25: 12 | P25: 0 | Q25: 0 | R25: 0 | S25: 0 | T25: 0 | U25: 0 | V25: 0 | W25: 0 | X25: 0 | Y25: 0 | Z25: 0
A26: 13 | B26: 0 | C26: 0 | D26: 0 | E26: 0 | F26: 0 | G26: 0 | H26: 0 | I26: 0 | J26: 0 | K26: 0 | L26: 0 | O26: 13 | P26: 0 | Q26: 0 | R26: 0 | S26: 0 | T26: 0 | U26: 0 | V26: 0 | W26: 0 | X26: 0 | Y26: 0 | Z26: 0
A27: 14 | B27: 0 | C27: 0 | D27: 0 | E27: 0 | F27: 0 | G27: 0 | H27: 0 | I27: 0 | J27: 0 | K27: 0 | L27: 0 | O27: 14 | P27: 0 | Q27: 0 | R27: 0 | S27: 0 | T27: 0 | U27: 0 | V27: 0 | W27: 0 | X27: 0 | Y27: 0 | Z27: 0
A28: 15 | B28: 0 | C28: 0 | D28: 0 | E28: 0 | F28: 0 | G28: 0 | H28: 0 | I28: 0 | J28: 0 | K28: 0 | L28: 0 | O28: 15 | P28: 0 | Q28: 0 | R28: 0 | S28: 0 | T28: 0 | U28: 0 | V28: 0 | W28: 0 | X28: 0 | Y28: 0 | Z28: 0
A29: 16 | B29: 0 | C29: 0 | D29: 0 | E29: 0 | F29: 0 | G29: 0 | H29: 0 | I29: 0 | J29: 0 | K29: 0 | L29: 0 | O29: 16 | P29: 0 | Q29: 0 | R29: 0 | S29: 0 | T29: 0 | U29: 0 | V29: 0 | W29: 0 | X29: 0 | Y29: 0 | Z29: 0
A30: 17 | B30: 0 | C30: 0 | D30: 0 | E30: 0 | F30: 0 | G30: 0 | H30: 0 | I30: 0 | J30: 0 | K30: 0 | L30: 0 | O30: 17 | P30: 0 | Q30: 0 | R30: 0 | S30: 0 | T30: 0 | U30: 0 | V30: 0 | W30: 0 | X30: 0 | Y30: 0 | Z30: 0
A31: 18 | B31: 0 | C31: 0 | D31: 0 | E31: 0 | F31: 0 | G31: 0 | H31: 0 | I31: 0 | J31: 0 | K31: 0 | L31: 0 | O31: 18 | P31: 0 | Q31: 0 | R31: 0 | S31: 0 | T31: 0 | U31: 0 | V31: 0 | W31: 0 | X31: 0 | Y31: 0 | Z31: 0
A32: 19 | B32: 0 | C32: 0 | D32: 0 | E32: 0 | F32: 0 | G32: 0 | H32: 0 | I32: 0 | J32: 0 | K32: 0 | L32: 0 | O32: 19 | P32: 0 | Q32: 0 | R32: 0 | S32: 0 | T32: 0 | U32: 0 | V32: 0 | W32: 0 | X32: 0 | Y32: 0 | Z32: 0
A33: 20 | B33: 0 | C33: 0 | D33: 0 | E33: 0 | F33: 0 | G33: 0 | H33: 0 | I33: 0 | J33: 0 | K33: 0 | L33: 0 | O33: 20 | P33: 0 | Q33: 0 | R33: 0 | S33: 0 | T33: 0 | U33: 0 | V33: 0 | W33: 0 | X33: 0 | Y33: 0 | Z33: 0
A34: 21 | B34: 0 | C34: 0 | D34: 0 | E34: 0 | F34: 0 | G34: 0 | H34: 0 | I34: 0 | J34: 0 | K34: 0 | L34: 0 | O34: 21 | P34: 0 | Q34: 0 | R34: 0 | S34: 0 | T34: 0 | U34: 0 | V34: 0 | W34: 0 | X34: 0 | Y34: 0 | Z34: 0
A35: 22 | B35: 0 | C35: 0 | D35: 0 | E35: 0 | F35: 0 | G35: 0 | H35: 0 | I35: 0 | J35: 0 | K35: 0 | L35: 0 | O35: 22 | P35: 0 | Q35: 0 | R35: 0 | S35: 0 | T35: 0 | U35: 0 | V35: 0 | W35: 0 | X35: 0 | Y35: 0 | Z35: 0
A36: 23 | B36: 0 | C36: 0 | D36: 0 | E36: 0 | F36: 0 | G36: 0 | H36: 0 | I36: 0 | J36: 0 | K36: 0 | L36: 0 | O36: 23 | P36: 0 | Q36: 0 | R36: 0 | S36: 0 | T36: 0 | U36: 0 | V36: 0 | W36: 0 | X36: 0 | Y36: 0 | Z36: 0
A37: 24 | B37: 0 | C37: 0 | D37: 0 | E37: 0 | F37: 0 | G37: 0 | H37: 0 | I37: 0 | J37: 0 | K37: 0 | L37: 0 | O37: 24 | P37: 0 | Q37: 0 | R37: 0 | S37: 0 | T37: 0 | U37: 0 | V37: 0 | W37: 0 | X37: 0 | Y37: 0 | Z37: 0
A38: 25 | B38: 0 | C38: 0 | D38: 0 | E38: 0 | F38: 0 | G38: 0 | H38: 0 | I38: 0 | J38: 0 | K38: 0 | L38: 0 | O38: 25 | P38: 0 | Q38: 0 | R38: 0 | S38: 0 | T38: 0 | U38: 0 | V38: 0 | W38: 0 | X38: 0 | Y38: 0 | Z38: 0

Sheet GLM
A1: Notes: | B1: This sheet can be used to find the "optimal" GLM parameters.
B2: GLM Error Distribution from Inputs, Hetero Groups and Outliers from Bootstrap sheet will be used, so reset before running if necessary.
B3: Change "Auto Recalc" to TRUE and recalc workbook (hit [F9]).
B4: Change "Auto Recalc" to FALSE when not in use, otherwise this will greatly decrease simulation speed!
B6: Auto Recalc: | C6: FALSE
A8: Optimal GLM Parameters (Paid): | Q8: Optimal GLM Parameters (Incurred):
A9: No. | B9: Test Description | C9: AIC | D9: BIC | E9: N | F9: Mu | G9: Sigma | H9: RSS | I9: R2 | J9: p-Value | K9: Outliers | L9: Alpha Codes | M9: Beta Codes | N9: Gamma Codes | Q9: No. | R9: Test Description | S9: AIC | T9: BIC | U9: N | V9: Mu | W9: Sigma | X9: RSS | Y9: R2 | Z9: p-Value | AA9: Outliers | AB9: Alpha Codes | AC9: Beta Codes | AD9: Gamma Codes
A10: Base | B10: =FindOptimalGLM(PaidDataTriangle,kValue,PdHeteroGroups,PdOutliersAll,AutoGLM) -> 0 | C10: 0 | D10: 0 | E10: 0 | F10: 0 | G10: 0 | H10: 0 | I10: 0 | J10: 0 | K10: 0 | L10: 0 | M10: 0 | N10: 0 | Q10: Base | R10: =FindOptimalGLM(IncDataTriangle,kValue,IncHeteroGroups,IncOutliersAll,AutoGLM) -> 0 | S10: 0 | T10: 0 | U10: 0 | V10: 0 | W10: 0 | X10: 0 | Y10: 0 | Z10: 0 | AA10: 0 | AB10: 0 | AC10: 0 | AD10: 0
A11: 1 | B11: 0 | C11: 0 | D11: 0 | E11: 0 | F11: 0 | G11: 0 | H11: 0 | I11: 0 | J11: 0 | K11: 0 | L11: 0 | M11: 0 | N11: 0 | Q11: 1 | R11: 0 | S11: 0 | T11: 0 | U11: 0 | V11: 0 | W11: 0 | X11: 0 | Y11: 0 | Z11: 0 | AA11: 0 | AB11: 0 | AC11: 0 | AD11: 0
A12: 2 | B12: 0 | C12: 0 | D12: 0 | E12: 0 | F12: 0 | G12: 0 | H12: 0 | I12: 0 | J12: 0 | K12: 0 | L12: 0 | M12: 0 | N12: 0 | Q12: 2 | R12: 0 | S12: 0 | T12: 0 | U12: 0 | V12: 0 | W12: 0 | X12: 0 | Y12: 0 | Z12: 0 | AA12: 0 | AB12: 0 | AC12: 0 | AD12: 0
A13: 3 | B13: 0 | C13: 0 | D13: 0 | E13: 0 | F13: 0 | G13: 0 | H13: 0 | I13: 0 | J13: 0 | K13: 0 | L13: 0 | M13: 0 | N13: 0 | Q13: 3 | R13: 0 | S13: 0 | T13: 0 | U13: 0 | V13: 0 | W13: 0 | X13: 0 | Y13: 0 | Z13: 0 | AA13: 0 | AB13: 0 | AC13: 0 | AD13: 0
A14: 4 | B14: 0 | C14: 0 | D14: 0 | E14: 0 | F14: 0 | G14: 0 | H14: 0 | I14: 0 | J14: 0 | K14: 0 | L14: 0 | M14: 0 | N14: 0 | Q14: 4 | R14: 0 | S14: 0 | T14: 0 | U14: 0 | V14: 0 | W14: 0 | X14: 0 | Y14: 0 | Z14: 0 | AA14: 0 | AB14: 0 | AC14: 0 | AD14: 0
A15: 5 | B15: 0 | C15: 0 | D15: 0 | E15: 0 | F15: 0 | G15: 0 | H15: 0 | I15: 0 | J15: 0 | K15: 0 | L15: 0 | M15: 0 | N15: 0 | Q15: 5 | R15: 0 | S15: 0 | T15: 0 | U15: 0 | V15: 0 | W15: 0 | X15: 0 | Y15: 0 | Z15: 0 | AA15: 0 | AB15: 0 | AC15: 0 | AD15: 0
A16: 6 | B16: 0 | C16: 0 | D16: 0 | E16: 0 | F16: 0 | G16: 0 | H16: 0 | I16: 0 | J16: 0 | K16: 0 | L16: 0 | M16: 0 | N16: 0 | Q16: 6 | R16: 0 | S16: 0 | T16: 0 | U16: 0 | V16: 0 | W16: 0 | X16: 0 | Y16: 0 | Z16: 0 | AA16: 0 | AB16: 0 | AC16: 0 | AD16: 0
A17: 7 | B17: 0 | C17: 0 | D17: 0 | E17: 0 | F17: 0 | G17: 0 | H17: 0 | I17: 0 | J17: 0 | K17: 0 | L17: 0 | M17: 0 | N17: 0 | Q17: 7 | R17: 0 | S17: 0 | T17: 0 | U17: 0 | V17: 0 | W17: 0 | X17: 0 | Y17: 0 | Z17: 0 | AA17: 0 | AB17: 0 | AC17: 0 | AD17: 0
A18: 8 | B18: 0 | C18: 0 | D18: 0 | E18: 0 | F18: 0 | G18: 0 | H18: 0 | I18: 0 | J18: 0 | K18: 0 | L18: 0 | M18: 0 | N18: 0 | Q18: 8 | R18: 0 | S18: 0 | T18: 0 | U18: 0 | V18: 0 | W18: 0 | X18: 0 | Y18: 0 | Z18: 0 | AA18: 0 | AB18: 0 | AC18: 0 | AD18: 0
A19: 9 | B19: 0 | C19: 0 | D19: 0 | E19: 0 | F19: 0 | G19: 0 | H19: 0 | I19: 0 | J19: 0 | K19: 0 | L19: 0 | M19: 0 | N19: 0 | Q19: 9 | R19: 0 | S19: 0 | T19: 0 | U19: 0 | V19: 0 | W19: 0 | X19: 0 | Y19: 0 | Z19: 0 | AA19: 0 | AB19: 0 | AC19: 0 | AD19: 0
A20: 10 | B20: 0 | C20: 0 | D20: 0 | E20: 0 | F20: 0 | G20: 0 | H20: 0 | I20: 0 | J20: 0 | K20: 0 | L20: 0 | M20: 0 | N20: 0 | Q20: 10 | R20: 0 | S20: 0 | T20: 0 | U20: 0 | V20: 0 | W20: 0 | X20: 0 | Y20: 0 | Z20: 0 | AA20: 0 | AB20: 0 | AC20: 0 | AD20: 0
A21: 11 | B21: 0 | C21: 0 | D21: 0 | E21: 0 | F21: 0 | G21: 0 | H21: 0 | I21: 0 | J21: 0 | K21: 0 | L21: 0 | M21: 0 | N21: 0 | Q21: 11 | R21: 0 | S21: 0 | T21: 0 | U21: 0 | V21: 0 | W21: 0 | X21: 0 | Y21: 0 | Z21: 0 | AA21: 0 | AB21: 0 | AC21: 0 | AD21: 0
A22: 12 | B22: 0 | C22: 0 | D22: 0 | E22: 0 | F22: 0 | G22: 0 | H22: 0 | I22: 0 | J22: 0 | K22: 0 | L22: 0 | M22: 0 | N22: 0 | Q22: 12 | R22: 0 | S22: 0 | T22: 0 | U22: 0 | V22: 0 | W22: 0 | X22: 0 | Y22: 0 | Z22: 0 | AA22: 0 | AB22: 0 | AC22: 0 | AD22: 0
A23: 13 | B23: 0 | C23: 0 | D23: 0 | E23: 0 | F23: 0 | G23: 0 | H23: 0 | I23: 0 | J23: 0 | K23: 0 | L23: 0 | M23: 0 | N23: 0 | Q23: 13 | R23: 0 | S23: 0 | T23: 0 | U23: 0 | V23: 0 | W23: 0 | X23: 0 | Y23: 0 | Z23: 0 | AA23: 0 | AB23: 0 | AC23: 0 | AD23: 0
A24: 14 | B24: 0 | C24: 0 | D24: 0 | E24: 0 | F24: 0 | G24: 0 | H24: 0 | I24: 0 | J24: 0 | K24: 0 | L24: 0 | M24: 0 | N24: 0 | Q24: 14 | R24: 0 | S24: 0 | T24: 0 | U24: 0 | V24: 0 | W24: 0 | X24: 0 | Y24: 0 | Z24: 0 | AA24: 0 | AB24: 0 | AC24: 0 | AD24: 0
A25: 15 | B25: 0 | C25: 0 | D25: 0 | E25: 0 | F25: 0 | G25: 0 | H25: 0 | I25: 0 | J25: 0 | K25: 0 | L25: 0 | M25: 0 | N25: 0 | Q25: 15 | R25: 0 | S25: 0 | T25: 0 | U25: 0 | V25: 0 | W25: 0 | X25: 0 | Y25: 0 | Z25: 0 | AA25: 0 | AB25: 0 | AC25: 0 | AD25: 0
A26: 16 | B26: 0 | C26: 0 | D26: 0 | E26: 0 | F26: 0 | G26: 0 | H26: 0 | I26: 0 | J26: 0 | K26: 0 | L26: 0 | M26: 0 | N26: 0 | Q26: 16 | R26: 0 | S26: 0 | T26: 0 | U26: 0 | V26: 0 | W26: 0 | X26: 0 | Y26: 0 | Z26: 0 | AA26: 0 | AB26: 0 | AC26: 0 | AD26: 0
A27: 17 | B27: 0 | C27: 0 | D27: 0 | E27: 0 | F27: 0 | G27: 0 | H27: 0 | I27: 0 | J27: 0 | K27: 0 | L27: 0 | M27: 0 | N27: 0 | Q27: 17 | R27: 0 | S27: 0 | T27: 0 | U27: 0 | V27: 0 | W27: 0 | X27: 0 | Y27: 0 | Z27: 0 | AA27: 0 | AB27: 0 | AC27: 0 | AD27: 0
A28: 18 | B28: 0 | C28: 0 | D28: 0 | E28: 0 | F28: 0 | G28: 0 | H28: 0 | I28: 0 | J28: 0 | K28: 0 | L28: 0 | M28: 0 | N28: 0 | Q28: 18 | R28: 0 | S28: 0 | T28: 0 | U28: 0 | V28: 0 | W28: 0 | X28: 0 | Y28: 0 | Z28: 0 | AA28: 0 | AB28: 0 | AC28: 0 | AD28: 0
A29: 19 | B29: 0 | C29: 0 | D29: 0 | E29: 0 | F29: 0 | G29: 0 | H29: 0 | I29: 0 | J29: 0 | K29: 0 | L29: 0 | M29: 0 | N29: 0 | Q29: 19 | R29: 0 | S29: 0 | T29: 0 | U29: 0 | V29: 0 | W29: 0 | X29: 0 | Y29: 0 | Z29: 0 | AA29: 0 | AB29: 0 | AC29: 0 | AD29: 0
A30: 20 | B30: 0 | C30: 0 | D30: 0 | E30: 0 | F30: 0 | G30: 0 | H30: 0 | I30: 0 | J30: 0 | K30: 0 | L30: 0 | M30: 0 | N30: 0 | Q30: 20 | R30: 0 | S30: 0 | T30: 0 | U30: 0 | V30: 0 | W30: 0 | X30: 0 | Y30: 0 | Z30: 0 | AA30: 0 | AB30: 0 | AC30: 0 | AD30: 0
A31: 21 | B31: 0 | C31: 0 | D31: 0 | E31: 0 | F31: 0 | G31: 0 | H31: 0 | I31: 0 | J31: 0 | K31: 0 | L31: 0 | M31: 0 | N31: 0 | Q31: 21 | R31: 0 | S31: 0 | T31: 0 | U31: 0 | V31: 0 | W31: 0 | X31: 0 | Y31: 0 | Z31: 0 | AA31: 0 | AB31: 0 | AC31: 0 | AD31: 0
A32: 22 | B32: 0 | C32: 0 | D32: 0 | E32: 0 | F32: 0 | G32: 0 | H32: 0 | I32: 0 | J32: 0 | K32: 0 | L32: 0 | M32: 0 | N32: 0 | Q32: 22 | R32: 0 | S32: 0 | T32: 0 | U32: 0 | V32: 0 | W32: 0 | X32: 0 | Y32: 0 | Z32: 0 | AA32: 0 | AB32: 0 | AC32: 0 | AD32: 0
A33: 23 | B33: 0 | C33: 0 | D33: 0 | E33: 0 | F33: 0 | G33: 0 | H33: 0 | I33: 0 | J33: 0 | K33: 0 | L33: 0 | M33: 0 | N33: 0 | Q33: 23 | R33: 0 | S33: 0 | T33: 0 | U33: 0 | V33: 0 | W33: 0 | X33: 0 | Y33: 0 | Z33: 0 | AA33: 0 | AB33: 0 | AC33: 0 | AD33: 0
A34: 24 | B34: 0 | C34: 0 | D34: 0 | E34: 0 | F34: 0 | G34: 0 | H34: 0 | I34: 0 | J34: 0 | K34: 0 | L34: 0 | M34: 0 | N34: 0 | Q34: 24 | R34: 0 | S34: 0 | T34: 0 | U34: 0 | V34: 0 | W34: 0 | X34: 0 | Y34: 0 | Z34: 0 | AA34: 0 | AB34: 0 | AC34: 0 | AD34: 0
A35: 25 | B35: 0 | C35: 0 | D35: 0 | E35: 0 | F35: 0 | G35: 0 | H35: 0 | I35: 0 | J35: 0 | K35: 0 | L35: 0 | M35: 0 | N35: 0 | Q35: 25 | R35: 0 | S35: 0 | T35: 0 | U35: 0 | V35: 0 | W35: 0 | X35: 0 | Y35: 0 | Z35: 0 | AA35: 0 | AB35: 0 | AC35: 0 | AD35: 0
A36: 26 | B36: 0 | C36: 0 | D36: 0 | E36: 0 | F36: 0 | G36: 0 | H36: 0 | I36: 0 | J36: 0 | K36: 0 | L36: 0 | M36: 0 | N36: 0 | Q36: 26 | R36: 0 | S36: 0 | T36: 0 | U36: 0 | V36: 0 | W36: 0 | X36: 0 | Y36: 0 | Z36: 0 | AA36: 0 | AB36: 0 | AC36: 0 | AD36: 0
A37: 27 | B37: 0 | C37: 0 | D37: 0 | E37: 0 | F37: 0 | G37: 0 | H37: 0 | I37: 0 | J37: 0 | K37: 0 | L37: 0 | M37: 0 | N37: 0 | Q37: 27 | R37: 0 | S37: 0 | T37: 0 | U37: 0 | V37: 0 | W37: 0 | X37: 0 | Y37: 0 | Z37: 0 | AA37: 0 | AB37: 0 | AC37: 0 | AD37: 0
A38: 28 | B38: 0 | C38: 0 | D38: 0 | E38: 0 | F38: 0 | G38: 0 | H38: 0 | I38: 0 | J38: 0 | K38: 0 | L38: 0 | M38: 0 | N38: 0 | Q38: 28 | R38: 0 | S38: 0 | T38: 0 | U38: 0 | V38: 0 | W38: 0 | X38: 0 | Y38: 0 | Z38: 0 | AA38: 0 | AB38: 0 | AC38: 0 | AD38: 0

Sheet Calcs
A1: Paid Residual Ordering & Selection (& Other Calculations): | H1: Number of Cells: | I1: =TriangleSize*(TriangleSize+1)/2 -> 55 | V1: =AVERAGE(AE5:AE59) -> 1.107301687 | W1: =STDEV(AE5:AE59) -> 224.0763071 | X1: =AVERAGE(AL5:AL59) -> 1.403901213 | Y1: =STDEV(AL5:AL59) -> 228.384425 | AR1: Values | AS1: Graph | AZ1: Values | BA1: Graph
F2: =IF(Bootstrap!$L$188="No","","Standardized") -> Standardized | G2: Hetero-Adj. | K2: Adjusted to Remove Excluded | Q2: Normal | R2: Outlier | S2: Normal | T2: Outlier | V2: Normal RSS Calc | AA2: Normality for Scaled Pearson Residuals | AH2: Normality for Hetero-Adjusted Scaled Pearson Residuals | AQ2: Max | AR2: =MAX(ResidY1Values) -> 658.0902808 | AS2: =MAX(ABS(AU2),ABS(AU3)) -> 700 | AT2: =-AT3 -> -2 | AU2: =ROUNDUP(AR2*10^AT2,0)/10^AT2 -> 700 | AY2: Max | AZ2: =MAX(ResidY2Values) -> 468.1419837 | BA2: =MAX(ABS(BC2),ABS(BC3)) -> 500 | BB2: =-BB3 -> -2 | BC2: =ROUNDUP(AZ2*10^BB2,0)/10^BB2 -> 500 | CM2: Normality | CO2: Normal | CP2: Outlier | CQ2: Normal | CR2: Outlier
B3: Exposure | C3: Develop | D3: Calendar | E3: Fitted | F3: Scaled | G3: Scaled | H3: Simulated | K3: Exposure | L3: Develop | M3: Calendar | N3: Fitted | O3: Scaled | P3: Adjusted | Q3: Scaled | R3: Scaled | S3: Adjusted | T3: Adjusted | V3: Scaled | X3: Hetero Adjusted | AQ3: Min | AR3: =MIN(ResidY1Values) -> -476.415216 | AS3: =-MAX(ABS(AU2),ABS(AU3)) -> -700 | AT3: =IFERROR(TRUNC(LOG10(AR2),0),1) -> 2 | AU3: =ROUNDUP(AR3*10^AT2,0)/10^AT2 -> -500 | AY3: Min | AZ3: =MIN(ResidY2Values) -> -353.9620598 | BA3: =-MAX(ABS(BC2),ABS(BC3)) -> -500 | BB3: =IFERROR(TRUNC(LOG10(AZ2),0),1) -> 2 | BC3: =ROUNDUP(AZ3*10^BB2,0)/10^BB2 -> -400 | CK3: Scaled | CL3: Adjusted | CM3: Scaled | CN3: Adjusted | CO3: Scaled | CP3: Scaled | CQ3: Adjusted | CR3: Adjusted
B4: Offset | C4: Offset | D4: Period | E4: Values | F4: Residual | G4: Residual | H4: Residual | I4: Excluded | J4: Adjust | K4: Offset | L4: Offset | M4: Period | N4: Values | O4: Residual | P4: Residual | Q4: Residual | R4: Residual | S4: Residual | T4: Residual | V4: Normal | W4: Difference | X4: Normal | Y4: Difference | AA4: Rank | AB4: Order | AC4: Percentile | AD4: PhiInv | AE4: Sort | AF4: R2 | AH4: Rank | AI4: Order | AJ4: Percentile | AK4: PhiInv | AL4: Sort | AM4: R2 | AP4: Box Plot Calc Array (Prior to Hetero) | AX4: Box Plot Calc Array (After Hetero) | BF4: Regression Calculations for X-Y Plots | CK4: Flags | CL4: Flags | CM4: Flags | CN4: Flags | CO4: Sort | CP4: Sort | CQ4: Sort | CR4: Sort
A5: 1 | B5: 1 | C5: 0 | D5: =IF(A5>$I$1,"",B5+C5-1) -> 0 | E5: =IF(A5>$I$1,"",OFFSET(Bootstrap!$C$64,B5,C5)) -> 270061.4156 | F5: =IF(OR(A5>$I$1,OFFSET(Bootstrap!$C$160,B5,C5)=1),"",OFFSET(Bootstrap!$C$195,B5,C5)*IF(DoF_Factor_Pd="Yes",Bootstrap!$L$190/DoF_Adj_Pd,1)) -> 183.6070213 | G5: =IF(OR(A5>$I$1,F5=""),"",OFFSET(Bootstrap!$C$209,B5,C5)) -> 291.0230967 | H5: =IF(A5>$I$1,"",OFFSET(Bootstrap!$C$237,B5,C5)) -> 207.0695551 | I5: =IF(A5>$I$1,"",IF(OR(E5="",G5="",AND(Include_Zeros="No",G5=0)),1,0)) -> 0 | J5: =OutlierAdjust(I5:I59) -> 0 | K5: =IF(A5>$I$1-$J$61,"",VLOOKUP(A5+J5,$A$5:$G$59,2)+FirstYear-1) -> 2006 | L5: =IF(A5>$I$1,"",(VLOOKUP(A5+J5,$A$5:$G$59,3)+1)*12) -> 12 | M5: =IF(A5>$I$1,"",VLOOKUP(A5+J5,$A$5:$G$59,4)+FirstYear) -> 2006 | N5: =IF(A5>$I$1,"",VLOOKUP(A5+J5,$A$5:$G$59,5)) -> 270061.4156 | O5: =IF(A5>$I$1,"",VLOOKUP(A5+J5,$A$5:$G$59,6)) -> 183.6070213 | P5: =IF(A5>$I$1,"",VLOOKUP(A5+J5,$A$5:$G$59,7)) -> 291.0230967 | Q5: =IF(O5="","",IF(CK5=0,O5,NA())) -> 183.6070213 | R5: =IF(O5="","",IF(CK5=1,O5,NA())) ->  | S5: =IF(P5="","",IF(CL5=0,P5,NA())) -> 291.0230967 | T5: =IF(P5="","",IF(CL5=1,P5,NA())) ->  | V5: =IF(O5="","",NORMINV(AC5,$V$1,$W$1)) -> -509.7234309 | W5: =IF(O5="","",AE5-V5) -> 33.30821491 | X5: =IF(P5="","",NORMINV(AJ5,$X$1,$Y$1)) -> -519.2481243 | Y5: =IF(P5="","",AL5-X5) -> 165.2860645 | AA5: =IF(O5="","",RANK(O5,ResidY1Values,1)) -> 44 | AB5: =IF(O5="","",1) -> 1 | AC5: =IF(O5="","",(AB5-0.375)/(($I$1-$J$61)+0.25)) -> 0.01131221719 | AD5: =IF(O5="","",NORMINV(AC5,0,1)) -> -2.279717741 | AE5: =IF(O5="","",IF(ISERROR(MATCH(AB5,AA$5:AA$59,0)),0,OFFSET(O$4,MATCH(AB5,AA$5:AA$59,0),0))) -> -476.415216 | AF5: =CORREL(NormXValues,NormYValues)^2 -> 0.9717882839 | AH5: =IF(P5="","",RANK(P5,ResidY2Values,1)) -> 49 | AI5: =IF(P5="","",1) -> 1 | AJ5: =IF(P5="","",(AI5-0.375)/(($I$1-$J$61)+0.25)) -> 0.01131221719 | AK5: =IF(P5="","",NORMINV(AJ5,0,1)) -> -2.279717741 | AL5: =IF(P5="","",IF(ISERROR(MATCH(AI5,AH$5:AH$59,0)),0,OFFSET(P$4,MATCH(AI5,AH$5:AH$59,0),0))) -> -353.9620598 | AM5: =CORREL(NormXValuesH,NormYValuesH)^2 -> 0.9691570406 | AP5: =BoxPlotCalc(ResidY1Values,TriangleCellValues,,,,0) -> Min | AQ5: 0 | AR5: -371.0681045 | AX5: =BoxPlotCalc(ResidY2Values,TriangleCellValues,,,,0) -> Min | AY5: 0 | AZ5: -353.9620598 | BG5: =BH5-1 -> 0 | BH5: =MATCH(RegressCol1,ColumnList) -> 1 | CK5: =RowFlags(O5:O59,AR20:AR47) -> 0 | CL5: =RowFlags(P5:P59,AZ20:AZ47) -> 0 | CM5: =RowFlags(AE5:AE59,AR20:AR47) -> 1 | CN5: =RowFlags(AL5:AL59,AZ20:AZ47) -> 0 | CO5: =IF(AE5="","",IF(CM5=0,AE5,NA())) ->  | CP5: =IF(AE5="","",IF(CM5=1,AE5,NA())) -> -476.415216 | CQ5: =IF(AL5="","",IF(CN5=0,AL5,NA())) -> -353.9620598 | CR5: =IF(AL5="","",IF(CN5=1,AL5,NA())) -> 
A6: 2 | B6: =IF(A6>$I$1,"",IF(B5+C5=Acc_Total,1,B5+1)) -> 2 | C6: =IF(A6>$I$1,"",IF(B5+C5=Acc_Total,C5+1,C5)) -> 0 | D6: =IF(A6>$I$1,"",B6+C6-1) -> 1 | E6: =IF(A6>$I$1,"",OFFSET(Bootstrap!$C$64,B6,C6)) -> 376125.0063 | F6: =IF(OR(A6>$I$1,OFFSET(Bootstrap!$C$160,B6,C6)=1),"",OFFSET(Bootstrap!$C$195,B6,C6)*IF(DoF_Factor_Pd="Yes",Bootstrap!$L$190/DoF_Adj_Pd,1)) -> -43.39100318 | G6: =IF(OR(A6>$I$1,F6=""),"",OFFSET(Bootstrap!$C$209,B6,C6)) -> -68.77615041 | H6: =IF(A6>$I$1,"",OFFSET(Bootstrap!$C$237,B6,C6)) -> 113.1320541 | I6: 0 | J6: 0 | K6: =IF(A6>$I$1-$J$61,"",VLOOKUP(A6+SUM(J$5:J6),$A$5:$G$59,2)+FirstYear-1) -> 2007 | L6: =IF(A6>$I$1-$J$61,"",(VLOOKUP(A6+SUM(J$5:J6),$A$5:$G$59,3)+1)*12) -> 12 | M6: =IF(A6>$I$1-$J$61,"",VLOOKUP(A6+SUM(J$5:J6),$A$5:$G$59,4)+FirstYear) -> 2007 | N6: =IF(A6>$I$1-$J$61,"",VLOOKUP(A6+SUM(J$5:J6),$A$5:$G$59,5)) -> 376125.0063 | O6: =IF(A6>$I$1-$J$61,"",VLOOKUP(A6+SUM(J$5:J6),$A$5:$G$59,6)) -> -43.39100318 | P6: =IF(A6>$I$1-$J$61,"",VLOOKUP(A6+SUM(J$5:J6),$A$5:$G$59,7)) -> -68.77615041 | Q6: =IF(O6="","",IF(CK6=0,O6,NA())) -> -43.39100318 | R6: =IF(O6="","",IF(CK6=1,O6,NA())) ->  | S6: =IF(P6="","",IF(CL6=0,P6,NA())) -> -68.77615041 | T6: =IF(P6="","",IF(CL6=1,P6,NA())) ->  | V6: -422.2871124 | W6: =IF(O6="","",AE6-V6) -> -38.30146151 | X6: -430.1307446 | Y6: =IF(P6="","",AL6-X6) -> 91.2259305 | AA6: 25 | AB6: =IF(O6="","",1+AB5) -> 2 | AC6: =IF(O6="","",(AB6-0.375)/(($I$1-$J$61)+0.25)) -> 0.02941176471 | AD6: =IF(O6="","",NORMINV(AC6,0,1)) -> -1.88950996 | AE6: =IF(O6="","",IF(ISERROR(MATCH(AB6,AA$5:AA$59,0)),0,OFFSET(O$4,MATCH(AB6,AA$5:AA$59,0),0))) -> -460.5885739 | AH6: 24 | AI6: =IF(P6="","",1+AI5) -> 2 | AJ6: =IF(P6="","",(AI6-0.375)/(($I$1-$J$61)+0.25)) -> 0.02941176471 | AK6: =IF(P6="","",NORMINV(AJ6,0,1)) -> -1.88950996 | AL6: =IF(P6="","",IF(ISERROR(MATCH(AI6,AH$5:AH$59,0)),0,OFFSET(P$4,MATCH(AI6,AH$5:AH$59,0),0))) -> -338.9048141 | AP6: Q1 | AQ6: 0 | AR6: -147.4395227 | AX6: Q1 | AY6: 0 | AZ6: -188.9599267 | BF6: Ratio Only Model: Y = βX + ε | BO6: ="Delta = "&RegressDelta -> Delta = 1 | BP6: Transformed by Weights | CK6: 0 | CL6: 0 | CM6: 1 | CN6: 0 | CO6: =IF(AE6="","",IF(CM6=0,AE6,NA())) ->  | CP6: =IF(AE6="","",IF(CM6=1,AE6,NA())) -> -460.5885739 | CQ6: =IF(AL6="","",IF(CN6=0,AL6,NA())) -> -338.9048141 | CR6: =IF(AL6="","",IF(CN6=1,AL6,NA())) -> 
A7: 3 | B7: 3 | C7: 0 | D7: 2 | E7: =IF(A7>$I$1,"",OFFSET(Bootstrap!$C$64,B7,C7)) -> 372325.3155 | F7: =IF(OR(A7>$I$1,OFFSET(Bootstrap!$C$160,B7,C7)=1),"",OFFSET(Bootstrap!$C$195,B7,C7)*IF(DoF_Factor_Pd="Yes",Bootstrap!$L$190/DoF_Adj_Pd,1)) -> -148.735702 | G7: =IF(OR(A7>$I$1,F7=""),"",OFFSET(Bootstrap!$C$209,B7,C7)) -> -235.7509221 | H7: =IF(A7>$I$1,"",OFFSET(Bootstrap!$C$237,B7,C7)) -> -71.72037937 | I7: 0 | J7: 0 | K7: =IF(A7>$I$1-$J$61,"",VLOOKUP(A7+SUM(J$5:J7),$A$5:$G$59,2)+FirstYear-1) -> 2008 | L7: =IF(A7>$I$1-$J$61,"",(VLOOKUP(A7+SUM(J$5:J7),$A$5:$G$59,3)+1)*12) -> 12 | M7: =IF(A7>$I$1-$J$61,"",VLOOKUP(A7+SUM(J$5:J7),$A$5:$G$59,4)+FirstYear) -> 2008 | N7: =IF(A7>$I$1-$J$61,"",VLOOKUP(A7+SUM(J$5:J7),$A$5:$G$59,5)) -> 372325.3155 | O7: =IF(A7>$I$1-$J$61,"",VLOOKUP(A7+SUM(J$5:J7),$A$5:$G$59,6)) -> -148.735702 | P7: =IF(A7>$I$1-$J$61,"",VLOOKUP(A7+SUM(J$5:J7),$A$5:$G$59,7)) -> -235.7509221 | Q7: -148.735702 | S7: -235.7509221 | V7: -372.9832339 | W7: 1.915129344 | X7: -379.8789438 | Y7: 51.66696849 | AA7: 14 | AB7: =IF(O7="","",1+AB6) -> 3 | AC7: 0.04751131222 | AD7: =IF(O7="","",NORMINV(AC7,0,1)) -> -1.669478315 | AE7: -371.0681045 | AH7: 10 | AI7: =IF(P7="","",1+AI6) -> 3 | AJ7: 0.04751131222 | AK7: -1.669478315 | AL7: -328.2119753 | AP7: Q3 | AQ7: 0 | AR7: 147.040237 | AX7: Q3 | AY7: 0 | AZ7: 181.7175159 | BG7: X | BH7: Y | BM7: X | BN7: Y | BO7: X^(Delta/2) | BP7: X' | BQ7: Y' | CK7: 0 | CL7: 0 | CM7: 0 | CN7: 0 | CO7: -371.0681045 | CQ7: -328.2119753
A8: 4 | B8: 4 | C8: 0 | D8: 3 | E8: =IF(A8>$I$1,"",OFFSET(Bootstrap!$C$64,B8,C8)) -> 366723.9561 | F8: =IF(OR(A8>$I$1,OFFSET(Bootstrap!$C$160,B8,C8)=1),"",OFFSET(Bootstrap!$C$195,B8,C8)*IF(DoF_Factor_Pd="Yes",Bootstrap!$L$190/DoF_Adj_Pd,1)) -> -102.8474594 | G8: =IF(OR(A8>$I$1,F8=""),"",OFFSET(Bootstrap!$C$209,B8,C8)) -> -163.016566 | H8: =IF(A8>$I$1,"",OFFSET(Bootstrap!$C$237,B8,C8)) -> 148.758357 | I8: 0 | J8: 0 | K8: =IF(A8>$I$1-$J$61,"",VLOOKUP(A8+SUM(J$5:J8),$A$5:$G$59,2)+FirstYear-1) -> 2009 | L8: =IF(A8>$I$1-$J$61,"",(VLOOKUP(A8+SUM(J$5:J8),$A$5:$G$59,3)+1)*12) -> 12 | M8: =IF(A8>$I$1-$J$61,"",VLOOKUP(A8+SUM(J$5:J8),$A$5:$G$59,4)+FirstYear) -> 2009 | N8: =IF(A8>$I$1-$J$61,"",VLOOKUP(A8+SUM(J$5:J8),$A$5:$G$59,5)) -> 366723.9561 | O8: =IF(A8>$I$1-$J$61,"",VLOOKUP(A8+SUM(J$5:J8),$A$5:$G$59,6)) -> -102.8474594 | P8: =IF(A8>$I$1-$J$61,"",VLOOKUP(A8+SUM(J$5:J8),$A$5:$G$59,7)) -> -163.016566 | Q8: -102.8474594 | S8: -163.016566 | V8: -337.0914328 | W8: 18.73785739 | X8: -343.2970827 | Y8: 15.65077806 | AA8: 19 | AB8: 4 | AC8: 0.06561085973 | AD8: -1.509301626 | AE8: -318.3535754 | AH8: 16 | AI8: 4 | AJ8: 0.06561085973 | AK8: -1.509301626 | AL8: -327.6463047 | AP8: Max | AQ8: 0 | AR8: 306.6581989 | AX8: Max | AY8: 0 | AZ8: 468.1419837 | BG8: =RegressCol1 -> 12 | BH8: =RegressCol2 -> 24 | BI8: Rows | BJ8: Missing | BK8: Outlier | BL8: Adjust | BM8: =RegressCol1 -> 12 | BN8: =RegressCol2 -> 24 | BO8: Weights | BP8: =BG8 -> 12 | BQ8: =BH8 -> 24 | BS8: Regression without Intercept | BW8: Regression with Intercept | CK8: 0 | CL8: 0 | CM8: 0 | CN8: 0 | CO8: -318.3535754 | CQ8: -327.6463047
A9: 5 | B9: 5 | C9: 0 | D9: 4 | E9: =IF(A9>$I$1,"",OFFSET(Bootstrap!$C$64,B9,C9)) -> 336287.2522 | F9: =IF(OR(A9>$I$1,OFFSET(Bootstrap!$C$160,B9,C9)=1),"",OFFSET(Bootstrap!$C$195,B9,C9)*IF(DoF_Factor_Pd="Yes",Bootstrap!$L$190/DoF_Adj_Pd,1)) -> 204.0721438 | G9: =IF(OR(A9>$I$1,F9=""),"",OFFSET(Bootstrap!$C$209,B9,C9)) -> 323.4609811 | H9: =IF(A9>$I$1,"",OFFSET(Bootstrap!$C$237,B9,C9)) -> -206.7126724 | I9: 0 | J9: 0 | K9: =IF(A9>$I$1-$J$61,"",VLOOKUP(A9+SUM(J$5:J9),$A$5:$G$59,2)+FirstYear-1) -> 2010 | L9: =IF(A9>$I$1-$J$61,"",(VLOOKUP(A9+SUM(J$5:J9),$A$5:$G$59,3)+1)*12) -> 12 | M9: =IF(A9>$I$1-$J$61,"",VLOOKUP(A9+SUM(J$5:J9),$A$5:$G$59,4)+FirstYear) -> 2010 | N9: =IF(A9>$I$1-$J$61,"",VLOOKUP(A9+SUM(J$5:J9),$A$5:$G$59,5)) -> 336287.2522 | O9: =IF(A9>$I$1-$J$61,"",VLOOKUP(A9+SUM(J$5:J9),$A$5:$G$59,6)) -> 204.0721438 | P9: =IF(A9>$I$1-$J$61,"",VLOOKUP(A9+SUM(J$5:J9),$A$5:$G$59,7)) -> 323.4609811 | Q9: 204.0721438 | S9: 323.4609811 | V9: -308.2387324 | W9: 35.78162351 | X9: -313.8896568 | Y9: -13.63206947 | AA9: 46 | AB9: 5 | AC9: 0.08371040724 | AD9: -1.380538791 | AE9: -272.4571089 | AH9: 50 | AI9: 5 | AJ9: 0.08371040724 | AK9: -1.380538791 | AL9: -327.5217263 | AP9: Min | AQ9: 0 | AR9: -371.0681045 | AX9: Min | AY9: 0 | AZ9: -353.9620598 | BF9: =FirstYear -> 2006 | BG9: =OFFSET(PaidData,$BF9-FirstYear,BG$5) -> 357848 | BH9: =OFFSET(PaidData,$BF9-FirstYear,BH$5) -> 1124788 | BI9: 1 | BJ9: =IF(OR(BG9="",BH9=""),1,0) -> 0 | BK9: =OFFSET(Bootstrap!$C$161,$BF9-FirstYear,$BG$5) -> 0 | BL9: =OutlierAdjust(BJ9:BK17) -> 0 | BM9: =IF(OR($BF9="",SUM($BI$9:$BI9)+SUM($BL$9:$BL9)>SUM($BI$9:$BI$17)),"",OFFSET($BG$9,$BF9-$BF$9+SUM($BL$9:$BL9),0)) -> 357848 | BN9: =IF(OR($BF9="",SUM($BI$9:$BI9)+SUM($BL$9:$BL9)>SUM($BI$9:$BI$17)),"",OFFSET($BH$9,$BF9-$BF$9+SUM($BL$9:$BL9),0)) -> 1124788 | BO9: =IF($BM9="","",BM9^(RegressDelta/2)) -> 598.2039786 | BP9: =IF($BM9="","",BM9/BO9) -> 598.2039786 | BQ9: =IF($BM9="","",BN9/BO9) -> 1880.275024 | BS9: =LINEST(RegressY1DValues,RegressX1DValues,FALSE,TRUE) -> 3.490606548 | BT9: 0 | BW9: =LINEST(RegressY1DValues,RegressX1DValues,TRUE,TRUE) -> -4.987506575 | BX9: 5166.382368 | CA9: 0 | CB9: 0 | CC9: 0 | CD9: =$BT$9+(CB9*$BS$9) -> 0 | CE9: =$BT$22+(CB9*$BS$22) -> 1550192.375 | CK9: 0 | CL9: 0 | CM9: 0 | CN9: 0 | CO9: -272.4571089 | CQ9: -327.5217263
A10: 6 | B10: 6 | C10: 0 | D10: 5 | E10: =IF(A10>$I$1,"",OFFSET(Bootstrap!$C$64,B10,C10)) -> 353798.1007 | F10: =IF(OR(A10>$I$1,OFFSET(Bootstrap!$C$160,B10,C10)=1),"",OFFSET(Bootstrap!$C$195,B10,C10)*IF(DoF_Factor_Pd="Yes",Bootstrap!$L$190/DoF_Adj_Pd,1)) -> 79.40857596 | G10: =IF(OR(A10>$I$1,F10=""),"",OFFSET(Bootstrap!$C$209,B10,C10)) -> 125.865174 | H10: =IF(A10>$I$1,"",OFFSET(Bootstrap!$C$237,B10,C10)) -> -16.90527481 | I10: 0 | J10: 0 | K10: =IF(A10>$I$1-$J$61,"",VLOOKUP(A10+SUM(J$5:J10),$A$5:$G$59,2)+FirstYear-1) -> 2011 | L10: =IF(A10>$I$1-$J$61,"",(VLOOKUP(A10+SUM(J$5:J10),$A$5:$G$59,3)+1)*12) -> 12 | M10: =IF(A10>$I$1-$J$61,"",VLOOKUP(A10+SUM(J$5:J10),$A$5:$G$59,4)+FirstYear) -> 2011 | N10: =IF(A10>$I$1-$J$61,"",VLOOKUP(A10+SUM(J$5:J10),$A$5:$G$59,5)) -> 353798.1007 | O10: =IF(A10>$I$1-$J$61,"",VLOOKUP(A10+SUM(J$5:J10),$A$5:$G$59,6)) -> 79.40857596 | P10: =IF(A10>$I$1-$J$61,"",VLOOKUP(A10+SUM(J$5:J10),$A$5:$G$59,7)) -> 125.865174 | Q10: 79.40857596 | S10: 125.865174 | V10: -283.7621884 | W10: 52.26598849 | X10: -288.9425238 | Y10: -12.23875119 | AA10: 36 | AB10: 6 | AC10: 0.1018099548 | AD10: -1.271305716 | AE10: -231.4961999 | AH10: 36 | AI10: 6 | AJ10: 0.1018099548 | AK10: -1.271305716 | AL10: -301.181275 | AP10: Min | AQ10: 0 | AR10: -371.0681045 | AX10: Min | AY10: 0 | AZ10: -353.9620598 | BF10: =IF(BF9="","",IF(BF9+1>FirstYear+TriangleSize-$BH$5-1,"",BF9+1)) -> 2007 | BG10: =IF($BF10="","",OFFSET(PaidData,$BF10-FirstYear,BG$5)) -> 352118 | BH10: 1236139 | BI10: =IF(BF10="","",1) -> 1 | BJ10: =IF(OR(BG10="",BH10=""),1,0) -> 0 | BK10: =IF($BF10="","",OFFSET(Bootstrap!$C$161,$BF10-FirstYear,$BG$5)) -> 0 | BL10: 0 | BM10: =IF(OR($BF10="",SUM($BI$9:$BI10)+SUM($BL$9:$BL10)>SUM($BI$9:$BI$17)),"",OFFSET($BG$9,$BF10-$BF$9+SUM($BL$9:$BL10),0)) -> 352118 | BN10: =IF(OR($BF10="",SUM($BI$9:$BI10)+SUM($BL$9:$BL10)>SUM($BI$9:$BI$17)),"",OFFSET($BH$9,$BF10-$BF$9+SUM($BL$9:$BL10),0)) -> 1236139 | BO10: 593.3953151 | BP10: 593.3953151 | BQ10: 2083.162722 | BS10: 0.2194772434 | BW10: 1.480706688 | BX10: 900.3231076 | CA10: =MIN(10^CA13+TRUNC(CA12*10^-CA13,0)*10^CA13,CC10/BS9) -> 429724.7425 | CB10: =10^CA13+TRUNC(CA12*10^-CA13,0)*10^CA13 -> 450000 | CC10: =10^CB13+TRUNC(CB12*10^-CB13,0)*10^CB13 -> 1500000 | CD10: =$BT$9+(CA10*$BS$9) -> 1500000 | CE10: =$BT$22+(CB10*($BS$22+1)) -> 1234106.562 | CK10: 0 | CL10: 0 | CM10: 0 | CN10: 0 | CO10: -231.4961999 | CQ10: -301.181275
A11: 7 | B11: 7 | C11: 0 | D11: 6 | E11: =IF(A11>$I$1,"",OFFSET(Bootstrap!$C$64,B11,C11)) -> 391841.6572 | F11: =IF(OR(A11>$I$1,OFFSET(Bootstrap!$C$160,B11,C11)=1),"",OFFSET(Bootstrap!$C$195,B11,C11)*IF(DoF_Factor_Pd="Yes",Bootstrap!$L$190/DoF_Adj_Pd,1)) -> 88.67448691 | G11: =IF(OR(A11>$I$1,F11=""),"",OFFSET(Bootstrap!$C$209,B11,C11)) -> 140.551944 | H11: =IF(A11>$I$1,"",OFFSET(Bootstrap!$C$237,B11,C11)) -> 284.3421923 | I11: 0 | J11: 0 | K11: =IF(A11>$I$1-$J$61,"",VLOOKUP(A11+SUM(J$5:J11),$A$5:$G$59,2)+FirstYear-1) -> 2012 | L11: =IF(A11>$I$1-$J$61,"",(VLOOKUP(A11+SUM(J$5:J11),$A$5:$G$59,3)+1)*12) -> 12 | M11: =IF(A11>$I$1-$J$61,"",VLOOKUP(A11+SUM(J$5:J11),$A$5:$G$59,4)+FirstYear) -> 2012 | N11: =IF(A11>$I$1-$J$61,"",VLOOKUP(A11+SUM(J$5:J11),$A$5:$G$59,5)) -> 391841.6572 | O11: =IF(A11>$I$1-$J$61,"",VLOOKUP(A11+SUM(J$5:J11),$A$5:$G$59,6)) -> 88.67448691 | P11: =IF(A11>$I$1-$J$61,"",VLOOKUP(A11+SUM(J$5:J11),$A$5:$G$59,7)) -> 140.551944 | Q11: 88.67448691 | S11: 140.551944 | V11: -262.2807979 | W11: 38.96546594 | X11: -267.0481296 | Y11: -33.68181401 | AA11: 37 | AB11: 7 | AC11: 0.1199095023 | AD11: -1.175439309 | AE11: -223.315332 | AH11: 38 | AI11: 7 | AJ11: 0.1199095023 | AK11: -1.175439309 | AL11: -300.7299436 | AP11: Q1 | AQ11: -0.3000000119 | AR11: -147.4395227 | AX11: Q1 | AY11: -0.3000000119 | AZ11: -188.9599267 | BF11: 2008 | BG11: 290507 | BH11: 1292306 | BI11: 1 | BJ11: 0 | BK11: =IF($BF11="","",OFFSET(Bootstrap!$C$161,$BF11-FirstYear,$BG$5)) -> 0 | BL11: 0 | BM11: =IF(OR($BF11="",SUM($BI$9:$BI11)+SUM($BL$9:$BL11)>SUM($BI$9:$BI$17)),"",OFFSET($BG$9,$BF11-$BF$9+SUM($BL$9:$BL11),0)) -> 290507 | BN11: =IF(OR($BF11="",SUM($BI$9:$BI11)+SUM($BL$9:$BL11)>SUM($BI$9:$BI$17)),"",OFFSET($BH$9,$BF11-$BF$9+SUM($BL$9:$BL11),0)) -> 1292306 | BO11: 538.9870128 | BP11: 538.9870128 | BQ11: 2397.657029 | BS11: 0.9693419731 | BT11: 400.350256 | BW11: 0.6184378891 | BX11: 179.2015711 | CK11: 0 | CL11: 0 | CM11: 0 | CN11: 0 | CO11: -223.315332 | CQ11: -300.7299436
A12: 8 | B12: 8 | C12: 0 | D12: 7 | E12: =IF(A12>$I$1,"",OFFSET(Bootstrap!$C$64,B12,C12)) -> 469647.521 | F12: =IF(OR(A12>$I$1,OFFSET(Bootstrap!$C$160,B12,C12)=1),"",OFFSET(Bootstrap!$C$195,B12,C12)*IF(DoF_Factor_Pd="Yes",Bootstrap!$L$190/DoF_Adj_Pd,1)) -> -190.0158352 | G12: =IF(OR(A12>$I$1,F12=""),"",OFFSET(Bootstrap!$C$209,B12,C12)) -> -301.181275 | H12: =IF(A12>$I$1,"",OFFSET(Bootstrap!$C$237,B12,C12)) -> 137.6285462 | I12: 0 | J12: 0 | K12: =IF(A12>$I$1-$J$61,"",VLOOKUP(A12+SUM(J$5:J12),$A$5:$G$59,2)+FirstYear-1) -> 2013 | L12: =IF(A12>$I$1-$J$61,"",(VLOOKUP(A12+SUM(J$5:J12),$A$5:$G$59,3)+1)*12) -> 12 | M12: =IF(A12>$I$1-$J$61,"",VLOOKUP(A12+SUM(J$5:J12),$A$5:$G$59,4)+FirstYear) -> 2013 | N12: =IF(A12>$I$1-$J$61,"",VLOOKUP(A12+SUM(J$5:J12),$A$5:$G$59,5)) -> 469647.521 | O12: =IF(A12>$I$1-$J$61,"",VLOOKUP(A12+SUM(J$5:J12),$A$5:$G$59,6)) -> -190.0158352 | P12: =IF(A12>$I$1-$J$61,"",VLOOKUP(A12+SUM(J$5:J12),$A$5:$G$59,7)) -> -301.181275 | Q12: -190.0158352 | S12: -301.181275 | V12: -242.9808054 | W12: 27.23747132 | X12: -247.377073 | Y12: -16.58755856 | AA12: 10 | AB12: 8 | AC12: 0.1380090498 | AD12: -1.089307969 | AE12: -215.743334 | AH12: 6 | AI12: 8 | AJ12: 0.1380090498 | AK12: -1.089307969 | AL12: -263.9646316 | AP12: Q1 | AQ12: 0.3000000119 | AR12: -147.4395227 | AX12: Q1 | AY12: 0.3000000119 | AZ12: -188.9599267 | BF12: 2009 | BG12: 310608 | BH12: 1418858 | BI12: 1 | BJ12: 0 | BK12: =IF($BF12="","",OFFSET(Bootstrap!$C$161,$BF12-FirstYear,$BG$5)) -> 0 | BL12: 0 | BM12: =IF(OR($BF12="",SUM($BI$9:$BI12)+SUM($BL$9:$BL12)>SUM($BI$9:$BI$17)),"",OFFSET($BG$9,$BF12-$BF$9+SUM($BL$9:$BL12),0)) -> 310608 | BN12: =IF(OR($BF12="",SUM($BI$9:$BI12)+SUM($BL$9:$BL12)>SUM($BI$9:$BI$17)),"",OFFSET($BH$9,$BF12-$BF$9+SUM($BL$9:$BL12),0)) -> 1418858 | BO12: 557.3221689 | BP12: 557.3221689 | BQ12: 2545.848845 | BS12: 252.9430809 | BT12: 8 | BW12: 11.34563705 | BX12: 7 | CA12: =MAX(RegressX1Values) -> 443160 | CB12: =MAX(RegressY1Values) -> 1421128 | CK12: 0 | CL12: 0 | CM12: 0 | CN12: 0 | CO12: -215.743334 | CQ12: -263.9646316
A13: 9 | B13: 9 | C13: 0 | D13: 8 | E13: =IF(A13>$I$1,"",OFFSET(Bootstrap!$C$64,B13,C13)) -> 390560.7754 | F13: =IF(OR(A13>$I$1,OFFSET(Bootstrap!$C$160,B13,C13)=1),"",OFFSET(Bootstrap!$C$195,B13,C13)*IF(DoF_Factor_Pd="Yes",Bootstrap!$L$190/DoF_Adj_Pd,1)) -> -27.97642444 | G13: =IF(OR(A13>$I$1,F13=""),"",OFFSET(Bootstrap!$C$209,B13,C13)) -> -44.34354208 | H13: =IF(A13>$I$1,"",OFFSET(Bootstrap!$C$237,B13,C13)) -> 56.80166975 | I13: 0 | J13: 0 | K13: =IF(A13>$I$1-$J$61,"",VLOOKUP(A13+SUM(J$5:J13),$A$5:$G$59,2)+FirstYear-1) -> 2014 | L13: =IF(A13>$I$1-$J$61,"",(VLOOKUP(A13+SUM(J$5:J13),$A$5:$G$59,3)+1)*12) -> 12 | M13: =IF(A13>$I$1-$J$61,"",VLOOKUP(A13+SUM(J$5:J13),$A$5:$G$59,4)+FirstYear) -> 2014 | N13: =IF(A13>$I$1-$J$61,"",VLOOKUP(A13+SUM(J$5:J13),$A$5:$G$59,5)) -> 390560.7754 | O13: =IF(A13>$I$1-$J$61,"",VLOOKUP(A13+SUM(J$5:J13),$A$5:$G$59,6)) -> -27.97642444 | P13: =IF(A13>$I$1-$J$61,"",VLOOKUP(A13+SUM(J$5:J13),$A$5:$G$59,7)) -> -44.34354208 | Q13: -27.97642444 | S13: -44.34354208 | V13: -225.339872 | W13: 16.38749397 | X13: -229.3969729 | Y13: -30.97212371 | AA13: 27 | AB13: 9 | AC13: 0.1561085973 | AD13: -1.010580622 | AE13: -208.952378 | AH13: 26 | AI13: 9 | AJ13: 0.1561085973 | AK13: -1.010580622 | AL13: -260.3690967 | AP13: Q3 | AQ13: 0.3000000119 | AR13: 147.040237 | AX13: Q3 | AY13: 0.3000000119 | AZ13: 181.7175159 | BF13: 2010 | BG13: 443160 | BH13: 1136350 | BI13: 1 | BJ13: 0 | BK13: =IF($BF13="","",OFFSET(Bootstrap!$C$161,$BF13-FirstYear,$BG$5)) -> 0 | BL13: 0 | BM13: =IF(OR($BF13="",SUM($BI$9:$BI13)+SUM($BL$9:$BL13)>SUM($BI$9:$BI$17)),"",OFFSET($BG$9,$BF13-$BF$9+SUM($BL$9:$BL13),0)) -> 443160 | BN13: =IF(OR($BF13="",SUM($BI$9:$BI13)+SUM($BL$9:$BL13)>SUM($BI$9:$BI$17)),"",OFFSET($BH$9,$BF13-$BF$9+SUM($BL$9:$BL13),0)) -> 1136350 | BO13: 665.7026363 | BP13: 665.7026363 | BQ13: 1706.99339 | BS13: 40541799.85 | BT13: 1282242.62 | BW13: 364344.7468 | BX13: 224792.4216 | CA13: =VALUE(RIGHT(TEXT(CA12,"0.0E+0"),1))-1 -> 4 | CB13: =VALUE(RIGHT(TEXT(CB12,"0.0E+0"),1))-1 -> 5 | CK13: 0 | CL13: 0 | CM13: 0 | CN13: 0 | CO13: -208.952378 | CQ13: -260.3690967
A14: 10 | B14: 10 | C14: 0 | D14: 9 | E14: =IF(A14>$I$1,"",OFFSET(Bootstrap!$C$64,B14,C14)) -> 344014 | F14: =IF(OR(A14>$I$1,OFFSET(Bootstrap!$C$160,B14,C14)=1),"",OFFSET(Bootstrap!$C$195,B14,C14)*IF(DoF_Factor_Pd="Yes",Bootstrap!$L$190/DoF_Adj_Pd,1)) -> 0 | G14: =IF(OR(A14>$I$1,F14=""),"",OFFSET(Bootstrap!$C$209,B14,C14)) -> 0 | H14: =IF(A14>$I$1,"",OFFSET(Bootstrap!$C$237,B14,C14)) -> 71.87011037 | I14: 0 | J14: 0 | K14: =IF(A14>$I$1-$J$61,"",VLOOKUP(A14+SUM(J$5:J14),$A$5:$G$59,2)+FirstYear-1) -> 2015 | L14: =IF(A14>$I$1-$J$61,"",(VLOOKUP(A14+SUM(J$5:J14),$A$5:$G$59,3)+1)*12) -> 12 | M14: =IF(A14>$I$1-$J$61,"",VLOOKUP(A14+SUM(J$5:J14),$A$5:$G$59,4)+FirstYear) -> 2015 | N14: =IF(A14>$I$1-$J$61,"",VLOOKUP(A14+SUM(J$5:J14),$A$5:$G$59,5)) -> 344014 | O14: =IF(A14>$I$1-$J$61,"",VLOOKUP(A14+SUM(J$5:J14),$A$5:$G$59,6)) -> 0 | P14: =IF(A14>$I$1-$J$61,"",VLOOKUP(A14+SUM(J$5:J14),$A$5:$G$59,7)) -> 0 | Q14: 0 | S14: 0 | V14: -209.0013423 | W14: 18.98550709 | X14: -212.7443168 | Y14: -23.00660535 | AA14: 30 | AB14: 10 | AC14: 0.1742081448 | AD14: -0.9376655959 | AE14: -190.0158352 | AH14: 30 | AI14: 10 | AJ14: 0.1742081448 | AK14: -0.9376655959 | AL14: -235.7509221 | AP14: Q3 | AQ14: -0.3000000119 | AR14: 147.040237 | AX14: Q3 | AY14: -0.3000000119 | AZ14: 181.7175159 | BF14: 2011 | BG14: 396132 | BH14: 1333217 | BI14: 1 | BJ14: 0 | BK14: =IF($BF14="","",OFFSET(Bootstrap!$C$161,$BF14-FirstYear,$BG$5)) -> 0 | BL14: 0 | BM14: =IF(OR($BF14="",SUM($BI$9:$BI14)+SUM($BL$9:$BL14)>SUM($BI$9:$BI$17)),"",OFFSET($BG$9,$BF14-$BF$9+SUM($BL$9:$BL14),0)) -> 396132 | BN14: =IF(OR($BF14="",SUM($BI$9:$BI14)+SUM($BL$9:$BL14)>SUM($BI$9:$BI$17)),"",OFFSET($BH$9,$BF14-$BF$9+SUM($BL$9:$BL14),0)) -> 1333217 | BO14: 629.390181 | BP14: 629.390181 | BQ14: 2118.267873 | BT14: Slope | BU14: Intercept | BX14: Slope | BY14: Intercept | CK14: 0 | CL14: 0 | CM14: 0 | CN14: 0 | CO14: -190.0158352 | CQ14: -235.7509221
A15: 11 | B15: 1 | C15: 1 | D15: 1 | E15: =IF(A15>$I$1,"",OFFSET(Bootstrap!$C$64,B15,C15)) -> 672616.7301 | F15: =IF(OR(A15>$I$1,OFFSET(Bootstrap!$C$160,B15,C15)=1),"",OFFSET(Bootstrap!$C$195,B15,C15)*IF(DoF_Factor_Pd="Yes",Bootstrap!$L$190/DoF_Adj_Pd,1)) -> 133.8212686 | G15: =IF(OR(A15>$I$1,F15=""),"",OFFSET(Bootstrap!$C$209,B15,C15)) -> 212.1110604 | H15: =IF(A15>$I$1,"",OFFSET(Bootstrap!$C$237,B15,C15)) -> 113.1320541 | I15: 0 | J15: 0 | K15: =IF(A15>$I$1-$J$61,"",VLOOKUP(A15+SUM(J$5:J15),$A$5:$G$59,2)+FirstYear-1) -> 2006 | L15: =IF(A15>$I$1-$J$61,"",(VLOOKUP(A15+SUM(J$5:J15),$A$5:$G$59,3)+1)*12) -> 24 | M15: =IF(A15>$I$1-$J$61,"",VLOOKUP(A15+SUM(J$5:J15),$A$5:$G$59,4)+FirstYear) -> 2007 | N15: =IF(A15>$I$1-$J$61,"",VLOOKUP(A15+SUM(J$5:J15),$A$5:$G$59,5)) -> 672616.7301 | O15: =IF(A15>$I$1-$J$61,"",VLOOKUP(A15+SUM(J$5:J15),$A$5:$G$59,6)) -> 133.8212686 | P15: =IF(A15>$I$1-$J$61,"",VLOOKUP(A15+SUM(J$5:J15),$A$5:$G$59,7)) -> 212.1110604 | Q15: 133.8212686 | S15: 212.1110604 | V15: -193.7099667 | W15: 3.978877322 | X15: -197.1589473 | Y15: -29.30644606 | AA15: 40 | AB15: 11 | AC15: 0.1923076923 | AD15: -0.8694237733 | AE15: -189.7310894 | AH15: 45 | AI15: 11 | AJ15: 0.1923076923 | AK15: -0.8694237733 | AL15: -226.4653934 | AP15: Q1 | AQ15: -0.3000000119 | AR15: -147.4395227 | AX15: Q1 | AY15: -0.3000000119 | AZ15: -188.9599267 | BF15: 2012 | BG15: 440832 | BH15: 1288463 | BI15: 1 | BJ15: 0 | BK15: =IF($BF15="","",OFFSET(Bootstrap!$C$161,$BF15-FirstYear,$BG$5)) -> 0 | BL15: 0 | BM15: =IF(OR($BF15="",SUM($BI$9:$BI15)+SUM($BL$9:$BL15)>SUM($BI$9:$BI$17)),"",OFFSET($BG$9,$BF15-$BF$9+SUM($BL$9:$BL15),0)) -> 440832 | BN15: =IF(OR($BF15="",SUM($BI$9:$BI15)+SUM($BL$9:$BL15)>SUM($BI$9:$BI$17)),"",OFFSET($BH$9,$BF15-$BF$9+SUM($BL$9:$BL15),0)) -> 1288463 | BO15: 663.9518055 | BP15: 663.9518055 | BQ15: 1940.597178 | BS15: Corr: | BT15: =CORREL(RegressY1Values,RegressX1Values) -> -0.3535699412 | BW15: Corr: | BX15: =CORREL(RegressY1Values,RegressX1Values) -> -0.3535699412 | CK15: 0 | CL15: 0 | CM15: 0 | CN15: 0 | CO15: -189.7310894 | CQ15: -226.4653934
A16: 12 | B16: 2 | C16: 1 | D16: 2 | E16: =IF(A16>$I$1,"",OFFSET(Bootstrap!$C$64,B16,C16)) -> 936779.4034 | F16: =IF(OR(A16>$I$1,OFFSET(Bootstrap!$C$160,B16,C16)=1),"",OFFSET(Bootstrap!$C$195,B16,C16)*IF(DoF_Factor_Pd="Yes",Bootstrap!$L$190/DoF_Adj_Pd,1)) -> -64.92590111 | G16: =IF(OR(A16>$I$1,F16=""),"",OFFSET(Bootstrap!$C$209,B16,C16)) -> -102.9096636 | H16: =IF(A16>$I$1,"",OFFSET(Bootstrap!$C$237,B16,C16)) -> 148.758357 | I16: 0 | J16: 0 | K16: =IF(A16>$I$1-$J$61,"",VLOOKUP(A16+SUM(J$5:J16),$A$5:$G$59,2)+FirstYear-1) -> 2007 | L16: =IF(A16>$I$1-$J$61,"",(VLOOKUP(A16+SUM(J$5:J16),$A$5:$G$59,3)+1)*12) -> 24 | M16: =IF(A16>$I$1-$J$61,"",VLOOKUP(A16+SUM(J$5:J16),$A$5:$G$59,4)+FirstYear) -> 2008 | N16: =IF(A16>$I$1-$J$61,"",VLOOKUP(A16+SUM(J$5:J16),$A$5:$G$59,5)) -> 936779.4034 | O16: =IF(A16>$I$1-$J$61,"",VLOOKUP(A16+SUM(J$5:J16),$A$5:$G$59,6)) -> -64.92590111 | P16: =IF(A16>$I$1-$J$61,"",VLOOKUP(A16+SUM(J$5:J16),$A$5:$G$59,7)) -> -102.9096636 | Q16: -64.92590111 | S16: -102.9096636 | V16: -179.2761447 | W16: 15.00878994 | X16: -182.447619 | Y16: -40.97638537 | AA16: 22 | AB16: 12 | AC16: 0.2104072398 | AD16: -0.8050090114 | AE16: -164.2673548 | AH16: 21 | AI16: 12 | AJ16: 0.2104072398 | AK16: -0.8050090114 | AL16: -223.4240044 | AP16: Median | AQ16: -0.3000000119 | AR16: -26.64047839 | AX16: Median | AY16: -0.3000000119 | AZ16: -18.95108736 | BF16: 2013 | BG16: 359480 | BH16: 1421128 | BI16: 1 | BJ16: 0 | BK16: =IF($BF16="","",OFFSET(Bootstrap!$C$161,$BF16-FirstYear,$BG$5)) -> 0 | BL16: 0 | BM16: =IF(OR($BF16="",SUM($BI$9:$BI16)+SUM($BL$9:$BL16)>SUM($BI$9:$BI$17)),"",OFFSET($BG$9,$BF16-$BF$9+SUM($BL$9:$BL16),0)) -> 359480 | BN16: =IF(OR($BF16="",SUM($BI$9:$BI16)+SUM($BL$9:$BL16)>SUM($BI$9:$BI$17)),"",OFFSET($BH$9,$BF16-$BF$9+SUM($BL$9:$BL16),0)) -> 1421128 | BO16: 599.5665101 | BP16: 599.5665101 | BQ16: 2370.259139 | BS16: SE | BT16: =BS10 -> 0.2194772434 | BU16: =BT10 ->  | BW16: SE | BX16: =BW10 -> 1.480706688 | BY16: =BX10 -> 900.3231076 | CK16: 0 | CL16: 0 | CM16: 0 | CN16: 0 | CO16: -164.2673548 | CQ16: -223.4240044
A17: 13 | B17: 3 | C17: 1 | D17: 3 | E17: =IF(A17>$I$1,"",OFFSET(Bootstrap!$C$64,B17,C17)) -> 927315.8688 | F17: =IF(OR(A17>$I$1,OFFSET(Bootstrap!$C$160,B17,C17)=1),"",OFFSET(Bootstrap!$C$195,B17,C17)*IF(DoF_Factor_Pd="Yes",Bootstrap!$L$190/DoF_Adj_Pd,1)) -> 92.42187853 | G17: =IF(OR(A17>$I$1,F17=""),"",OFFSET(Bootstrap!$C$209,B17,C17)) -> 146.4916815 | H17: =IF(A17>$I$1,"",OFFSET(Bootstrap!$C$237,B17,C17)) -> 133.8212686 | I17: 0 | J17: 0 | K17: =IF(A17>$I$1-$J$61,"",VLOOKUP(A17+SUM(J$5:J17),$A$5:$G$59,2)+FirstYear-1) -> 2008 | L17: =IF(A17>$I$1-$J$61,"",(VLOOKUP(A17+SUM(J$5:J17),$A$5:$G$59,3)+1)*12) -> 24 | M17: =IF(A17>$I$1-$J$61,"",VLOOKUP(A17+SUM(J$5:J17),$A$5:$G$59,4)+FirstYear) -> 2009 | N17: =IF(A17>$I$1-$J$61,"",VLOOKUP(A17+SUM(J$5:J17),$A$5:$G$59,5)) -> 927315.8688 | O17: =IF(A17>$I$1-$J$61,"",VLOOKUP(A17+SUM(J$5:J17),$A$5:$G$59,6)) -> 92.42187853 | P17: =IF(A17>$I$1-$J$61,"",VLOOKUP(A17+SUM(J$5:J17),$A$5:$G$59,7)) -> 146.4916815 | Q17: 92.42187853 | S17: 146.4916815 | V17: -165.5546953 | W17: 5.75033074 | X17: -168.4623593 | Y17: -39.57180233 | AA17: 38 | AB17: 13 | AC17: 0.2285067873 | AD17: -0.7437734009 | AE17: -159.8043645 | AH17: 39 | AI17: 13 | AJ17: 0.2285067873 | AK17: -0.7437734009 | AL17: -208.0341616 | AP17: Median | AQ17: 0.3000000119 | AR17: -26.64047839 | AX17: Median | AY17: 0.3000000119 | AZ17: -18.95108736 | BF17: 2014 | BG17: 376686 | BH17: 1363294 | BI17: 1 | BJ17: =IF(OR(BG17="",BH17=""),1,0) -> 0 | BK17: =IF($BF17="","",OFFSET(Bootstrap!$C$161,$BF17-FirstYear,$BG$5)) -> 0 | BL17: 0 | BM17: =IF(OR($BF17="",SUM($BI$9:$BI17)+SUM($BL$9:$BL17)>SUM($BI$9:$BI$17)),"",OFFSET($BG$9,$BF17-$BF$9+SUM($BL$9:$BL17),0)) -> 376686 | BN17: =IF(OR($BF17="",SUM($BI$9:$BI17)+SUM($BL$9:$BL17)>SUM($BI$9:$BI$17)),"",OFFSET($BH$9,$BF17-$BF$9+SUM($BL$9:$BL17),0)) -> 1363294 | BO17: 613.7475051 | BP17: 613.7475051 | BQ17: 2221.261983 | BS17: t-Ratio | BT17: =(BS9-1)/BT16 -> 11.34790336 | BU17: =(BT9-1)/BU16 ->  | BW17: t-Ratio | BX17: =(BW9-1)/BX16 -> -4.043681725 | BY17: =(BX9-1)/BY16 -> 5.737254019 | CK17: 0 | CL17: 0 | CM17: 0 | CN17: 0 | CO17: -159.8043645 | CQ17: -208.0341616
A18: 14 | B18: 4 | C18: 1 | D18: 4 | E18: =IF(A18>$I$1,"",OFFSET(Bootstrap!$C$64,B18,C18)) -> 913365.0863 | F18: =IF(OR(A18>$I$1,OFFSET(Bootstrap!$C$160,B18,C18)=1),"",OFFSET(Bootstrap!$C$195,B18,C18)*IF(DoF_Factor_Pd="Yes",Bootstrap!$L$190/DoF_Adj_Pd,1)) -> 244.5088288 | G18: =IF(OR(A18>$I$1,F18=""),"",OFFSET(Bootstrap!$C$209,B18,C18)) -> 387.5544411 | H18: =IF(A18>$I$1,"",OFFSET(Bootstrap!$C$237,B18,C18)) -> 92.42187853 | I18: 0 | J18: 0 | K18: =IF(A18>$I$1-$J$61,"",VLOOKUP(A18+SUM(J$5:J18),$A$5:$G$59,2)+FirstYear-1) -> 2009 | L18: =IF(A18>$I$1-$J$61,"",(VLOOKUP(A18+SUM(J$5:J18),$A$5:$G$59,3)+1)*12) -> 24 | M18: =IF(A18>$I$1-$J$61,"",VLOOKUP(A18+SUM(J$5:J18),$A$5:$G$59,4)+FirstYear) -> 2010 | N18: =IF(A18>$I$1-$J$61,"",VLOOKUP(A18+SUM(J$5:J18),$A$5:$G$59,5)) -> 913365.0863 | O18: =IF(A18>$I$1-$J$61,"",VLOOKUP(A18+SUM(J$5:J18),$A$5:$G$59,6)) -> 244.5088288 | P18: =IF(A18>$I$1-$J$61,"",VLOOKUP(A18+SUM(J$5:J18),$A$5:$G$59,7)) -> 387.5544411 | Q18: 244.5088288 | S18: 387.5544411 | V18: -152.4315789 | W18: 3.695876896 | X18: -155.0869363 | Y18: -38.72934571 | AA18: 48 | AB18: 14 | AC18: 0.2466063348 | AD18: -0.6852080106 | AE18: -148.735702 | AH18: 52 | AI18: 14 | AJ18: 0.2466063348 | AK18: -0.6852080106 | AL18: -193.816282 | AP18: Max | AQ18: 0 | AR18: 306.6581989 | AX18: Max | AY18: 0 | AZ18: 468.1419837 | BS18: P-Value | BT18: =TDIST(ABS(BT17),BT12,2) -> 3.278043292e-06 | BU18: =TDIST(ABS(BU17),BT12,2) ->  | BW18: P-Value | BX18: =TDIST(ABS(BX17),BX12,2) -> 0.004909918505 | BY18: =TDIST(ABS(BY17),BX12,2) -> 0.0007076295881 | CK18: 0 | CL18: 0 | CM18: 0 | CN18: 0 | CO18: -148.735702 | CQ18: -193.816282
A19: 15 | B19: 5 | C19: 1 | D19: 5 | E19: =IF(A19>$I$1,"",OFFSET(Bootstrap!$C$64,B19,C19)) -> 837559.2324 | F19: =IF(OR(A19>$I$1,OFFSET(Bootstrap!$C$160,B19,C19)=1),"",OFFSET(Bootstrap!$C$195,B19,C19)*IF(DoF_Factor_Pd="Yes",Bootstrap!$L$190/DoF_Adj_Pd,1)) -> -189.7310894 | G19: =IF(OR(A19>$I$1,F19=""),"",OFFSET(Bootstrap!$C$209,B19,C19)) -> -300.7299436 | H19: =IF(A19>$I$1,"",OFFSET(Bootstrap!$C$237,B19,C19)) -> 92.59453458 | I19: 0 | J19: 0 | K19: =IF(A19>$I$1-$J$61,"",VLOOKUP(A19+SUM(J$5:J19),$A$5:$G$59,2)+FirstYear-1) -> 2010 | L19: =IF(A19>$I$1-$J$61,"",(VLOOKUP(A19+SUM(J$5:J19),$A$5:$G$59,3)+1)*12) -> 24 | M19: =IF(A19>$I$1-$J$61,"",VLOOKUP(A19+SUM(J$5:J19),$A$5:$G$59,4)+FirstYear) -> 2011 | N19: =IF(A19>$I$1-$J$61,"",VLOOKUP(A19+SUM(J$5:J19),$A$5:$G$59,5)) -> 837559.2324 | O19: =IF(A19>$I$1-$J$61,"",VLOOKUP(A19+SUM(J$5:J19),$A$5:$G$59,6)) -> -189.7310894 | P19: =IF(A19>$I$1-$J$61,"",VLOOKUP(A19+SUM(J$5:J19),$A$5:$G$59,7)) -> -300.7299436 | Q19: -189.7310894 | S19: -300.7299436 | V19: -139.8152329 | W19: -1.143393403 | X19: -142.2280269 | Y19: -22.45012348 | AA19: 11 | AB19: 15 | AC19: 0.2647058824 | AD19: -0.6289042176 | AE19: -140.9586263 | AH19: 7 | AI19: 15 | AJ19: 0.2647058824 | AK19: -0.6289042176 | AL19: -164.6781504 | AP19: Max | AQ19: 0 | AR19: 306.6581989 | AX19: Max | AY19: 0 | AZ19: 468.1419837 | BF19: Ratio + Intercept Model: Y = α + βX + ε | CK19: 0 | CL19: 0 | CM19: 0 | CN19: 0 | CO19: -140.9586263 | CQ19: -164.6781504
A20: 16 | B20: 6 | C20: 1 | D20: 6 | E20: =IF(A20>$I$1,"",OFFSET(Bootstrap!$C$64,B20,C20)) -> 881171.8663 | F20: =IF(OR(A20>$I$1,OFFSET(Bootstrap!$C$160,B20,C20)=1),"",OFFSET(Bootstrap!$C$195,B20,C20)*IF(DoF_Factor_Pd="Yes",Bootstrap!$L$190/DoF_Adj_Pd,1)) -> 72.84333823 | G20: =IF(OR(A20>$I$1,F20=""),"",OFFSET(Bootstrap!$C$209,B20,C20)) -> 115.4590588 | H20: =IF(A20>$I$1,"",OFFSET(Bootstrap!$C$237,B20,C20)) -> -142.8774444 | I20: 0 | J20: 0 | K20: =IF(A20>$I$1-$J$61,"",VLOOKUP(A20+SUM(J$5:J20),$A$5:$G$59,2)+FirstYear-1) -> 2011 | L20: =IF(A20>$I$1-$J$61,"",(VLOOKUP(A20+SUM(J$5:J20),$A$5:$G$59,3)+1)*12) -> 24 | M20: =IF(A20>$I$1-$J$61,"",VLOOKUP(A20+SUM(J$5:J20),$A$5:$G$59,4)+FirstYear) -> 2012 | N20: =IF(A20>$I$1-$J$61,"",VLOOKUP(A20+SUM(J$5:J20),$A$5:$G$59,5)) -> 881171.8663 | O20: =IF(A20>$I$1-$J$61,"",VLOOKUP(A20+SUM(J$5:J20),$A$5:$G$59,6)) -> 72.84333823 | P20: =IF(A20>$I$1-$J$61,"",VLOOKUP(A20+SUM(J$5:J20),$A$5:$G$59,7)) -> 115.4590588 | Q20: 72.84333823 | S20: 115.4590588 | V20: -127.6307111 | W20: -3.618434339 | X20: -129.809244 | Y20: -33.20732199 | AA20: 34 | AB20: 16 | AC20: 0.2828054299 | AD20: -0.5745275548 | AE20: -131.2491454 | AH20: 35 | AI20: 16 | AJ20: 0.2828054299 | AK20: -0.5745275548 | AL20: -163.016566 | AP20: Q130 | AQ20: 0 | AR20: -476.415216 | AS20: 2008 | AT20: 72 | AU20: 2013 | BG20: I | BH20: Y - X | BM20: I | BN20: Y - X | BO20: I' | BP20: X' | BQ20: Y' - X' | CK20: 0 | CL20: 0 | CM20: 0 | CN20: 0 | CO20: -131.2491454 | CQ20: -163.016566
A21: 17 | B21: 7 | C21: 1 | D21: 7 | E21: =IF(A21>$I$1,"",OFFSET(Bootstrap!$C$64,B21,C21)) -> 975923.3971 | F21: =IF(OR(A21>$I$1,OFFSET(Bootstrap!$C$160,B21,C21)=1),"",OFFSET(Bootstrap!$C$195,B21,C21)*IF(DoF_Factor_Pd="Yes",Bootstrap!$L$190/DoF_Adj_Pd,1)) -> -164.2673548 | G21: =IF(OR(A21>$I$1,F21=""),"",OFFSET(Bootstrap!$C$209,B21,C21)) -> -260.3690967 | H21: =IF(A21>$I$1,"",OFFSET(Bootstrap!$C$237,B21,C21)) -> -64.92590111 | I21: 0 | J21: 0 | K21: =IF(A21>$I$1-$J$61,"",VLOOKUP(A21+SUM(J$5:J21),$A$5:$G$59,2)+FirstYear-1) -> 2012 | L21: =IF(A21>$I$1-$J$61,"",(VLOOKUP(A21+SUM(J$5:J21),$A$5:$G$59,3)+1)*12) -> 24 | M21: =IF(A21>$I$1-$J$61,"",VLOOKUP(A21+SUM(J$5:J21),$A$5:$G$59,4)+FirstYear) -> 2013 | N21: =IF(A21>$I$1-$J$61,"",VLOOKUP(A21+SUM(J$5:J21),$A$5:$G$59,5)) -> 975923.3971 | O21: =IF(A21>$I$1-$J$61,"",VLOOKUP(A21+SUM(J$5:J21),$A$5:$G$59,6)) -> -164.2673548 | P21: =IF(A21>$I$1-$J$61,"",VLOOKUP(A21+SUM(J$5:J21),$A$5:$G$59,7)) -> -260.3690967 | Q21: -164.2673548 | S21: -260.3690967 | V21: -115.8155979 | W21: -2.379434646 | X21: -117.766972 | Y21: -36.08685202 | AA21: 12 | AB21: 17 | AC21: 0.3009049774 | AD21: -0.5217994757 | AE21: -118.1950325 | AH21: 9 | AI21: 17 | AJ21: 0.3009049774 | AK21: -0.5217994757 | AL21: -153.853824 | AP21: Q130 | AQ21: 0 | AR21: -460.5885739 | AS21: 2009 | AT21: 60 | AU21: 2013 | BH21: =BH8&" - "&BG8 -> 24 - 12 | BI21: Rows | BJ21: Missing | BK21: Outlier | BL21: Adjust | BN21: =BH21 -> 24 - 12 | BP21: =BG8 -> 12 | BQ21: =BH21 -> 24 - 12 | BS21: Regression with Intercept | BW21: Regression with Intercept | CA21: Scale Range | CK21: 0 | CL21: 0 | CM21: 0 | CN21: 0 | CO21: -118.1950325 | CQ21: -153.853824
A22: 18 | B22: 8 | C22: 1 | D22: 8 | E22: =IF(A22>$I$1,"",OFFSET(Bootstrap!$C$64,B22,C22)) -> 1169707.191 | F22: =IF(OR(A22>$I$1,OFFSET(Bootstrap!$C$160,B22,C22)=1),"",OFFSET(Bootstrap!$C$195,B22,C22)*IF(DoF_Factor_Pd="Yes",Bootstrap!$L$190/DoF_Adj_Pd,1)) -> -140.9586263 | G22: =IF(OR(A22>$I$1,F22=""),"",OFFSET(Bootstrap!$C$209,B22,C22)) -> -223.4240044 | H22: =IF(A22>$I$1,"",OFFSET(Bootstrap!$C$237,B22,C22)) -> -27.97642444 | I22: 0 | J22: 0 | K22: =IF(A22>$I$1-$J$61,"",VLOOKUP(A22+SUM(J$5:J22),$A$5:$G$59,2)+FirstYear-1) -> 2013 | L22: =IF(A22>$I$1-$J$61,"",(VLOOKUP(A22+SUM(J$5:J22),$A$5:$G$59,3)+1)*12) -> 24 | M22: =IF(A22>$I$1-$J$61,"",VLOOKUP(A22+SUM(J$5:J22),$A$5:$G$59,4)+FirstYear) -> 2014 | N22: =IF(A22>$I$1-$J$61,"",VLOOKUP(A22+SUM(J$5:J22),$A$5:$G$59,5)) -> 1169707.191 | O22: =IF(A22>$I$1-$J$61,"",VLOOKUP(A22+SUM(J$5:J22),$A$5:$G$59,6)) -> -140.9586263 | P22: =IF(A22>$I$1-$J$61,"",VLOOKUP(A22+SUM(J$5:J22),$A$5:$G$59,7)) -> -223.4240044 | Q22: -140.9586263 | S22: -223.4240044 | V22: -104.3170824 | W22: -13.62937904 | X22: -106.0473847 | Y22: -47.42473806 | AA22: 15 | AB22: 18 | AC22: 0.3190045249 | AD22: -0.4704842982 | AE22: -117.9464614 | AH22: 12 | AI22: 18 | AJ22: 0.3190045249 | AK22: -0.4704842982 | AL22: -153.4721228 | AP22: Q330 | AQ22: 0 | AR22: 591.288967 | AS22: 2006 | AT22: 72 | AU22: 2011 | BF22: =BF9 -> 2006 | BG22: =IF($BF22="","",1) -> 1 | BH22: =IF(BF22="","",IF(AND(BI9=1,BJ9=0),BH9-BG9,"")) -> 766940 | BI22: =BI9 -> 1 | BJ22: =BJ9 -> 0 | BK22: =BK9 -> 0 | BL22: =OutlierAdjust(BJ22:BK30) -> 0 | BM22: =IF(OR($BF22="",SUM($BI$22:$BI22)+SUM($BL$22:$BL22)>SUM($BI$22:$BI$30)),"",OFFSET($BG$22,$BF22-$BF$22+SUM($BL$22:$BL22),0)) -> 1 | BN22: =IF(OR($BF22="",SUM($BI$22:$BI22)+SUM($BL$22:$BL22)>SUM($BI$22:$BI$30)),"",OFFSET($BH$22,$BF22-$BF$22+SUM($BL$22:$BL22),0)) -> 766940 | BO22: =IF($BM22="","",BM22/BO9) -> 0.001671670594 | BP22: =IF($BM22="","",BM9/BO9) -> 598.2039786 | BQ22: =IF($BM22="","",BN22/BO9) -> 1282.071045 | BS22: =LINEST(RegressY2DValues,RegressX2DValues,FALSE,TRUE) -> -1.702412918 | BT22: 1550192.375 | BW22: =LINEST(RegressY2Values,RegressX2Values,TRUE,TRUE) -> -1.742264659 | BX22: 1564925.878 | CA22: =IF(CA25<0,ROUNDUP(CA25,-CA29),ROUNDDOWN(CA25,-CA29)) -> 290000 | CB22: =IF(CB25<0,ROUNDUP(CB25,-CB29),ROUNDDOWN(CB25,-CB29)) -> 600000 | CK22: 0 | CL22: 0 | CM22: 0 | CN22: 0 | CO22: -117.9464614 | CQ22: -153.4721228
A23: 19 | B23: 9 | C23: 1 | D23: 9 | E23: =IF(A23>$I$1,"",OFFSET(Bootstrap!$C$64,B23,C23)) -> 972733.2246 | F23: =IF(OR(A23>$I$1,OFFSET(Bootstrap!$C$160,B23,C23)=1),"",OFFSET(Bootstrap!$C$195,B23,C23)*IF(DoF_Factor_Pd="Yes",Bootstrap!$L$190/DoF_Adj_Pd,1)) -> 27.97642445 | G23: =IF(OR(A23>$I$1,F23=""),"",OFFSET(Bootstrap!$C$209,B23,C23)) -> 44.34354209 | H23: =IF(A23>$I$1,"",OFFSET(Bootstrap!$C$237,B23,C23)) -> -57.36316437 | I23: 0 | J23: 0 | K23: =IF(A23>$I$1-$J$61,"",VLOOKUP(A23+SUM(J$5:J23),$A$5:$G$59,2)+FirstYear-1) -> 2014 | L23: =IF(A23>$I$1-$J$61,"",(VLOOKUP(A23+SUM(J$5:J23),$A$5:$G$59,3)+1)*12) -> 24 | M23: =IF(A23>$I$1-$J$61,"",VLOOKUP(A23+SUM(J$5:J23),$A$5:$G$59,4)+FirstYear) -> 2015 | N23: =IF(A23>$I$1-$J$61,"",VLOOKUP(A23+SUM(J$5:J23),$A$5:$G$59,5)) -> 972733.2246 | O23: =IF(A23>$I$1-$J$61,"",VLOOKUP(A23+SUM(J$5:J23),$A$5:$G$59,6)) -> 27.97642445 | P23: =IF(A23>$I$1-$J$61,"",VLOOKUP(A23+SUM(J$5:J23),$A$5:$G$59,7)) -> 44.34354209 | Q23: 27.97642445 | S23: 44.34354209 | V23: -93.08981388 | W23: -9.757645503 | X23: -94.60425939 | Y23: -54.03701915 | AA23: 32 | AB23: 19 | AC23: 0.3371040724 | AD23: -0.4203796323 | AE23: -102.8474594 | AH23: 32 | AI23: 19 | AJ23: 0.3371040724 | AK23: -0.4203796323 | AL23: -148.6412785 | AP23: Q330 | AQ23: 0 | AR23: 658.0902808 | AS23: 2009 | AT23: 48 | AU23: 2012 | BF23: =IF(BF22="","",IF(BF22+1>FirstYear+TriangleSize-$BH$5-1,"",BF22+1)) -> 2007 | BG23: =IF($BF23="","",1) -> 1 | BH23: 884021 | BI23: =BI10 -> 1 | BJ23: =BJ10 -> 0 | BK23: =BK10 -> 0 | BL23: 0 | BM23: =IF(OR($BF23="",SUM($BI$22:$BI23)+SUM($BL$22:$BL23)>SUM($BI$22:$BI$30)),"",OFFSET($BG$22,$BF23-$BF$22+SUM($BL$22:$BL23),0)) -> 1 | BN23: =IF(OR($BF23="",SUM($BI$22:$BI23)+SUM($BL$22:$BL23)>SUM($BI$22:$BI$30)),"",OFFSET($BH$22,$BF23-$BF$22+SUM($BL$22:$BL23),0)) -> 884021 | BO23: 0.001685217214 | BP23: 593.3953151 | BQ23: =IF($BM23="","",BN23/BO10) -> 1489.767407 | BS23: 0.7443760574 | BT23: 272755.8492 | BW23: 0.7422249497 | BX23: 276796.322 | CA23: =ROUNDUP(CA27,-CA29) -> 450000 | CB23: =IF(CB27<0,ROUNDDOWN(CB27,-CB29),ROUNDUP(CB27,-CB29)) -> 1200000 | CK23: 0 | CL23: 0 | CM23: 0 | CN23: 0 | CO23: -102.8474594 | CQ23: -148.6412785
A24: 20 | B24: 1 | C24: 2 | D24: 2 | E24: =IF(A24>$I$1,"",OFFSET(Bootstrap!$C$64,B24,C24)) -> 704494.1493 | F24: =IF(OR(A24>$I$1,OFFSET(Bootstrap!$C$160,B24,C24)=1),"",OFFSET(Bootstrap!$C$195,B24,C24)*IF(DoF_Factor_Pd="Yes",Bootstrap!$L$190/DoF_Adj_Pd,1)) -> -131.2491454 | G24: =IF(OR(A24>$I$1,F24=""),"",OFFSET(Bootstrap!$C$209,B24,C24)) -> -208.0341616 | H24: =IF(A24>$I$1,"",OFFSET(Bootstrap!$C$237,B24,C24)) -> -140.9586263 | I24: 0 | J24: 0 | K24: =IF(A24>$I$1-$J$61,"",VLOOKUP(A24+SUM(J$5:J24),$A$5:$G$59,2)+FirstYear-1) -> 2006 | L24: =IF(A24>$I$1-$J$61,"",(VLOOKUP(A24+SUM(J$5:J24),$A$5:$G$59,3)+1)*12) -> 36 | M24: =IF(A24>$I$1-$J$61,"",VLOOKUP(A24+SUM(J$5:J24),$A$5:$G$59,4)+FirstYear) -> 2008 | N24: =IF(A24>$I$1-$J$61,"",VLOOKUP(A24+SUM(J$5:J24),$A$5:$G$59,5)) -> 704494.1493 | O24: =IF(A24>$I$1-$J$61,"",VLOOKUP(A24+SUM(J$5:J24),$A$5:$G$59,6)) -> -131.2491454 | P24: =IF(A24>$I$1-$J$61,"",VLOOKUP(A24+SUM(J$5:J24),$A$5:$G$59,7)) -> -208.0341616 | Q24: -131.2491454 | S24: -208.0341616 | V24: -82.0942946 | W24: -14.97237355 | X24: -83.39733894 | Y24: -30.28179354 | AA24: 16 | AB24: 20 | AC24: 0.3552036199 | AD24: -0.3713092088 | AE24: -97.06666815 | AH24: 13 | AI24: 20 | AJ24: 0.3552036199 | AK24: -0.3713092088 | AL24: -113.6791325 | BF24: 2008 | BG24: =IF($BF24="","",1) -> 1 | BH24: 1001799 | BI24: 1 | BJ24: 0 | BK24: 0 | BL24: 0 | BM24: =IF(OR($BF24="",SUM($BI$22:$BI24)+SUM($BL$22:$BL24)>SUM($BI$22:$BI$30)),"",OFFSET($BG$22,$BF24-$BF$22+SUM($BL$22:$BL24),0)) -> 1 | BN24: =IF(OR($BF24="",SUM($BI$22:$BI24)+SUM($BL$22:$BL24)>SUM($BI$22:$BI$30)),"",OFFSET($BH$22,$BF24-$BF$22+SUM($BL$22:$BL24),0)) -> 1001799 | BO24: 0.001855332274 | BP24: 538.9870128 | BQ24: 1858.670016 | BS24: 0.9895822923 | BT24: 180.626054 | BW24: 0.4404507957 | BX24: 108884.7493 | CK24: 0 | CL24: 0 | CM24: 0 | CN24: 0 | CO24: -97.06666815 | CQ24: -113.6791325
A25: 21 | B25: 2 | C25: 2 | D25: 3 | E25: =IF(A25>$I$1,"",OFFSET(Bootstrap!$C$64,B25,C25)) -> 981176.3213 | F25: =IF(OR(A25>$I$1,OFFSET(Bootstrap!$C$160,B25,C25)=1),"",OFFSET(Bootstrap!$C$195,B25,C25)*IF(DoF_Factor_Pd="Yes",Bootstrap!$L$190/DoF_Adj_Pd,1)) -> -57.36316437 | G25: =IF(OR(A25>$I$1,F25=""),"",OFFSET(Bootstrap!$C$209,B25,C25)) -> -90.92248004 | H25: =IF(A25>$I$1,"",OFFSET(Bootstrap!$C$237,B25,C25)) -> -206.6340757 | I25: 0 | J25: 0 | K25: =IF(A25>$I$1-$J$61,"",VLOOKUP(A25+SUM(J$5:J25),$A$5:$G$59,2)+FirstYear-1) -> 2007 | L25: =IF(A25>$I$1-$J$61,"",(VLOOKUP(A25+SUM(J$5:J25),$A$5:$G$59,3)+1)*12) -> 36 | M25: =IF(A25>$I$1-$J$61,"",VLOOKUP(A25+SUM(J$5:J25),$A$5:$G$59,4)+FirstYear) -> 2009 | N25: =IF(A25>$I$1-$J$61,"",VLOOKUP(A25+SUM(J$5:J25),$A$5:$G$59,5)) -> 981176.3213 | O25: =IF(A25>$I$1-$J$61,"",VLOOKUP(A25+SUM(J$5:J25),$A$5:$G$59,6)) -> -57.36316437 | P25: =IF(A25>$I$1-$J$61,"",VLOOKUP(A25+SUM(J$5:J25),$A$5:$G$59,7)) -> -90.92248004 | Q25: -57.36316437 | S25: -90.92248004 | V25: -71.29565156 | W25: -13.37646374 | X25: -72.39107989 | Y25: -30.51858371 | AA25: 23 | AB25: 21 | AC25: 0.3733031674 | AD25: -0.3231173978 | AE25: -84.67211529 | AH25: 22 | AI25: 21 | AJ25: 0.3733031674 | AK25: -0.3231173978 | AL25: -102.9096636 | BF25: 2009 | BG25: 1 | BH25: 1108250 | BI25: 1 | BJ25: 0 | BK25: 0 | BL25: 0 | BM25: =IF(OR($BF25="",SUM($BI$22:$BI25)+SUM($BL$22:$BL25)>SUM($BI$22:$BI$30)),"",OFFSET($BG$22,$BF25-$BF$22+SUM($BL$22:$BL25),0)) -> 1 | BN25: =IF(OR($BF25="",SUM($BI$22:$BI25)+SUM($BL$22:$BL25)>SUM($BI$22:$BI$30)),"",OFFSET($BH$22,$BF25-$BF$22+SUM($BL$22:$BL25),0)) -> 1108250 | BO25: 0.001794294316 | BP25: 557.3221689 | BQ25: 1988.526676 | BS25: 332.4664237 | BT25: 7 | BW25: 5.510070511 | BX25: 7 | CA25: =MIN(RegressX2Values) -> 290507 | CB25: =MIN(RegressY2Values) -> 693190 | CK25: 0 | CL25: 0 | CM25: 0 | CN25: 0 | CO25: -84.67211529 | CQ25: -102.9096636
A26: 22 | B26: 3 | C26: 2 | D26: 4 | E26: =IF(A26>$I$1,"",OFFSET(Bootstrap!$C$64,B26,C26)) -> 971264.28 | F26: =IF(OR(A26>$I$1,OFFSET(Bootstrap!$C$160,B26,C26)=1),"",OFFSET(Bootstrap!$C$195,B26,C26)*IF(DoF_Factor_Pd="Yes",Bootstrap!$L$190/DoF_Adj_Pd,1)) -> -55.11516775 | G26: =IF(OR(A26>$I$1,F26=""),"",OFFSET(Bootstrap!$C$209,B26,C26)) -> -87.35933233 | H26: =IF(A26>$I$1,"",OFFSET(Bootstrap!$C$237,B26,C26)) -> 72.84333823 | I26: 0 | J26: 0 | K26: =IF(A26>$I$1-$J$61,"",VLOOKUP(A26+SUM(J$5:J26),$A$5:$G$59,2)+FirstYear-1) -> 2008 | L26: =IF(A26>$I$1-$J$61,"",(VLOOKUP(A26+SUM(J$5:J26),$A$5:$G$59,3)+1)*12) -> 36 | M26: =IF(A26>$I$1-$J$61,"",VLOOKUP(A26+SUM(J$5:J26),$A$5:$G$59,4)+FirstYear) -> 2010 | N26: =IF(A26>$I$1-$J$61,"",VLOOKUP(A26+SUM(J$5:J26),$A$5:$G$59,5)) -> 971264.28 | O26: =IF(A26>$I$1-$J$61,"",VLOOKUP(A26+SUM(J$5:J26),$A$5:$G$59,6)) -> -55.11516775 | P26: =IF(A26>$I$1-$J$61,"",VLOOKUP(A26+SUM(J$5:J26),$A$5:$G$59,7)) -> -87.35933233 | Q26: -55.11516775 | S26: -87.35933233 | V26: -60.66267904 | W26: -4.263222077 | X26: -61.55367657 | Y26: -29.36880347 | AA26: 24 | AB26: 22 | AC26: 0.3914027149 | AD26: -0.2756649355 | AE26: -64.92590111 | AH26: 23 | AI26: 22 | AJ26: 0.3914027149 | AK26: -0.2756649355 | AL26: -90.92248004 | BF26: 2010 | BG26: 1 | BH26: 693190 | BI26: 1 | BJ26: 0 | BK26: 0 | BL26: 0 | BM26: =IF(OR($BF26="",SUM($BI$22:$BI26)+SUM($BL$22:$BL26)>SUM($BI$22:$BI$30)),"",OFFSET($BG$22,$BF26-$BF$22+SUM($BL$22:$BL26),0)) -> 1 | BN26: =IF(OR($BF26="",SUM($BI$22:$BI26)+SUM($BL$22:$BL26)>SUM($BI$22:$BI$30)),"",OFFSET($BH$22,$BF26-$BF$22+SUM($BL$22:$BL26),0)) -> 693190 | BO26: 0.001502172209 | BP26: 665.7026363 | BQ26: 1041.290754 | BS26: 21693947.07 | BT26: 228380.3997 | BW26: 6.532678231e+10 | BX26: 8.29912204e+10 | CA26: =VALUE(RIGHT(TEXT(CA25,"0.0E+0"),1))-1 -> 4 | CB26: =VALUE(RIGHT(TEXT(CB25,"0.0E+0"),1))-1 -> 4 | CK26: 0 | CL26: 0 | CM26: 0 | CN26: 0 | CO26: -64.92590111 | CQ26: -90.92248004
A27: 23 | B27: 4 | C27: 2 | D27: 5 | E27: =IF(A27>$I$1,"",OFFSET(Bootstrap!$C$64,B27,C27)) -> 956652.3262 | F27: =IF(OR(A27>$I$1,OFFSET(Bootstrap!$C$160,B27,C27)=1),"",OFFSET(Bootstrap!$C$195,B27,C27)*IF(DoF_Factor_Pd="Yes",Bootstrap!$L$190/DoF_Adj_Pd,1)) -> -223.315332 | G27: =IF(OR(A27>$I$1,F27=""),"",OFFSET(Bootstrap!$C$209,B27,C27)) -> -353.9620598 | H27: =IF(A27>$I$1,"",OFFSET(Bootstrap!$C$237,B27,C27)) -> -131.2491454 | I27: 0 | J27: 0 | K27: =IF(A27>$I$1-$J$61,"",VLOOKUP(A27+SUM(J$5:J27),$A$5:$G$59,2)+FirstYear-1) -> 2009 | L27: =IF(A27>$I$1-$J$61,"",(VLOOKUP(A27+SUM(J$5:J27),$A$5:$G$59,3)+1)*12) -> 36 | M27: =IF(A27>$I$1-$J$61,"",VLOOKUP(A27+SUM(J$5:J27),$A$5:$G$59,4)+FirstYear) -> 2011 | N27: =IF(A27>$I$1-$J$61,"",VLOOKUP(A27+SUM(J$5:J27),$A$5:$G$59,5)) -> 956652.3262 | O27: =IF(A27>$I$1-$J$61,"",VLOOKUP(A27+SUM(J$5:J27),$A$5:$G$59,6)) -> -223.315332 | P27: =IF(A27>$I$1-$J$61,"",VLOOKUP(A27+SUM(J$5:J27),$A$5:$G$59,7)) -> -353.9620598 | Q27: -223.315332 | S27: -353.9620598 | V27: -50.16707752 | W27: -7.196086845 | X27: -50.85628536 | Y27: -36.50304696 | AA27: 7 | AB27: 23 | AC27: 0.4095022624 | AD27: -0.2288255277 | AE27: -57.36316437 | AH27: 1 | AI27: 23 | AJ27: 0.4095022624 | AK27: -0.2288255277 | AL27: -87.35933233 | BF27: 2011 | BG27: 1 | BH27: 937085 | BI27: 1 | BJ27: 0 | BK27: 0 | BL27: 0 | BM27: =IF(OR($BF27="",SUM($BI$22:$BI27)+SUM($BL$22:$BL27)>SUM($BI$22:$BI$30)),"",OFFSET($BG$22,$BF27-$BF$22+SUM($BL$22:$BL27),0)) -> 1 | BN27: =IF(OR($BF27="",SUM($BI$22:$BI27)+SUM($BL$22:$BL27)>SUM($BI$22:$BI$30)),"",OFFSET($BH$22,$BF27-$BF$22+SUM($BL$22:$BL27),0)) -> 937085 | BO27: 0.001588839531 | BP27: 629.390181 | BQ27: 1488.877692 | BT27: Slope | BU27: Intercept | BX27: Slope | BY27: Intercept | CA27: =MAX(RegressX2Values) -> 443160 | CB27: =MAX(RegressY2Values) -> 1108250 | CK27: 0 | CL27: 0 | CM27: 0 | CN27: 0 | CO27: -57.36316437 | CQ27: -87.35933233
A28: 24 | B28: 5 | C28: 2 | D28: 6 | E28: =IF(A28>$I$1,"",OFFSET(Bootstrap!$C$64,B28,C28)) -> 877253.7948 | F28: =IF(OR(A28>$I$1,OFFSET(Bootstrap!$C$160,B28,C28)=1),"",OFFSET(Bootstrap!$C$195,B28,C28)*IF(DoF_Factor_Pd="Yes",Bootstrap!$L$190/DoF_Adj_Pd,1)) -> 148.758357 | G28: =IF(OR(A28>$I$1,F28=""),"",OFFSET(Bootstrap!$C$209,B28,C28)) -> 235.786831 | H28: =IF(A28>$I$1,"",OFFSET(Bootstrap!$C$237,B28,C28)) -> -16.90527481 | I28: 0 | J28: 0 | K28: =IF(A28>$I$1-$J$61,"",VLOOKUP(A28+SUM(J$5:J28),$A$5:$G$59,2)+FirstYear-1) -> 2010 | L28: =IF(A28>$I$1-$J$61,"",(VLOOKUP(A28+SUM(J$5:J28),$A$5:$G$59,3)+1)*12) -> 36 | M28: =IF(A28>$I$1-$J$61,"",VLOOKUP(A28+SUM(J$5:J28),$A$5:$G$59,4)+FirstYear) -> 2012 | N28: =IF(A28>$I$1-$J$61,"",VLOOKUP(A28+SUM(J$5:J28),$A$5:$G$59,5)) -> 877253.7948 | O28: =IF(A28>$I$1-$J$61,"",VLOOKUP(A28+SUM(J$5:J28),$A$5:$G$59,6)) -> 148.758357 | P28: =IF(A28>$I$1-$J$61,"",VLOOKUP(A28+SUM(J$5:J28),$A$5:$G$59,7)) -> 235.786831 | Q28: 148.758357 | S28: 235.786831 | V28: -39.78283632 | W28: -15.33233142 | X28: -40.2723955 | Y28: -28.50375491 | AA28: 42 | AB28: 24 | AC28: 0.42760181 | AD28: -0.1824830949 | AE28: -55.11516775 | AH28: 48 | AI28: 24 | AJ28: 0.42760181 | AK28: -0.1824830949 | AL28: -68.77615041 | BF28: 2012 | BG28: 1 | BH28: 847631 | BI28: 1 | BJ28: 0 | BK28: 0 | BL28: 0 | BM28: =IF(OR($BF28="",SUM($BI$22:$BI28)+SUM($BL$22:$BL28)>SUM($BI$22:$BI$30)),"",OFFSET($BG$22,$BF28-$BF$22+SUM($BL$22:$BL28),0)) -> 1 | BN28: =IF(OR($BF28="",SUM($BI$22:$BI28)+SUM($BL$22:$BL28)>SUM($BI$22:$BI$30)),"",OFFSET($BH$22,$BF28-$BF$22+SUM($BL$22:$BL28),0)) -> 847631 | BO28: 0.001506133415 | BP28: 663.9518055 | BQ28: 1276.645372 | BS28: Corr: | BT28: =CORREL(RegressY2Values,RegressX2Values) -> -0.6636646711 | BW28: Corr: | BX28: =CORREL(RegressY2Values,RegressX1Values) -> -0.6636646711 | CA28: =VALUE(RIGHT(TEXT(CA27,"0.0E+0"),1))-1 -> 4 | CB28: =VALUE(RIGHT(TEXT(CB27,"0.0E+0"),1))-1 -> 5 | CK28: 0 | CL28: 0 | CM28: 0 | CN28: 0 | CO28: -55.11516775 | CQ28: -68.77615041
A29: 25 | B29: 6 | C29: 2 | D29: 7 | E29: =IF(A29>$I$1,"",OFFSET(Bootstrap!$C$64,B29,C29)) -> 922933.3684 | F29: =IF(OR(A29>$I$1,OFFSET(Bootstrap!$C$160,B29,C29)=1),"",OFFSET(Bootstrap!$C$195,B29,C29)*IF(DoF_Factor_Pd="Yes",Bootstrap!$L$190/DoF_Adj_Pd,1)) -> -97.06666815 | G29: =IF(OR(A29>$I$1,F29=""),"",OFFSET(Bootstrap!$C$209,B29,C29)) -> -153.853824 | H29: =IF(A29>$I$1,"",OFFSET(Bootstrap!$C$237,B29,C29)) -> -103.8957561 | I29: 0 | J29: 0 | K29: =IF(A29>$I$1-$J$61,"",VLOOKUP(A29+SUM(J$5:J29),$A$5:$G$59,2)+FirstYear-1) -> 2011 | L29: =IF(A29>$I$1-$J$61,"",(VLOOKUP(A29+SUM(J$5:J29),$A$5:$G$59,3)+1)*12) -> 36 | M29: =IF(A29>$I$1-$J$61,"",VLOOKUP(A29+SUM(J$5:J29),$A$5:$G$59,4)+FirstYear) -> 2013 | N29: =IF(A29>$I$1-$J$61,"",VLOOKUP(A29+SUM(J$5:J29),$A$5:$G$59,5)) -> 922933.3684 | O29: =IF(A29>$I$1-$J$61,"",VLOOKUP(A29+SUM(J$5:J29),$A$5:$G$59,6)) -> -97.06666815 | P29: =IF(A29>$I$1-$J$61,"",VLOOKUP(A29+SUM(J$5:J29),$A$5:$G$59,7)) -> -153.853824 | Q29: -97.06666815 | S29: -153.853824 | V29: -29.48572174 | W29: -13.90528144 | X29: -29.77730735 | Y29: -30.45541934 | AA29: 20 | AB29: 25 | AC29: 0.4457013575 | AD29: -0.1365294878 | AE29: -43.39100318 | AH29: 17 | AI29: 25 | AJ29: 0.4457013575 | AK29: -0.1365294878 | AL29: -60.23272669 | BF29: 2013 | BG29: 1 | BH29: 1061648 | BI29: 1 | BJ29: 0 | BK29: 0 | BL29: 0 | BM29: =IF(OR($BF29="",SUM($BI$22:$BI29)+SUM($BL$22:$BL29)>SUM($BI$22:$BI$30)),"",OFFSET($BG$22,$BF29-$BF$22+SUM($BL$22:$BL29),0)) -> 1 | BN29: =IF(OR($BF29="",SUM($BI$22:$BI29)+SUM($BL$22:$BL29)>SUM($BI$22:$BI$30)),"",OFFSET($BH$22,$BF29-$BF$22+SUM($BL$22:$BL29),0)) -> 1061648 | BO29: 0.001667871676 | BP29: 599.5665101 | BQ29: 1770.692629 | BS29: SE | BT29: =BS23 -> 0.7443760574 | BU29: =BT23 -> 272755.8492 | BW29: SE | BX29: =BW23 -> 0.7422249497 | BY29: =BX23 -> 276796.322 | CA29: =MAX(CA26,CA28) -> 4 | CB29: =MAX(CB26,CB28) -> 5 | CK29: 0 | CL29: 0 | CM29: 0 | CN29: 0 | CO29: -43.39100318 | CQ29: -60.23272669
A30: 26 | B30: 7 | C30: 2 | D30: 8 | E30: =IF(A30>$I$1,"",OFFSET(Bootstrap!$C$64,B30,C30)) -> 1022175.472 | F30: =IF(OR(A30>$I$1,OFFSET(Bootstrap!$C$160,B30,C30)=1),"",OFFSET(Bootstrap!$C$195,B30,C30)*IF(DoF_Factor_Pd="Yes",Bootstrap!$L$190/DoF_Adj_Pd,1)) -> 138.4496375 | G30: =IF(OR(A30>$I$1,F30=""),"",OFFSET(Bootstrap!$C$209,B30,C30)) -> 219.4471756 | H30: =IF(A30>$I$1,"",OFFSET(Bootstrap!$C$237,B30,C30)) -> -10.85274438 | I30: 0 | J30: 0 | K30: =IF(A30>$I$1-$J$61,"",VLOOKUP(A30+SUM(J$5:J30),$A$5:$G$59,2)+FirstYear-1) -> 2012 | L30: =IF(A30>$I$1-$J$61,"",(VLOOKUP(A30+SUM(J$5:J30),$A$5:$G$59,3)+1)*12) -> 36 | M30: =IF(A30>$I$1-$J$61,"",VLOOKUP(A30+SUM(J$5:J30),$A$5:$G$59,4)+FirstYear) -> 2014 | N30: =IF(A30>$I$1-$J$61,"",VLOOKUP(A30+SUM(J$5:J30),$A$5:$G$59,5)) -> 1022175.472 | O30: =IF(A30>$I$1-$J$61,"",VLOOKUP(A30+SUM(J$5:J30),$A$5:$G$59,6)) -> 138.4496375 | P30: =IF(A30>$I$1-$J$61,"",VLOOKUP(A30+SUM(J$5:J30),$A$5:$G$59,7)) -> 219.4471756 | Q30: 138.4496375 | S30: 219.4471756 | V30: -19.25284237 | W30: -18.41478741 | X30: -19.34768941 | Y30: -24.99585267 | AA30: 41 | AB30: 26 | AC30: 0.463800905 | AD30: -0.09086254732 | AE30: -37.66762978 | AH30: 47 | AI30: 26 | AJ30: 0.463800905 | AK30: -0.09086254732 | AL30: -44.34354208 | BF30: 2014 | BG30: 1 | BH30: 986608 | BI30: 1 | BJ30: 0 | BK30: 0 | BL30: 0 | BM30: =IF(OR($BF30="",SUM($BI$22:$BI30)+SUM($BL$22:$BL30)>SUM($BI$22:$BI$30)),"",OFFSET($BG$22,$BF30-$BF$22+SUM($BL$22:$BL30),0)) -> 1 | BN30: =IF(OR($BF30="",SUM($BI$22:$BI30)+SUM($BL$22:$BL30)>SUM($BI$22:$BI$30)),"",OFFSET($BH$22,$BF30-$BF$22+SUM($BL$22:$BL30),0)) -> 986608 | BO30: 0.001629334526 | BP30: 613.7475051 | BQ30: 1607.514478 | BS30: t-Ratio | BT30: =BS22/BT29 -> -2.287033417 | BU30: =BT22/BU29 -> 5.683443194 | BW30: t-Ratio | BX30: =BW22/BX29 -> -2.347353938 | BY30: =BX22/BY29 -> 5.653709075 | CK30: 0 | CL30: 0 | CM30: 0 | CN30: 0 | CO30: -37.66762978 | CQ30: -44.34354208
A31: 27 | B31: 8 | C31: 2 | D31: 9 | E31: =IF(A31>$I$1,"",OFFSET(Bootstrap!$C$64,B31,C31)) -> 1225143.288 | F31: =IF(OR(A31>$I$1,OFFSET(Bootstrap!$C$160,B31,C31)=1),"",OFFSET(Bootstrap!$C$195,B31,C31)*IF(DoF_Factor_Pd="Yes",Bootstrap!$L$190/DoF_Adj_Pd,1)) -> 284.3421923 | G31: =IF(OR(A31>$I$1,F31=""),"",OFFSET(Bootstrap!$C$209,B31,C31)) -> 450.6916171 | H31: =IF(A31>$I$1,"",OFFSET(Bootstrap!$C$237,B31,C31)) -> -206.6340757 | I31: 0 | J31: 0 | K31: =IF(A31>$I$1-$J$61,"",VLOOKUP(A31+SUM(J$5:J31),$A$5:$G$59,2)+FirstYear-1) -> 2013 | L31: =IF(A31>$I$1-$J$61,"",(VLOOKUP(A31+SUM(J$5:J31),$A$5:$G$59,3)+1)*12) -> 36 | M31: =IF(A31>$I$1-$J$61,"",VLOOKUP(A31+SUM(J$5:J31),$A$5:$G$59,4)+FirstYear) -> 2015 | N31: =IF(A31>$I$1-$J$61,"",VLOOKUP(A31+SUM(J$5:J31),$A$5:$G$59,5)) -> 1225143.288 | O31: =IF(A31>$I$1-$J$61,"",VLOOKUP(A31+SUM(J$5:J31),$A$5:$G$59,6)) -> 284.3421923 | P31: =IF(A31>$I$1-$J$61,"",VLOOKUP(A31+SUM(J$5:J31),$A$5:$G$59,7)) -> 450.6916171 | Q31: 284.3421923 | S31: 450.6916171 | V31: -9.062269928 | W31: -18.91415451 | X31: -8.961191806 | Y31: -17.83421825 | AA31: 52 | AB31: 27 | AC31: 0.4819004525 | AD31: -0.04538441279 | AE31: =IF(O31="","",IF(ISERROR(MATCH(AB31,AA$5:AA$59,0)),0,OFFSET(O$4,MATCH(AB31,AA$5:AA$59,0),0))) -> -27.97642444 | AH31: 54 | AI31: 27 | AJ31: 0.4819004525 | AK31: -0.04538441279 | AL31: -26.79541005 | BS31: P-Value | BT31: =TDIST(ABS(BT30),BT25,2) -> 0.05605208794 | BU31: =TDIST(ABS(BU30),BT25,2) -> 0.0007480577712 | BW31: P-Value | BX31: =TDIST(ABS(BX30),BX25,2) -> 0.05128681338 | BY31: =TDIST(ABS(BY30),BX25,2) -> 0.0007714995294 | CK31: 0 | CL31: 0 | CM31: 0 | CN31: 0 | CO31: -27.97642444 | CQ31: -26.79541005
